Workbook

Sheet Welcome (hidden)
B2: Herzlich Willkommen bei: DL-Planer
B3: ▪ Deckungsbeitragsrechnung ▪ Vollkostenrechnung ▪ Betriebsplanung ▪
B5: Wenn dieses Blatt nicht innerhalb weniger Sekunden automatisch verschwindet haben Sie offensichtlich die
B6: Makro-Funktion in Excel nicht aktiviert. Diese Makro-Funktion sollten Sie aber auf jeden Fall aktivieren, denn sonst
B7: funktioniert in dieser Datei erst mal nichts.
B8: Dazu gehen Sie (je nachdem mit welcher Excel-Version Sie arbeiten) wie folgt vor:
B10: Excel 2007/2010/2013:
B11: Wenn Sie beim Öffnen der Datei unterhalb der
B12: Symbolleisten eine Sicherheitswarnung sehen
B13: (z.B. "Makros wurden deaktiviert" oder "Einige
B14: Inhalte wurden deaktiviert...")
B15: dann klicken Sie:
B16: bei Excel 2010/2013: auf die Schaltfläche "Inhalte aktivieren".
B17: bei Excel 2007: zunächst auf die Schaltfläche "Optionen" und im folgenden Dialogfeld auf "Diesen Inhalt aktivieren"
B19: Excel 2000, XP, 2003:
B20: Wenn Sie beim Öffnen der Datei eine Meldung sehen die etwa lautet "Makros aktivieren?"
B21: dann klicken Sie [JA] !
B24: Falls eine solche Meldung gar nicht erst erscheint
B25: müssen Sie die Sicherheitseinstellungen in Excel zunächst grundlegend ändern (nur einmalig erforderlich!):
B27: Excel 2013:
B28: 1. Klicken Sie im Excel-Menü auf Datei
B29: und dann auf Optionen > Trus Center > Einstellungen für das
B30: Trust Center > Makroeinstellungen
B31: 2. Wählen Sie "Alle Makros aktivieren"
B33: Nun müssen Sie diese Datei allerdings nochmal schließen und neu öffnen.
B34: Die Makros sind nun automatsich aktiviert!.
B37: Excel 2010:
B38: 1. Klicken Sie im Excel-Menü auf Datei
B39: und dann auf Optionen > Sicherheitscenter > Einstellungen für das
B40: Sicherheitscenter > Einstellungen für Makros
B41: 2. Wählen Sie "Alle Makros aktivieren"
B43: Nun müssen Sie diese Datei allerdings nochmal schließen und neu öffnen.
B44: Die Makros sind nun automatsich aktiviert!.
B47: Excel 2007:
B48: 1. Klicken Sie auf die Microsoft Office-Schaltfläche
B49: und dann auf Excel-Optionen > Vertrauensstellungscenter > Einstellungen für das
B50: Vertrauensstellungscenter
B51: 2. Wählen Sie "Alle Makros aktivieren"
B53: Nun müssen Sie diese Datei allerdings nochmal schließen und neu öffnen.
B54: Die Makros sind nun automatsich aktiviert!.
B57: Excel 2000, XP, 2003:
B58: Wählen Sie im Menü Extras > Makro > Sicherheit: Niedrig
B59: Nun müssen Sie diese Datei allerdings nochmal schließen und neu öffnen.
B60: Die Makros sind nun automatsich aktiviert!.
B63: Sollten Sie tatsächlich gar nicht klarkommen hilft vielleicht eine kurze eMail an
B64: die Landmaschinenschule Triesdorf.

Sheet Cover
K6: Liz. 150507-01
B8: ▪ Deckungsbeitragsrechnung ▪ Vollkostenrechnung ▪ Betriebsplanung ▪
B9: ▪ für Agrar-Dienstleister ▪
B11: Fachzentrum für Energie & Landtechnik, 91746 Weidenbach-Triesdorf
B12: LMS@Triesdorf.de | 09826-182002
B14: Anwendungshilfen (Makros)
B15: Um die Anwendung des Systems zu erleichtern, stehen im System Schaltflächen für spezielle Funktionen
B16: zur Verfügung: z.B. Auswählen codierter Listeneinträge per Maus (Schlepper, Geräte, Arbeitsverfahren).
B17: Zeilen einfügen/entfernen erfolgt per Rechts-Maus-Klick.
B19: Grundeistellungen
B20: Währungseinheit: | G20: €
B21: Standard-Wert für den Bedarf an Umlaufvermögen: | G21: 0.1 | H21: der variablen Kosten
B23: Haftungsausschluss
B24: Dieses Betriebsplanungssystem wurde mit größter Sorgfalt erstellt.
B25: Gleichwohl können wir für die Fehlerfreiheit des Programms keine Gewähr übernehmen.
B26: Die Haftung der Autoren und der Vertreiber - gleich aus welchem Rechtsgrund - ist auf Vorsatz und grobe
B27: Fahrlässigkeit begrenzt.

Sheet Maschinen
F1: Preise: | J1: Diesel: | K1: 0.95 | L1: =Curr&"/l" -> €/l | M1: Öl: | N1: 2.9 | O1: =Curr&"/l" -> €/l | P1: Ölverbr.: | Q1: 0.01 | R1: des Dieselverbrauchs | X1: Hier Maschinenauslastung wählen:
B2: Maschinenliste | D2: Ein- | E2: Anzahl verfügb Masch. | K2: Variable Kosten | R2: Feste Kosten: alle Angaben für jeweils EINE Maschine! | AE2: Masch.- | AG2: Auslastung (tatsächl. Einsatz): Berechnung gemäß folg. Optionen: | AR2: Einsatz-Kapazität der Maschinen in den Halbmonaten (in den Einheiten des jeweiligen Arbeitsverfahrens) | CT2: ZoomFakt | CU2: 85
B3: (eigene, geliehene sowie Sub-Dienstleistungen) | D3: heit | E3: in den Planvarianten*) | K3: Rep.- | L3: Hilfsmitt., | M3: Fremd- | N3: Diesel | P3: Motoröl- | Q3: Var.Ko | R3: Ansch.- | S3: Rest- | T3: Sonst. | U3: Normative | W3: Afa | X3: AfA- | Y3: Auslastung | AA3: Kosten | AD3: Festko. | AE3: kosten | AG3: A: Pauschal | AI3: B: Individuell | AK3: C: Einsatz gemäß Planungs-Blatt | AR3: für jeweils EINE Maschine (wird intern multipliziert mit der Anzahl der Maschinen)
B4: Code | C4: Bezeichnung | E4: 0 | F4: 1 | G4: 2 | H4: 3 | I4: 4 | J4: 5 | K4: kost. | L4: Material | M4: mechan. | N4: Verbr. | O4: Kosten | P4: Kosten | Q4: insges. | R4: preis | S4: wert | T4: FestKo | U4: Nutz.-dauer | W4: je Jahr | X4: Schw. | Y4: =INDEX(PlanList,AuslastPlanSel) -> Plan 0 | AA4: AfA | AB4: ZA f.AV | AC4: Sonstige | AD4: insges. | AE4: insges. | AG4: Wert: | AH4: 0.8 | AI4: (Manuelle Eingabe) | AK4: Plan 0 | AL4: Plan 1 | AM4: Plan 2 | AN4: Plan 3 | AO4: Plan 4 | AP4: Plan 5 | AR4: Jan | AT4: Feb | AV4: Mrz | AX4: Apr | AZ4: Mai | BB4: Jun | BD4: Jul | BF4: Aug | BH4: Sep | BJ4: Okt | BL4: Nov | BN4: Dez
E5: Nichts eingetragen: Anzahl = 1 | K5: =Curr&"/Einh" -> €/Einh | L5: =Curr&"/Einh" -> €/Einh | M5: =Curr&"/Einh" -> €/Einh | N5: l/Einh. | O5: =Curr&"/Einh" -> €/Einh | P5: =Curr&"/Einh" -> €/Einh | Q5: =Curr&"/Einh." -> €/Einh. | R5: =Curr -> € | S5: =Curr -> € | T5: =Curr&"/a" -> €/a | U5: Jahre | V5: Einh. | W5: =Curr&"/a" -> €/a | X5: Einh/J | Y5: Einh/J | Z5: % | AA5: =Curr&"/Einh" -> €/Einh | AB5: =Curr&"/Einh" -> €/Einh | AC5: =Curr&"/Einh" -> €/Einh | AD5: =Curr&"/Einh." -> €/Einh. | AE5: =Curr&"/Einh" -> €/Einh | AG5: Einh/J | AH5: % | AI5: Einh/J | AJ5: % | AK5: Einh/J | AL5: Einh/J | AM5: Einh/J | AN5: Einh/J | AO5: Einh/J | AP5: Einh/J | AR5: 01a | AS5: 01b | AT5: 02a | AU5: 02b | AV5: 03a | AW5: 03b | AX5: 04a | AY5: 04b | AZ5: 05a | BA5: 05b | BB5: 06a | BC5: 06b | BD5: 07a | BE5: 07b | BF5: 08a | BG5: 08b | BH5: 09a | BI5: 09b | BJ5: 10a | BK5: 10b | BL5: 11a | BM5: 11b | BN5: 12a | BO5: 12b
B6: Sp. | C6: =CELL("Col",C6)-CELL("Col",$B6)+1 -> 2 | D6: 3 | E6: =CELL("Col",E6)-CELL("Col",$B6)+1 -> 4 | F6: 5 | G6: 6 | H6: 7 | I6: 8 | J6: 9 | K6: 10 | L6: 11 | M6: =CELL("Col",M6)-CELL("Col",$B6)+1 -> 12 | N6: =CELL("Col",N6)-CELL("Col",$B6)+1 -> 13 | O6: =CELL("Col",O6)-CELL("Col",$B6)+1 -> 14 | P6: =CELL("Col",P6)-CELL("Col",$B6)+1 -> 15 | Q6: 16 | R6: 17 | S6: 18 | T6: 19 | U6: 20 | V6: 21 | W6: 22 | X6: 23 | Y6: 24 | Z6: 25 | AA6: 26 | AB6: 27 | AC6: 28 | AD6: 29 | AE6: 30 | AG6: =CELL("Col",AG6)-CELL("Col",$B6)+1 -> 32 | AH6: 33 | AI6: 34 | AJ6: 35 | AK6: 36 | AL6: 37 | AM6: 38 | AN6: 39 | AO6: 40 | AP6: 41 | AR6: =CELL("Col",AR6)-CELL("Col",$B6)+1 -> 43 | AS6: 44 | AT6: 45 | AU6: 46 | AV6: 47 | AW6: 48 | AX6: 49 | AY6: 50 | AZ6: 51 | BA6: 52 | BB6: 53 | BC6: 54 | BD6: 55 | BE6: 56 | BF6: 57 | BG6: 58 | BH6: 59 | BI6: 60 | BJ6: 61 | BK6: 62 | BL6: 63 | BM6: 64 | BN6: 65 | BO6: 66
B7: Code | C7: Schlepper | D7: Einheit | E7: Anz0 | F7: Anz1 | G7: Anz2 | H7: Anz3 | I7: Anz4 | J7: Anz5 | K7: ReparKosten | L7: Sonst VK | M7: Verrechungspreis | N7: Kraftst-Verbrauch | O7: Kraftst-Kosten | P7: Ölkosten | Q7: VarKo gesamt | R7: Anschaff | S7: Restwert | T7: Sonst FK / J | U7: NuDau J | V7: NuDau Einh | W7: AfAJahr | X7: Afa-Schwelle | Y7: Einsatz | Z7: Auslastung | AA7: AfA | AB7: ZA für AV | AC7: Sonst FK | AD7: Kestko Gesamt | AE7: Ges Kosten | AG7: PauschEins | AH7: Pausch% | AI7: ManEins | AJ7: Man% | AK7: Auslast0 | AL7: Auslast1 | AM7: Auslast2 | AN7: Auslast3 | AO7: Auslast4 | AP7: Auslast5 | AR7: 01a | AS7: 01b | AT7: 02a | AU7: 02b | AV7: 03a | AW7: 03b | AX7: 04a | AY7: 04b | AZ7: 05a | BA7: 05b | BB7: 06a | BC7: 06b | BD7: 07a | BE7: 07b | BF7: 08a | BG7: 08b | BH7: 09a | BI7: 09b | BJ7: 10a | BK7: 10b | BL7: 11a | BM7: 11b | BN7: 12a | BO7: 12b
C8: Lader, Hof-Tracs, etc | O8: =N8*PreisDiesel -> 0 | P8: =N8*AnteilOel*PreisOel -> 0 | Q8: =SUM(K8:P8) -> 0 | W8: =IF(U8=0,0,(R8-S8)/U8) -> 0 | X8: =IF(U8=0,0,V8/U8) -> 0 | Y8: =INDEX(AG8:AP8,AuslastSel) -> 0 | Z8: =IF(X8=0,0,Y8/X8) -> 0 | AA8: =IF(OR(U8=0,X8=0,Z8=0),0,IF(Z8>1,(R8-S8)/V8,((R8-S8)/U8)/Y8)) -> 0 | AB8: =IF(OR(X8=0,Z8=0),0,((R8+S8)/2*Interest)/Y8) -> 0 | AC8: =IF(Y8=0,0,T8/Y8) -> 0 | AD8: =SUM(AA8:AC8) -> 0 | AE8: =AD8+Q8 -> 0 | AG8: =$X8*AH8 -> 0 | AH8: =IF($X8=0,0,AuslastPauschTr) -> 0 | AJ8: =IF($X8=0,0,AI8/$X8) -> 0 | AK8: =(SUMPRODUCT((Planung!$AS$8:$AS$42=$B8)*(Planung!$AV$8:$AV$42)*(Planung!$B$8:$B$42))+SUMPRODUCT((Planung!$BA$8:$BA$42=$B8)*(Planung!$BD$8:$BD$42)*(Planung!$B$8:$B$42))+SUMPRODUCT((Planung!$BI$8:$BI$42=$B8)*(Planung!$BL$8:$BL$42)*(Planung!$B$8:$B$42))+SUMPRODUCT((Planung!$BQ$8:$BQ$42=$B8)*(Planung!$BT$8:$BT$42)*(Planung!$B$8:$B$42)))/IF(E8=0,1,E8) -> 0 | AL8: =(SUMPRODUCT((Planung!$AS$79:$AS$114=$B8)*(Planung!$AV$79:$AV$114)*(Planung!$B$79:$B$114))+SUMPRODUCT((Planung!$BA$79:$BA$114=$B8)*(Planung!$BD$79:$BD$114)*(Planung!$B$79:$B$114))+SUMPRODUCT((Planung!$BI$79:$BI$114=$B8)*(Planung!$BL$79:$BL$114)*(Planung!$B$79:$B$114))+SUMPRODUCT((Planung!$BQ$79:$BQ$114=$B8)*(Planung!$BT$79:$BT$114)*(Planung!$B$79:$B$114)))/IF(F8=0,1,F8) -> 0 | AM8: =(SUMPRODUCT((Planung!$AS$151:$AS$185=$B8)*(Planung!$AV$151:$AV$185)*(Planung!$B$151:$B$185))+SUMPRODUCT((Planung!$BA$151:$BA$185=$B8)*(Planung!$BD$151:$BD$185)*(Planung!$B$151:$B$185))+SUMPRODUCT((Planung!$BI$151:$BI$185=$B8)*(Planung!$BL$151:$BL$185)*(Planung!$B$151:$B$185))+SUMPRODUCT((Planung!$BQ$151:$BQ$185=$B8)*(Planung!$BT$151:$BT$185)*(Planung!$B$151:$B$185)))/IF(G8=0,1,G8) -> 0 | AN8: =(SUMPRODUCT((Planung!$AS$223:$AS$255=$B8)*(Planung!$AV$223:$AV$255)*(Planung!$B$223:$B$255))+SUMPRODUCT((Planung!$BA$223:$BA$255=$B8)*(Planung!$BD$223:$BD$255)*(Planung!$B$223:$B$255))+SUMPRODUCT((Planung!$BI$223:$BI$255=$B8)*(Planung!$BL$223:$BL$255)*(Planung!$B$223:$B$255))+SUMPRODUCT((Planung!$BQ$223:$BQ$255=$B8)*(Planung!$BT$223:$BT$255)*(Planung!$B$223:$B$255)))/IF(G8=0,1,G8) -> 0 | AO8: =(SUMPRODUCT((Planung!$AS$293:$AS$326=$B8)*(Planung!$AV$293:$AV$326)*(Planung!$B$293:$B$326))+SUMPRODUCT((Planung!$BA$293:$BA$326=$B8)*(Planung!$BD$293:$BD$326)*(Planung!$B$293:$B$326))+SUMPRODUCT((Planung!$BI$293:$BI$326=$B8)*(Planung!$BL$293:$BL$326)*(Planung!$B$293:$B$326))+SUMPRODUCT((Planung!$BQ$293:$BQ$326=$B8)*(Planung!$BT$293:$BT$326)*(Planung!$B$293:$B$326)))/IF(G8=0,1,G8) -> 0 | AP8: =(SUMPRODUCT((Planung!$AS$364:$AS$384=$B8)*(Planung!$AV$364:$AV$384)*(Planung!$B$364:$B$384))+SUMPRODUCT((Planung!$BA$364:$BA$384=$B8)*(Planung!$BD$364:$BD$384)*(Planung!$B$364:$B$384))+SUMPRODUCT((Planung!$BI$364:$BI$384=$B8)*(Planung!$BL$364:$BL$384)*(Planung!$B$364:$B$384))+SUMPRODUCT((Planung!$BQ$364:$BQ$384=$B8)*(Planung!$BT$364:$BT$384)*(Planung!$B$364:$B$384)))/IF(G8=0,1,G8) -> 0
B9: 11111 | O9: =N9*PreisDiesel -> 0 | P9: =N9*AnteilOel*PreisOel -> 0 | Q9: =K9+L9+M9+O9+P9 -> 0 | W9: =IF(U9=0,0,(R9-S9)/U9) -> 0 | X9: 0 | Y9: 0 | Z9: =IF(X9=0,0,Y9/X9) -> 0 | AA9: =IF(OR(U9=0,X9=0,Z9=0),0,IF(Z9>1,(R9-S9)/V9,((R9-S9)/U9)/Y9)) -> 0 | AB9: 0 | AC9: 0 | AD9: =SUM(AA9:AC9) -> 0 | AE9: 0 | AG9: =$X9*AH9 -> 0 | AH9: 0 | AJ9: 0 | AK9: =(SUMPRODUCT((Planung!$AS$8:$AS$42=$B9)*(Planung!$AV$8:$AV$42)*(Planung!$B$8:$B$42))+SUMPRODUCT((Planung!$BA$8:$BA$42=$B9)*(Planung!$BD$8:$BD$42)*(Planung!$B$8:$B$42))+SUMPRODUCT((Planung!$BI$8:$BI$42=$B9)*(Planung!$BL$8:$BL$42)*(Planung!$B$8:$B$42))+SUMPRODUCT((Planung!$BQ$8:$BQ$42=$B9)*(Planung!$BT$8:$BT$42)*(Planung!$B$8:$B$42)))/IF(E9=0,1,E9) -> 0 | AL9: =(SUMPRODUCT((Planung!$AS$79:$AS$114=$B9)*(Planung!$AV$79:$AV$114)*(Planung!$B$79:$B$114))+SUMPRODUCT((Planung!$BA$79:$BA$114=$B9)*(Planung!$BD$79:$BD$114)*(Planung!$B$79:$B$114))+SUMPRODUCT((Planung!$BI$79:$BI$114=$B9)*(Planung!$BL$79:$BL$114)*(Planung!$B$79:$B$114))+SUMPRODUCT((Planung!$BQ$79:$BQ$114=$B9)*(Planung!$BT$79:$BT$114)*(Planung!$B$79:$B$114)))/IF(F9=0,1,F9) -> 0 | AM9: =(SUMPRODUCT((Planung!$AS$151:$AS$185=$B9)*(Planung!$AV$151:$AV$185)*(Planung!$B$151:$B$185))+SUMPRODUCT((Planung!$BA$151:$BA$185=$B9)*(Planung!$BD$151:$BD$185)*(Planung!$B$151:$B$185))+SUMPRODUCT((Planung!$BI$151:$BI$185=$B9)*(Planung!$BL$151:$BL$185)*(Planung!$B$151:$B$185))+SUMPRODUCT((Planung!$BQ$151:$BQ$185=$B9)*(Planung!$BT$151:$BT$185)*(Planung!$B$151:$B$185)))/IF(G9=0,1,G9) -> 0 | AN9: =(SUMPRODUCT((Planung!$AS$223:$AS$255=$B9)*(Planung!$AV$223:$AV$255)*(Planung!$B$223:$B$255))+SUMPRODUCT((Planung!$BA$223:$BA$255=$B9)*(Planung!$BD$223:$BD$255)*(Planung!$B$223:$B$255))+SUMPRODUCT((Planung!$BI$223:$BI$255=$B9)*(Planung!$BL$223:$BL$255)*(Planung!$B$223:$B$255))+SUMPRODUCT((Planung!$BQ$223:$BQ$255=$B9)*(Planung!$BT$223:$BT$255)*(Planung!$B$223:$B$255)))/IF(G9=0,1,G9) -> 0 | AO9: =(SUMPRODUCT((Planung!$AS$293:$AS$326=$B9)*(Planung!$AV$293:$AV$326)*(Planung!$B$293:$B$326))+SUMPRODUCT((Planung!$BA$293:$BA$326=$B9)*(Planung!$BD$293:$BD$326)*(Planung!$B$293:$B$326))+SUMPRODUCT((Planung!$BI$293:$BI$326=$B9)*(Planung!$BL$293:$BL$326)*(Planung!$B$293:$B$326))+SUMPRODUCT((Planung!$BQ$293:$BQ$326=$B9)*(Planung!$BT$293:$BT$326)*(Planung!$B$293:$B$326)))/IF(G9=0,1,G9) -> 0 | AP9: =(SUMPRODUCT((Planung!$AS$364:$AS$384=$B9)*(Planung!$AV$364:$AV$384)*(Planung!$B$364:$B$384))+SUMPRODUCT((Planung!$BA$364:$BA$384=$B9)*(Planung!$BD$364:$BD$384)*(Planung!$B$364:$B$384))+SUMPRODUCT((Planung!$BI$364:$BI$384=$B9)*(Planung!$BL$364:$BL$384)*(Planung!$B$364:$B$384))+SUMPRODUCT((Planung!$BQ$364:$BQ$384=$B9)*(Planung!$BT$364:$BT$384)*(Planung!$B$364:$B$384)))/IF(G9=0,1,G9) -> 0
B10: 11112 | O10: 0 | P10: 0 | Q10: =K10+L10+M10+O10+P10 -> 0 | W10: =IF(U10=0,0,(R10-S10)/U10) -> 0 | X10: 0 | Y10: 0 | Z10: 0 | AA10: 0 | AB10: 0 | AC10: 0 | AD10: 0 | AE10: 0 | AG10: 0 | AH10: 0 | AJ10: 0 | AK10: =(SUMPRODUCT((Planung!$AS$8:$AS$42=$B10)*(Planung!$AV$8:$AV$42)*(Planung!$B$8:$B$42))+SUMPRODUCT((Planung!$BA$8:$BA$42=$B10)*(Planung!$BD$8:$BD$42)*(Planung!$B$8:$B$42))+SUMPRODUCT((Planung!$BI$8:$BI$42=$B10)*(Planung!$BL$8:$BL$42)*(Planung!$B$8:$B$42))+SUMPRODUCT((Planung!$BQ$8:$BQ$42=$B10)*(Planung!$BT$8:$BT$42)*(Planung!$B$8:$B$42)))/IF(E10=0,1,E10) -> 0 | AL10: =(SUMPRODUCT((Planung!$AS$79:$AS$114=$B10)*(Planung!$AV$79:$AV$114)*(Planung!$B$79:$B$114))+SUMPRODUCT((Planung!$BA$79:$BA$114=$B10)*(Planung!$BD$79:$BD$114)*(Planung!$B$79:$B$114))+SUMPRODUCT((Planung!$BI$79:$BI$114=$B10)*(Planung!$BL$79:$BL$114)*(Planung!$B$79:$B$114))+SUMPRODUCT((Planung!$BQ$79:$BQ$114=$B10)*(Planung!$BT$79:$BT$114)*(Planung!$B$79:$B$114)))/IF(F10=0,1,F10) -> 0 | AM10: =(SUMPRODUCT((Planung!$AS$151:$AS$185=$B10)*(Planung!$AV$151:$AV$185)*(Planung!$B$151:$B$185))+SUMPRODUCT((Planung!$BA$151:$BA$185=$B10)*(Planung!$BD$151:$BD$185)*(Planung!$B$151:$B$185))+SUMPRODUCT((Planung!$BI$151:$BI$185=$B10)*(Planung!$BL$151:$BL$185)*(Planung!$B$151:$B$185))+SUMPRODUCT((Planung!$BQ$151:$BQ$185=$B10)*(Planung!$BT$151:$BT$185)*(Planung!$B$151:$B$185)))/IF(G10=0,1,G10) -> 0 | AN10: =(SUMPRODUCT((Planung!$AS$223:$AS$255=$B10)*(Planung!$AV$223:$AV$255)*(Planung!$B$223:$B$255))+SUMPRODUCT((Planung!$BA$223:$BA$255=$B10)*(Planung!$BD$223:$BD$255)*(Planung!$B$223:$B$255))+SUMPRODUCT((Planung!$BI$223:$BI$255=$B10)*(Planung!$BL$223:$BL$255)*(Planung!$B$223:$B$255))+SUMPRODUCT((Planung!$BQ$223:$BQ$255=$B10)*(Planung!$BT$223:$BT$255)*(Planung!$B$223:$B$255)))/IF(G10=0,1,G10) -> 0 | AO10: =(SUMPRODUCT((Planung!$AS$293:$AS$326=$B10)*(Planung!$AV$293:$AV$326)*(Planung!$B$293:$B$326))+SUMPRODUCT((Planung!$BA$293:$BA$326=$B10)*(Planung!$BD$293:$BD$326)*(Planung!$B$293:$B$326))+SUMPRODUCT((Planung!$BI$293:$BI$326=$B10)*(Planung!$BL$293:$BL$326)*(Planung!$B$293:$B$326))+SUMPRODUCT((Planung!$BQ$293:$BQ$326=$B10)*(Planung!$BT$293:$BT$326)*(Planung!$B$293:$B$326)))/IF(G10=0,1,G10) -> 0 | AP10: =(SUMPRODUCT((Planung!$AS$364:$AS$384=$B10)*(Planung!$AV$364:$AV$384)*(Planung!$B$364:$B$384))+SUMPRODUCT((Planung!$BA$364:$BA$384=$B10)*(Planung!$BD$364:$BD$384)*(Planung!$B$364:$B$384))+SUMPRODUCT((Planung!$BI$364:$BI$384=$B10)*(Planung!$BL$364:$BL$384)*(Planung!$B$364:$B$384))+SUMPRODUCT((Planung!$BQ$364:$BQ$384=$B10)*(Planung!$BT$364:$BT$384)*(Planung!$B$364:$B$384)))/IF(G10=0,1,G10) -> 0
B11: 11115 | O11: 0 | P11: 0 | Q11: 0 | S11: =R11*0.2 -> 0 | W11: 0 | X11: 0 | Y11: 0 | Z11: 0 | AA11: 0 | AB11: 0 | AC11: 0 | AD11: 0 | AE11: 0 | AG11: 0 | AH11: 0 | AJ11: 0 | AK11: =(SUMPRODUCT((Planung!$AS$8:$AS$42=$B11)*(Planung!$AV$8:$AV$42)*(Planung!$B$8:$B$42))+SUMPRODUCT((Planung!$BA$8:$BA$42=$B11)*(Planung!$BD$8:$BD$42)*(Planung!$B$8:$B$42))+SUMPRODUCT((Planung!$BI$8:$BI$42=$B11)*(Planung!$BL$8:$BL$42)*(Planung!$B$8:$B$42))+SUMPRODUCT((Planung!$BQ$8:$BQ$42=$B11)*(Planung!$BT$8:$BT$42)*(Planung!$B$8:$B$42)))/IF(E11=0,1,E11) -> 0 | AL11: =(SUMPRODUCT((Planung!$AS$79:$AS$114=$B11)*(Planung!$AV$79:$AV$114)*(Planung!$B$79:$B$114))+SUMPRODUCT((Planung!$BA$79:$BA$114=$B11)*(Planung!$BD$79:$BD$114)*(Planung!$B$79:$B$114))+SUMPRODUCT((Planung!$BI$79:$BI$114=$B11)*(Planung!$BL$79:$BL$114)*(Planung!$B$79:$B$114))+SUMPRODUCT((Planung!$BQ$79:$BQ$114=$B11)*(Planung!$BT$79:$BT$114)*(Planung!$B$79:$B$114)))/IF(F11=0,1,F11) -> 0 | AM11: =(SUMPRODUCT((Planung!$AS$151:$AS$185=$B11)*(Planung!$AV$151:$AV$185)*(Planung!$B$151:$B$185))+SUMPRODUCT((Planung!$BA$151:$BA$185=$B11)*(Planung!$BD$151:$BD$185)*(Planung!$B$151:$B$185))+SUMPRODUCT((Planung!$BI$151:$BI$185=$B11)*(Planung!$BL$151:$BL$185)*(Planung!$B$151:$B$185))+SUMPRODUCT((Planung!$BQ$151:$BQ$185=$B11)*(Planung!$BT$151:$BT$185)*(Planung!$B$151:$B$185)))/IF(G11=0,1,G11) -> 0 | AN11: =(SUMPRODUCT((Planung!$AS$223:$AS$255=$B11)*(Planung!$AV$223:$AV$255)*(Planung!$B$223:$B$255))+SUMPRODUCT((Planung!$BA$223:$BA$255=$B11)*(Planung!$BD$223:$BD$255)*(Planung!$B$223:$B$255))+SUMPRODUCT((Planung!$BI$223:$BI$255=$B11)*(Planung!$BL$223:$BL$255)*(Planung!$B$223:$B$255))+SUMPRODUCT((Planung!$BQ$223:$BQ$255=$B11)*(Planung!$BT$223:$BT$255)*(Planung!$B$223:$B$255)))/IF(G11=0,1,G11) -> 0 | AO11: =(SUMPRODUCT((Planung!$AS$293:$AS$326=$B11)*(Planung!$AV$293:$AV$326)*(Planung!$B$293:$B$326))+SUMPRODUCT((Planung!$BA$293:$BA$326=$B11)*(Planung!$BD$293:$BD$326)*(Planung!$B$293:$B$326))+SUMPRODUCT((Planung!$BI$293:$BI$326=$B11)*(Planung!$BL$293:$BL$326)*(Planung!$B$293:$B$326))+SUMPRODUCT((Planung!$BQ$293:$BQ$326=$B11)*(Planung!$BT$293:$BT$326)*(Planung!$B$293:$B$326)))/IF(G11=0,1,G11) -> 0 | AP11: =(SUMPRODUCT((Planung!$AS$364:$AS$384=$B11)*(Planung!$AV$364:$AV$384)*(Planung!$B$364:$B$384))+SUMPRODUCT((Planung!$BA$364:$BA$384=$B11)*(Planung!$BD$364:$BD$384)*(Planung!$B$364:$B$384))+SUMPRODUCT((Planung!$BI$364:$BI$384=$B11)*(Planung!$BL$364:$BL$384)*(Planung!$B$364:$B$384))+SUMPRODUCT((Planung!$BQ$364:$BQ$384=$B11)*(Planung!$BT$364:$BT$384)*(Planung!$B$364:$B$384)))/IF(G11=0,1,G11) -> 0
C12: Traktoren | O12: 0 | P12: 0 | Q12: 0 | S12: =R12*0.2 -> 0 | W12: 0 | X12: 0 | Y12: 0 | Z12: 0 | AA12: 0 | AB12: 0 | AC12: 0 | AD12: 0 | AE12: 0 | AG12: 0 | AH12: 0 | AJ12: 0 | AK12: =(SUMPRODUCT((Planung!$AS$8:$AS$42=$B12)*(Planung!$AV$8:$AV$42)*(Planung!$B$8:$B$42))+SUMPRODUCT((Planung!$BA$8:$BA$42=$B12)*(Planung!$BD$8:$BD$42)*(Planung!$B$8:$B$42))+SUMPRODUCT((Planung!$BI$8:$BI$42=$B12)*(Planung!$BL$8:$BL$42)*(Planung!$B$8:$B$42))+SUMPRODUCT((Planung!$BQ$8:$BQ$42=$B12)*(Planung!$BT$8:$BT$42)*(Planung!$B$8:$B$42)))/IF(E12=0,1,E12) -> 0 | AL12: =(SUMPRODUCT((Planung!$AS$79:$AS$114=$B12)*(Planung!$AV$79:$AV$114)*(Planung!$B$79:$B$114))+SUMPRODUCT((Planung!$BA$79:$BA$114=$B12)*(Planung!$BD$79:$BD$114)*(Planung!$B$79:$B$114))+SUMPRODUCT((Planung!$BI$79:$BI$114=$B12)*(Planung!$BL$79:$BL$114)*(Planung!$B$79:$B$114))+SUMPRODUCT((Planung!$BQ$79:$BQ$114=$B12)*(Planung!$BT$79:$BT$114)*(Planung!$B$79:$B$114)))/IF(F12=0,1,F12) -> 0 | AM12: =(SUMPRODUCT((Planung!$AS$151:$AS$185=$B12)*(Planung!$AV$151:$AV$185)*(Planung!$B$151:$B$185))+SUMPRODUCT((Planung!$BA$151:$BA$185=$B12)*(Planung!$BD$151:$BD$185)*(Planung!$B$151:$B$185))+SUMPRODUCT((Planung!$BI$151:$BI$185=$B12)*(Planung!$BL$151:$BL$185)*(Planung!$B$151:$B$185))+SUMPRODUCT((Planung!$BQ$151:$BQ$185=$B12)*(Planung!$BT$151:$BT$185)*(Planung!$B$151:$B$185)))/IF(G12=0,1,G12) -> 0 | AN12: =(SUMPRODUCT((Planung!$AS$223:$AS$255=$B12)*(Planung!$AV$223:$AV$255)*(Planung!$B$223:$B$255))+SUMPRODUCT((Planung!$BA$223:$BA$255=$B12)*(Planung!$BD$223:$BD$255)*(Planung!$B$223:$B$255))+SUMPRODUCT((Planung!$BI$223:$BI$255=$B12)*(Planung!$BL$223:$BL$255)*(Planung!$B$223:$B$255))+SUMPRODUCT((Planung!$BQ$223:$BQ$255=$B12)*(Planung!$BT$223:$BT$255)*(Planung!$B$223:$B$255)))/IF(G12=0,1,G12) -> 0 | AO12: =(SUMPRODUCT((Planung!$AS$293:$AS$326=$B12)*(Planung!$AV$293:$AV$326)*(Planung!$B$293:$B$326))+SUMPRODUCT((Planung!$BA$293:$BA$326=$B12)*(Planung!$BD$293:$BD$326)*(Planung!$B$293:$B$326))+SUMPRODUCT((Planung!$BI$293:$BI$326=$B12)*(Planung!$BL$293:$BL$326)*(Planung!$B$293:$B$326))+SUMPRODUCT((Planung!$BQ$293:$BQ$326=$B12)*(Planung!$BT$293:$BT$326)*(Planung!$B$293:$B$326)))/IF(G12=0,1,G12) -> 0 | AP12: =(SUMPRODUCT((Planung!$AS$364:$AS$384=$B12)*(Planung!$AV$364:$AV$384)*(Planung!$B$364:$B$384))+SUMPRODUCT((Planung!$BA$364:$BA$384=$B12)*(Planung!$BD$364:$BD$384)*(Planung!$B$364:$B$384))+SUMPRODUCT((Planung!$BI$364:$BI$384=$B12)*(Planung!$BL$364:$BL$384)*(Planung!$B$364:$B$384))+SUMPRODUCT((Planung!$BQ$364:$BQ$384=$B12)*(Planung!$BT$364:$BT$384)*(Planung!$B$364:$B$384)))/IF(G12=0,1,G12) -> 0
B13: 11211 | O13: 0 | P13: 0 | Q13: 0 | W13: 0 | X13: 0 | Y13: 0 | Z13: 0 | AA13: 0 | AB13: 0 | AC13: 0 | AD13: 0 | AE13: 0 | AG13: 0 | AH13: 0 | AJ13: 0 | AK13: =(SUMPRODUCT((Planung!$AS$8:$AS$42=$B13)*(Planung!$AV$8:$AV$42)*(Planung!$B$8:$B$42))+SUMPRODUCT((Planung!$BA$8:$BA$42=$B13)*(Planung!$BD$8:$BD$42)*(Planung!$B$8:$B$42))+SUMPRODUCT((Planung!$BI$8:$BI$42=$B13)*(Planung!$BL$8:$BL$42)*(Planung!$B$8:$B$42))+SUMPRODUCT((Planung!$BQ$8:$BQ$42=$B13)*(Planung!$BT$8:$BT$42)*(Planung!$B$8:$B$42)))/IF(E13=0,1,E13) -> 0 | AL13: =(SUMPRODUCT((Planung!$AS$79:$AS$114=$B13)*(Planung!$AV$79:$AV$114)*(Planung!$B$79:$B$114))+SUMPRODUCT((Planung!$BA$79:$BA$114=$B13)*(Planung!$BD$79:$BD$114)*(Planung!$B$79:$B$114))+SUMPRODUCT((Planung!$BI$79:$BI$114=$B13)*(Planung!$BL$79:$BL$114)*(Planung!$B$79:$B$114))+SUMPRODUCT((Planung!$BQ$79:$BQ$114=$B13)*(Planung!$BT$79:$BT$114)*(Planung!$B$79:$B$114)))/IF(F13=0,1,F13) -> 0 | AM13: =(SUMPRODUCT((Planung!$AS$151:$AS$185=$B13)*(Planung!$AV$151:$AV$185)*(Planung!$B$151:$B$185))+SUMPRODUCT((Planung!$BA$151:$BA$185=$B13)*(Planung!$BD$151:$BD$185)*(Planung!$B$151:$B$185))+SUMPRODUCT((Planung!$BI$151:$BI$185=$B13)*(Planung!$BL$151:$BL$185)*(Planung!$B$151:$B$185))+SUMPRODUCT((Planung!$BQ$151:$BQ$185=$B13)*(Planung!$BT$151:$BT$185)*(Planung!$B$151:$B$185)))/IF(G13=0,1,G13) -> 0 | AN13: =(SUMPRODUCT((Planung!$AS$223:$AS$255=$B13)*(Planung!$AV$223:$AV$255)*(Planung!$B$223:$B$255))+SUMPRODUCT((Planung!$BA$223:$BA$255=$B13)*(Planung!$BD$223:$BD$255)*(Planung!$B$223:$B$255))+SUMPRODUCT((Planung!$BI$223:$BI$255=$B13)*(Planung!$BL$223:$BL$255)*(Planung!$B$223:$B$255))+SUMPRODUCT((Planung!$BQ$223:$BQ$255=$B13)*(Planung!$BT$223:$BT$255)*(Planung!$B$223:$B$255)))/IF(G13=0,1,G13) -> 0 | AO13: =(SUMPRODUCT((Planung!$AS$293:$AS$326=$B13)*(Planung!$AV$293:$AV$326)*(Planung!$B$293:$B$326))+SUMPRODUCT((Planung!$BA$293:$BA$326=$B13)*(Planung!$BD$293:$BD$326)*(Planung!$B$293:$B$326))+SUMPRODUCT((Planung!$BI$293:$BI$326=$B13)*(Planung!$BL$293:$BL$326)*(Planung!$B$293:$B$326))+SUMPRODUCT((Planung!$BQ$293:$BQ$326=$B13)*(Planung!$BT$293:$BT$326)*(Planung!$B$293:$B$326)))/IF(G13=0,1,G13) -> 0 | AP13: =(SUMPRODUCT((Planung!$AS$364:$AS$384=$B13)*(Planung!$AV$364:$AV$384)*(Planung!$B$364:$B$384))+SUMPRODUCT((Planung!$BA$364:$BA$384=$B13)*(Planung!$BD$364:$BD$384)*(Planung!$B$364:$B$384))+SUMPRODUCT((Planung!$BI$364:$BI$384=$B13)*(Planung!$BL$364:$BL$384)*(Planung!$B$364:$B$384))+SUMPRODUCT((Planung!$BQ$364:$BQ$384=$B13)*(Planung!$BT$364:$BT$384)*(Planung!$B$364:$B$384)))/IF(G13=0,1,G13) -> 0
B14: 11212 | O14: 0 | P14: 0 | Q14: 0 | W14: 0 | X14: 0 | Y14: 0 | Z14: 0 | AA14: 0 | AB14: 0 | AC14: 0 | AD14: 0 | AE14: 0 | AG14: 0 | AH14: 0 | AJ14: 0 | AK14: =(SUMPRODUCT((Planung!$AS$8:$AS$42=$B14)*(Planung!$AV$8:$AV$42)*(Planung!$B$8:$B$42))+SUMPRODUCT((Planung!$BA$8:$BA$42=$B14)*(Planung!$BD$8:$BD$42)*(Planung!$B$8:$B$42))+SUMPRODUCT((Planung!$BI$8:$BI$42=$B14)*(Planung!$BL$8:$BL$42)*(Planung!$B$8:$B$42))+SUMPRODUCT((Planung!$BQ$8:$BQ$42=$B14)*(Planung!$BT$8:$BT$42)*(Planung!$B$8:$B$42)))/IF(E14=0,1,E14) -> 0 | AL14: =(SUMPRODUCT((Planung!$AS$79:$AS$114=$B14)*(Planung!$AV$79:$AV$114)*(Planung!$B$79:$B$114))+SUMPRODUCT((Planung!$BA$79:$BA$114=$B14)*(Planung!$BD$79:$BD$114)*(Planung!$B$79:$B$114))+SUMPRODUCT((Planung!$BI$79:$BI$114=$B14)*(Planung!$BL$79:$BL$114)*(Planung!$B$79:$B$114))+SUMPRODUCT((Planung!$BQ$79:$BQ$114=$B14)*(Planung!$BT$79:$BT$114)*(Planung!$B$79:$B$114)))/IF(F14=0,1,F14) -> 0 | AM14: =(SUMPRODUCT((Planung!$AS$151:$AS$185=$B14)*(Planung!$AV$151:$AV$185)*(Planung!$B$151:$B$185))+SUMPRODUCT((Planung!$BA$151:$BA$185=$B14)*(Planung!$BD$151:$BD$185)*(Planung!$B$151:$B$185))+SUMPRODUCT((Planung!$BI$151:$BI$185=$B14)*(Planung!$BL$151:$BL$185)*(Planung!$B$151:$B$185))+SUMPRODUCT((Planung!$BQ$151:$BQ$185=$B14)*(Planung!$BT$151:$BT$185)*(Planung!$B$151:$B$185)))/IF(G14=0,1,G14) -> 0 | AN14: =(SUMPRODUCT((Planung!$AS$223:$AS$255=$B14)*(Planung!$AV$223:$AV$255)*(Planung!$B$223:$B$255))+SUMPRODUCT((Planung!$BA$223:$BA$255=$B14)*(Planung!$BD$223:$BD$255)*(Planung!$B$223:$B$255))+SUMPRODUCT((Planung!$BI$223:$BI$255=$B14)*(Planung!$BL$223:$BL$255)*(Planung!$B$223:$B$255))+SUMPRODUCT((Planung!$BQ$223:$BQ$255=$B14)*(Planung!$BT$223:$BT$255)*(Planung!$B$223:$B$255)))/IF(G14=0,1,G14) -> 0 | AO14: =(SUMPRODUCT((Planung!$AS$293:$AS$326=$B14)*(Planung!$AV$293:$AV$326)*(Planung!$B$293:$B$326))+SUMPRODUCT((Planung!$BA$293:$BA$326=$B14)*(Planung!$BD$293:$BD$326)*(Planung!$B$293:$B$326))+SUMPRODUCT((Planung!$BI$293:$BI$326=$B14)*(Planung!$BL$293:$BL$326)*(Planung!$B$293:$B$326))+SUMPRODUCT((Planung!$BQ$293:$BQ$326=$B14)*(Planung!$BT$293:$BT$326)*(Planung!$B$293:$B$326)))/IF(G14=0,1,G14) -> 0 | AP14: =(SUMPRODUCT((Planung!$AS$364:$AS$384=$B14)*(Planung!$AV$364:$AV$384)*(Planung!$B$364:$B$384))+SUMPRODUCT((Planung!$BA$364:$BA$384=$B14)*(Planung!$BD$364:$BD$384)*(Planung!$B$364:$B$384))+SUMPRODUCT((Planung!$BI$364:$BI$384=$B14)*(Planung!$BL$364:$BL$384)*(Planung!$B$364:$B$384))+SUMPRODUCT((Planung!$BQ$364:$BQ$384=$B14)*(Planung!$BT$364:$BT$384)*(Planung!$B$364:$B$384)))/IF(G14=0,1,G14) -> 0
B15: 11221 | C15: *S1 Allradschlepper 67kW/91PS Schaltgetriebe | D15: h | E15: 1 | F15: 1 | G15: 0 | H15: 1 | I15: 1 | J15: 1 | K15: 6.5 | N15: 7.8 | O15: 7.41 | P15: =N15*AnteilOel*PreisOel -> 0.2262 | Q15: =K15+L15+M15+O15+P15 -> 14.1362 | R15: 50000 | S15: 10000 | T15: 275 | U15: 12 | V15: 10000 | W15: =IF(U15=0,0,(R15-S15)/U15) -> 3333.333333 | X15: 833.3333333 | Y15: 0 | Z15: =IF(X15=0,0,Y15/X15) -> 0 | AA15: =IF(OR(U15=0,X15=0,Z15=0),0,IF(Z15>1,(R15-S15)/V15,((R15-S15)/U15)/Y15)) -> 0 | AB15: =IF(OR(X15=0,Z15=0),0,((R15+S15)/2*Interest)/Y15) -> 0 | AC15: 0 | AD15: =SUM(AA15:AC15) -> 0 | AE15: 14.1362 | AG15: =$X15*AH15 -> 666.6666667 | AH15: 0.8 | AI15: 600 | AJ15: 0.72 | AK15: =(SUMPRODUCT((Planung!$AS$8:$AS$42=$B15)*(Planung!$AV$8:$AV$42)*(Planung!$B$8:$B$42))+SUMPRODUCT((Planung!$BA$8:$BA$42=$B15)*(Planung!$BD$8:$BD$42)*(Planung!$B$8:$B$42))+SUMPRODUCT((Planung!$BI$8:$BI$42=$B15)*(Planung!$BL$8:$BL$42)*(Planung!$B$8:$B$42))+SUMPRODUCT((Planung!$BQ$8:$BQ$42=$B15)*(Planung!$BT$8:$BT$42)*(Planung!$B$8:$B$42)))/IF(E15=0,1,E15) -> 0 | AL15: =(SUMPRODUCT((Planung!$AS$79:$AS$114=$B15)*(Planung!$AV$79:$AV$114)*(Planung!$B$79:$B$114))+SUMPRODUCT((Planung!$BA$79:$BA$114=$B15)*(Planung!$BD$79:$BD$114)*(Planung!$B$79:$B$114))+SUMPRODUCT((Planung!$BI$79:$BI$114=$B15)*(Planung!$BL$79:$BL$114)*(Planung!$B$79:$B$114))+SUMPRODUCT((Planung!$BQ$79:$BQ$114=$B15)*(Planung!$BT$79:$BT$114)*(Planung!$B$79:$B$114)))/IF(F15=0,1,F15) -> 0 | AM15: =(SUMPRODUCT((Planung!$AS$151:$AS$185=$B15)*(Planung!$AV$151:$AV$185)*(Planung!$B$151:$B$185))+SUMPRODUCT((Planung!$BA$151:$BA$185=$B15)*(Planung!$BD$151:$BD$185)*(Planung!$B$151:$B$185))+SUMPRODUCT((Planung!$BI$151:$BI$185=$B15)*(Planung!$BL$151:$BL$185)*(Planung!$B$151:$B$185))+SUMPRODUCT((Planung!$BQ$151:$BQ$185=$B15)*(Planung!$BT$151:$BT$185)*(Planung!$B$151:$B$185)))/IF(G15=0,1,G15) -> 0 | AN15: =(SUMPRODUCT((Planung!$AS$223:$AS$255=$B15)*(Planung!$AV$223:$AV$255)*(Planung!$B$223:$B$255))+SUMPRODUCT((Planung!$BA$223:$BA$255=$B15)*(Planung!$BD$223:$BD$255)*(Planung!$B$223:$B$255))+SUMPRODUCT((Planung!$BI$223:$BI$255=$B15)*(Planung!$BL$223:$BL$255)*(Planung!$B$223:$B$255))+SUMPRODUCT((Planung!$BQ$223:$BQ$255=$B15)*(Planung!$BT$223:$BT$255)*(Planung!$B$223:$B$255)))/IF(G15=0,1,G15) -> 0 | AO15: =(SUMPRODUCT((Planung!$AS$293:$AS$326=$B15)*(Planung!$AV$293:$AV$326)*(Planung!$B$293:$B$326))+SUMPRODUCT((Planung!$BA$293:$BA$326=$B15)*(Planung!$BD$293:$BD$326)*(Planung!$B$293:$B$326))+SUMPRODUCT((Planung!$BI$293:$BI$326=$B15)*(Planung!$BL$293:$BL$326)*(Planung!$B$293:$B$326))+SUMPRODUCT((Planung!$BQ$293:$BQ$326=$B15)*(Planung!$BT$293:$BT$326)*(Planung!$B$293:$B$326)))/IF(G15=0,1,G15) -> 0 | AP15: =(SUMPRODUCT((Planung!$AS$364:$AS$384=$B15)*(Planung!$AV$364:$AV$384)*(Planung!$B$364:$B$384))+SUMPRODUCT((Planung!$BA$364:$BA$384=$B15)*(Planung!$BD$364:$BD$384)*(Planung!$B$364:$B$384))+SUMPRODUCT((Planung!$BI$364:$BI$384=$B15)*(Planung!$BL$364:$BL$384)*(Planung!$B$364:$B$384))+SUMPRODUCT((Planung!$BQ$364:$BQ$384=$B15)*(Planung!$BT$364:$BT$384)*(Planung!$B$364:$B$384)))/IF(G15=0,1,G15) -> 0 | AR15: =15*8 -> 120 | AS15: =15*8 -> 120 | AT15: =15*8 -> 120 | AU15: =15*8 -> 120 | AV15: =15*15 -> 225 | AW15: =15*15 -> 225 | AX15: =15*15 -> 225 | AY15: =15*15 -> 225 | AZ15: =15*15 -> 225 | BA15: =15*18 -> 270 | BB15: =15*18 -> 270 | BC15: 270 | BD15: 270 | BE15: 270 | BF15: 270 | BG15: 270 | BH15: 270 | BI15: 270 | BJ15: =15*15 -> 225 | BK15: =15*10 -> 150 | BL15: =15*10 -> 150 | BM15: =15*10 -> 150 | BN15: =15*10 -> 150 | BO15: =15*10 -> 150
B16: 11220 | C16: *S2 Allradschlepper 102kW/139PS stufenlos | D16: h | E16: 1 | F16: 1 | G16: 1 | H16: 1 | I16: 1 | J16: 0 | K16: 7.4 | N16: 12.4 | O16: 11.78 | P16: =N16*AnteilOel*PreisOel -> 0.3596 | Q16: 19.5396 | R16: 115000 | S16: 23000 | T16: 430 | U16: 12 | V16: 10000 | W16: =IF(U16=0,0,(R16-S16)/U16) -> 7666.666667 | X16: 833.3333333 | Y16: 0 | Z16: =IF(X16=0,0,Y16/X16) -> 0 | AA16: =IF(OR(U16=0,X16=0,Z16=0),0,IF(Z16>1,(R16-S16)/V16,((R16-S16)/U16)/Y16)) -> 0 | AB16: 0 | AC16: 0 | AD16: =SUM(AA16:AC16) -> 0 | AE16: 19.5396 | AG16: =$X16*AH16 -> 666.6666667 | AH16: 0.8 | AI16: 600 | AJ16: 0.72 | AK16: =(SUMPRODUCT((Planung!$AS$8:$AS$42=$B16)*(Planung!$AV$8:$AV$42)*(Planung!$B$8:$B$42))+SUMPRODUCT((Planung!$BA$8:$BA$42=$B16)*(Planung!$BD$8:$BD$42)*(Planung!$B$8:$B$42))+SUMPRODUCT((Planung!$BI$8:$BI$42=$B16)*(Planung!$BL$8:$BL$42)*(Planung!$B$8:$B$42))+SUMPRODUCT((Planung!$BQ$8:$BQ$42=$B16)*(Planung!$BT$8:$BT$42)*(Planung!$B$8:$B$42)))/IF(E16=0,1,E16) -> 0 | AL16: =(SUMPRODUCT((Planung!$AS$79:$AS$114=$B16)*(Planung!$AV$79:$AV$114)*(Planung!$B$79:$B$114))+SUMPRODUCT((Planung!$BA$79:$BA$114=$B16)*(Planung!$BD$79:$BD$114)*(Planung!$B$79:$B$114))+SUMPRODUCT((Planung!$BI$79:$BI$114=$B16)*(Planung!$BL$79:$BL$114)*(Planung!$B$79:$B$114))+SUMPRODUCT((Planung!$BQ$79:$BQ$114=$B16)*(Planung!$BT$79:$BT$114)*(Planung!$B$79:$B$114)))/IF(F16=0,1,F16) -> 0 | AM16: =(SUMPRODUCT((Planung!$AS$151:$AS$185=$B16)*(Planung!$AV$151:$AV$185)*(Planung!$B$151:$B$185))+SUMPRODUCT((Planung!$BA$151:$BA$185=$B16)*(Planung!$BD$151:$BD$185)*(Planung!$B$151:$B$185))+SUMPRODUCT((Planung!$BI$151:$BI$185=$B16)*(Planung!$BL$151:$BL$185)*(Planung!$B$151:$B$185))+SUMPRODUCT((Planung!$BQ$151:$BQ$185=$B16)*(Planung!$BT$151:$BT$185)*(Planung!$B$151:$B$185)))/IF(G16=0,1,G16) -> 0 | AN16: =(SUMPRODUCT((Planung!$AS$223:$AS$255=$B16)*(Planung!$AV$223:$AV$255)*(Planung!$B$223:$B$255))+SUMPRODUCT((Planung!$BA$223:$BA$255=$B16)*(Planung!$BD$223:$BD$255)*(Planung!$B$223:$B$255))+SUMPRODUCT((Planung!$BI$223:$BI$255=$B16)*(Planung!$BL$223:$BL$255)*(Planung!$B$223:$B$255))+SUMPRODUCT((Planung!$BQ$223:$BQ$255=$B16)*(Planung!$BT$223:$BT$255)*(Planung!$B$223:$B$255)))/IF(G16=0,1,G16) -> 0 | AO16: =(SUMPRODUCT((Planung!$AS$293:$AS$326=$B16)*(Planung!$AV$293:$AV$326)*(Planung!$B$293:$B$326))+SUMPRODUCT((Planung!$BA$293:$BA$326=$B16)*(Planung!$BD$293:$BD$326)*(Planung!$B$293:$B$326))+SUMPRODUCT((Planung!$BI$293:$BI$326=$B16)*(Planung!$BL$293:$BL$326)*(Planung!$B$293:$B$326))+SUMPRODUCT((Planung!$BQ$293:$BQ$326=$B16)*(Planung!$BT$293:$BT$326)*(Planung!$B$293:$B$326)))/IF(G16=0,1,G16) -> 0 | AP16: =(SUMPRODUCT((Planung!$AS$364:$AS$384=$B16)*(Planung!$AV$364:$AV$384)*(Planung!$B$364:$B$384))+SUMPRODUCT((Planung!$BA$364:$BA$384=$B16)*(Planung!$BD$364:$BD$384)*(Planung!$B$364:$B$384))+SUMPRODUCT((Planung!$BI$364:$BI$384=$B16)*(Planung!$BL$364:$BL$384)*(Planung!$B$364:$B$384))+SUMPRODUCT((Planung!$BQ$364:$BQ$384=$B16)*(Planung!$BT$364:$BT$384)*(Planung!$B$364:$B$384)))/IF(G16=0,1,G16) -> 0 | AR16: =15*8 -> 120 | AS16: 120 | AT16: 120 | AU16: 120 | AV16: =15*15 -> 225 | AW16: 225 | AX16: 225 | AY16: 225 | AZ16: 225 | BA16: =15*18 -> 270 | BB16: 270 | BC16: 270 | BD16: 270 | BE16: 270 | BF16: 270 | BG16: 270 | BH16: 270 | BI16: 270 | BJ16: =15*15 -> 225 | BK16: =15*10 -> 150 | BL16: 150 | BM16: 150 | BN16: 150 | BO16: 150
B17: 11219 | C17: *S3 Allradschlepper 140kW stufenlos | D17: h | E17: 1 | F17: 1 | G17: 1 | H17: 1 | I17: 1 | J17: 1 | K17: 8.2 | N17: 16 | O17: 15.2 | P17: =N17*AnteilOel*PreisOel -> 0.464 | Q17: 23.864 | R17: 152000 | S17: 30400 | T17: 430 | U17: 12 | V17: 10000 | W17: =IF(U17=0,0,(R17-S17)/U17) -> 10133.33333 | X17: 833.3333333 | Y17: 0 | Z17: =IF(X17=0,0,Y17/X17) -> 0 | AA17: =IF(OR(U17=0,X17=0,Z17=0),0,IF(Z17>1,(R17-S17)/V17,((R17-S17)/U17)/Y17)) -> 0 | AB17: 0 | AC17: 0 | AD17: =SUM(AA17:AC17) -> 0 | AE17: 23.864 | AG17: =$X17*AH17 -> 666.6666667 | AH17: 0.8 | AI17: 600 | AJ17: 0.72 | AK17: =(SUMPRODUCT((Planung!$AS$8:$AS$42=$B17)*(Planung!$AV$8:$AV$42)*(Planung!$B$8:$B$42))+SUMPRODUCT((Planung!$BA$8:$BA$42=$B17)*(Planung!$BD$8:$BD$42)*(Planung!$B$8:$B$42))+SUMPRODUCT((Planung!$BI$8:$BI$42=$B17)*(Planung!$BL$8:$BL$42)*(Planung!$B$8:$B$42))+SUMPRODUCT((Planung!$BQ$8:$BQ$42=$B17)*(Planung!$BT$8:$BT$42)*(Planung!$B$8:$B$42)))/IF(E17=0,1,E17) -> 0 | AL17: =(SUMPRODUCT((Planung!$AS$79:$AS$114=$B17)*(Planung!$AV$79:$AV$114)*(Planung!$B$79:$B$114))+SUMPRODUCT((Planung!$BA$79:$BA$114=$B17)*(Planung!$BD$79:$BD$114)*(Planung!$B$79:$B$114))+SUMPRODUCT((Planung!$BI$79:$BI$114=$B17)*(Planung!$BL$79:$BL$114)*(Planung!$B$79:$B$114))+SUMPRODUCT((Planung!$BQ$79:$BQ$114=$B17)*(Planung!$BT$79:$BT$114)*(Planung!$B$79:$B$114)))/IF(F17=0,1,F17) -> 0 | AM17: =(SUMPRODUCT((Planung!$AS$151:$AS$185=$B17)*(Planung!$AV$151:$AV$185)*(Planung!$B$151:$B$185))+SUMPRODUCT((Planung!$BA$151:$BA$185=$B17)*(Planung!$BD$151:$BD$185)*(Planung!$B$151:$B$185))+SUMPRODUCT((Planung!$BI$151:$BI$185=$B17)*(Planung!$BL$151:$BL$185)*(Planung!$B$151:$B$185))+SUMPRODUCT((Planung!$BQ$151:$BQ$185=$B17)*(Planung!$BT$151:$BT$185)*(Planung!$B$151:$B$185)))/IF(G17=0,1,G17) -> 0 | AN17: =(SUMPRODUCT((Planung!$AS$223:$AS$255=$B17)*(Planung!$AV$223:$AV$255)*(Planung!$B$223:$B$255))+SUMPRODUCT((Planung!$BA$223:$BA$255=$B17)*(Planung!$BD$223:$BD$255)*(Planung!$B$223:$B$255))+SUMPRODUCT((Planung!$BI$223:$BI$255=$B17)*(Planung!$BL$223:$BL$255)*(Planung!$B$223:$B$255))+SUMPRODUCT((Planung!$BQ$223:$BQ$255=$B17)*(Planung!$BT$223:$BT$255)*(Planung!$B$223:$B$255)))/IF(G17=0,1,G17) -> 0 | AO17: =(SUMPRODUCT((Planung!$AS$293:$AS$326=$B17)*(Planung!$AV$293:$AV$326)*(Planung!$B$293:$B$326))+SUMPRODUCT((Planung!$BA$293:$BA$326=$B17)*(Planung!$BD$293:$BD$326)*(Planung!$B$293:$B$326))+SUMPRODUCT((Planung!$BI$293:$BI$326=$B17)*(Planung!$BL$293:$BL$326)*(Planung!$B$293:$B$326))+SUMPRODUCT((Planung!$BQ$293:$BQ$326=$B17)*(Planung!$BT$293:$BT$326)*(Planung!$B$293:$B$326)))/IF(G17=0,1,G17) -> 0 | AP17: =(SUMPRODUCT((Planung!$AS$364:$AS$384=$B17)*(Planung!$AV$364:$AV$384)*(Planung!$B$364:$B$384))+SUMPRODUCT((Planung!$BA$364:$BA$384=$B17)*(Planung!$BD$364:$BD$384)*(Planung!$B$364:$B$384))+SUMPRODUCT((Planung!$BI$364:$BI$384=$B17)*(Planung!$BL$364:$BL$384)*(Planung!$B$364:$B$384))+SUMPRODUCT((Planung!$BQ$364:$BQ$384=$B17)*(Planung!$BT$364:$BT$384)*(Planung!$B$364:$B$384)))/IF(G17=0,1,G17) -> 0 | AR17: 120 | AS17: 120 | AT17: 120 | AU17: 120 | AV17: 225 | AW17: 225 | AX17: 225 | AY17: 225 | AZ17: 225 | BA17: =15*18 -> 270 | BB17: 270 | BC17: 270 | BD17: 270 | BE17: 270 | BF17: 270 | BG17: 270 | BH17: 270 | BI17: 270 | BJ17: =15*15 -> 225 | BK17: 150 | BL17: 150 | BM17: 150 | BN17: 150 | BO17: 150
B18: 11214 | C18: *S4 Allradschlepper 200 kW stufenlos | D18: h | E18: 1 | F18: 1 | G18: 1 | H18: 1 | I18: 1 | J18: 1 | K18: 9.5 | N18: 22 | O18: 20.9 | P18: 0.638 | Q18: 31.038 | R18: 216000 | S18: 43200 | T18: 430 | U18: 12 | V18: 10000 | W18: 14400 | X18: 833.3333333 | Y18: 0 | Z18: 0 | AA18: 0 | AB18: 0 | AC18: 0 | AD18: 0 | AE18: 31.038 | AG18: 666.6666667 | AH18: 0.8 | AI18: 600 | AJ18: 0.72 | AK18: =(SUMPRODUCT((Planung!$AS$8:$AS$42=$B18)*(Planung!$AV$8:$AV$42)*(Planung!$B$8:$B$42))+SUMPRODUCT((Planung!$BA$8:$BA$42=$B18)*(Planung!$BD$8:$BD$42)*(Planung!$B$8:$B$42))+SUMPRODUCT((Planung!$BI$8:$BI$42=$B18)*(Planung!$BL$8:$BL$42)*(Planung!$B$8:$B$42))+SUMPRODUCT((Planung!$BQ$8:$BQ$42=$B18)*(Planung!$BT$8:$BT$42)*(Planung!$B$8:$B$42)))/IF(E18=0,1,E18) -> 0 | AL18: =(SUMPRODUCT((Planung!$AS$79:$AS$114=$B18)*(Planung!$AV$79:$AV$114)*(Planung!$B$79:$B$114))+SUMPRODUCT((Planung!$BA$79:$BA$114=$B18)*(Planung!$BD$79:$BD$114)*(Planung!$B$79:$B$114))+SUMPRODUCT((Planung!$BI$79:$BI$114=$B18)*(Planung!$BL$79:$BL$114)*(Planung!$B$79:$B$114))+SUMPRODUCT((Planung!$BQ$79:$BQ$114=$B18)*(Planung!$BT$79:$BT$114)*(Planung!$B$79:$B$114)))/IF(F18=0,1,F18) -> 0 | AM18: =(SUMPRODUCT((Planung!$AS$151:$AS$185=$B18)*(Planung!$AV$151:$AV$185)*(Planung!$B$151:$B$185))+SUMPRODUCT((Planung!$BA$151:$BA$185=$B18)*(Planung!$BD$151:$BD$185)*(Planung!$B$151:$B$185))+SUMPRODUCT((Planung!$BI$151:$BI$185=$B18)*(Planung!$BL$151:$BL$185)*(Planung!$B$151:$B$185))+SUMPRODUCT((Planung!$BQ$151:$BQ$185=$B18)*(Planung!$BT$151:$BT$185)*(Planung!$B$151:$B$185)))/IF(G18=0,1,G18) -> 0 | AN18: =(SUMPRODUCT((Planung!$AS$223:$AS$255=$B18)*(Planung!$AV$223:$AV$255)*(Planung!$B$223:$B$255))+SUMPRODUCT((Planung!$BA$223:$BA$255=$B18)*(Planung!$BD$223:$BD$255)*(Planung!$B$223:$B$255))+SUMPRODUCT((Planung!$BI$223:$BI$255=$B18)*(Planung!$BL$223:$BL$255)*(Planung!$B$223:$B$255))+SUMPRODUCT((Planung!$BQ$223:$BQ$255=$B18)*(Planung!$BT$223:$BT$255)*(Planung!$B$223:$B$255)))/IF(G18=0,1,G18) -> 0 | AO18: =(SUMPRODUCT((Planung!$AS$293:$AS$326=$B18)*(Planung!$AV$293:$AV$326)*(Planung!$B$293:$B$326))+SUMPRODUCT((Planung!$BA$293:$BA$326=$B18)*(Planung!$BD$293:$BD$326)*(Planung!$B$293:$B$326))+SUMPRODUCT((Planung!$BI$293:$BI$326=$B18)*(Planung!$BL$293:$BL$326)*(Planung!$B$293:$B$326))+SUMPRODUCT((Planung!$BQ$293:$BQ$326=$B18)*(Planung!$BT$293:$BT$326)*(Planung!$B$293:$B$326)))/IF(G18=0,1,G18) -> 0 | AP18: =(SUMPRODUCT((Planung!$AS$364:$AS$384=$B18)*(Planung!$AV$364:$AV$384)*(Planung!$B$364:$B$384))+SUMPRODUCT((Planung!$BA$364:$BA$384=$B18)*(Planung!$BD$364:$BD$384)*(Planung!$B$364:$B$384))+SUMPRODUCT((Planung!$BI$364:$BI$384=$B18)*(Planung!$BL$364:$BL$384)*(Planung!$B$364:$B$384))+SUMPRODUCT((Planung!$BQ$364:$BQ$384=$B18)*(Planung!$BT$364:$BT$384)*(Planung!$B$364:$B$384)))/IF(G18=0,1,G18) -> 0 | AR18: 120 | AS18: 120 | AT18: 120 | AU18: 120 | AV18: 225 | AW18: 225 | AX18: 225 | AY18: 225 | AZ18: 225 | BA18: =15*18 -> 270 | BB18: 270 | BC18: 270 | BD18: 270 | BE18: 270 | BF18: 270 | BG18: 270 | BH18: 270 | BI18: 270 | BJ18: =15*15 -> 225 | BK18: 150 | BL18: 150 | BM18: 150 | BN18: 150 | BO18: 150
B19: 11215 | O19: =N19*PreisDiesel -> 0 | P19: =N19*AnteilOel*PreisOel -> 0 | Q19: 0 | W19: 0 | X19: =IF(U19=0,0,V19/U19) -> 0 | Y19: =INDEX(AG19:AP19,AuslastSel) -> 0 | Z19: =IF(X19=0,0,Y19/X19) -> 0 | AA19: =IF(OR(U19=0,X19=0,Z19=0),0,IF(Z19>1,(R19-S19)/V19,((R19-S19)/U19)/Y19)) -> 0 | AB19: =IF(OR(X19=0,Z19=0),0,((R19+S19)/2*Interest)/Y19) -> 0 | AC19: =IF(Y19=0,0,T19/Y19) -> 0 | AD19: =SUM(AA19:AC19) -> 0 | AE19: =AD19+Q19 -> 0 | AG19: =$X19*AH19 -> 0 | AH19: 0 | AJ19: =IF($X19=0,0,AI19/$X19) -> 0 | AK19: =(SUMPRODUCT((Planung!$AS$8:$AS$42=$B19)*(Planung!$AV$8:$AV$42)*(Planung!$B$8:$B$42))+SUMPRODUCT((Planung!$BA$8:$BA$42=$B19)*(Planung!$BD$8:$BD$42)*(Planung!$B$8:$B$42))+SUMPRODUCT((Planung!$BI$8:$BI$42=$B19)*(Planung!$BL$8:$BL$42)*(Planung!$B$8:$B$42))+SUMPRODUCT((Planung!$BQ$8:$BQ$42=$B19)*(Planung!$BT$8:$BT$42)*(Planung!$B$8:$B$42)))/IF(E19=0,1,E19) -> 0 | AL19: =(SUMPRODUCT((Planung!$AS$79:$AS$114=$B19)*(Planung!$AV$79:$AV$114)*(Planung!$B$79:$B$114))+SUMPRODUCT((Planung!$BA$79:$BA$114=$B19)*(Planung!$BD$79:$BD$114)*(Planung!$B$79:$B$114))+SUMPRODUCT((Planung!$BI$79:$BI$114=$B19)*(Planung!$BL$79:$BL$114)*(Planung!$B$79:$B$114))+SUMPRODUCT((Planung!$BQ$79:$BQ$114=$B19)*(Planung!$BT$79:$BT$114)*(Planung!$B$79:$B$114)))/IF(F19=0,1,F19) -> 0 | AM19: =(SUMPRODUCT((Planung!$AS$151:$AS$185=$B19)*(Planung!$AV$151:$AV$185)*(Planung!$B$151:$B$185))+SUMPRODUCT((Planung!$BA$151:$BA$185=$B19)*(Planung!$BD$151:$BD$185)*(Planung!$B$151:$B$185))+SUMPRODUCT((Planung!$BI$151:$BI$185=$B19)*(Planung!$BL$151:$BL$185)*(Planung!$B$151:$B$185))+SUMPRODUCT((Planung!$BQ$151:$BQ$185=$B19)*(Planung!$BT$151:$BT$185)*(Planung!$B$151:$B$185)))/IF(G19=0,1,G19) -> 0 | AN19: =(SUMPRODUCT((Planung!$AS$223:$AS$255=$B19)*(Planung!$AV$223:$AV$255)*(Planung!$B$223:$B$255))+SUMPRODUCT((Planung!$BA$223:$BA$255=$B19)*(Planung!$BD$223:$BD$255)*(Planung!$B$223:$B$255))+SUMPRODUCT((Planung!$BI$223:$BI$255=$B19)*(Planung!$BL$223:$BL$255)*(Planung!$B$223:$B$255))+SUMPRODUCT((Planung!$BQ$223:$BQ$255=$B19)*(Planung!$BT$223:$BT$255)*(Planung!$B$223:$B$255)))/IF(G19=0,1,G19) -> 0 | AO19: =(SUMPRODUCT((Planung!$AS$293:$AS$326=$B19)*(Planung!$AV$293:$AV$326)*(Planung!$B$293:$B$326))+SUMPRODUCT((Planung!$BA$293:$BA$326=$B19)*(Planung!$BD$293:$BD$326)*(Planung!$B$293:$B$326))+SUMPRODUCT((Planung!$BI$293:$BI$326=$B19)*(Planung!$BL$293:$BL$326)*(Planung!$B$293:$B$326))+SUMPRODUCT((Planung!$BQ$293:$BQ$326=$B19)*(Planung!$BT$293:$BT$326)*(Planung!$B$293:$B$326)))/IF(G19=0,1,G19) -> 0 | AP19: =(SUMPRODUCT((Planung!$AS$364:$AS$384=$B19)*(Planung!$AV$364:$AV$384)*(Planung!$B$364:$B$384))+SUMPRODUCT((Planung!$BA$364:$BA$384=$B19)*(Planung!$BD$364:$BD$384)*(Planung!$B$364:$B$384))+SUMPRODUCT((Planung!$BI$364:$BI$384=$B19)*(Planung!$BL$364:$BL$384)*(Planung!$B$364:$B$384))+SUMPRODUCT((Planung!$BQ$364:$BQ$384=$B19)*(Planung!$BT$364:$BT$384)*(Planung!$B$364:$B$384)))/IF(G19=0,1,G19) -> 0
B20: 11218 | O20: 0 | P20: 0 | Q20: 0 | W20: 0 | X20: 0 | Y20: 0 | Z20: 0 | AA20: 0 | AB20: 0 | AC20: 0 | AD20: 0 | AE20: 0 | AG20: 0 | AH20: 0 | AJ20: 0 | AK20: =(SUMPRODUCT((Planung!$AS$8:$AS$42=$B20)*(Planung!$AV$8:$AV$42)*(Planung!$B$8:$B$42))+SUMPRODUCT((Planung!$BA$8:$BA$42=$B20)*(Planung!$BD$8:$BD$42)*(Planung!$B$8:$B$42))+SUMPRODUCT((Planung!$BI$8:$BI$42=$B20)*(Planung!$BL$8:$BL$42)*(Planung!$B$8:$B$42))+SUMPRODUCT((Planung!$BQ$8:$BQ$42=$B20)*(Planung!$BT$8:$BT$42)*(Planung!$B$8:$B$42)))/IF(E20=0,1,E20) -> 0 | AL20: =(SUMPRODUCT((Planung!$AS$79:$AS$114=$B20)*(Planung!$AV$79:$AV$114)*(Planung!$B$79:$B$114))+SUMPRODUCT((Planung!$BA$79:$BA$114=$B20)*(Planung!$BD$79:$BD$114)*(Planung!$B$79:$B$114))+SUMPRODUCT((Planung!$BI$79:$BI$114=$B20)*(Planung!$BL$79:$BL$114)*(Planung!$B$79:$B$114))+SUMPRODUCT((Planung!$BQ$79:$BQ$114=$B20)*(Planung!$BT$79:$BT$114)*(Planung!$B$79:$B$114)))/IF(F20=0,1,F20) -> 0 | AM20: =(SUMPRODUCT((Planung!$AS$151:$AS$185=$B20)*(Planung!$AV$151:$AV$185)*(Planung!$B$151:$B$185))+SUMPRODUCT((Planung!$BA$151:$BA$185=$B20)*(Planung!$BD$151:$BD$185)*(Planung!$B$151:$B$185))+SUMPRODUCT((Planung!$BI$151:$BI$185=$B20)*(Planung!$BL$151:$BL$185)*(Planung!$B$151:$B$185))+SUMPRODUCT((Planung!$BQ$151:$BQ$185=$B20)*(Planung!$BT$151:$BT$185)*(Planung!$B$151:$B$185)))/IF(G20=0,1,G20) -> 0 | AN20: =(SUMPRODUCT((Planung!$AS$223:$AS$255=$B20)*(Planung!$AV$223:$AV$255)*(Planung!$B$223:$B$255))+SUMPRODUCT((Planung!$BA$223:$BA$255=$B20)*(Planung!$BD$223:$BD$255)*(Planung!$B$223:$B$255))+SUMPRODUCT((Planung!$BI$223:$BI$255=$B20)*(Planung!$BL$223:$BL$255)*(Planung!$B$223:$B$255))+SUMPRODUCT((Planung!$BQ$223:$BQ$255=$B20)*(Planung!$BT$223:$BT$255)*(Planung!$B$223:$B$255)))/IF(G20=0,1,G20) -> 0 | AO20: =(SUMPRODUCT((Planung!$AS$293:$AS$326=$B20)*(Planung!$AV$293:$AV$326)*(Planung!$B$293:$B$326))+SUMPRODUCT((Planung!$BA$293:$BA$326=$B20)*(Planung!$BD$293:$BD$326)*(Planung!$B$293:$B$326))+SUMPRODUCT((Planung!$BI$293:$BI$326=$B20)*(Planung!$BL$293:$BL$326)*(Planung!$B$293:$B$326))+SUMPRODUCT((Planung!$BQ$293:$BQ$326=$B20)*(Planung!$BT$293:$BT$326)*(Planung!$B$293:$B$326)))/IF(G20=0,1,G20) -> 0 | AP20: =(SUMPRODUCT((Planung!$AS$364:$AS$384=$B20)*(Planung!$AV$364:$AV$384)*(Planung!$B$364:$B$384))+SUMPRODUCT((Planung!$BA$364:$BA$384=$B20)*(Planung!$BD$364:$BD$384)*(Planung!$B$364:$B$384))+SUMPRODUCT((Planung!$BI$364:$BI$384=$B20)*(Planung!$BL$364:$BL$384)*(Planung!$B$364:$B$384))+SUMPRODUCT((Planung!$BQ$364:$BQ$384=$B20)*(Planung!$BT$364:$BT$384)*(Planung!$B$364:$B$384)))/IF(G20=0,1,G20) -> 0
C21: SELBSTFAHRER & ZUBEHÖR | O21: 0 | P21: 0 | Q21: 0 | S21: =R21*0.2 -> 0 | W21: 0 | X21: 0 | Y21: 0 | Z21: 0 | AA21: 0 | AB21: 0 | AC21: 0 | AD21: 0 | AE21: 0 | AG21: 0 | AH21: 0 | AJ21: 0 | AK21: =(SUMPRODUCT((Planung!$AS$8:$AS$42=$B21)*(Planung!$AV$8:$AV$42)*(Planung!$B$8:$B$42))+SUMPRODUCT((Planung!$BA$8:$BA$42=$B21)*(Planung!$BD$8:$BD$42)*(Planung!$B$8:$B$42))+SUMPRODUCT((Planung!$BI$8:$BI$42=$B21)*(Planung!$BL$8:$BL$42)*(Planung!$B$8:$B$42))+SUMPRODUCT((Planung!$BQ$8:$BQ$42=$B21)*(Planung!$BT$8:$BT$42)*(Planung!$B$8:$B$42)))/IF(E21=0,1,E21) -> 0 | AL21: =(SUMPRODUCT((Planung!$AS$79:$AS$114=$B21)*(Planung!$AV$79:$AV$114)*(Planung!$B$79:$B$114))+SUMPRODUCT((Planung!$BA$79:$BA$114=$B21)*(Planung!$BD$79:$BD$114)*(Planung!$B$79:$B$114))+SUMPRODUCT((Planung!$BI$79:$BI$114=$B21)*(Planung!$BL$79:$BL$114)*(Planung!$B$79:$B$114))+SUMPRODUCT((Planung!$BQ$79:$BQ$114=$B21)*(Planung!$BT$79:$BT$114)*(Planung!$B$79:$B$114)))/IF(F21=0,1,F21) -> 0 | AM21: =(SUMPRODUCT((Planung!$AS$151:$AS$185=$B21)*(Planung!$AV$151:$AV$185)*(Planung!$B$151:$B$185))+SUMPRODUCT((Planung!$BA$151:$BA$185=$B21)*(Planung!$BD$151:$BD$185)*(Planung!$B$151:$B$185))+SUMPRODUCT((Planung!$BI$151:$BI$185=$B21)*(Planung!$BL$151:$BL$185)*(Planung!$B$151:$B$185))+SUMPRODUCT((Planung!$BQ$151:$BQ$185=$B21)*(Planung!$BT$151:$BT$185)*(Planung!$B$151:$B$185)))/IF(G21=0,1,G21) -> 0 | AN21: =(SUMPRODUCT((Planung!$AS$223:$AS$255=$B21)*(Planung!$AV$223:$AV$255)*(Planung!$B$223:$B$255))+SUMPRODUCT((Planung!$BA$223:$BA$255=$B21)*(Planung!$BD$223:$BD$255)*(Planung!$B$223:$B$255))+SUMPRODUCT((Planung!$BI$223:$BI$255=$B21)*(Planung!$BL$223:$BL$255)*(Planung!$B$223:$B$255))+SUMPRODUCT((Planung!$BQ$223:$BQ$255=$B21)*(Planung!$BT$223:$BT$255)*(Planung!$B$223:$B$255)))/IF(G21=0,1,G21) -> 0 | AO21: =(SUMPRODUCT((Planung!$AS$293:$AS$326=$B21)*(Planung!$AV$293:$AV$326)*(Planung!$B$293:$B$326))+SUMPRODUCT((Planung!$BA$293:$BA$326=$B21)*(Planung!$BD$293:$BD$326)*(Planung!$B$293:$B$326))+SUMPRODUCT((Planung!$BI$293:$BI$326=$B21)*(Planung!$BL$293:$BL$326)*(Planung!$B$293:$B$326))+SUMPRODUCT((Planung!$BQ$293:$BQ$326=$B21)*(Planung!$BT$293:$BT$326)*(Planung!$B$293:$B$326)))/IF(G21=0,1,G21) -> 0 | AP21: =(SUMPRODUCT((Planung!$AS$364:$AS$384=$B21)*(Planung!$AV$364:$AV$384)*(Planung!$B$364:$B$384))+SUMPRODUCT((Planung!$BA$364:$BA$384=$B21)*(Planung!$BD$364:$BD$384)*(Planung!$B$364:$B$384))+SUMPRODUCT((Planung!$BI$364:$BI$384=$B21)*(Planung!$BL$364:$BL$384)*(Planung!$B$364:$B$384))+SUMPRODUCT((Planung!$BQ$364:$BQ$384=$B21)*(Planung!$BT$364:$BT$384)*(Planung!$B$364:$B$384)))/IF(G21=0,1,G21) -> 0
B22: 11311 | O22: 0 | P22: 0 | Q22: 0 | W22: 0 | X22: 0 | Y22: 0 | Z22: 0 | AA22: 0 | AB22: 0 | AC22: 0 | AD22: 0 | AE22: 0 | AG22: 0 | AH22: 0 | AJ22: 0 | AK22: =(SUMPRODUCT((Planung!$AS$8:$AS$42=$B22)*(Planung!$AV$8:$AV$42)*(Planung!$B$8:$B$42))+SUMPRODUCT((Planung!$BA$8:$BA$42=$B22)*(Planung!$BD$8:$BD$42)*(Planung!$B$8:$B$42))+SUMPRODUCT((Planung!$BI$8:$BI$42=$B22)*(Planung!$BL$8:$BL$42)*(Planung!$B$8:$B$42))+SUMPRODUCT((Planung!$BQ$8:$BQ$42=$B22)*(Planung!$BT$8:$BT$42)*(Planung!$B$8:$B$42)))/IF(E22=0,1,E22) -> 0 | AL22: =(SUMPRODUCT((Planung!$AS$79:$AS$114=$B22)*(Planung!$AV$79:$AV$114)*(Planung!$B$79:$B$114))+SUMPRODUCT((Planung!$BA$79:$BA$114=$B22)*(Planung!$BD$79:$BD$114)*(Planung!$B$79:$B$114))+SUMPRODUCT((Planung!$BI$79:$BI$114=$B22)*(Planung!$BL$79:$BL$114)*(Planung!$B$79:$B$114))+SUMPRODUCT((Planung!$BQ$79:$BQ$114=$B22)*(Planung!$BT$79:$BT$114)*(Planung!$B$79:$B$114)))/IF(F22=0,1,F22) -> 0 | AM22: =(SUMPRODUCT((Planung!$AS$151:$AS$185=$B22)*(Planung!$AV$151:$AV$185)*(Planung!$B$151:$B$185))+SUMPRODUCT((Planung!$BA$151:$BA$185=$B22)*(Planung!$BD$151:$BD$185)*(Planung!$B$151:$B$185))+SUMPRODUCT((Planung!$BI$151:$BI$185=$B22)*(Planung!$BL$151:$BL$185)*(Planung!$B$151:$B$185))+SUMPRODUCT((Planung!$BQ$151:$BQ$185=$B22)*(Planung!$BT$151:$BT$185)*(Planung!$B$151:$B$185)))/IF(G22=0,1,G22) -> 0 | AN22: =(SUMPRODUCT((Planung!$AS$223:$AS$255=$B22)*(Planung!$AV$223:$AV$255)*(Planung!$B$223:$B$255))+SUMPRODUCT((Planung!$BA$223:$BA$255=$B22)*(Planung!$BD$223:$BD$255)*(Planung!$B$223:$B$255))+SUMPRODUCT((Planung!$BI$223:$BI$255=$B22)*(Planung!$BL$223:$BL$255)*(Planung!$B$223:$B$255))+SUMPRODUCT((Planung!$BQ$223:$BQ$255=$B22)*(Planung!$BT$223:$BT$255)*(Planung!$B$223:$B$255)))/IF(G22=0,1,G22) -> 0 | AO22: =(SUMPRODUCT((Planung!$AS$293:$AS$326=$B22)*(Planung!$AV$293:$AV$326)*(Planung!$B$293:$B$326))+SUMPRODUCT((Planung!$BA$293:$BA$326=$B22)*(Planung!$BD$293:$BD$326)*(Planung!$B$293:$B$326))+SUMPRODUCT((Planung!$BI$293:$BI$326=$B22)*(Planung!$BL$293:$BL$326)*(Planung!$B$293:$B$326))+SUMPRODUCT((Planung!$BQ$293:$BQ$326=$B22)*(Planung!$BT$293:$BT$326)*(Planung!$B$293:$B$326)))/IF(G22=0,1,G22) -> 0 | AP22: =(SUMPRODUCT((Planung!$AS$364:$AS$384=$B22)*(Planung!$AV$364:$AV$384)*(Planung!$B$364:$B$384))+SUMPRODUCT((Planung!$BA$364:$BA$384=$B22)*(Planung!$BD$364:$BD$384)*(Planung!$B$364:$B$384))+SUMPRODUCT((Planung!$BI$364:$BI$384=$B22)*(Planung!$BL$364:$BL$384)*(Planung!$B$364:$B$384))+SUMPRODUCT((Planung!$BQ$364:$BQ$384=$B22)*(Planung!$BT$364:$BT$384)*(Planung!$B$364:$B$384)))/IF(G22=0,1,G22) -> 0
B23: 11327 | O23: =N23*PreisDiesel -> 0 | P23: =N23*AnteilOel*PreisOel -> 0 | Q23: =K23+L23+M23+O23+P23 -> 0 | W23: =IF(U23=0,0,(R23-S23)/U23) -> 0 | X23: =IF(U23=0,0,V23/U23) -> 0 | Y23: =INDEX(AG23:AP23,AuslastSel) -> 0 | Z23: =IF(X23=0,0,Y23/X23) -> 0 | AA23: =IF(OR(U23=0,X23=0,Z23=0),0,IF(Z23>1,(R23-S23)/V23,((R23-S23)/U23)/Y23)) -> 0 | AB23: =IF(OR(X23=0,Z23=0),0,((R23+S23)/2*Interest)/Y23) -> 0 | AC23: =IF(Y23=0,0,T23/Y23) -> 0 | AD23: =SUM(AA23:AC23) -> 0 | AE23: =AD23+Q23 -> 0 | AG23: =$X23*AH23 -> 0 | AH23: 0 | AJ23: =IF($X23=0,0,AI23/$X23) -> 0 | AK23: =(SUMPRODUCT((Planung!$AS$8:$AS$42=$B23)*(Planung!$AV$8:$AV$42)*(Planung!$B$8:$B$42))+SUMPRODUCT((Planung!$BA$8:$BA$42=$B23)*(Planung!$BD$8:$BD$42)*(Planung!$B$8:$B$42))+SUMPRODUCT((Planung!$BI$8:$BI$42=$B23)*(Planung!$BL$8:$BL$42)*(Planung!$B$8:$B$42))+SUMPRODUCT((Planung!$BQ$8:$BQ$42=$B23)*(Planung!$BT$8:$BT$42)*(Planung!$B$8:$B$42)))/IF(E23=0,1,E23) -> 0 | AL23: =(SUMPRODUCT((Planung!$AS$79:$AS$114=$B23)*(Planung!$AV$79:$AV$114)*(Planung!$B$79:$B$114))+SUMPRODUCT((Planung!$BA$79:$BA$114=$B23)*(Planung!$BD$79:$BD$114)*(Planung!$B$79:$B$114))+SUMPRODUCT((Planung!$BI$79:$BI$114=$B23)*(Planung!$BL$79:$BL$114)*(Planung!$B$79:$B$114))+SUMPRODUCT((Planung!$BQ$79:$BQ$114=$B23)*(Planung!$BT$79:$BT$114)*(Planung!$B$79:$B$114)))/IF(F23=0,1,F23) -> 0 | AM23: =(SUMPRODUCT((Planung!$AS$151:$AS$185=$B23)*(Planung!$AV$151:$AV$185)*(Planung!$B$151:$B$185))+SUMPRODUCT((Planung!$BA$151:$BA$185=$B23)*(Planung!$BD$151:$BD$185)*(Planung!$B$151:$B$185))+SUMPRODUCT((Planung!$BI$151:$BI$185=$B23)*(Planung!$BL$151:$BL$185)*(Planung!$B$151:$B$185))+SUMPRODUCT((Planung!$BQ$151:$BQ$185=$B23)*(Planung!$BT$151:$BT$185)*(Planung!$B$151:$B$185)))/IF(G23=0,1,G23) -> 0 | AN23: =(SUMPRODUCT((Planung!$AS$223:$AS$255=$B23)*(Planung!$AV$223:$AV$255)*(Planung!$B$223:$B$255))+SUMPRODUCT((Planung!$BA$223:$BA$255=$B23)*(Planung!$BD$223:$BD$255)*(Planung!$B$223:$B$255))+SUMPRODUCT((Planung!$BI$223:$BI$255=$B23)*(Planung!$BL$223:$BL$255)*(Planung!$B$223:$B$255))+SUMPRODUCT((Planung!$BQ$223:$BQ$255=$B23)*(Planung!$BT$223:$BT$255)*(Planung!$B$223:$B$255)))/IF(G23=0,1,G23) -> 0 | AO23: =(SUMPRODUCT((Planung!$AS$293:$AS$326=$B23)*(Planung!$AV$293:$AV$326)*(Planung!$B$293:$B$326))+SUMPRODUCT((Planung!$BA$293:$BA$326=$B23)*(Planung!$BD$293:$BD$326)*(Planung!$B$293:$B$326))+SUMPRODUCT((Planung!$BI$293:$BI$326=$B23)*(Planung!$BL$293:$BL$326)*(Planung!$B$293:$B$326))+SUMPRODUCT((Planung!$BQ$293:$BQ$326=$B23)*(Planung!$BT$293:$BT$326)*(Planung!$B$293:$B$326)))/IF(G23=0,1,G23) -> 0 | AP23: =(SUMPRODUCT((Planung!$AS$364:$AS$384=$B23)*(Planung!$AV$364:$AV$384)*(Planung!$B$364:$B$384))+SUMPRODUCT((Planung!$BA$364:$BA$384=$B23)*(Planung!$BD$364:$BD$384)*(Planung!$B$364:$B$384))+SUMPRODUCT((Planung!$BI$364:$BI$384=$B23)*(Planung!$BL$364:$BL$384)*(Planung!$B$364:$B$384))+SUMPRODUCT((Planung!$BQ$364:$BQ$384=$B23)*(Planung!$BT$364:$BT$384)*(Planung!$B$364:$B$384)))/IF(G23=0,1,G23) -> 0
B24: 11312 | O24: 0 | P24: 0 | Q24: 0 | W24: 0 | X24: 0 | Y24: 0 | Z24: 0 | AA24: 0 | AB24: 0 | AC24: 0 | AD24: 0 | AE24: 0 | AG24: 0 | AH24: 0 | AJ24: 0 | AK24: =(SUMPRODUCT((Planung!$AS$8:$AS$42=$B24)*(Planung!$AV$8:$AV$42)*(Planung!$B$8:$B$42))+SUMPRODUCT((Planung!$BA$8:$BA$42=$B24)*(Planung!$BD$8:$BD$42)*(Planung!$B$8:$B$42))+SUMPRODUCT((Planung!$BI$8:$BI$42=$B24)*(Planung!$BL$8:$BL$42)*(Planung!$B$8:$B$42))+SUMPRODUCT((Planung!$BQ$8:$BQ$42=$B24)*(Planung!$BT$8:$BT$42)*(Planung!$B$8:$B$42)))/IF(E24=0,1,E24) -> 0 | AL24: =(SUMPRODUCT((Planung!$AS$79:$AS$114=$B24)*(Planung!$AV$79:$AV$114)*(Planung!$B$79:$B$114))+SUMPRODUCT((Planung!$BA$79:$BA$114=$B24)*(Planung!$BD$79:$BD$114)*(Planung!$B$79:$B$114))+SUMPRODUCT((Planung!$BI$79:$BI$114=$B24)*(Planung!$BL$79:$BL$114)*(Planung!$B$79:$B$114))+SUMPRODUCT((Planung!$BQ$79:$BQ$114=$B24)*(Planung!$BT$79:$BT$114)*(Planung!$B$79:$B$114)))/IF(F24=0,1,F24) -> 0 | AM24: =(SUMPRODUCT((Planung!$AS$151:$AS$185=$B24)*(Planung!$AV$151:$AV$185)*(Planung!$B$151:$B$185))+SUMPRODUCT((Planung!$BA$151:$BA$185=$B24)*(Planung!$BD$151:$BD$185)*(Planung!$B$151:$B$185))+SUMPRODUCT((Planung!$BI$151:$BI$185=$B24)*(Planung!$BL$151:$BL$185)*(Planung!$B$151:$B$185))+SUMPRODUCT((Planung!$BQ$151:$BQ$185=$B24)*(Planung!$BT$151:$BT$185)*(Planung!$B$151:$B$185)))/IF(G24=0,1,G24) -> 0 | AN24: =(SUMPRODUCT((Planung!$AS$223:$AS$255=$B24)*(Planung!$AV$223:$AV$255)*(Planung!$B$223:$B$255))+SUMPRODUCT((Planung!$BA$223:$BA$255=$B24)*(Planung!$BD$223:$BD$255)*(Planung!$B$223:$B$255))+SUMPRODUCT((Planung!$BI$223:$BI$255=$B24)*(Planung!$BL$223:$BL$255)*(Planung!$B$223:$B$255))+SUMPRODUCT((Planung!$BQ$223:$BQ$255=$B24)*(Planung!$BT$223:$BT$255)*(Planung!$B$223:$B$255)))/IF(G24=0,1,G24) -> 0 | AO24: =(SUMPRODUCT((Planung!$AS$293:$AS$326=$B24)*(Planung!$AV$293:$AV$326)*(Planung!$B$293:$B$326))+SUMPRODUCT((Planung!$BA$293:$BA$326=$B24)*(Planung!$BD$293:$BD$326)*(Planung!$B$293:$B$326))+SUMPRODUCT((Planung!$BI$293:$BI$326=$B24)*(Planung!$BL$293:$BL$326)*(Planung!$B$293:$B$326))+SUMPRODUCT((Planung!$BQ$293:$BQ$326=$B24)*(Planung!$BT$293:$BT$326)*(Planung!$B$293:$B$326)))/IF(G24=0,1,G24) -> 0 | AP24: =(SUMPRODUCT((Planung!$AS$364:$AS$384=$B24)*(Planung!$AV$364:$AV$384)*(Planung!$B$364:$B$384))+SUMPRODUCT((Planung!$BA$364:$BA$384=$B24)*(Planung!$BD$364:$BD$384)*(Planung!$B$364:$B$384))+SUMPRODUCT((Planung!$BI$364:$BI$384=$B24)*(Planung!$BL$364:$BL$384)*(Planung!$B$364:$B$384))+SUMPRODUCT((Planung!$BQ$364:$BQ$384=$B24)*(Planung!$BT$364:$BT$384)*(Planung!$B$364:$B$384)))/IF(G24=0,1,G24) -> 0
B25: 11325 | O25: =N25*PreisDiesel -> 0 | P25: =N25*AnteilOel*PreisOel -> 0 | Q25: =K25+L25+M25+O25+P25 -> 0 | W25: =IF(U25=0,0,(R25-S25)/U25) -> 0 | X25: =IF(U25=0,0,V25/U25) -> 0 | Y25: =INDEX(AG25:AP25,AuslastSel) -> 0 | Z25: =IF(X25=0,0,Y25/X25) -> 0 | AA25: =IF(OR(U25=0,X25=0,Z25=0),0,IF(Z25>1,(R25-S25)/V25,((R25-S25)/U25)/Y25)) -> 0 | AB25: =IF(OR(X25=0,Z25=0),0,((R25+S25)/2*Interest)/Y25) -> 0 | AC25: =IF(Y25=0,0,T25/Y25) -> 0 | AD25: =SUM(AA25:AC25) -> 0 | AE25: =AD25+Q25 -> 0 | AG25: =$X25*AH25 -> 0 | AH25: 0 | AJ25: =IF($X25=0,0,AI25/$X25) -> 0 | AK25: =(SUMPRODUCT((Planung!$AS$8:$AS$42=$B25)*(Planung!$AV$8:$AV$42)*(Planung!$B$8:$B$42))+SUMPRODUCT((Planung!$BA$8:$BA$42=$B25)*(Planung!$BD$8:$BD$42)*(Planung!$B$8:$B$42))+SUMPRODUCT((Planung!$BI$8:$BI$42=$B25)*(Planung!$BL$8:$BL$42)*(Planung!$B$8:$B$42))+SUMPRODUCT((Planung!$BQ$8:$BQ$42=$B25)*(Planung!$BT$8:$BT$42)*(Planung!$B$8:$B$42)))/IF(E25=0,1,E25) -> 0 | AL25: =(SUMPRODUCT((Planung!$AS$79:$AS$114=$B25)*(Planung!$AV$79:$AV$114)*(Planung!$B$79:$B$114))+SUMPRODUCT((Planung!$BA$79:$BA$114=$B25)*(Planung!$BD$79:$BD$114)*(Planung!$B$79:$B$114))+SUMPRODUCT((Planung!$BI$79:$BI$114=$B25)*(Planung!$BL$79:$BL$114)*(Planung!$B$79:$B$114))+SUMPRODUCT((Planung!$BQ$79:$BQ$114=$B25)*(Planung!$BT$79:$BT$114)*(Planung!$B$79:$B$114)))/IF(F25=0,1,F25) -> 0 | AM25: =(SUMPRODUCT((Planung!$AS$151:$AS$185=$B25)*(Planung!$AV$151:$AV$185)*(Planung!$B$151:$B$185))+SUMPRODUCT((Planung!$BA$151:$BA$185=$B25)*(Planung!$BD$151:$BD$185)*(Planung!$B$151:$B$185))+SUMPRODUCT((Planung!$BI$151:$BI$185=$B25)*(Planung!$BL$151:$BL$185)*(Planung!$B$151:$B$185))+SUMPRODUCT((Planung!$BQ$151:$BQ$185=$B25)*(Planung!$BT$151:$BT$185)*(Planung!$B$151:$B$185)))/IF(G25=0,1,G25) -> 0 | AN25: =(SUMPRODUCT((Planung!$AS$223:$AS$255=$B25)*(Planung!$AV$223:$AV$255)*(Planung!$B$223:$B$255))+SUMPRODUCT((Planung!$BA$223:$BA$255=$B25)*(Planung!$BD$223:$BD$255)*(Planung!$B$223:$B$255))+SUMPRODUCT((Planung!$BI$223:$BI$255=$B25)*(Planung!$BL$223:$BL$255)*(Planung!$B$223:$B$255))+SUMPRODUCT((Planung!$BQ$223:$BQ$255=$B25)*(Planung!$BT$223:$BT$255)*(Planung!$B$223:$B$255)))/IF(G25=0,1,G25) -> 0 | AO25: =(SUMPRODUCT((Planung!$AS$293:$AS$326=$B25)*(Planung!$AV$293:$AV$326)*(Planung!$B$293:$B$326))+SUMPRODUCT((Planung!$BA$293:$BA$326=$B25)*(Planung!$BD$293:$BD$326)*(Planung!$B$293:$B$326))+SUMPRODUCT((Planung!$BI$293:$BI$326=$B25)*(Planung!$BL$293:$BL$326)*(Planung!$B$293:$B$326))+SUMPRODUCT((Planung!$BQ$293:$BQ$326=$B25)*(Planung!$BT$293:$BT$326)*(Planung!$B$293:$B$326)))/IF(G25=0,1,G25) -> 0 | AP25: =(SUMPRODUCT((Planung!$AS$364:$AS$384=$B25)*(Planung!$AV$364:$AV$384)*(Planung!$B$364:$B$384))+SUMPRODUCT((Planung!$BA$364:$BA$384=$B25)*(Planung!$BD$364:$BD$384)*(Planung!$B$364:$B$384))+SUMPRODUCT((Planung!$BI$364:$BI$384=$B25)*(Planung!$BL$364:$BL$384)*(Planung!$B$364:$B$384))+SUMPRODUCT((Planung!$BQ$364:$BQ$384=$B25)*(Planung!$BT$364:$BT$384)*(Planung!$B$364:$B$384)))/IF(G25=0,1,G25) -> 0
B26: 11326 | O26: =N26*PreisDiesel -> 0 | P26: =N26*AnteilOel*PreisOel -> 0 | Q26: =K26+L26+M26+O26+P26 -> 0 | W26: =IF(U26=0,0,(R26-S26)/U26) -> 0 | X26: =IF(U26=0,0,V26/U26) -> 0 | Y26: =INDEX(AG26:AP26,AuslastSel) -> 0 | Z26: =IF(X26=0,0,Y26/X26) -> 0 | AA26: =IF(OR(U26=0,X26=0,Z26=0),0,IF(Z26>1,(R26-S26)/V26,((R26-S26)/U26)/Y26)) -> 0 | AB26: =IF(OR(X26=0,Z26=0),0,((R26+S26)/2*Interest)/Y26) -> 0 | AC26: =IF(Y26=0,0,T26/Y26) -> 0 | AD26: =SUM(AA26:AC26) -> 0 | AE26: =AD26+Q26 -> 0 | AG26: =$X26*AH26 -> 0 | AH26: 0 | AJ26: =IF($X26=0,0,AI26/$X26) -> 0 | AK26: =(SUMPRODUCT((Planung!$AS$8:$AS$42=$B26)*(Planung!$AV$8:$AV$42)*(Planung!$B$8:$B$42))+SUMPRODUCT((Planung!$BA$8:$BA$42=$B26)*(Planung!$BD$8:$BD$42)*(Planung!$B$8:$B$42))+SUMPRODUCT((Planung!$BI$8:$BI$42=$B26)*(Planung!$BL$8:$BL$42)*(Planung!$B$8:$B$42))+SUMPRODUCT((Planung!$BQ$8:$BQ$42=$B26)*(Planung!$BT$8:$BT$42)*(Planung!$B$8:$B$42)))/IF(E26=0,1,E26) -> 0 | AL26: =(SUMPRODUCT((Planung!$AS$79:$AS$114=$B26)*(Planung!$AV$79:$AV$114)*(Planung!$B$79:$B$114))+SUMPRODUCT((Planung!$BA$79:$BA$114=$B26)*(Planung!$BD$79:$BD$114)*(Planung!$B$79:$B$114))+SUMPRODUCT((Planung!$BI$79:$BI$114=$B26)*(Planung!$BL$79:$BL$114)*(Planung!$B$79:$B$114))+SUMPRODUCT((Planung!$BQ$79:$BQ$114=$B26)*(Planung!$BT$79:$BT$114)*(Planung!$B$79:$B$114)))/IF(F26=0,1,F26) -> 0 | AM26: =(SUMPRODUCT((Planung!$AS$151:$AS$185=$B26)*(Planung!$AV$151:$AV$185)*(Planung!$B$151:$B$185))+SUMPRODUCT((Planung!$BA$151:$BA$185=$B26)*(Planung!$BD$151:$BD$185)*(Planung!$B$151:$B$185))+SUMPRODUCT((Planung!$BI$151:$BI$185=$B26)*(Planung!$BL$151:$BL$185)*(Planung!$B$151:$B$185))+SUMPRODUCT((Planung!$BQ$151:$BQ$185=$B26)*(Planung!$BT$151:$BT$185)*(Planung!$B$151:$B$185)))/IF(G26=0,1,G26) -> 0 | AN26: =(SUMPRODUCT((Planung!$AS$223:$AS$255=$B26)*(Planung!$AV$223:$AV$255)*(Planung!$B$223:$B$255))+SUMPRODUCT((Planung!$BA$223:$BA$255=$B26)*(Planung!$BD$223:$BD$255)*(Planung!$B$223:$B$255))+SUMPRODUCT((Planung!$BI$223:$BI$255=$B26)*(Planung!$BL$223:$BL$255)*(Planung!$B$223:$B$255))+SUMPRODUCT((Planung!$BQ$223:$BQ$255=$B26)*(Planung!$BT$223:$BT$255)*(Planung!$B$223:$B$255)))/IF(G26=0,1,G26) -> 0 | AO26: =(SUMPRODUCT((Planung!$AS$293:$AS$326=$B26)*(Planung!$AV$293:$AV$326)*(Planung!$B$293:$B$326))+SUMPRODUCT((Planung!$BA$293:$BA$326=$B26)*(Planung!$BD$293:$BD$326)*(Planung!$B$293:$B$326))+SUMPRODUCT((Planung!$BI$293:$BI$326=$B26)*(Planung!$BL$293:$BL$326)*(Planung!$B$293:$B$326))+SUMPRODUCT((Planung!$BQ$293:$BQ$326=$B26)*(Planung!$BT$293:$BT$326)*(Planung!$B$293:$B$326)))/IF(G26=0,1,G26) -> 0 | AP26: =(SUMPRODUCT((Planung!$AS$364:$AS$384=$B26)*(Planung!$AV$364:$AV$384)*(Planung!$B$364:$B$384))+SUMPRODUCT((Planung!$BA$364:$BA$384=$B26)*(Planung!$BD$364:$BD$384)*(Planung!$B$364:$B$384))+SUMPRODUCT((Planung!$BI$364:$BI$384=$B26)*(Planung!$BL$364:$BL$384)*(Planung!$B$364:$B$384))+SUMPRODUCT((Planung!$BQ$364:$BQ$384=$B26)*(Planung!$BT$364:$BT$384)*(Planung!$B$364:$B$384)))/IF(G26=0,1,G26) -> 0
B27: 11324 | O27: =N27*PreisDiesel -> 0 | P27: =N27*AnteilOel*PreisOel -> 0 | Q27: =K27+L27+M27+O27+P27 -> 0 | W27: =IF(U27=0,0,(R27-S27)/U27) -> 0 | X27: =IF(U27=0,0,V27/U27) -> 0 | Y27: =INDEX(AG27:AP27,AuslastSel) -> 0 | Z27: =IF(X27=0,0,Y27/X27) -> 0 | AA27: =IF(OR(U27=0,X27=0,Z27=0),0,IF(Z27>1,(R27-S27)/V27,((R27-S27)/U27)/Y27)) -> 0 | AB27: =IF(OR(X27=0,Z27=0),0,((R27+S27)/2*Interest)/Y27) -> 0 | AC27: =IF(Y27=0,0,T27/Y27) -> 0 | AD27: =SUM(AA27:AC27) -> 0 | AE27: =AD27+Q27 -> 0 | AG27: =$X27*AH27 -> 0 | AH27: 0 | AJ27: =IF($X27=0,0,AI27/$X27) -> 0 | AK27: =(SUMPRODUCT((Planung!$AS$8:$AS$42=$B27)*(Planung!$AV$8:$AV$42)*(Planung!$B$8:$B$42))+SUMPRODUCT((Planung!$BA$8:$BA$42=$B27)*(Planung!$BD$8:$BD$42)*(Planung!$B$8:$B$42))+SUMPRODUCT((Planung!$BI$8:$BI$42=$B27)*(Planung!$BL$8:$BL$42)*(Planung!$B$8:$B$42))+SUMPRODUCT((Planung!$BQ$8:$BQ$42=$B27)*(Planung!$BT$8:$BT$42)*(Planung!$B$8:$B$42)))/IF(E27=0,1,E27) -> 0 | AL27: =(SUMPRODUCT((Planung!$AS$79:$AS$114=$B27)*(Planung!$AV$79:$AV$114)*(Planung!$B$79:$B$114))+SUMPRODUCT((Planung!$BA$79:$BA$114=$B27)*(Planung!$BD$79:$BD$114)*(Planung!$B$79:$B$114))+SUMPRODUCT((Planung!$BI$79:$BI$114=$B27)*(Planung!$BL$79:$BL$114)*(Planung!$B$79:$B$114))+SUMPRODUCT((Planung!$BQ$79:$BQ$114=$B27)*(Planung!$BT$79:$BT$114)*(Planung!$B$79:$B$114)))/IF(F27=0,1,F27) -> 0 | AM27: =(SUMPRODUCT((Planung!$AS$151:$AS$185=$B27)*(Planung!$AV$151:$AV$185)*(Planung!$B$151:$B$185))+SUMPRODUCT((Planung!$BA$151:$BA$185=$B27)*(Planung!$BD$151:$BD$185)*(Planung!$B$151:$B$185))+SUMPRODUCT((Planung!$BI$151:$BI$185=$B27)*(Planung!$BL$151:$BL$185)*(Planung!$B$151:$B$185))+SUMPRODUCT((Planung!$BQ$151:$BQ$185=$B27)*(Planung!$BT$151:$BT$185)*(Planung!$B$151:$B$185)))/IF(G27=0,1,G27) -> 0 | AN27: =(SUMPRODUCT((Planung!$AS$223:$AS$255=$B27)*(Planung!$AV$223:$AV$255)*(Planung!$B$223:$B$255))+SUMPRODUCT((Planung!$BA$223:$BA$255=$B27)*(Planung!$BD$223:$BD$255)*(Planung!$B$223:$B$255))+SUMPRODUCT((Planung!$BI$223:$BI$255=$B27)*(Planung!$BL$223:$BL$255)*(Planung!$B$223:$B$255))+SUMPRODUCT((Planung!$BQ$223:$BQ$255=$B27)*(Planung!$BT$223:$BT$255)*(Planung!$B$223:$B$255)))/IF(G27=0,1,G27) -> 0 | AO27: =(SUMPRODUCT((Planung!$AS$293:$AS$326=$B27)*(Planung!$AV$293:$AV$326)*(Planung!$B$293:$B$326))+SUMPRODUCT((Planung!$BA$293:$BA$326=$B27)*(Planung!$BD$293:$BD$326)*(Planung!$B$293:$B$326))+SUMPRODUCT((Planung!$BI$293:$BI$326=$B27)*(Planung!$BL$293:$BL$326)*(Planung!$B$293:$B$326))+SUMPRODUCT((Planung!$BQ$293:$BQ$326=$B27)*(Planung!$BT$293:$BT$326)*(Planung!$B$293:$B$326)))/IF(G27=0,1,G27) -> 0 | AP27: =(SUMPRODUCT((Planung!$AS$364:$AS$384=$B27)*(Planung!$AV$364:$AV$384)*(Planung!$B$364:$B$384))+SUMPRODUCT((Planung!$BA$364:$BA$384=$B27)*(Planung!$BD$364:$BD$384)*(Planung!$B$364:$B$384))+SUMPRODUCT((Planung!$BI$364:$BI$384=$B27)*(Planung!$BL$364:$BL$384)*(Planung!$B$364:$B$384))+SUMPRODUCT((Planung!$BQ$364:$BQ$384=$B27)*(Planung!$BT$364:$BT$384)*(Planung!$B$364:$B$384)))/IF(G27=0,1,G27) -> 0
B28: 11313 | O28: 0 | P28: 0 | Q28: 0 | W28: 0 | X28: 0 | Y28: 0 | Z28: 0 | AA28: 0 | AB28: 0 | AC28: 0 | AD28: =SUM(AA28:AC28) -> 0 | AE28: 0 | AG28: 0 | AH28: 0 | AJ28: 0 | AK28: =(SUMPRODUCT((Planung!$AS$8:$AS$42=$B28)*(Planung!$AV$8:$AV$42)*(Planung!$B$8:$B$42))+SUMPRODUCT((Planung!$BA$8:$BA$42=$B28)*(Planung!$BD$8:$BD$42)*(Planung!$B$8:$B$42))+SUMPRODUCT((Planung!$BI$8:$BI$42=$B28)*(Planung!$BL$8:$BL$42)*(Planung!$B$8:$B$42))+SUMPRODUCT((Planung!$BQ$8:$BQ$42=$B28)*(Planung!$BT$8:$BT$42)*(Planung!$B$8:$B$42)))/IF(E28=0,1,E28) -> 0 | AL28: =(SUMPRODUCT((Planung!$AS$79:$AS$114=$B28)*(Planung!$AV$79:$AV$114)*(Planung!$B$79:$B$114))+SUMPRODUCT((Planung!$BA$79:$BA$114=$B28)*(Planung!$BD$79:$BD$114)*(Planung!$B$79:$B$114))+SUMPRODUCT((Planung!$BI$79:$BI$114=$B28)*(Planung!$BL$79:$BL$114)*(Planung!$B$79:$B$114))+SUMPRODUCT((Planung!$BQ$79:$BQ$114=$B28)*(Planung!$BT$79:$BT$114)*(Planung!$B$79:$B$114)))/IF(F28=0,1,F28) -> 0 | AM28: =(SUMPRODUCT((Planung!$AS$151:$AS$185=$B28)*(Planung!$AV$151:$AV$185)*(Planung!$B$151:$B$185))+SUMPRODUCT((Planung!$BA$151:$BA$185=$B28)*(Planung!$BD$151:$BD$185)*(Planung!$B$151:$B$185))+SUMPRODUCT((Planung!$BI$151:$BI$185=$B28)*(Planung!$BL$151:$BL$185)*(Planung!$B$151:$B$185))+SUMPRODUCT((Planung!$BQ$151:$BQ$185=$B28)*(Planung!$BT$151:$BT$185)*(Planung!$B$151:$B$185)))/IF(G28=0,1,G28) -> 0 | AN28: =(SUMPRODUCT((Planung!$AS$223:$AS$255=$B28)*(Planung!$AV$223:$AV$255)*(Planung!$B$223:$B$255))+SUMPRODUCT((Planung!$BA$223:$BA$255=$B28)*(Planung!$BD$223:$BD$255)*(Planung!$B$223:$B$255))+SUMPRODUCT((Planung!$BI$223:$BI$255=$B28)*(Planung!$BL$223:$BL$255)*(Planung!$B$223:$B$255))+SUMPRODUCT((Planung!$BQ$223:$BQ$255=$B28)*(Planung!$BT$223:$BT$255)*(Planung!$B$223:$B$255)))/IF(G28=0,1,G28) -> 0 | AO28: =(SUMPRODUCT((Planung!$AS$293:$AS$326=$B28)*(Planung!$AV$293:$AV$326)*(Planung!$B$293:$B$326))+SUMPRODUCT((Planung!$BA$293:$BA$326=$B28)*(Planung!$BD$293:$BD$326)*(Planung!$B$293:$B$326))+SUMPRODUCT((Planung!$BI$293:$BI$326=$B28)*(Planung!$BL$293:$BL$326)*(Planung!$B$293:$B$326))+SUMPRODUCT((Planung!$BQ$293:$BQ$326=$B28)*(Planung!$BT$293:$BT$326)*(Planung!$B$293:$B$326)))/IF(G28=0,1,G28) -> 0 | AP28: =(SUMPRODUCT((Planung!$AS$364:$AS$384=$B28)*(Planung!$AV$364:$AV$384)*(Planung!$B$364:$B$384))+SUMPRODUCT((Planung!$BA$364:$BA$384=$B28)*(Planung!$BD$364:$BD$384)*(Planung!$B$364:$B$384))+SUMPRODUCT((Planung!$BI$364:$BI$384=$B28)*(Planung!$BL$364:$BL$384)*(Planung!$B$364:$B$384))+SUMPRODUCT((Planung!$BQ$364:$BQ$384=$B28)*(Planung!$BT$364:$BT$384)*(Planung!$B$364:$B$384)))/IF(G28=0,1,G28) -> 0
B29: 11314 | O29: 0 | P29: 0 | Q29: 0 | W29: 0 | X29: 0 | Y29: 0 | Z29: 0 | AA29: 0 | AB29: 0 | AC29: 0 | AD29: 0 | AE29: 0 | AG29: 0 | AH29: 0 | AJ29: 0 | AK29: =(SUMPRODUCT((Planung!$AS$8:$AS$42=$B29)*(Planung!$AV$8:$AV$42)*(Planung!$B$8:$B$42))+SUMPRODUCT((Planung!$BA$8:$BA$42=$B29)*(Planung!$BD$8:$BD$42)*(Planung!$B$8:$B$42))+SUMPRODUCT((Planung!$BI$8:$BI$42=$B29)*(Planung!$BL$8:$BL$42)*(Planung!$B$8:$B$42))+SUMPRODUCT((Planung!$BQ$8:$BQ$42=$B29)*(Planung!$BT$8:$BT$42)*(Planung!$B$8:$B$42)))/IF(E29=0,1,E29) -> 0 | AL29: =(SUMPRODUCT((Planung!$AS$79:$AS$114=$B29)*(Planung!$AV$79:$AV$114)*(Planung!$B$79:$B$114))+SUMPRODUCT((Planung!$BA$79:$BA$114=$B29)*(Planung!$BD$79:$BD$114)*(Planung!$B$79:$B$114))+SUMPRODUCT((Planung!$BI$79:$BI$114=$B29)*(Planung!$BL$79:$BL$114)*(Planung!$B$79:$B$114))+SUMPRODUCT((Planung!$BQ$79:$BQ$114=$B29)*(Planung!$BT$79:$BT$114)*(Planung!$B$79:$B$114)))/IF(F29=0,1,F29) -> 0 | AM29: =(SUMPRODUCT((Planung!$AS$151:$AS$185=$B29)*(Planung!$AV$151:$AV$185)*(Planung!$B$151:$B$185))+SUMPRODUCT((Planung!$BA$151:$BA$185=$B29)*(Planung!$BD$151:$BD$185)*(Planung!$B$151:$B$185))+SUMPRODUCT((Planung!$BI$151:$BI$185=$B29)*(Planung!$BL$151:$BL$185)*(Planung!$B$151:$B$185))+SUMPRODUCT((Planung!$BQ$151:$BQ$185=$B29)*(Planung!$BT$151:$BT$185)*(Planung!$B$151:$B$185)))/IF(G29=0,1,G29) -> 0 | AN29: =(SUMPRODUCT((Planung!$AS$223:$AS$255=$B29)*(Planung!$AV$223:$AV$255)*(Planung!$B$223:$B$255))+SUMPRODUCT((Planung!$BA$223:$BA$255=$B29)*(Planung!$BD$223:$BD$255)*(Planung!$B$223:$B$255))+SUMPRODUCT((Planung!$BI$223:$BI$255=$B29)*(Planung!$BL$223:$BL$255)*(Planung!$B$223:$B$255))+SUMPRODUCT((Planung!$BQ$223:$BQ$255=$B29)*(Planung!$BT$223:$BT$255)*(Planung!$B$223:$B$255)))/IF(G29=0,1,G29) -> 0 | AO29: =(SUMPRODUCT((Planung!$AS$293:$AS$326=$B29)*(Planung!$AV$293:$AV$326)*(Planung!$B$293:$B$326))+SUMPRODUCT((Planung!$BA$293:$BA$326=$B29)*(Planung!$BD$293:$BD$326)*(Planung!$B$293:$B$326))+SUMPRODUCT((Planung!$BI$293:$BI$326=$B29)*(Planung!$BL$293:$BL$326)*(Planung!$B$293:$B$326))+SUMPRODUCT((Planung!$BQ$293:$BQ$326=$B29)*(Planung!$BT$293:$BT$326)*(Planung!$B$293:$B$326)))/IF(G29=0,1,G29) -> 0 | AP29: =(SUMPRODUCT((Planung!$AS$364:$AS$384=$B29)*(Planung!$AV$364:$AV$384)*(Planung!$B$364:$B$384))+SUMPRODUCT((Planung!$BA$364:$BA$384=$B29)*(Planung!$BD$364:$BD$384)*(Planung!$B$364:$B$384))+SUMPRODUCT((Planung!$BI$364:$BI$384=$B29)*(Planung!$BL$364:$BL$384)*(Planung!$B$364:$B$384))+SUMPRODUCT((Planung!$BQ$364:$BQ$384=$B29)*(Planung!$BT$364:$BT$384)*(Planung!$B$364:$B$384)))/IF(G29=0,1,G29) -> 0
B30: 11316 | O30: =N30*PreisDiesel -> 0 | P30: =N30*AnteilOel*PreisOel -> 0 | Q30: 0 | W30: =IF(U30=0,0,(R30-S30)/U30) -> 0 | X30: =IF(U30=0,0,V30/U30) -> 0 | Y30: =INDEX(AG30:AP30,AuslastSel) -> 0 | Z30: =IF(X30=0,0,Y30/X30) -> 0 | AA30: =IF(OR(U30=0,X30=0,Z30=0),0,IF(Z30>1,(R30-S30)/V30,((R30-S30)/U30)/Y30)) -> 0 | AB30: =IF(OR(X30=0,Z30=0),0,((R30+S30)/2*Interest)/Y30) -> 0 | AC30: =IF(Y30=0,0,T30/Y30) -> 0 | AD30: =SUM(AA30:AC30) -> 0 | AE30: =AD30+Q30 -> 0 | AG30: =$X30*AH30 -> 0 | AH30: 0 | AJ30: =IF($X30=0,0,AI30/$X30) -> 0 | AK30: =(SUMPRODUCT((Planung!$AS$8:$AS$42=$B30)*(Planung!$AV$8:$AV$42)*(Planung!$B$8:$B$42))+SUMPRODUCT((Planung!$BA$8:$BA$42=$B30)*(Planung!$BD$8:$BD$42)*(Planung!$B$8:$B$42))+SUMPRODUCT((Planung!$BI$8:$BI$42=$B30)*(Planung!$BL$8:$BL$42)*(Planung!$B$8:$B$42))+SUMPRODUCT((Planung!$BQ$8:$BQ$42=$B30)*(Planung!$BT$8:$BT$42)*(Planung!$B$8:$B$42)))/IF(E30=0,1,E30) -> 0 | AL30: =(SUMPRODUCT((Planung!$AS$79:$AS$114=$B30)*(Planung!$AV$79:$AV$114)*(Planung!$B$79:$B$114))+SUMPRODUCT((Planung!$BA$79:$BA$114=$B30)*(Planung!$BD$79:$BD$114)*(Planung!$B$79:$B$114))+SUMPRODUCT((Planung!$BI$79:$BI$114=$B30)*(Planung!$BL$79:$BL$114)*(Planung!$B$79:$B$114))+SUMPRODUCT((Planung!$BQ$79:$BQ$114=$B30)*(Planung!$BT$79:$BT$114)*(Planung!$B$79:$B$114)))/IF(F30=0,1,F30) -> 0 | AM30: =(SUMPRODUCT((Planung!$AS$151:$AS$185=$B30)*(Planung!$AV$151:$AV$185)*(Planung!$B$151:$B$185))+SUMPRODUCT((Planung!$BA$151:$BA$185=$B30)*(Planung!$BD$151:$BD$185)*(Planung!$B$151:$B$185))+SUMPRODUCT((Planung!$BI$151:$BI$185=$B30)*(Planung!$BL$151:$BL$185)*(Planung!$B$151:$B$185))+SUMPRODUCT((Planung!$BQ$151:$BQ$185=$B30)*(Planung!$BT$151:$BT$185)*(Planung!$B$151:$B$185)))/IF(G30=0,1,G30) -> 0 | AN30: =(SUMPRODUCT((Planung!$AS$223:$AS$255=$B30)*(Planung!$AV$223:$AV$255)*(Planung!$B$223:$B$255))+SUMPRODUCT((Planung!$BA$223:$BA$255=$B30)*(Planung!$BD$223:$BD$255)*(Planung!$B$223:$B$255))+SUMPRODUCT((Planung!$BI$223:$BI$255=$B30)*(Planung!$BL$223:$BL$255)*(Planung!$B$223:$B$255))+SUMPRODUCT((Planung!$BQ$223:$BQ$255=$B30)*(Planung!$BT$223:$BT$255)*(Planung!$B$223:$B$255)))/IF(G30=0,1,G30) -> 0 | AO30: =(SUMPRODUCT((Planung!$AS$293:$AS$326=$B30)*(Planung!$AV$293:$AV$326)*(Planung!$B$293:$B$326))+SUMPRODUCT((Planung!$BA$293:$BA$326=$B30)*(Planung!$BD$293:$BD$326)*(Planung!$B$293:$B$326))+SUMPRODUCT((Planung!$BI$293:$BI$326=$B30)*(Planung!$BL$293:$BL$326)*(Planung!$B$293:$B$326))+SUMPRODUCT((Planung!$BQ$293:$BQ$326=$B30)*(Planung!$BT$293:$BT$326)*(Planung!$B$293:$B$326)))/IF(G30=0,1,G30) -> 0 | AP30: =(SUMPRODUCT((Planung!$AS$364:$AS$384=$B30)*(Planung!$AV$364:$AV$384)*(Planung!$B$364:$B$384))+SUMPRODUCT((Planung!$BA$364:$BA$384=$B30)*(Planung!$BD$364:$BD$384)*(Planung!$B$364:$B$384))+SUMPRODUCT((Planung!$BI$364:$BI$384=$B30)*(Planung!$BL$364:$BL$384)*(Planung!$B$364:$B$384))+SUMPRODUCT((Planung!$BQ$364:$BQ$384=$B30)*(Planung!$BT$364:$BT$384)*(Planung!$B$364:$B$384)))/IF(G30=0,1,G30) -> 0
B31: 11315 | C31: *Feldhäcksler 400kW | D31: h | E31: 2 | F31: 2 | G31: 2 | H31: 2 | I31: 2 | J31: 2 | K31: 32 | N31: 58 | O31: 55.1 | P31: 1.682 | Q31: 88.782 | R31: 280000 | S31: 56000 | T31: 100 | U31: 10 | V31: 3000 | W31: 22400 | X31: 300 | Y31: 0 | Z31: 0 | AA31: 0 | AB31: 0 | AC31: 0 | AD31: 0 | AE31: 88.782 | AG31: 240 | AH31: 0.8 | AJ31: 0 | AK31: =(SUMPRODUCT((Planung!$AS$8:$AS$42=$B31)*(Planung!$AV$8:$AV$42)*(Planung!$B$8:$B$42))+SUMPRODUCT((Planung!$BA$8:$BA$42=$B31)*(Planung!$BD$8:$BD$42)*(Planung!$B$8:$B$42))+SUMPRODUCT((Planung!$BI$8:$BI$42=$B31)*(Planung!$BL$8:$BL$42)*(Planung!$B$8:$B$42))+SUMPRODUCT((Planung!$BQ$8:$BQ$42=$B31)*(Planung!$BT$8:$BT$42)*(Planung!$B$8:$B$42)))/IF(E31=0,1,E31) -> 0 | AL31: =(SUMPRODUCT((Planung!$AS$79:$AS$114=$B31)*(Planung!$AV$79:$AV$114)*(Planung!$B$79:$B$114))+SUMPRODUCT((Planung!$BA$79:$BA$114=$B31)*(Planung!$BD$79:$BD$114)*(Planung!$B$79:$B$114))+SUMPRODUCT((Planung!$BI$79:$BI$114=$B31)*(Planung!$BL$79:$BL$114)*(Planung!$B$79:$B$114))+SUMPRODUCT((Planung!$BQ$79:$BQ$114=$B31)*(Planung!$BT$79:$BT$114)*(Planung!$B$79:$B$114)))/IF(F31=0,1,F31) -> 0 | AM31: =(SUMPRODUCT((Planung!$AS$151:$AS$185=$B31)*(Planung!$AV$151:$AV$185)*(Planung!$B$151:$B$185))+SUMPRODUCT((Planung!$BA$151:$BA$185=$B31)*(Planung!$BD$151:$BD$185)*(Planung!$B$151:$B$185))+SUMPRODUCT((Planung!$BI$151:$BI$185=$B31)*(Planung!$BL$151:$BL$185)*(Planung!$B$151:$B$185))+SUMPRODUCT((Planung!$BQ$151:$BQ$185=$B31)*(Planung!$BT$151:$BT$185)*(Planung!$B$151:$B$185)))/IF(G31=0,1,G31) -> 0 | AN31: =(SUMPRODUCT((Planung!$AS$223:$AS$255=$B31)*(Planung!$AV$223:$AV$255)*(Planung!$B$223:$B$255))+SUMPRODUCT((Planung!$BA$223:$BA$255=$B31)*(Planung!$BD$223:$BD$255)*(Planung!$B$223:$B$255))+SUMPRODUCT((Planung!$BI$223:$BI$255=$B31)*(Planung!$BL$223:$BL$255)*(Planung!$B$223:$B$255))+SUMPRODUCT((Planung!$BQ$223:$BQ$255=$B31)*(Planung!$BT$223:$BT$255)*(Planung!$B$223:$B$255)))/IF(G31=0,1,G31) -> 0 | AO31: =(SUMPRODUCT((Planung!$AS$293:$AS$326=$B31)*(Planung!$AV$293:$AV$326)*(Planung!$B$293:$B$326))+SUMPRODUCT((Planung!$BA$293:$BA$326=$B31)*(Planung!$BD$293:$BD$326)*(Planung!$B$293:$B$326))+SUMPRODUCT((Planung!$BI$293:$BI$326=$B31)*(Planung!$BL$293:$BL$326)*(Planung!$B$293:$B$326))+SUMPRODUCT((Planung!$BQ$293:$BQ$326=$B31)*(Planung!$BT$293:$BT$326)*(Planung!$B$293:$B$326)))/IF(G31=0,1,G31) -> 0 | AP31: =(SUMPRODUCT((Planung!$AS$364:$AS$384=$B31)*(Planung!$AV$364:$AV$384)*(Planung!$B$364:$B$384))+SUMPRODUCT((Planung!$BA$364:$BA$384=$B31)*(Planung!$BD$364:$BD$384)*(Planung!$B$364:$B$384))+SUMPRODUCT((Planung!$BI$364:$BI$384=$B31)*(Planung!$BL$364:$BL$384)*(Planung!$B$364:$B$384))+SUMPRODUCT((Planung!$BQ$364:$BQ$384=$B31)*(Planung!$BT$364:$BT$384)*(Planung!$B$364:$B$384)))/IF(G31=0,1,G31) -> 0 | AY31: =5*18 -> 90 | AZ31: =5*18 -> 90 | BA31: =7*18 -> 126 | BB31: 126 | BC31: 126 | BD31: 126 | BE31: 126 | BF31: 126 | BG31: 126 | BH31: =11*18 -> 198 | BI31: =11*18 -> 198 | BJ31: =11*18 -> 198 | BK31: =11*18 -> 198
B32: 11320 | C32: *Feldhäcksler Straßenfahrt | D32: h | K32: 10 | N32: 25 | O32: =N32*PreisDiesel -> 23.75 | P32: =N32*AnteilOel*PreisOel -> 0.725 | Q32: 34.475 | W32: =IF(U32=0,0,(R32-S32)/U32) -> 0 | X32: =IF(U32=0,0,V32/U32) -> 0 | Y32: =INDEX(AG32:AP32,AuslastSel) -> 0 | Z32: =IF(X32=0,0,Y32/X32) -> 0 | AA32: =IF(OR(U32=0,X32=0,Z32=0),0,IF(Z32>1,(R32-S32)/V32,((R32-S32)/U32)/Y32)) -> 0 | AB32: =IF(OR(X32=0,Z32=0),0,((R32+S32)/2*Interest)/Y32) -> 0 | AC32: =IF(Y32=0,0,T32/Y32) -> 0 | AD32: =SUM(AA32:AC32) -> 0 | AE32: =AD32+Q32 -> 34.475 | AG32: =$X32*AH32 -> 0 | AH32: 0 | AJ32: =IF($X32=0,0,AI32/$X32) -> 0 | AK32: =(SUMPRODUCT((Planung!$AS$8:$AS$42=$B32)*(Planung!$AV$8:$AV$42)*(Planung!$B$8:$B$42))+SUMPRODUCT((Planung!$BA$8:$BA$42=$B32)*(Planung!$BD$8:$BD$42)*(Planung!$B$8:$B$42))+SUMPRODUCT((Planung!$BI$8:$BI$42=$B32)*(Planung!$BL$8:$BL$42)*(Planung!$B$8:$B$42))+SUMPRODUCT((Planung!$BQ$8:$BQ$42=$B32)*(Planung!$BT$8:$BT$42)*(Planung!$B$8:$B$42)))/IF(E32=0,1,E32) -> 0 | AL32: =(SUMPRODUCT((Planung!$AS$79:$AS$114=$B32)*(Planung!$AV$79:$AV$114)*(Planung!$B$79:$B$114))+SUMPRODUCT((Planung!$BA$79:$BA$114=$B32)*(Planung!$BD$79:$BD$114)*(Planung!$B$79:$B$114))+SUMPRODUCT((Planung!$BI$79:$BI$114=$B32)*(Planung!$BL$79:$BL$114)*(Planung!$B$79:$B$114))+SUMPRODUCT((Planung!$BQ$79:$BQ$114=$B32)*(Planung!$BT$79:$BT$114)*(Planung!$B$79:$B$114)))/IF(F32=0,1,F32) -> 0 | AM32: =(SUMPRODUCT((Planung!$AS$151:$AS$185=$B32)*(Planung!$AV$151:$AV$185)*(Planung!$B$151:$B$185))+SUMPRODUCT((Planung!$BA$151:$BA$185=$B32)*(Planung!$BD$151:$BD$185)*(Planung!$B$151:$B$185))+SUMPRODUCT((Planung!$BI$151:$BI$185=$B32)*(Planung!$BL$151:$BL$185)*(Planung!$B$151:$B$185))+SUMPRODUCT((Planung!$BQ$151:$BQ$185=$B32)*(Planung!$BT$151:$BT$185)*(Planung!$B$151:$B$185)))/IF(G32=0,1,G32) -> 0 | AN32: =(SUMPRODUCT((Planung!$AS$223:$AS$255=$B32)*(Planung!$AV$223:$AV$255)*(Planung!$B$223:$B$255))+SUMPRODUCT((Planung!$BA$223:$BA$255=$B32)*(Planung!$BD$223:$BD$255)*(Planung!$B$223:$B$255))+SUMPRODUCT((Planung!$BI$223:$BI$255=$B32)*(Planung!$BL$223:$BL$255)*(Planung!$B$223:$B$255))+SUMPRODUCT((Planung!$BQ$223:$BQ$255=$B32)*(Planung!$BT$223:$BT$255)*(Planung!$B$223:$B$255)))/IF(G32=0,1,G32) -> 0 | AO32: =(SUMPRODUCT((Planung!$AS$293:$AS$326=$B32)*(Planung!$AV$293:$AV$326)*(Planung!$B$293:$B$326))+SUMPRODUCT((Planung!$BA$293:$BA$326=$B32)*(Planung!$BD$293:$BD$326)*(Planung!$B$293:$B$326))+SUMPRODUCT((Planung!$BI$293:$BI$326=$B32)*(Planung!$BL$293:$BL$326)*(Planung!$B$293:$B$326))+SUMPRODUCT((Planung!$BQ$293:$BQ$326=$B32)*(Planung!$BT$293:$BT$326)*(Planung!$B$293:$B$326)))/IF(G32=0,1,G32) -> 0 | AP32: =(SUMPRODUCT((Planung!$AS$364:$AS$384=$B32)*(Planung!$AV$364:$AV$384)*(Planung!$B$364:$B$384))+SUMPRODUCT((Planung!$BA$364:$BA$384=$B32)*(Planung!$BD$364:$BD$384)*(Planung!$B$364:$B$384))+SUMPRODUCT((Planung!$BI$364:$BI$384=$B32)*(Planung!$BL$364:$BL$384)*(Planung!$B$364:$B$384))+SUMPRODUCT((Planung!$BQ$364:$BQ$384=$B32)*(Planung!$BT$364:$BT$384)*(Planung!$B$364:$B$384)))/IF(G32=0,1,G32) -> 0
B33: 11317 | C33: *Maisgebiss 8-reihig | D33: ha | E33: 1 | F33: 1 | G33: 1 | H33: 1 | I33: 1 | J33: 1 | K33: 10 | O33: 0 | P33: 0 | Q33: 10 | R33: 65000 | S33: 13000 | U33: 8 | V33: 2500 | W33: 6500 | X33: 312.5 | Y33: 0 | Z33: 0 | AA33: 0 | AB33: 0 | AC33: 0 | AD33: 0 | AE33: 10 | AG33: 250 | AH33: 0.8 | AJ33: 0 | AK33: =(SUMPRODUCT((Planung!$AS$8:$AS$42=$B33)*(Planung!$AV$8:$AV$42)*(Planung!$B$8:$B$42))+SUMPRODUCT((Planung!$BA$8:$BA$42=$B33)*(Planung!$BD$8:$BD$42)*(Planung!$B$8:$B$42))+SUMPRODUCT((Planung!$BI$8:$BI$42=$B33)*(Planung!$BL$8:$BL$42)*(Planung!$B$8:$B$42))+SUMPRODUCT((Planung!$BQ$8:$BQ$42=$B33)*(Planung!$BT$8:$BT$42)*(Planung!$B$8:$B$42)))/IF(E33=0,1,E33) -> 0 | AL33: =(SUMPRODUCT((Planung!$AS$79:$AS$114=$B33)*(Planung!$AV$79:$AV$114)*(Planung!$B$79:$B$114))+SUMPRODUCT((Planung!$BA$79:$BA$114=$B33)*(Planung!$BD$79:$BD$114)*(Planung!$B$79:$B$114))+SUMPRODUCT((Planung!$BI$79:$BI$114=$B33)*(Planung!$BL$79:$BL$114)*(Planung!$B$79:$B$114))+SUMPRODUCT((Planung!$BQ$79:$BQ$114=$B33)*(Planung!$BT$79:$BT$114)*(Planung!$B$79:$B$114)))/IF(F33=0,1,F33) -> 0 | AM33: =(SUMPRODUCT((Planung!$AS$151:$AS$185=$B33)*(Planung!$AV$151:$AV$185)*(Planung!$B$151:$B$185))+SUMPRODUCT((Planung!$BA$151:$BA$185=$B33)*(Planung!$BD$151:$BD$185)*(Planung!$B$151:$B$185))+SUMPRODUCT((Planung!$BI$151:$BI$185=$B33)*(Planung!$BL$151:$BL$185)*(Planung!$B$151:$B$185))+SUMPRODUCT((Planung!$BQ$151:$BQ$185=$B33)*(Planung!$BT$151:$BT$185)*(Planung!$B$151:$B$185)))/IF(G33=0,1,G33) -> 0 | AN33: =(SUMPRODUCT((Planung!$AS$223:$AS$255=$B33)*(Planung!$AV$223:$AV$255)*(Planung!$B$223:$B$255))+SUMPRODUCT((Planung!$BA$223:$BA$255=$B33)*(Planung!$BD$223:$BD$255)*(Planung!$B$223:$B$255))+SUMPRODUCT((Planung!$BI$223:$BI$255=$B33)*(Planung!$BL$223:$BL$255)*(Planung!$B$223:$B$255))+SUMPRODUCT((Planung!$BQ$223:$BQ$255=$B33)*(Planung!$BT$223:$BT$255)*(Planung!$B$223:$B$255)))/IF(G33=0,1,G33) -> 0 | AO33: =(SUMPRODUCT((Planung!$AS$293:$AS$326=$B33)*(Planung!$AV$293:$AV$326)*(Planung!$B$293:$B$326))+SUMPRODUCT((Planung!$BA$293:$BA$326=$B33)*(Planung!$BD$293:$BD$326)*(Planung!$B$293:$B$326))+SUMPRODUCT((Planung!$BI$293:$BI$326=$B33)*(Planung!$BL$293:$BL$326)*(Planung!$B$293:$B$326))+SUMPRODUCT((Planung!$BQ$293:$BQ$326=$B33)*(Planung!$BT$293:$BT$326)*(Planung!$B$293:$B$326)))/IF(G33=0,1,G33) -> 0 | AP33: =(SUMPRODUCT((Planung!$AS$364:$AS$384=$B33)*(Planung!$AV$364:$AV$384)*(Planung!$B$364:$B$384))+SUMPRODUCT((Planung!$BA$364:$BA$384=$B33)*(Planung!$BD$364:$BD$384)*(Planung!$B$364:$B$384))+SUMPRODUCT((Planung!$BI$364:$BI$384=$B33)*(Planung!$BL$364:$BL$384)*(Planung!$B$364:$B$384))+SUMPRODUCT((Planung!$BQ$364:$BQ$384=$B33)*(Planung!$BT$364:$BT$384)*(Planung!$B$364:$B$384)))/IF(G33=0,1,G33) -> 0
B34: 11318 | C34: *Maisgebiss 6-reihig | D34: ha | E34: 1 | F34: 1 | G34: 1 | H34: 1 | I34: 1 | J34: 1 | K34: 10 | O34: 0 | P34: 0 | Q34: 10 | R34: 50000 | S34: 10000 | U34: 8 | V34: 1900 | W34: 5000 | X34: 237.5 | Y34: 0 | Z34: 0 | AA34: 0 | AB34: 0 | AC34: 0 | AD34: 0 | AE34: 10 | AG34: 190 | AH34: 0.8 | AJ34: 0 | AK34: =(SUMPRODUCT((Planung!$AS$8:$AS$42=$B34)*(Planung!$AV$8:$AV$42)*(Planung!$B$8:$B$42))+SUMPRODUCT((Planung!$BA$8:$BA$42=$B34)*(Planung!$BD$8:$BD$42)*(Planung!$B$8:$B$42))+SUMPRODUCT((Planung!$BI$8:$BI$42=$B34)*(Planung!$BL$8:$BL$42)*(Planung!$B$8:$B$42))+SUMPRODUCT((Planung!$BQ$8:$BQ$42=$B34)*(Planung!$BT$8:$BT$42)*(Planung!$B$8:$B$42)))/IF(E34=0,1,E34) -> 0 | AL34: =(SUMPRODUCT((Planung!$AS$79:$AS$114=$B34)*(Planung!$AV$79:$AV$114)*(Planung!$B$79:$B$114))+SUMPRODUCT((Planung!$BA$79:$BA$114=$B34)*(Planung!$BD$79:$BD$114)*(Planung!$B$79:$B$114))+SUMPRODUCT((Planung!$BI$79:$BI$114=$B34)*(Planung!$BL$79:$BL$114)*(Planung!$B$79:$B$114))+SUMPRODUCT((Planung!$BQ$79:$BQ$114=$B34)*(Planung!$BT$79:$BT$114)*(Planung!$B$79:$B$114)))/IF(F34=0,1,F34) -> 0 | AM34: =(SUMPRODUCT((Planung!$AS$151:$AS$185=$B34)*(Planung!$AV$151:$AV$185)*(Planung!$B$151:$B$185))+SUMPRODUCT((Planung!$BA$151:$BA$185=$B34)*(Planung!$BD$151:$BD$185)*(Planung!$B$151:$B$185))+SUMPRODUCT((Planung!$BI$151:$BI$185=$B34)*(Planung!$BL$151:$BL$185)*(Planung!$B$151:$B$185))+SUMPRODUCT((Planung!$BQ$151:$BQ$185=$B34)*(Planung!$BT$151:$BT$185)*(Planung!$B$151:$B$185)))/IF(G34=0,1,G34) -> 0 | AN34: =(SUMPRODUCT((Planung!$AS$223:$AS$255=$B34)*(Planung!$AV$223:$AV$255)*(Planung!$B$223:$B$255))+SUMPRODUCT((Planung!$BA$223:$BA$255=$B34)*(Planung!$BD$223:$BD$255)*(Planung!$B$223:$B$255))+SUMPRODUCT((Planung!$BI$223:$BI$255=$B34)*(Planung!$BL$223:$BL$255)*(Planung!$B$223:$B$255))+SUMPRODUCT((Planung!$BQ$223:$BQ$255=$B34)*(Planung!$BT$223:$BT$255)*(Planung!$B$223:$B$255)))/IF(G34=0,1,G34) -> 0 | AO34: =(SUMPRODUCT((Planung!$AS$293:$AS$326=$B34)*(Planung!$AV$293:$AV$326)*(Planung!$B$293:$B$326))+SUMPRODUCT((Planung!$BA$293:$BA$326=$B34)*(Planung!$BD$293:$BD$326)*(Planung!$B$293:$B$326))+SUMPRODUCT((Planung!$BI$293:$BI$326=$B34)*(Planung!$BL$293:$BL$326)*(Planung!$B$293:$B$326))+SUMPRODUCT((Planung!$BQ$293:$BQ$326=$B34)*(Planung!$BT$293:$BT$326)*(Planung!$B$293:$B$326)))/IF(G34=0,1,G34) -> 0 | AP34: =(SUMPRODUCT((Planung!$AS$364:$AS$384=$B34)*(Planung!$AV$364:$AV$384)*(Planung!$B$364:$B$384))+SUMPRODUCT((Planung!$BA$364:$BA$384=$B34)*(Planung!$BD$364:$BD$384)*(Planung!$B$364:$B$384))+SUMPRODUCT((Planung!$BI$364:$BI$384=$B34)*(Planung!$BL$364:$BL$384)*(Planung!$B$364:$B$384))+SUMPRODUCT((Planung!$BQ$364:$BQ$384=$B34)*(Planung!$BT$364:$BT$384)*(Planung!$B$364:$B$384)))/IF(G34=0,1,G34) -> 0
B35: 11323 | C35: *Pickup 3m | D35: h | E35: 1 | F35: 1 | G35: 1 | H35: 1 | I35: 1 | J35: 1 | K35: 2 | O35: 0 | P35: =N35*AnteilOel*PreisOel -> 0 | Q35: 2 | R35: 18500 | S35: 3700 | U35: 8 | V35: 2000 | W35: =IF(U35=0,0,(R35-S35)/U35) -> 1850 | X35: 250 | Y35: 0 | Z35: =IF(X35=0,0,Y35/X35) -> 0 | AA35: =IF(OR(U35=0,X35=0,Z35=0),0,IF(Z35>1,(R35-S35)/V35,((R35-S35)/U35)/Y35)) -> 0 | AB35: 0 | AC35: 0 | AD35: =SUM(AA35:AC35) -> 0 | AE35: 2 | AG35: =$X35*AH35 -> 200 | AH35: 0.8 | AJ35: 0 | AK35: =(SUMPRODUCT((Planung!$AS$8:$AS$42=$B35)*(Planung!$AV$8:$AV$42)*(Planung!$B$8:$B$42))+SUMPRODUCT((Planung!$BA$8:$BA$42=$B35)*(Planung!$BD$8:$BD$42)*(Planung!$B$8:$B$42))+SUMPRODUCT((Planung!$BI$8:$BI$42=$B35)*(Planung!$BL$8:$BL$42)*(Planung!$B$8:$B$42))+SUMPRODUCT((Planung!$BQ$8:$BQ$42=$B35)*(Planung!$BT$8:$BT$42)*(Planung!$B$8:$B$42)))/IF(E35=0,1,E35) -> 0 | AL35: =(SUMPRODUCT((Planung!$AS$79:$AS$114=$B35)*(Planung!$AV$79:$AV$114)*(Planung!$B$79:$B$114))+SUMPRODUCT((Planung!$BA$79:$BA$114=$B35)*(Planung!$BD$79:$BD$114)*(Planung!$B$79:$B$114))+SUMPRODUCT((Planung!$BI$79:$BI$114=$B35)*(Planung!$BL$79:$BL$114)*(Planung!$B$79:$B$114))+SUMPRODUCT((Planung!$BQ$79:$BQ$114=$B35)*(Planung!$BT$79:$BT$114)*(Planung!$B$79:$B$114)))/IF(F35=0,1,F35) -> 0 | AM35: =(SUMPRODUCT((Planung!$AS$151:$AS$185=$B35)*(Planung!$AV$151:$AV$185)*(Planung!$B$151:$B$185))+SUMPRODUCT((Planung!$BA$151:$BA$185=$B35)*(Planung!$BD$151:$BD$185)*(Planung!$B$151:$B$185))+SUMPRODUCT((Planung!$BI$151:$BI$185=$B35)*(Planung!$BL$151:$BL$185)*(Planung!$B$151:$B$185))+SUMPRODUCT((Planung!$BQ$151:$BQ$185=$B35)*(Planung!$BT$151:$BT$185)*(Planung!$B$151:$B$185)))/IF(G35=0,1,G35) -> 0 | AN35: =(SUMPRODUCT((Planung!$AS$223:$AS$255=$B35)*(Planung!$AV$223:$AV$255)*(Planung!$B$223:$B$255))+SUMPRODUCT((Planung!$BA$223:$BA$255=$B35)*(Planung!$BD$223:$BD$255)*(Planung!$B$223:$B$255))+SUMPRODUCT((Planung!$BI$223:$BI$255=$B35)*(Planung!$BL$223:$BL$255)*(Planung!$B$223:$B$255))+SUMPRODUCT((Planung!$BQ$223:$BQ$255=$B35)*(Planung!$BT$223:$BT$255)*(Planung!$B$223:$B$255)))/IF(G35=0,1,G35) -> 0 | AO35: =(SUMPRODUCT((Planung!$AS$293:$AS$326=$B35)*(Planung!$AV$293:$AV$326)*(Planung!$B$293:$B$326))+SUMPRODUCT((Planung!$BA$293:$BA$326=$B35)*(Planung!$BD$293:$BD$326)*(Planung!$B$293:$B$326))+SUMPRODUCT((Planung!$BI$293:$BI$326=$B35)*(Planung!$BL$293:$BL$326)*(Planung!$B$293:$B$326))+SUMPRODUCT((Planung!$BQ$293:$BQ$326=$B35)*(Planung!$BT$293:$BT$326)*(Planung!$B$293:$B$326)))/IF(G35=0,1,G35) -> 0 | AP35: =(SUMPRODUCT((Planung!$AS$364:$AS$384=$B35)*(Planung!$AV$364:$AV$384)*(Planung!$B$364:$B$384))+SUMPRODUCT((Planung!$BA$364:$BA$384=$B35)*(Planung!$BD$364:$BD$384)*(Planung!$B$364:$B$384))+SUMPRODUCT((Planung!$BI$364:$BI$384=$B35)*(Planung!$BL$364:$BL$384)*(Planung!$B$364:$B$384))+SUMPRODUCT((Planung!$BQ$364:$BQ$384=$B35)*(Planung!$BT$364:$BT$384)*(Planung!$B$364:$B$384)))/IF(G35=0,1,G35) -> 0
B36: 11322 | O36: 0 | P36: =N36*AnteilOel*PreisOel -> 0 | Q36: 0 | W36: =IF(U36=0,0,(R36-S36)/U36) -> 0 | X36: 0 | Y36: 0 | Z36: =IF(X36=0,0,Y36/X36) -> 0 | AA36: =IF(OR(U36=0,X36=0,Z36=0),0,IF(Z36>1,(R36-S36)/V36,((R36-S36)/U36)/Y36)) -> 0 | AB36: 0 | AC36: 0 | AD36: =SUM(AA36:AC36) -> 0 | AE36: 0 | AG36: =$X36*AH36 -> 0 | AH36: 0 | AJ36: 0 | AK36: =(SUMPRODUCT((Planung!$AS$8:$AS$42=$B36)*(Planung!$AV$8:$AV$42)*(Planung!$B$8:$B$42))+SUMPRODUCT((Planung!$BA$8:$BA$42=$B36)*(Planung!$BD$8:$BD$42)*(Planung!$B$8:$B$42))+SUMPRODUCT((Planung!$BI$8:$BI$42=$B36)*(Planung!$BL$8:$BL$42)*(Planung!$B$8:$B$42))+SUMPRODUCT((Planung!$BQ$8:$BQ$42=$B36)*(Planung!$BT$8:$BT$42)*(Planung!$B$8:$B$42)))/IF(E36=0,1,E36) -> 0 | AL36: =(SUMPRODUCT((Planung!$AS$79:$AS$114=$B36)*(Planung!$AV$79:$AV$114)*(Planung!$B$79:$B$114))+SUMPRODUCT((Planung!$BA$79:$BA$114=$B36)*(Planung!$BD$79:$BD$114)*(Planung!$B$79:$B$114))+SUMPRODUCT((Planung!$BI$79:$BI$114=$B36)*(Planung!$BL$79:$BL$114)*(Planung!$B$79:$B$114))+SUMPRODUCT((Planung!$BQ$79:$BQ$114=$B36)*(Planung!$BT$79:$BT$114)*(Planung!$B$79:$B$114)))/IF(F36=0,1,F36) -> 0 | AM36: =(SUMPRODUCT((Planung!$AS$151:$AS$185=$B36)*(Planung!$AV$151:$AV$185)*(Planung!$B$151:$B$185))+SUMPRODUCT((Planung!$BA$151:$BA$185=$B36)*(Planung!$BD$151:$BD$185)*(Planung!$B$151:$B$185))+SUMPRODUCT((Planung!$BI$151:$BI$185=$B36)*(Planung!$BL$151:$BL$185)*(Planung!$B$151:$B$185))+SUMPRODUCT((Planung!$BQ$151:$BQ$185=$B36)*(Planung!$BT$151:$BT$185)*(Planung!$B$151:$B$185)))/IF(G36=0,1,G36) -> 0 | AN36: =(SUMPRODUCT((Planung!$AS$223:$AS$255=$B36)*(Planung!$AV$223:$AV$255)*(Planung!$B$223:$B$255))+SUMPRODUCT((Planung!$BA$223:$BA$255=$B36)*(Planung!$BD$223:$BD$255)*(Planung!$B$223:$B$255))+SUMPRODUCT((Planung!$BI$223:$BI$255=$B36)*(Planung!$BL$223:$BL$255)*(Planung!$B$223:$B$255))+SUMPRODUCT((Planung!$BQ$223:$BQ$255=$B36)*(Planung!$BT$223:$BT$255)*(Planung!$B$223:$B$255)))/IF(G36=0,1,G36) -> 0 | AO36: =(SUMPRODUCT((Planung!$AS$293:$AS$326=$B36)*(Planung!$AV$293:$AV$326)*(Planung!$B$293:$B$326))+SUMPRODUCT((Planung!$BA$293:$BA$326=$B36)*(Planung!$BD$293:$BD$326)*(Planung!$B$293:$B$326))+SUMPRODUCT((Planung!$BI$293:$BI$326=$B36)*(Planung!$BL$293:$BL$326)*(Planung!$B$293:$B$326))+SUMPRODUCT((Planung!$BQ$293:$BQ$326=$B36)*(Planung!$BT$293:$BT$326)*(Planung!$B$293:$B$326)))/IF(G36=0,1,G36) -> 0 | AP36: =(SUMPRODUCT((Planung!$AS$364:$AS$384=$B36)*(Planung!$AV$364:$AV$384)*(Planung!$B$364:$B$384))+SUMPRODUCT((Planung!$BA$364:$BA$384=$B36)*(Planung!$BD$364:$BD$384)*(Planung!$B$364:$B$384))+SUMPRODUCT((Planung!$BI$364:$BI$384=$B36)*(Planung!$BL$364:$BL$384)*(Planung!$B$364:$B$384))+SUMPRODUCT((Planung!$BQ$364:$BQ$384=$B36)*(Planung!$BT$364:$BT$384)*(Planung!$B$364:$B$384)))/IF(G36=0,1,G36) -> 0
B37: 11319 | C37: *LKW (Sattelschlepper) | D37: h | E37: 2 | F37: 2 | G37: 2 | H37: 2 | I37: 2 | J37: 2 | K37: 7 | O37: 0 | P37: 0 | Q37: 7 | R37: 60000 | S37: 12000 | U37: 10 | V37: 10000 | W37: 4800 | X37: 1000 | Y37: =INDEX(AG37:AP37,AuslastSel) -> 0 | Z37: 0 | AA37: 0 | AB37: =IF(OR(X37=0,Z37=0),0,((R37+S37)/2*Interest)/Y37) -> 0 | AC37: 0 | AD37: 0 | AE37: 7 | AG37: 800 | AH37: 0.8 | AJ37: 0 | AK37: =(SUMPRODUCT((Planung!$AS$8:$AS$42=$B37)*(Planung!$AV$8:$AV$42)*(Planung!$B$8:$B$42))+SUMPRODUCT((Planung!$BA$8:$BA$42=$B37)*(Planung!$BD$8:$BD$42)*(Planung!$B$8:$B$42))+SUMPRODUCT((Planung!$BI$8:$BI$42=$B37)*(Planung!$BL$8:$BL$42)*(Planung!$B$8:$B$42))+SUMPRODUCT((Planung!$BQ$8:$BQ$42=$B37)*(Planung!$BT$8:$BT$42)*(Planung!$B$8:$B$42)))/IF(E37=0,1,E37) -> 0 | AL37: =(SUMPRODUCT((Planung!$AS$79:$AS$114=$B37)*(Planung!$AV$79:$AV$114)*(Planung!$B$79:$B$114))+SUMPRODUCT((Planung!$BA$79:$BA$114=$B37)*(Planung!$BD$79:$BD$114)*(Planung!$B$79:$B$114))+SUMPRODUCT((Planung!$BI$79:$BI$114=$B37)*(Planung!$BL$79:$BL$114)*(Planung!$B$79:$B$114))+SUMPRODUCT((Planung!$BQ$79:$BQ$114=$B37)*(Planung!$BT$79:$BT$114)*(Planung!$B$79:$B$114)))/IF(F37=0,1,F37) -> 0 | AM37: =(SUMPRODUCT((Planung!$AS$151:$AS$185=$B37)*(Planung!$AV$151:$AV$185)*(Planung!$B$151:$B$185))+SUMPRODUCT((Planung!$BA$151:$BA$185=$B37)*(Planung!$BD$151:$BD$185)*(Planung!$B$151:$B$185))+SUMPRODUCT((Planung!$BI$151:$BI$185=$B37)*(Planung!$BL$151:$BL$185)*(Planung!$B$151:$B$185))+SUMPRODUCT((Planung!$BQ$151:$BQ$185=$B37)*(Planung!$BT$151:$BT$185)*(Planung!$B$151:$B$185)))/IF(G37=0,1,G37) -> 0 | AN37: =(SUMPRODUCT((Planung!$AS$223:$AS$255=$B37)*(Planung!$AV$223:$AV$255)*(Planung!$B$223:$B$255))+SUMPRODUCT((Planung!$BA$223:$BA$255=$B37)*(Planung!$BD$223:$BD$255)*(Planung!$B$223:$B$255))+SUMPRODUCT((Planung!$BI$223:$BI$255=$B37)*(Planung!$BL$223:$BL$255)*(Planung!$B$223:$B$255))+SUMPRODUCT((Planung!$BQ$223:$BQ$255=$B37)*(Planung!$BT$223:$BT$255)*(Planung!$B$223:$B$255)))/IF(G37=0,1,G37) -> 0 | AO37: =(SUMPRODUCT((Planung!$AS$293:$AS$326=$B37)*(Planung!$AV$293:$AV$326)*(Planung!$B$293:$B$326))+SUMPRODUCT((Planung!$BA$293:$BA$326=$B37)*(Planung!$BD$293:$BD$326)*(Planung!$B$293:$B$326))+SUMPRODUCT((Planung!$BI$293:$BI$326=$B37)*(Planung!$BL$293:$BL$326)*(Planung!$B$293:$B$326))+SUMPRODUCT((Planung!$BQ$293:$BQ$326=$B37)*(Planung!$BT$293:$BT$326)*(Planung!$B$293:$B$326)))/IF(G37=0,1,G37) -> 0 | AP37: =(SUMPRODUCT((Planung!$AS$364:$AS$384=$B37)*(Planung!$AV$364:$AV$384)*(Planung!$B$364:$B$384))+SUMPRODUCT((Planung!$BA$364:$BA$384=$B37)*(Planung!$BD$364:$BD$384)*(Planung!$B$364:$B$384))+SUMPRODUCT((Planung!$BI$364:$BI$384=$B37)*(Planung!$BL$364:$BL$384)*(Planung!$B$364:$B$384))+SUMPRODUCT((Planung!$BQ$364:$BQ$384=$B37)*(Planung!$BT$364:$BT$384)*(Planung!$B$364:$B$384)))/IF(G37=0,1,G37) -> 0 | AR37: =10*16 -> 160 | AS37: =10*16 -> 160 | AT37: 160 | AU37: 160 | AV37: 160 | AW37: 160 | AX37: 160 | AY37: 160 | AZ37: 160 | BA37: 160 | BB37: 160 | BC37: 160 | BD37: 160 | BE37: 160 | BF37: 160 | BG37: 160 | BH37: 160 | BI37: 160 | BJ37: 160 | BK37: 160 | BL37: 160 | BM37: 160 | BN37: 160 | BO37: 160
B38: 11328 | O38: 0 | P38: =N38*AnteilOel*PreisOel -> 0 | Q38: 0 | W38: =IF(U38=0,0,(R38-S38)/U38) -> 0 | X38: =IF(U38=0,0,V38/U38) -> 0 | Y38: 0 | Z38: =IF(X38=0,0,Y38/X38) -> 0 | AA38: =IF(OR(U38=0,X38=0,Z38=0),0,IF(Z38>1,(R38-S38)/V38,((R38-S38)/U38)/Y38)) -> 0 | AB38: 0 | AC38: =IF(Y38=0,0,T38/Y38) -> 0 | AD38: =SUM(AA38:AC38) -> 0 | AE38: =AD38+Q38 -> 0 | AG38: =$X38*AH38 -> 0 | AH38: 0 | AJ38: 0 | AK38: =(SUMPRODUCT((Planung!$AS$8:$AS$42=$B38)*(Planung!$AV$8:$AV$42)*(Planung!$B$8:$B$42))+SUMPRODUCT((Planung!$BA$8:$BA$42=$B38)*(Planung!$BD$8:$BD$42)*(Planung!$B$8:$B$42))+SUMPRODUCT((Planung!$BI$8:$BI$42=$B38)*(Planung!$BL$8:$BL$42)*(Planung!$B$8:$B$42))+SUMPRODUCT((Planung!$BQ$8:$BQ$42=$B38)*(Planung!$BT$8:$BT$42)*(Planung!$B$8:$B$42)))/IF(E38=0,1,E38) -> 0 | AL38: =(SUMPRODUCT((Planung!$AS$79:$AS$114=$B38)*(Planung!$AV$79:$AV$114)*(Planung!$B$79:$B$114))+SUMPRODUCT((Planung!$BA$79:$BA$114=$B38)*(Planung!$BD$79:$BD$114)*(Planung!$B$79:$B$114))+SUMPRODUCT((Planung!$BI$79:$BI$114=$B38)*(Planung!$BL$79:$BL$114)*(Planung!$B$79:$B$114))+SUMPRODUCT((Planung!$BQ$79:$BQ$114=$B38)*(Planung!$BT$79:$BT$114)*(Planung!$B$79:$B$114)))/IF(F38=0,1,F38) -> 0 | AM38: =(SUMPRODUCT((Planung!$AS$151:$AS$185=$B38)*(Planung!$AV$151:$AV$185)*(Planung!$B$151:$B$185))+SUMPRODUCT((Planung!$BA$151:$BA$185=$B38)*(Planung!$BD$151:$BD$185)*(Planung!$B$151:$B$185))+SUMPRODUCT((Planung!$BI$151:$BI$185=$B38)*(Planung!$BL$151:$BL$185)*(Planung!$B$151:$B$185))+SUMPRODUCT((Planung!$BQ$151:$BQ$185=$B38)*(Planung!$BT$151:$BT$185)*(Planung!$B$151:$B$185)))/IF(G38=0,1,G38) -> 0 | AN38: =(SUMPRODUCT((Planung!$AS$223:$AS$255=$B38)*(Planung!$AV$223:$AV$255)*(Planung!$B$223:$B$255))+SUMPRODUCT((Planung!$BA$223:$BA$255=$B38)*(Planung!$BD$223:$BD$255)*(Planung!$B$223:$B$255))+SUMPRODUCT((Planung!$BI$223:$BI$255=$B38)*(Planung!$BL$223:$BL$255)*(Planung!$B$223:$B$255))+SUMPRODUCT((Planung!$BQ$223:$BQ$255=$B38)*(Planung!$BT$223:$BT$255)*(Planung!$B$223:$B$255)))/IF(G38=0,1,G38) -> 0 | AO38: =(SUMPRODUCT((Planung!$AS$293:$AS$326=$B38)*(Planung!$AV$293:$AV$326)*(Planung!$B$293:$B$326))+SUMPRODUCT((Planung!$BA$293:$BA$326=$B38)*(Planung!$BD$293:$BD$326)*(Planung!$B$293:$B$326))+SUMPRODUCT((Planung!$BI$293:$BI$326=$B38)*(Planung!$BL$293:$BL$326)*(Planung!$B$293:$B$326))+SUMPRODUCT((Planung!$BQ$293:$BQ$326=$B38)*(Planung!$BT$293:$BT$326)*(Planung!$B$293:$B$326)))/IF(G38=0,1,G38) -> 0 | AP38: =(SUMPRODUCT((Planung!$AS$364:$AS$384=$B38)*(Planung!$AV$364:$AV$384)*(Planung!$B$364:$B$384))+SUMPRODUCT((Planung!$BA$364:$BA$384=$B38)*(Planung!$BD$364:$BD$384)*(Planung!$B$364:$B$384))+SUMPRODUCT((Planung!$BI$364:$BI$384=$B38)*(Planung!$BL$364:$BL$384)*(Planung!$B$364:$B$384))+SUMPRODUCT((Planung!$BQ$364:$BQ$384=$B38)*(Planung!$BT$364:$BT$384)*(Planung!$B$364:$B$384)))/IF(G38=0,1,G38) -> 0
B39: 11321 | O39: 0 | P39: 0 | Q39: 0 | S39: =R39*0.2 -> 0 | W39: 0 | X39: 0 | Y39: 0 | Z39: 0 | AA39: 0 | AB39: 0 | AC39: 0 | AD39: 0 | AE39: 0 | AG39: 0 | AH39: 0 | AJ39: 0 | AK39: =(SUMPRODUCT((Planung!$AS$8:$AS$42=$B39)*(Planung!$AV$8:$AV$42)*(Planung!$B$8:$B$42))+SUMPRODUCT((Planung!$BA$8:$BA$42=$B39)*(Planung!$BD$8:$BD$42)*(Planung!$B$8:$B$42))+SUMPRODUCT((Planung!$BI$8:$BI$42=$B39)*(Planung!$BL$8:$BL$42)*(Planung!$B$8:$B$42))+SUMPRODUCT((Planung!$BQ$8:$BQ$42=$B39)*(Planung!$BT$8:$BT$42)*(Planung!$B$8:$B$42)))/IF(E39=0,1,E39) -> 0 | AL39: =(SUMPRODUCT((Planung!$AS$79:$AS$114=$B39)*(Planung!$AV$79:$AV$114)*(Planung!$B$79:$B$114))+SUMPRODUCT((Planung!$BA$79:$BA$114=$B39)*(Planung!$BD$79:$BD$114)*(Planung!$B$79:$B$114))+SUMPRODUCT((Planung!$BI$79:$BI$114=$B39)*(Planung!$BL$79:$BL$114)*(Planung!$B$79:$B$114))+SUMPRODUCT((Planung!$BQ$79:$BQ$114=$B39)*(Planung!$BT$79:$BT$114)*(Planung!$B$79:$B$114)))/IF(F39=0,1,F39) -> 0 | AM39: =(SUMPRODUCT((Planung!$AS$151:$AS$185=$B39)*(Planung!$AV$151:$AV$185)*(Planung!$B$151:$B$185))+SUMPRODUCT((Planung!$BA$151:$BA$185=$B39)*(Planung!$BD$151:$BD$185)*(Planung!$B$151:$B$185))+SUMPRODUCT((Planung!$BI$151:$BI$185=$B39)*(Planung!$BL$151:$BL$185)*(Planung!$B$151:$B$185))+SUMPRODUCT((Planung!$BQ$151:$BQ$185=$B39)*(Planung!$BT$151:$BT$185)*(Planung!$B$151:$B$185)))/IF(G39=0,1,G39) -> 0 | AN39: =(SUMPRODUCT((Planung!$AS$223:$AS$255=$B39)*(Planung!$AV$223:$AV$255)*(Planung!$B$223:$B$255))+SUMPRODUCT((Planung!$BA$223:$BA$255=$B39)*(Planung!$BD$223:$BD$255)*(Planung!$B$223:$B$255))+SUMPRODUCT((Planung!$BI$223:$BI$255=$B39)*(Planung!$BL$223:$BL$255)*(Planung!$B$223:$B$255))+SUMPRODUCT((Planung!$BQ$223:$BQ$255=$B39)*(Planung!$BT$223:$BT$255)*(Planung!$B$223:$B$255)))/IF(G39=0,1,G39) -> 0 | AO39: =(SUMPRODUCT((Planung!$AS$293:$AS$326=$B39)*(Planung!$AV$293:$AV$326)*(Planung!$B$293:$B$326))+SUMPRODUCT((Planung!$BA$293:$BA$326=$B39)*(Planung!$BD$293:$BD$326)*(Planung!$B$293:$B$326))+SUMPRODUCT((Planung!$BI$293:$BI$326=$B39)*(Planung!$BL$293:$BL$326)*(Planung!$B$293:$B$326))+SUMPRODUCT((Planung!$BQ$293:$BQ$326=$B39)*(Planung!$BT$293:$BT$326)*(Planung!$B$293:$B$326)))/IF(G39=0,1,G39) -> 0 | AP39: =(SUMPRODUCT((Planung!$AS$364:$AS$384=$B39)*(Planung!$AV$364:$AV$384)*(Planung!$B$364:$B$384))+SUMPRODUCT((Planung!$BA$364:$BA$384=$B39)*(Planung!$BD$364:$BD$384)*(Planung!$B$364:$B$384))+SUMPRODUCT((Planung!$BI$364:$BI$384=$B39)*(Planung!$BL$364:$BL$384)*(Planung!$B$364:$B$384))+SUMPRODUCT((Planung!$BQ$364:$BQ$384=$B39)*(Planung!$BT$364:$BT$384)*(Planung!$B$364:$B$384)))/IF(G39=0,1,G39) -> 0
C40: TRANSPORT, UMSCHLAG | O40: 0 | P40: 0 | Q40: 0 | S40: =R40*0.2 -> 0 | W40: 0 | X40: 0 | Y40: 0 | Z40: 0 | AA40: 0 | AB40: 0 | AC40: 0 | AD40: 0 | AE40: 0 | AG40: 0 | AH40: 0 | AJ40: 0 | AK40: =(SUMPRODUCT((Planung!$AS$8:$AS$42=$B40)*(Planung!$AV$8:$AV$42)*(Planung!$B$8:$B$42))+SUMPRODUCT((Planung!$BA$8:$BA$42=$B40)*(Planung!$BD$8:$BD$42)*(Planung!$B$8:$B$42))+SUMPRODUCT((Planung!$BI$8:$BI$42=$B40)*(Planung!$BL$8:$BL$42)*(Planung!$B$8:$B$42))+SUMPRODUCT((Planung!$BQ$8:$BQ$42=$B40)*(Planung!$BT$8:$BT$42)*(Planung!$B$8:$B$42)))/IF(E40=0,1,E40) -> 0 | AL40: =(SUMPRODUCT((Planung!$AS$79:$AS$114=$B40)*(Planung!$AV$79:$AV$114)*(Planung!$B$79:$B$114))+SUMPRODUCT((Planung!$BA$79:$BA$114=$B40)*(Planung!$BD$79:$BD$114)*(Planung!$B$79:$B$114))+SUMPRODUCT((Planung!$BI$79:$BI$114=$B40)*(Planung!$BL$79:$BL$114)*(Planung!$B$79:$B$114))+SUMPRODUCT((Planung!$BQ$79:$BQ$114=$B40)*(Planung!$BT$79:$BT$114)*(Planung!$B$79:$B$114)))/IF(F40=0,1,F40) -> 0 | AM40: =(SUMPRODUCT((Planung!$AS$151:$AS$185=$B40)*(Planung!$AV$151:$AV$185)*(Planung!$B$151:$B$185))+SUMPRODUCT((Planung!$BA$151:$BA$185=$B40)*(Planung!$BD$151:$BD$185)*(Planung!$B$151:$B$185))+SUMPRODUCT((Planung!$BI$151:$BI$185=$B40)*(Planung!$BL$151:$BL$185)*(Planung!$B$151:$B$185))+SUMPRODUCT((Planung!$BQ$151:$BQ$185=$B40)*(Planung!$BT$151:$BT$185)*(Planung!$B$151:$B$185)))/IF(G40=0,1,G40) -> 0 | AN40: =(SUMPRODUCT((Planung!$AS$223:$AS$255=$B40)*(Planung!$AV$223:$AV$255)*(Planung!$B$223:$B$255))+SUMPRODUCT((Planung!$BA$223:$BA$255=$B40)*(Planung!$BD$223:$BD$255)*(Planung!$B$223:$B$255))+SUMPRODUCT((Planung!$BI$223:$BI$255=$B40)*(Planung!$BL$223:$BL$255)*(Planung!$B$223:$B$255))+SUMPRODUCT((Planung!$BQ$223:$BQ$255=$B40)*(Planung!$BT$223:$BT$255)*(Planung!$B$223:$B$255)))/IF(G40=0,1,G40) -> 0 | AO40: =(SUMPRODUCT((Planung!$AS$293:$AS$326=$B40)*(Planung!$AV$293:$AV$326)*(Planung!$B$293:$B$326))+SUMPRODUCT((Planung!$BA$293:$BA$326=$B40)*(Planung!$BD$293:$BD$326)*(Planung!$B$293:$B$326))+SUMPRODUCT((Planung!$BI$293:$BI$326=$B40)*(Planung!$BL$293:$BL$326)*(Planung!$B$293:$B$326))+SUMPRODUCT((Planung!$BQ$293:$BQ$326=$B40)*(Planung!$BT$293:$BT$326)*(Planung!$B$293:$B$326)))/IF(G40=0,1,G40) -> 0 | AP40: =(SUMPRODUCT((Planung!$AS$364:$AS$384=$B40)*(Planung!$AV$364:$AV$384)*(Planung!$B$364:$B$384))+SUMPRODUCT((Planung!$BA$364:$BA$384=$B40)*(Planung!$BD$364:$BD$384)*(Planung!$B$364:$B$384))+SUMPRODUCT((Planung!$BI$364:$BI$384=$B40)*(Planung!$BL$364:$BL$384)*(Planung!$B$364:$B$384))+SUMPRODUCT((Planung!$BQ$364:$BQ$384=$B40)*(Planung!$BT$364:$BT$384)*(Planung!$B$364:$B$384)))/IF(G40=0,1,G40) -> 0
B41: 11411 | O41: 0 | P41: 0 | Q41: 0 | W41: 0 | X41: 0 | Y41: 0 | Z41: 0 | AA41: 0 | AB41: 0 | AC41: 0 | AD41: 0 | AE41: 0 | AG41: 0 | AH41: 0 | AJ41: 0 | AK41: =(SUMPRODUCT((Planung!$AS$8:$AS$42=$B41)*(Planung!$AV$8:$AV$42)*(Planung!$B$8:$B$42))+SUMPRODUCT((Planung!$BA$8:$BA$42=$B41)*(Planung!$BD$8:$BD$42)*(Planung!$B$8:$B$42))+SUMPRODUCT((Planung!$BI$8:$BI$42=$B41)*(Planung!$BL$8:$BL$42)*(Planung!$B$8:$B$42))+SUMPRODUCT((Planung!$BQ$8:$BQ$42=$B41)*(Planung!$BT$8:$BT$42)*(Planung!$B$8:$B$42)))/IF(E41=0,1,E41) -> 0 | AL41: =(SUMPRODUCT((Planung!$AS$79:$AS$114=$B41)*(Planung!$AV$79:$AV$114)*(Planung!$B$79:$B$114))+SUMPRODUCT((Planung!$BA$79:$BA$114=$B41)*(Planung!$BD$79:$BD$114)*(Planung!$B$79:$B$114))+SUMPRODUCT((Planung!$BI$79:$BI$114=$B41)*(Planung!$BL$79:$BL$114)*(Planung!$B$79:$B$114))+SUMPRODUCT((Planung!$BQ$79:$BQ$114=$B41)*(Planung!$BT$79:$BT$114)*(Planung!$B$79:$B$114)))/IF(F41=0,1,F41) -> 0 | AM41: =(SUMPRODUCT((Planung!$AS$151:$AS$185=$B41)*(Planung!$AV$151:$AV$185)*(Planung!$B$151:$B$185))+SUMPRODUCT((Planung!$BA$151:$BA$185=$B41)*(Planung!$BD$151:$BD$185)*(Planung!$B$151:$B$185))+SUMPRODUCT((Planung!$BI$151:$BI$185=$B41)*(Planung!$BL$151:$BL$185)*(Planung!$B$151:$B$185))+SUMPRODUCT((Planung!$BQ$151:$BQ$185=$B41)*(Planung!$BT$151:$BT$185)*(Planung!$B$151:$B$185)))/IF(G41=0,1,G41) -> 0 | AN41: =(SUMPRODUCT((Planung!$AS$223:$AS$255=$B41)*(Planung!$AV$223:$AV$255)*(Planung!$B$223:$B$255))+SUMPRODUCT((Planung!$BA$223:$BA$255=$B41)*(Planung!$BD$223:$BD$255)*(Planung!$B$223:$B$255))+SUMPRODUCT((Planung!$BI$223:$BI$255=$B41)*(Planung!$BL$223:$BL$255)*(Planung!$B$223:$B$255))+SUMPRODUCT((Planung!$BQ$223:$BQ$255=$B41)*(Planung!$BT$223:$BT$255)*(Planung!$B$223:$B$255)))/IF(G41=0,1,G41) -> 0 | AO41: =(SUMPRODUCT((Planung!$AS$293:$AS$326=$B41)*(Planung!$AV$293:$AV$326)*(Planung!$B$293:$B$326))+SUMPRODUCT((Planung!$BA$293:$BA$326=$B41)*(Planung!$BD$293:$BD$326)*(Planung!$B$293:$B$326))+SUMPRODUCT((Planung!$BI$293:$BI$326=$B41)*(Planung!$BL$293:$BL$326)*(Planung!$B$293:$B$326))+SUMPRODUCT((Planung!$BQ$293:$BQ$326=$B41)*(Planung!$BT$293:$BT$326)*(Planung!$B$293:$B$326)))/IF(G41=0,1,G41) -> 0 | AP41: =(SUMPRODUCT((Planung!$AS$364:$AS$384=$B41)*(Planung!$AV$364:$AV$384)*(Planung!$B$364:$B$384))+SUMPRODUCT((Planung!$BA$364:$BA$384=$B41)*(Planung!$BD$364:$BD$384)*(Planung!$B$364:$B$384))+SUMPRODUCT((Planung!$BI$364:$BI$384=$B41)*(Planung!$BL$364:$BL$384)*(Planung!$B$364:$B$384))+SUMPRODUCT((Planung!$BQ$364:$BQ$384=$B41)*(Planung!$BT$364:$BT$384)*(Planung!$B$364:$B$384)))/IF(G41=0,1,G41) -> 0
B42: 11419 | C42: *W1 Häckseltransportwagen 33m³ | D42: t | E42: 2 | F42: 2 | G42: 2 | H42: 2 | I42: 2 | J42: 2 | K42: 0.2 | O42: 0 | P42: =N42*AnteilOel*PreisOel -> 0 | Q42: 0.2 | R42: 39000 | S42: 7800 | U42: 10 | V42: 100000 | W42: =IF(U42=0,0,(R42-S42)/U42) -> 3120 | X42: 10000 | Y42: 0 | Z42: =IF(X42=0,0,Y42/X42) -> 0 | AA42: =IF(OR(U42=0,X42=0,Z42=0),0,IF(Z42>1,(R42-S42)/V42,((R42-S42)/U42)/Y42)) -> 0 | AB42: 0 | AC42: 0 | AD42: =SUM(AA42:AC42) -> 0 | AE42: 0.2 | AG42: =$X42*AH42 -> 8000 | AH42: 0.8 | AI42: 200 | AJ42: 0.02 | AK42: =(SUMPRODUCT((Planung!$AS$8:$AS$42=$B42)*(Planung!$AV$8:$AV$42)*(Planung!$B$8:$B$42))+SUMPRODUCT((Planung!$BA$8:$BA$42=$B42)*(Planung!$BD$8:$BD$42)*(Planung!$B$8:$B$42))+SUMPRODUCT((Planung!$BI$8:$BI$42=$B42)*(Planung!$BL$8:$BL$42)*(Planung!$B$8:$B$42))+SUMPRODUCT((Planung!$BQ$8:$BQ$42=$B42)*(Planung!$BT$8:$BT$42)*(Planung!$B$8:$B$42)))/IF(E42=0,1,E42) -> 0 | AL42: =(SUMPRODUCT((Planung!$AS$79:$AS$114=$B42)*(Planung!$AV$79:$AV$114)*(Planung!$B$79:$B$114))+SUMPRODUCT((Planung!$BA$79:$BA$114=$B42)*(Planung!$BD$79:$BD$114)*(Planung!$B$79:$B$114))+SUMPRODUCT((Planung!$BI$79:$BI$114=$B42)*(Planung!$BL$79:$BL$114)*(Planung!$B$79:$B$114))+SUMPRODUCT((Planung!$BQ$79:$BQ$114=$B42)*(Planung!$BT$79:$BT$114)*(Planung!$B$79:$B$114)))/IF(F42=0,1,F42) -> 0 | AM42: =(SUMPRODUCT((Planung!$AS$151:$AS$185=$B42)*(Planung!$AV$151:$AV$185)*(Planung!$B$151:$B$185))+SUMPRODUCT((Planung!$BA$151:$BA$185=$B42)*(Planung!$BD$151:$BD$185)*(Planung!$B$151:$B$185))+SUMPRODUCT((Planung!$BI$151:$BI$185=$B42)*(Planung!$BL$151:$BL$185)*(Planung!$B$151:$B$185))+SUMPRODUCT((Planung!$BQ$151:$BQ$185=$B42)*(Planung!$BT$151:$BT$185)*(Planung!$B$151:$B$185)))/IF(G42=0,1,G42) -> 0 | AN42: =(SUMPRODUCT((Planung!$AS$223:$AS$255=$B42)*(Planung!$AV$223:$AV$255)*(Planung!$B$223:$B$255))+SUMPRODUCT((Planung!$BA$223:$BA$255=$B42)*(Planung!$BD$223:$BD$255)*(Planung!$B$223:$B$255))+SUMPRODUCT((Planung!$BI$223:$BI$255=$B42)*(Planung!$BL$223:$BL$255)*(Planung!$B$223:$B$255))+SUMPRODUCT((Planung!$BQ$223:$BQ$255=$B42)*(Planung!$BT$223:$BT$255)*(Planung!$B$223:$B$255)))/IF(G42=0,1,G42) -> 0 | AO42: =(SUMPRODUCT((Planung!$AS$293:$AS$326=$B42)*(Planung!$AV$293:$AV$326)*(Planung!$B$293:$B$326))+SUMPRODUCT((Planung!$BA$293:$BA$326=$B42)*(Planung!$BD$293:$BD$326)*(Planung!$B$293:$B$326))+SUMPRODUCT((Planung!$BI$293:$BI$326=$B42)*(Planung!$BL$293:$BL$326)*(Planung!$B$293:$B$326))+SUMPRODUCT((Planung!$BQ$293:$BQ$326=$B42)*(Planung!$BT$293:$BT$326)*(Planung!$B$293:$B$326)))/IF(G42=0,1,G42) -> 0 | AP42: =(SUMPRODUCT((Planung!$AS$364:$AS$384=$B42)*(Planung!$AV$364:$AV$384)*(Planung!$B$364:$B$384))+SUMPRODUCT((Planung!$BA$364:$BA$384=$B42)*(Planung!$BD$364:$BD$384)*(Planung!$B$364:$B$384))+SUMPRODUCT((Planung!$BI$364:$BI$384=$B42)*(Planung!$BL$364:$BL$384)*(Planung!$B$364:$B$384))+SUMPRODUCT((Planung!$BQ$364:$BQ$384=$B42)*(Planung!$BT$364:$BT$384)*(Planung!$B$364:$B$384)))/IF(G42=0,1,G42) -> 0
B43: 11420 | O43: =N43*PreisDiesel -> 0 | P43: =N43*AnteilOel*PreisOel -> 0 | Q43: 0 | W43: =IF(U43=0,0,(R43-S43)/U43) -> 0 | X43: =IF(U43=0,0,V43/U43) -> 0 | Y43: =INDEX(AG43:AP43,AuslastSel) -> 0 | Z43: =IF(X43=0,0,Y43/X43) -> 0 | AA43: =IF(OR(U43=0,X43=0,Z43=0),0,IF(Z43>1,(R43-S43)/V43,((R43-S43)/U43)/Y43)) -> 0 | AB43: =IF(OR(X43=0,Z43=0),0,((R43+S43)/2*Interest)/Y43) -> 0 | AC43: =IF(Y43=0,0,T43/Y43) -> 0 | AD43: =SUM(AA43:AC43) -> 0 | AE43: =AD43+Q43 -> 0 | AG43: =$X43*AH43 -> 0 | AH43: 0 | AJ43: =IF($X43=0,0,AI43/$X43) -> 0 | AK43: =(SUMPRODUCT((Planung!$AS$8:$AS$42=$B43)*(Planung!$AV$8:$AV$42)*(Planung!$B$8:$B$42))+SUMPRODUCT((Planung!$BA$8:$BA$42=$B43)*(Planung!$BD$8:$BD$42)*(Planung!$B$8:$B$42))+SUMPRODUCT((Planung!$BI$8:$BI$42=$B43)*(Planung!$BL$8:$BL$42)*(Planung!$B$8:$B$42))+SUMPRODUCT((Planung!$BQ$8:$BQ$42=$B43)*(Planung!$BT$8:$BT$42)*(Planung!$B$8:$B$42)))/IF(E43=0,1,E43) -> 0 | AL43: =(SUMPRODUCT((Planung!$AS$79:$AS$114=$B43)*(Planung!$AV$79:$AV$114)*(Planung!$B$79:$B$114))+SUMPRODUCT((Planung!$BA$79:$BA$114=$B43)*(Planung!$BD$79:$BD$114)*(Planung!$B$79:$B$114))+SUMPRODUCT((Planung!$BI$79:$BI$114=$B43)*(Planung!$BL$79:$BL$114)*(Planung!$B$79:$B$114))+SUMPRODUCT((Planung!$BQ$79:$BQ$114=$B43)*(Planung!$BT$79:$BT$114)*(Planung!$B$79:$B$114)))/IF(F43=0,1,F43) -> 0 | AM43: =(SUMPRODUCT((Planung!$AS$151:$AS$185=$B43)*(Planung!$AV$151:$AV$185)*(Planung!$B$151:$B$185))+SUMPRODUCT((Planung!$BA$151:$BA$185=$B43)*(Planung!$BD$151:$BD$185)*(Planung!$B$151:$B$185))+SUMPRODUCT((Planung!$BI$151:$BI$185=$B43)*(Planung!$BL$151:$BL$185)*(Planung!$B$151:$B$185))+SUMPRODUCT((Planung!$BQ$151:$BQ$185=$B43)*(Planung!$BT$151:$BT$185)*(Planung!$B$151:$B$185)))/IF(G43=0,1,G43) -> 0 | AN43: =(SUMPRODUCT((Planung!$AS$223:$AS$255=$B43)*(Planung!$AV$223:$AV$255)*(Planung!$B$223:$B$255))+SUMPRODUCT((Planung!$BA$223:$BA$255=$B43)*(Planung!$BD$223:$BD$255)*(Planung!$B$223:$B$255))+SUMPRODUCT((Planung!$BI$223:$BI$255=$B43)*(Planung!$BL$223:$BL$255)*(Planung!$B$223:$B$255))+SUMPRODUCT((Planung!$BQ$223:$BQ$255=$B43)*(Planung!$BT$223:$BT$255)*(Planung!$B$223:$B$255)))/IF(G43=0,1,G43) -> 0 | AO43: =(SUMPRODUCT((Planung!$AS$293:$AS$326=$B43)*(Planung!$AV$293:$AV$326)*(Planung!$B$293:$B$326))+SUMPRODUCT((Planung!$BA$293:$BA$326=$B43)*(Planung!$BD$293:$BD$326)*(Planung!$B$293:$B$326))+SUMPRODUCT((Planung!$BI$293:$BI$326=$B43)*(Planung!$BL$293:$BL$326)*(Planung!$B$293:$B$326))+SUMPRODUCT((Planung!$BQ$293:$BQ$326=$B43)*(Planung!$BT$293:$BT$326)*(Planung!$B$293:$B$326)))/IF(G43=0,1,G43) -> 0 | AP43: =(SUMPRODUCT((Planung!$AS$364:$AS$384=$B43)*(Planung!$AV$364:$AV$384)*(Planung!$B$364:$B$384))+SUMPRODUCT((Planung!$BA$364:$BA$384=$B43)*(Planung!$BD$364:$BD$384)*(Planung!$B$364:$B$384))+SUMPRODUCT((Planung!$BI$364:$BI$384=$B43)*(Planung!$BL$364:$BL$384)*(Planung!$B$364:$B$384))+SUMPRODUCT((Planung!$BQ$364:$BQ$384=$B43)*(Planung!$BT$364:$BT$384)*(Planung!$B$364:$B$384)))/IF(G43=0,1,G43) -> 0
B44: 11425 | O44: 0 | P44: =N44*AnteilOel*PreisOel -> 0 | Q44: 0 | W44: =IF(U44=0,0,(R44-S44)/U44) -> 0 | X44: 0 | Y44: 0 | Z44: =IF(X44=0,0,Y44/X44) -> 0 | AA44: =IF(OR(U44=0,X44=0,Z44=0),0,IF(Z44>1,(R44-S44)/V44,((R44-S44)/U44)/Y44)) -> 0 | AB44: 0 | AC44: 0 | AD44: =SUM(AA44:AC44) -> 0 | AE44: 0 | AG44: =$X44*AH44 -> 0 | AH44: 0 | AJ44: 0 | AK44: =(SUMPRODUCT((Planung!$AS$8:$AS$42=$B44)*(Planung!$AV$8:$AV$42)*(Planung!$B$8:$B$42))+SUMPRODUCT((Planung!$BA$8:$BA$42=$B44)*(Planung!$BD$8:$BD$42)*(Planung!$B$8:$B$42))+SUMPRODUCT((Planung!$BI$8:$BI$42=$B44)*(Planung!$BL$8:$BL$42)*(Planung!$B$8:$B$42))+SUMPRODUCT((Planung!$BQ$8:$BQ$42=$B44)*(Planung!$BT$8:$BT$42)*(Planung!$B$8:$B$42)))/IF(E44=0,1,E44) -> 0 | AL44: =(SUMPRODUCT((Planung!$AS$79:$AS$114=$B44)*(Planung!$AV$79:$AV$114)*(Planung!$B$79:$B$114))+SUMPRODUCT((Planung!$BA$79:$BA$114=$B44)*(Planung!$BD$79:$BD$114)*(Planung!$B$79:$B$114))+SUMPRODUCT((Planung!$BI$79:$BI$114=$B44)*(Planung!$BL$79:$BL$114)*(Planung!$B$79:$B$114))+SUMPRODUCT((Planung!$BQ$79:$BQ$114=$B44)*(Planung!$BT$79:$BT$114)*(Planung!$B$79:$B$114)))/IF(F44=0,1,F44) -> 0 | AM44: =(SUMPRODUCT((Planung!$AS$151:$AS$185=$B44)*(Planung!$AV$151:$AV$185)*(Planung!$B$151:$B$185))+SUMPRODUCT((Planung!$BA$151:$BA$185=$B44)*(Planung!$BD$151:$BD$185)*(Planung!$B$151:$B$185))+SUMPRODUCT((Planung!$BI$151:$BI$185=$B44)*(Planung!$BL$151:$BL$185)*(Planung!$B$151:$B$185))+SUMPRODUCT((Planung!$BQ$151:$BQ$185=$B44)*(Planung!$BT$151:$BT$185)*(Planung!$B$151:$B$185)))/IF(G44=0,1,G44) -> 0 | AN44: =(SUMPRODUCT((Planung!$AS$223:$AS$255=$B44)*(Planung!$AV$223:$AV$255)*(Planung!$B$223:$B$255))+SUMPRODUCT((Planung!$BA$223:$BA$255=$B44)*(Planung!$BD$223:$BD$255)*(Planung!$B$223:$B$255))+SUMPRODUCT((Planung!$BI$223:$BI$255=$B44)*(Planung!$BL$223:$BL$255)*(Planung!$B$223:$B$255))+SUMPRODUCT((Planung!$BQ$223:$BQ$255=$B44)*(Planung!$BT$223:$BT$255)*(Planung!$B$223:$B$255)))/IF(G44=0,1,G44) -> 0 | AO44: =(SUMPRODUCT((Planung!$AS$293:$AS$326=$B44)*(Planung!$AV$293:$AV$326)*(Planung!$B$293:$B$326))+SUMPRODUCT((Planung!$BA$293:$BA$326=$B44)*(Planung!$BD$293:$BD$326)*(Planung!$B$293:$B$326))+SUMPRODUCT((Planung!$BI$293:$BI$326=$B44)*(Planung!$BL$293:$BL$326)*(Planung!$B$293:$B$326))+SUMPRODUCT((Planung!$BQ$293:$BQ$326=$B44)*(Planung!$BT$293:$BT$326)*(Planung!$B$293:$B$326)))/IF(G44=0,1,G44) -> 0 | AP44: =(SUMPRODUCT((Planung!$AS$364:$AS$384=$B44)*(Planung!$AV$364:$AV$384)*(Planung!$B$364:$B$384))+SUMPRODUCT((Planung!$BA$364:$BA$384=$B44)*(Planung!$BD$364:$BD$384)*(Planung!$B$364:$B$384))+SUMPRODUCT((Planung!$BI$364:$BI$384=$B44)*(Planung!$BL$364:$BL$384)*(Planung!$B$364:$B$384))+SUMPRODUCT((Planung!$BQ$364:$BQ$384=$B44)*(Planung!$BT$364:$BT$384)*(Planung!$B$364:$B$384)))/IF(G44=0,1,G44) -> 0
B45: 11426 | O45: =N45*PreisDiesel -> 0 | P45: =N45*AnteilOel*PreisOel -> 0 | Q45: 0 | W45: =IF(U45=0,0,(R45-S45)/U45) -> 0 | X45: =IF(U45=0,0,V45/U45) -> 0 | Y45: =INDEX(AG45:AP45,AuslastSel) -> 0 | Z45: =IF(X45=0,0,Y45/X45) -> 0 | AA45: =IF(OR(U45=0,X45=0,Z45=0),0,IF(Z45>1,(R45-S45)/V45,((R45-S45)/U45)/Y45)) -> 0 | AB45: =IF(OR(X45=0,Z45=0),0,((R45+S45)/2*Interest)/Y45) -> 0 | AC45: =IF(Y45=0,0,T45/Y45) -> 0 | AD45: =SUM(AA45:AC45) -> 0 | AE45: =AD45+Q45 -> 0 | AG45: =$X45*AH45 -> 0 | AH45: 0 | AJ45: =IF($X45=0,0,AI45/$X45) -> 0 | AK45: =(SUMPRODUCT((Planung!$AS$8:$AS$42=$B45)*(Planung!$AV$8:$AV$42)*(Planung!$B$8:$B$42))+SUMPRODUCT((Planung!$BA$8:$BA$42=$B45)*(Planung!$BD$8:$BD$42)*(Planung!$B$8:$B$42))+SUMPRODUCT((Planung!$BI$8:$BI$42=$B45)*(Planung!$BL$8:$BL$42)*(Planung!$B$8:$B$42))+SUMPRODUCT((Planung!$BQ$8:$BQ$42=$B45)*(Planung!$BT$8:$BT$42)*(Planung!$B$8:$B$42)))/IF(E45=0,1,E45) -> 0 | AL45: =(SUMPRODUCT((Planung!$AS$79:$AS$114=$B45)*(Planung!$AV$79:$AV$114)*(Planung!$B$79:$B$114))+SUMPRODUCT((Planung!$BA$79:$BA$114=$B45)*(Planung!$BD$79:$BD$114)*(Planung!$B$79:$B$114))+SUMPRODUCT((Planung!$BI$79:$BI$114=$B45)*(Planung!$BL$79:$BL$114)*(Planung!$B$79:$B$114))+SUMPRODUCT((Planung!$BQ$79:$BQ$114=$B45)*(Planung!$BT$79:$BT$114)*(Planung!$B$79:$B$114)))/IF(F45=0,1,F45) -> 0 | AM45: =(SUMPRODUCT((Planung!$AS$151:$AS$185=$B45)*(Planung!$AV$151:$AV$185)*(Planung!$B$151:$B$185))+SUMPRODUCT((Planung!$BA$151:$BA$185=$B45)*(Planung!$BD$151:$BD$185)*(Planung!$B$151:$B$185))+SUMPRODUCT((Planung!$BI$151:$BI$185=$B45)*(Planung!$BL$151:$BL$185)*(Planung!$B$151:$B$185))+SUMPRODUCT((Planung!$BQ$151:$BQ$185=$B45)*(Planung!$BT$151:$BT$185)*(Planung!$B$151:$B$185)))/IF(G45=0,1,G45) -> 0 | AN45: =(SUMPRODUCT((Planung!$AS$223:$AS$255=$B45)*(Planung!$AV$223:$AV$255)*(Planung!$B$223:$B$255))+SUMPRODUCT((Planung!$BA$223:$BA$255=$B45)*(Planung!$BD$223:$BD$255)*(Planung!$B$223:$B$255))+SUMPRODUCT((Planung!$BI$223:$BI$255=$B45)*(Planung!$BL$223:$BL$255)*(Planung!$B$223:$B$255))+SUMPRODUCT((Planung!$BQ$223:$BQ$255=$B45)*(Planung!$BT$223:$BT$255)*(Planung!$B$223:$B$255)))/IF(G45=0,1,G45) -> 0 | AO45: =(SUMPRODUCT((Planung!$AS$293:$AS$326=$B45)*(Planung!$AV$293:$AV$326)*(Planung!$B$293:$B$326))+SUMPRODUCT((Planung!$BA$293:$BA$326=$B45)*(Planung!$BD$293:$BD$326)*(Planung!$B$293:$B$326))+SUMPRODUCT((Planung!$BI$293:$BI$326=$B45)*(Planung!$BL$293:$BL$326)*(Planung!$B$293:$B$326))+SUMPRODUCT((Planung!$BQ$293:$BQ$326=$B45)*(Planung!$BT$293:$BT$326)*(Planung!$B$293:$B$326)))/IF(G45=0,1,G45) -> 0 | AP45: =(SUMPRODUCT((Planung!$AS$364:$AS$384=$B45)*(Planung!$AV$364:$AV$384)*(Planung!$B$364:$B$384))+SUMPRODUCT((Planung!$BA$364:$BA$384=$B45)*(Planung!$BD$364:$BD$384)*(Planung!$B$364:$B$384))+SUMPRODUCT((Planung!$BI$364:$BI$384=$B45)*(Planung!$BL$364:$BL$384)*(Planung!$B$364:$B$384))+SUMPRODUCT((Planung!$BQ$364:$BQ$384=$B45)*(Planung!$BT$364:$BT$384)*(Planung!$B$364:$B$384)))/IF(G45=0,1,G45) -> 0
B46: 11415 | O46: 0 | P46: 0 | Q46: 0 | W46: 0 | X46: 0 | Y46: =INDEX(AG46:AP46,AuslastSel) -> 0 | Z46: 0 | AA46: 0 | AB46: =IF(OR(X46=0,Z46=0),0,((R46+S46)/2*Interest)/Y46) -> 0 | AC46: 0 | AD46: 0 | AE46: =AD46+Q46 -> 0 | AG46: 0 | AH46: 0 | AJ46: 0 | AK46: =(SUMPRODUCT((Planung!$AS$8:$AS$42=$B46)*(Planung!$AV$8:$AV$42)*(Planung!$B$8:$B$42))+SUMPRODUCT((Planung!$BA$8:$BA$42=$B46)*(Planung!$BD$8:$BD$42)*(Planung!$B$8:$B$42))+SUMPRODUCT((Planung!$BI$8:$BI$42=$B46)*(Planung!$BL$8:$BL$42)*(Planung!$B$8:$B$42))+SUMPRODUCT((Planung!$BQ$8:$BQ$42=$B46)*(Planung!$BT$8:$BT$42)*(Planung!$B$8:$B$42)))/IF(E46=0,1,E46) -> 0 | AL46: =(SUMPRODUCT((Planung!$AS$79:$AS$114=$B46)*(Planung!$AV$79:$AV$114)*(Planung!$B$79:$B$114))+SUMPRODUCT((Planung!$BA$79:$BA$114=$B46)*(Planung!$BD$79:$BD$114)*(Planung!$B$79:$B$114))+SUMPRODUCT((Planung!$BI$79:$BI$114=$B46)*(Planung!$BL$79:$BL$114)*(Planung!$B$79:$B$114))+SUMPRODUCT((Planung!$BQ$79:$BQ$114=$B46)*(Planung!$BT$79:$BT$114)*(Planung!$B$79:$B$114)))/IF(F46=0,1,F46) -> 0 | AM46: =(SUMPRODUCT((Planung!$AS$151:$AS$185=$B46)*(Planung!$AV$151:$AV$185)*(Planung!$B$151:$B$185))+SUMPRODUCT((Planung!$BA$151:$BA$185=$B46)*(Planung!$BD$151:$BD$185)*(Planung!$B$151:$B$185))+SUMPRODUCT((Planung!$BI$151:$BI$185=$B46)*(Planung!$BL$151:$BL$185)*(Planung!$B$151:$B$185))+SUMPRODUCT((Planung!$BQ$151:$BQ$185=$B46)*(Planung!$BT$151:$BT$185)*(Planung!$B$151:$B$185)))/IF(G46=0,1,G46) -> 0 | AN46: =(SUMPRODUCT((Planung!$AS$223:$AS$255=$B46)*(Planung!$AV$223:$AV$255)*(Planung!$B$223:$B$255))+SUMPRODUCT((Planung!$BA$223:$BA$255=$B46)*(Planung!$BD$223:$BD$255)*(Planung!$B$223:$B$255))+SUMPRODUCT((Planung!$BI$223:$BI$255=$B46)*(Planung!$BL$223:$BL$255)*(Planung!$B$223:$B$255))+SUMPRODUCT((Planung!$BQ$223:$BQ$255=$B46)*(Planung!$BT$223:$BT$255)*(Planung!$B$223:$B$255)))/IF(G46=0,1,G46) -> 0 | AO46: =(SUMPRODUCT((Planung!$AS$293:$AS$326=$B46)*(Planung!$AV$293:$AV$326)*(Planung!$B$293:$B$326))+SUMPRODUCT((Planung!$BA$293:$BA$326=$B46)*(Planung!$BD$293:$BD$326)*(Planung!$B$293:$B$326))+SUMPRODUCT((Planung!$BI$293:$BI$326=$B46)*(Planung!$BL$293:$BL$326)*(Planung!$B$293:$B$326))+SUMPRODUCT((Planung!$BQ$293:$BQ$326=$B46)*(Planung!$BT$293:$BT$326)*(Planung!$B$293:$B$326)))/IF(G46=0,1,G46) -> 0 | AP46: =(SUMPRODUCT((Planung!$AS$364:$AS$384=$B46)*(Planung!$AV$364:$AV$384)*(Planung!$B$364:$B$384))+SUMPRODUCT((Planung!$BA$364:$BA$384=$B46)*(Planung!$BD$364:$BD$384)*(Planung!$B$364:$B$384))+SUMPRODUCT((Planung!$BI$364:$BI$384=$B46)*(Planung!$BL$364:$BL$384)*(Planung!$B$364:$B$384))+SUMPRODUCT((Planung!$BQ$364:$BQ$384=$B46)*(Planung!$BT$364:$BT$384)*(Planung!$B$364:$B$384)))/IF(G46=0,1,G46) -> 0
B47: 11418 | O47: =N47*PreisDiesel -> 0 | P47: =N47*AnteilOel*PreisOel -> 0 | Q47: 0 | W47: =IF(U47=0,0,(R47-S47)/U47) -> 0 | X47: =IF(U47=0,0,V47/U47) -> 0 | Y47: =INDEX(AG47:AP47,AuslastSel) -> 0 | Z47: =IF(X47=0,0,Y47/X47) -> 0 | AA47: =IF(OR(U47=0,X47=0,Z47=0),0,IF(Z47>1,(R47-S47)/V47,((R47-S47)/U47)/Y47)) -> 0 | AB47: =IF(OR(X47=0,Z47=0),0,((R47+S47)/2*Interest)/Y47) -> 0 | AC47: =IF(Y47=0,0,T47/Y47) -> 0 | AD47: =SUM(AA47:AC47) -> 0 | AE47: =AD47+Q47 -> 0 | AG47: =$X47*AH47 -> 0 | AH47: 0 | AJ47: =IF($X47=0,0,AI47/$X47) -> 0 | AK47: =(SUMPRODUCT((Planung!$AS$8:$AS$42=$B47)*(Planung!$AV$8:$AV$42)*(Planung!$B$8:$B$42))+SUMPRODUCT((Planung!$BA$8:$BA$42=$B47)*(Planung!$BD$8:$BD$42)*(Planung!$B$8:$B$42))+SUMPRODUCT((Planung!$BI$8:$BI$42=$B47)*(Planung!$BL$8:$BL$42)*(Planung!$B$8:$B$42))+SUMPRODUCT((Planung!$BQ$8:$BQ$42=$B47)*(Planung!$BT$8:$BT$42)*(Planung!$B$8:$B$42)))/IF(E47=0,1,E47) -> 0 | AL47: =(SUMPRODUCT((Planung!$AS$79:$AS$114=$B47)*(Planung!$AV$79:$AV$114)*(Planung!$B$79:$B$114))+SUMPRODUCT((Planung!$BA$79:$BA$114=$B47)*(Planung!$BD$79:$BD$114)*(Planung!$B$79:$B$114))+SUMPRODUCT((Planung!$BI$79:$BI$114=$B47)*(Planung!$BL$79:$BL$114)*(Planung!$B$79:$B$114))+SUMPRODUCT((Planung!$BQ$79:$BQ$114=$B47)*(Planung!$BT$79:$BT$114)*(Planung!$B$79:$B$114)))/IF(F47=0,1,F47) -> 0 | AM47: =(SUMPRODUCT((Planung!$AS$151:$AS$185=$B47)*(Planung!$AV$151:$AV$185)*(Planung!$B$151:$B$185))+SUMPRODUCT((Planung!$BA$151:$BA$185=$B47)*(Planung!$BD$151:$BD$185)*(Planung!$B$151:$B$185))+SUMPRODUCT((Planung!$BI$151:$BI$185=$B47)*(Planung!$BL$151:$BL$185)*(Planung!$B$151:$B$185))+SUMPRODUCT((Planung!$BQ$151:$BQ$185=$B47)*(Planung!$BT$151:$BT$185)*(Planung!$B$151:$B$185)))/IF(G47=0,1,G47) -> 0 | AN47: =(SUMPRODUCT((Planung!$AS$223:$AS$255=$B47)*(Planung!$AV$223:$AV$255)*(Planung!$B$223:$B$255))+SUMPRODUCT((Planung!$BA$223:$BA$255=$B47)*(Planung!$BD$223:$BD$255)*(Planung!$B$223:$B$255))+SUMPRODUCT((Planung!$BI$223:$BI$255=$B47)*(Planung!$BL$223:$BL$255)*(Planung!$B$223:$B$255))+SUMPRODUCT((Planung!$BQ$223:$BQ$255=$B47)*(Planung!$BT$223:$BT$255)*(Planung!$B$223:$B$255)))/IF(G47=0,1,G47) -> 0 | AO47: =(SUMPRODUCT((Planung!$AS$293:$AS$326=$B47)*(Planung!$AV$293:$AV$326)*(Planung!$B$293:$B$326))+SUMPRODUCT((Planung!$BA$293:$BA$326=$B47)*(Planung!$BD$293:$BD$326)*(Planung!$B$293:$B$326))+SUMPRODUCT((Planung!$BI$293:$BI$326=$B47)*(Planung!$BL$293:$BL$326)*(Planung!$B$293:$B$326))+SUMPRODUCT((Planung!$BQ$293:$BQ$326=$B47)*(Planung!$BT$293:$BT$326)*(Planung!$B$293:$B$326)))/IF(G47=0,1,G47) -> 0 | AP47: =(SUMPRODUCT((Planung!$AS$364:$AS$384=$B47)*(Planung!$AV$364:$AV$384)*(Planung!$B$364:$B$384))+SUMPRODUCT((Planung!$BA$364:$BA$384=$B47)*(Planung!$BD$364:$BD$384)*(Planung!$B$364:$B$384))+SUMPRODUCT((Planung!$BI$364:$BI$384=$B47)*(Planung!$BL$364:$BL$384)*(Planung!$B$364:$B$384))+SUMPRODUCT((Planung!$BQ$364:$BQ$384=$B47)*(Planung!$BT$364:$BT$384)*(Planung!$B$364:$B$384)))/IF(G47=0,1,G47) -> 0
B48: 11417 | O48: =N48*PreisDiesel -> 0 | P48: =N48*AnteilOel*PreisOel -> 0 | Q48: 0 | W48: =IF(U48=0,0,(R48-S48)/U48) -> 0 | X48: =IF(U48=0,0,V48/U48) -> 0 | Y48: =INDEX(AG48:AP48,AuslastSel) -> 0 | Z48: =IF(X48=0,0,Y48/X48) -> 0 | AA48: =IF(OR(U48=0,X48=0,Z48=0),0,IF(Z48>1,(R48-S48)/V48,((R48-S48)/U48)/Y48)) -> 0 | AB48: =IF(OR(X48=0,Z48=0),0,((R48+S48)/2*Interest)/Y48) -> 0 | AC48: =IF(Y48=0,0,T48/Y48) -> 0 | AD48: =SUM(AA48:AC48) -> 0 | AE48: =AD48+Q48 -> 0 | AG48: =$X48*AH48 -> 0 | AH48: 0 | AJ48: =IF($X48=0,0,AI48/$X48) -> 0 | AK48: =(SUMPRODUCT((Planung!$AS$8:$AS$42=$B48)*(Planung!$AV$8:$AV$42)*(Planung!$B$8:$B$42))+SUMPRODUCT((Planung!$BA$8:$BA$42=$B48)*(Planung!$BD$8:$BD$42)*(Planung!$B$8:$B$42))+SUMPRODUCT((Planung!$BI$8:$BI$42=$B48)*(Planung!$BL$8:$BL$42)*(Planung!$B$8:$B$42))+SUMPRODUCT((Planung!$BQ$8:$BQ$42=$B48)*(Planung!$BT$8:$BT$42)*(Planung!$B$8:$B$42)))/IF(E48=0,1,E48) -> 0 | AL48: =(SUMPRODUCT((Planung!$AS$79:$AS$114=$B48)*(Planung!$AV$79:$AV$114)*(Planung!$B$79:$B$114))+SUMPRODUCT((Planung!$BA$79:$BA$114=$B48)*(Planung!$BD$79:$BD$114)*(Planung!$B$79:$B$114))+SUMPRODUCT((Planung!$BI$79:$BI$114=$B48)*(Planung!$BL$79:$BL$114)*(Planung!$B$79:$B$114))+SUMPRODUCT((Planung!$BQ$79:$BQ$114=$B48)*(Planung!$BT$79:$BT$114)*(Planung!$B$79:$B$114)))/IF(F48=0,1,F48) -> 0 | AM48: =(SUMPRODUCT((Planung!$AS$151:$AS$185=$B48)*(Planung!$AV$151:$AV$185)*(Planung!$B$151:$B$185))+SUMPRODUCT((Planung!$BA$151:$BA$185=$B48)*(Planung!$BD$151:$BD$185)*(Planung!$B$151:$B$185))+SUMPRODUCT((Planung!$BI$151:$BI$185=$B48)*(Planung!$BL$151:$BL$185)*(Planung!$B$151:$B$185))+SUMPRODUCT((Planung!$BQ$151:$BQ$185=$B48)*(Planung!$BT$151:$BT$185)*(Planung!$B$151:$B$185)))/IF(G48=0,1,G48) -> 0 | AN48: =(SUMPRODUCT((Planung!$AS$223:$AS$255=$B48)*(Planung!$AV$223:$AV$255)*(Planung!$B$223:$B$255))+SUMPRODUCT((Planung!$BA$223:$BA$255=$B48)*(Planung!$BD$223:$BD$255)*(Planung!$B$223:$B$255))+SUMPRODUCT((Planung!$BI$223:$BI$255=$B48)*(Planung!$BL$223:$BL$255)*(Planung!$B$223:$B$255))+SUMPRODUCT((Planung!$BQ$223:$BQ$255=$B48)*(Planung!$BT$223:$BT$255)*(Planung!$B$223:$B$255)))/IF(G48=0,1,G48) -> 0 | AO48: =(SUMPRODUCT((Planung!$AS$293:$AS$326=$B48)*(Planung!$AV$293:$AV$326)*(Planung!$B$293:$B$326))+SUMPRODUCT((Planung!$BA$293:$BA$326=$B48)*(Planung!$BD$293:$BD$326)*(Planung!$B$293:$B$326))+SUMPRODUCT((Planung!$BI$293:$BI$326=$B48)*(Planung!$BL$293:$BL$326)*(Planung!$B$293:$B$326))+SUMPRODUCT((Planung!$BQ$293:$BQ$326=$B48)*(Planung!$BT$293:$BT$326)*(Planung!$B$293:$B$326)))/IF(G48=0,1,G48) -> 0 | AP48: =(SUMPRODUCT((Planung!$AS$364:$AS$384=$B48)*(Planung!$AV$364:$AV$384)*(Planung!$B$364:$B$384))+SUMPRODUCT((Planung!$BA$364:$BA$384=$B48)*(Planung!$BD$364:$BD$384)*(Planung!$B$364:$B$384))+SUMPRODUCT((Planung!$BI$364:$BI$384=$B48)*(Planung!$BL$364:$BL$384)*(Planung!$B$364:$B$384))+SUMPRODUCT((Planung!$BQ$364:$BQ$384=$B48)*(Planung!$BT$364:$BT$384)*(Planung!$B$364:$B$384)))/IF(G48=0,1,G48) -> 0
B49: 11416 | O49: =N49*PreisDiesel -> 0 | P49: =N49*AnteilOel*PreisOel -> 0 | Q49: 0 | W49: =IF(U49=0,0,(R49-S49)/U49) -> 0 | X49: =IF(U49=0,0,V49/U49) -> 0 | Y49: =INDEX(AG49:AP49,AuslastSel) -> 0 | Z49: =IF(X49=0,0,Y49/X49) -> 0 | AA49: =IF(OR(U49=0,X49=0,Z49=0),0,IF(Z49>1,(R49-S49)/V49,((R49-S49)/U49)/Y49)) -> 0 | AB49: =IF(OR(X49=0,Z49=0),0,((R49+S49)/2*Interest)/Y49) -> 0 | AC49: =IF(Y49=0,0,T49/Y49) -> 0 | AD49: =SUM(AA49:AC49) -> 0 | AE49: =AD49+Q49 -> 0 | AG49: =$X49*AH49 -> 0 | AH49: 0 | AJ49: =IF($X49=0,0,AI49/$X49) -> 0 | AK49: =(SUMPRODUCT((Planung!$AS$8:$AS$42=$B49)*(Planung!$AV$8:$AV$42)*(Planung!$B$8:$B$42))+SUMPRODUCT((Planung!$BA$8:$BA$42=$B49)*(Planung!$BD$8:$BD$42)*(Planung!$B$8:$B$42))+SUMPRODUCT((Planung!$BI$8:$BI$42=$B49)*(Planung!$BL$8:$BL$42)*(Planung!$B$8:$B$42))+SUMPRODUCT((Planung!$BQ$8:$BQ$42=$B49)*(Planung!$BT$8:$BT$42)*(Planung!$B$8:$B$42)))/IF(E49=0,1,E49) -> 0 | AL49: =(SUMPRODUCT((Planung!$AS$79:$AS$114=$B49)*(Planung!$AV$79:$AV$114)*(Planung!$B$79:$B$114))+SUMPRODUCT((Planung!$BA$79:$BA$114=$B49)*(Planung!$BD$79:$BD$114)*(Planung!$B$79:$B$114))+SUMPRODUCT((Planung!$BI$79:$BI$114=$B49)*(Planung!$BL$79:$BL$114)*(Planung!$B$79:$B$114))+SUMPRODUCT((Planung!$BQ$79:$BQ$114=$B49)*(Planung!$BT$79:$BT$114)*(Planung!$B$79:$B$114)))/IF(F49=0,1,F49) -> 0 | AM49: =(SUMPRODUCT((Planung!$AS$151:$AS$185=$B49)*(Planung!$AV$151:$AV$185)*(Planung!$B$151:$B$185))+SUMPRODUCT((Planung!$BA$151:$BA$185=$B49)*(Planung!$BD$151:$BD$185)*(Planung!$B$151:$B$185))+SUMPRODUCT((Planung!$BI$151:$BI$185=$B49)*(Planung!$BL$151:$BL$185)*(Planung!$B$151:$B$185))+SUMPRODUCT((Planung!$BQ$151:$BQ$185=$B49)*(Planung!$BT$151:$BT$185)*(Planung!$B$151:$B$185)))/IF(G49=0,1,G49) -> 0 | AN49: =(SUMPRODUCT((Planung!$AS$223:$AS$255=$B49)*(Planung!$AV$223:$AV$255)*(Planung!$B$223:$B$255))+SUMPRODUCT((Planung!$BA$223:$BA$255=$B49)*(Planung!$BD$223:$BD$255)*(Planung!$B$223:$B$255))+SUMPRODUCT((Planung!$BI$223:$BI$255=$B49)*(Planung!$BL$223:$BL$255)*(Planung!$B$223:$B$255))+SUMPRODUCT((Planung!$BQ$223:$BQ$255=$B49)*(Planung!$BT$223:$BT$255)*(Planung!$B$223:$B$255)))/IF(G49=0,1,G49) -> 0 | AO49: =(SUMPRODUCT((Planung!$AS$293:$AS$326=$B49)*(Planung!$AV$293:$AV$326)*(Planung!$B$293:$B$326))+SUMPRODUCT((Planung!$BA$293:$BA$326=$B49)*(Planung!$BD$293:$BD$326)*(Planung!$B$293:$B$326))+SUMPRODUCT((Planung!$BI$293:$BI$326=$B49)*(Planung!$BL$293:$BL$326)*(Planung!$B$293:$B$326))+SUMPRODUCT((Planung!$BQ$293:$BQ$326=$B49)*(Planung!$BT$293:$BT$326)*(Planung!$B$293:$B$326)))/IF(G49=0,1,G49) -> 0 | AP49: =(SUMPRODUCT((Planung!$AS$364:$AS$384=$B49)*(Planung!$AV$364:$AV$384)*(Planung!$B$364:$B$384))+SUMPRODUCT((Planung!$BA$364:$BA$384=$B49)*(Planung!$BD$364:$BD$384)*(Planung!$B$364:$B$384))+SUMPRODUCT((Planung!$BI$364:$BI$384=$B49)*(Planung!$BL$364:$BL$384)*(Planung!$B$364:$B$384))+SUMPRODUCT((Planung!$BQ$364:$BQ$384=$B49)*(Planung!$BT$364:$BT$384)*(Planung!$B$364:$B$384)))/IF(G49=0,1,G49) -> 0
C50: BODENBEARBEITUNG | O50: 0 | P50: 0 | Q50: 0 | W50: 0 | X50: 0 | Y50: 0 | Z50: 0 | AA50: 0 | AB50: 0 | AC50: 0 | AD50: 0 | AE50: 0 | AG50: 0 | AH50: 0 | AJ50: 0 | AK50: =(SUMPRODUCT((Planung!$AS$8:$AS$42=$B50)*(Planung!$AV$8:$AV$42)*(Planung!$B$8:$B$42))+SUMPRODUCT((Planung!$BA$8:$BA$42=$B50)*(Planung!$BD$8:$BD$42)*(Planung!$B$8:$B$42))+SUMPRODUCT((Planung!$BI$8:$BI$42=$B50)*(Planung!$BL$8:$BL$42)*(Planung!$B$8:$B$42))+SUMPRODUCT((Planung!$BQ$8:$BQ$42=$B50)*(Planung!$BT$8:$BT$42)*(Planung!$B$8:$B$42)))/IF(E50=0,1,E50) -> 0 | AL50: =(SUMPRODUCT((Planung!$AS$79:$AS$114=$B50)*(Planung!$AV$79:$AV$114)*(Planung!$B$79:$B$114))+SUMPRODUCT((Planung!$BA$79:$BA$114=$B50)*(Planung!$BD$79:$BD$114)*(Planung!$B$79:$B$114))+SUMPRODUCT((Planung!$BI$79:$BI$114=$B50)*(Planung!$BL$79:$BL$114)*(Planung!$B$79:$B$114))+SUMPRODUCT((Planung!$BQ$79:$BQ$114=$B50)*(Planung!$BT$79:$BT$114)*(Planung!$B$79:$B$114)))/IF(F50=0,1,F50) -> 0 | AM50: =(SUMPRODUCT((Planung!$AS$151:$AS$185=$B50)*(Planung!$AV$151:$AV$185)*(Planung!$B$151:$B$185))+SUMPRODUCT((Planung!$BA$151:$BA$185=$B50)*(Planung!$BD$151:$BD$185)*(Planung!$B$151:$B$185))+SUMPRODUCT((Planung!$BI$151:$BI$185=$B50)*(Planung!$BL$151:$BL$185)*(Planung!$B$151:$B$185))+SUMPRODUCT((Planung!$BQ$151:$BQ$185=$B50)*(Planung!$BT$151:$BT$185)*(Planung!$B$151:$B$185)))/IF(G50=0,1,G50) -> 0 | AN50: =(SUMPRODUCT((Planung!$AS$223:$AS$255=$B50)*(Planung!$AV$223:$AV$255)*(Planung!$B$223:$B$255))+SUMPRODUCT((Planung!$BA$223:$BA$255=$B50)*(Planung!$BD$223:$BD$255)*(Planung!$B$223:$B$255))+SUMPRODUCT((Planung!$BI$223:$BI$255=$B50)*(Planung!$BL$223:$BL$255)*(Planung!$B$223:$B$255))+SUMPRODUCT((Planung!$BQ$223:$BQ$255=$B50)*(Planung!$BT$223:$BT$255)*(Planung!$B$223:$B$255)))/IF(G50=0,1,G50) -> 0 | AO50: =(SUMPRODUCT((Planung!$AS$293:$AS$326=$B50)*(Planung!$AV$293:$AV$326)*(Planung!$B$293:$B$326))+SUMPRODUCT((Planung!$BA$293:$BA$326=$B50)*(Planung!$BD$293:$BD$326)*(Planung!$B$293:$B$326))+SUMPRODUCT((Planung!$BI$293:$BI$326=$B50)*(Planung!$BL$293:$BL$326)*(Planung!$B$293:$B$326))+SUMPRODUCT((Planung!$BQ$293:$BQ$326=$B50)*(Planung!$BT$293:$BT$326)*(Planung!$B$293:$B$326)))/IF(G50=0,1,G50) -> 0 | AP50: =(SUMPRODUCT((Planung!$AS$364:$AS$384=$B50)*(Planung!$AV$364:$AV$384)*(Planung!$B$364:$B$384))+SUMPRODUCT((Planung!$BA$364:$BA$384=$B50)*(Planung!$BD$364:$BD$384)*(Planung!$B$364:$B$384))+SUMPRODUCT((Planung!$BI$364:$BI$384=$B50)*(Planung!$BL$364:$BL$384)*(Planung!$B$364:$B$384))+SUMPRODUCT((Planung!$BQ$364:$BQ$384=$B50)*(Planung!$BT$364:$BT$384)*(Planung!$B$364:$B$384)))/IF(G50=0,1,G50) -> 0
B51: 11511 | C51: *Drehpflug 7Schare, 2,4m, Steinsicherung | D51: ha | E51: 1 | F51: 1 | G51: 1 | H51: 1 | I51: 1 | J51: 1 | K51: 12 | O51: 0 | P51: 0 | Q51: 12 | R51: 45000 | S51: 9000 | U51: 14 | V51: 3600 | W51: 2571.428571 | X51: 257.1428571 | Y51: 0 | Z51: 0 | AA51: 0 | AB51: 0 | AC51: 0 | AD51: 0 | AE51: 12 | AG51: 205.7142857 | AH51: 0.8 | AI51: 210 | AJ51: 0.8166666667 | AK51: =(SUMPRODUCT((Planung!$AS$8:$AS$42=$B51)*(Planung!$AV$8:$AV$42)*(Planung!$B$8:$B$42))+SUMPRODUCT((Planung!$BA$8:$BA$42=$B51)*(Planung!$BD$8:$BD$42)*(Planung!$B$8:$B$42))+SUMPRODUCT((Planung!$BI$8:$BI$42=$B51)*(Planung!$BL$8:$BL$42)*(Planung!$B$8:$B$42))+SUMPRODUCT((Planung!$BQ$8:$BQ$42=$B51)*(Planung!$BT$8:$BT$42)*(Planung!$B$8:$B$42)))/IF(E51=0,1,E51) -> 0 | AL51: =(SUMPRODUCT((Planung!$AS$79:$AS$114=$B51)*(Planung!$AV$79:$AV$114)*(Planung!$B$79:$B$114))+SUMPRODUCT((Planung!$BA$79:$BA$114=$B51)*(Planung!$BD$79:$BD$114)*(Planung!$B$79:$B$114))+SUMPRODUCT((Planung!$BI$79:$BI$114=$B51)*(Planung!$BL$79:$BL$114)*(Planung!$B$79:$B$114))+SUMPRODUCT((Planung!$BQ$79:$BQ$114=$B51)*(Planung!$BT$79:$BT$114)*(Planung!$B$79:$B$114)))/IF(F51=0,1,F51) -> 0 | AM51: =(SUMPRODUCT((Planung!$AS$151:$AS$185=$B51)*(Planung!$AV$151:$AV$185)*(Planung!$B$151:$B$185))+SUMPRODUCT((Planung!$BA$151:$BA$185=$B51)*(Planung!$BD$151:$BD$185)*(Planung!$B$151:$B$185))+SUMPRODUCT((Planung!$BI$151:$BI$185=$B51)*(Planung!$BL$151:$BL$185)*(Planung!$B$151:$B$185))+SUMPRODUCT((Planung!$BQ$151:$BQ$185=$B51)*(Planung!$BT$151:$BT$185)*(Planung!$B$151:$B$185)))/IF(G51=0,1,G51) -> 0 | AN51: =(SUMPRODUCT((Planung!$AS$223:$AS$255=$B51)*(Planung!$AV$223:$AV$255)*(Planung!$B$223:$B$255))+SUMPRODUCT((Planung!$BA$223:$BA$255=$B51)*(Planung!$BD$223:$BD$255)*(Planung!$B$223:$B$255))+SUMPRODUCT((Planung!$BI$223:$BI$255=$B51)*(Planung!$BL$223:$BL$255)*(Planung!$B$223:$B$255))+SUMPRODUCT((Planung!$BQ$223:$BQ$255=$B51)*(Planung!$BT$223:$BT$255)*(Planung!$B$223:$B$255)))/IF(G51=0,1,G51) -> 0 | AO51: =(SUMPRODUCT((Planung!$AS$293:$AS$326=$B51)*(Planung!$AV$293:$AV$326)*(Planung!$B$293:$B$326))+SUMPRODUCT((Planung!$BA$293:$BA$326=$B51)*(Planung!$BD$293:$BD$326)*(Planung!$B$293:$B$326))+SUMPRODUCT((Planung!$BI$293:$BI$326=$B51)*(Planung!$BL$293:$BL$326)*(Planung!$B$293:$B$326))+SUMPRODUCT((Planung!$BQ$293:$BQ$326=$B51)*(Planung!$BT$293:$BT$326)*(Planung!$B$293:$B$326)))/IF(G51=0,1,G51) -> 0 | AP51: =(SUMPRODUCT((Planung!$AS$364:$AS$384=$B51)*(Planung!$AV$364:$AV$384)*(Planung!$B$364:$B$384))+SUMPRODUCT((Planung!$BA$364:$BA$384=$B51)*(Planung!$BD$364:$BD$384)*(Planung!$B$364:$B$384))+SUMPRODUCT((Planung!$BI$364:$BI$384=$B51)*(Planung!$BL$364:$BL$384)*(Planung!$B$364:$B$384))+SUMPRODUCT((Planung!$BQ$364:$BQ$384=$B51)*(Planung!$BT$364:$BT$384)*(Planung!$B$364:$B$384)))/IF(G51=0,1,G51) -> 0
B52: 11513 | C52: *Grubber 4balkig, 4,5m | D52: ha | E52: 1 | F52: 1 | G52: 1 | H52: 1 | I52: 1 | J52: 1 | K52: 3.5 | O52: =N52*PreisDiesel -> 0 | P52: =N52*AnteilOel*PreisOel -> 0 | Q52: =K52+L52+M52+O52+P52 -> 3.5 | R52: 15500 | S52: 3100 | U52: 14 | V52: 2250 | W52: =IF(U52=0,0,(R52-S52)/U52) -> 885.7142857 | X52: =IF(U52=0,0,V52/U52) -> 160.7142857 | Y52: =INDEX(AG52:AP52,AuslastSel) -> 0 | Z52: =IF(X52=0,0,Y52/X52) -> 0 | AA52: =IF(OR(U52=0,X52=0,Z52=0),0,IF(Z52>1,(R52-S52)/V52,((R52-S52)/U52)/Y52)) -> 0 | AB52: =IF(OR(X52=0,Z52=0),0,((R52+S52)/2*Interest)/Y52) -> 0 | AC52: =IF(Y52=0,0,T52/Y52) -> 0 | AD52: =SUM(AA52:AC52) -> 0 | AE52: =AD52+Q52 -> 3.5 | AG52: =$X52*AH52 -> 128.5714286 | AH52: 0.8 | AI52: 130 | AJ52: =IF($X52=0,0,AI52/$X52) -> 0.8088888889 | AK52: =(SUMPRODUCT((Planung!$AS$8:$AS$42=$B52)*(Planung!$AV$8:$AV$42)*(Planung!$B$8:$B$42))+SUMPRODUCT((Planung!$BA$8:$BA$42=$B52)*(Planung!$BD$8:$BD$42)*(Planung!$B$8:$B$42))+SUMPRODUCT((Planung!$BI$8:$BI$42=$B52)*(Planung!$BL$8:$BL$42)*(Planung!$B$8:$B$42))+SUMPRODUCT((Planung!$BQ$8:$BQ$42=$B52)*(Planung!$BT$8:$BT$42)*(Planung!$B$8:$B$42)))/IF(E52=0,1,E52) -> 0 | AL52: =(SUMPRODUCT((Planung!$AS$79:$AS$114=$B52)*(Planung!$AV$79:$AV$114)*(Planung!$B$79:$B$114))+SUMPRODUCT((Planung!$BA$79:$BA$114=$B52)*(Planung!$BD$79:$BD$114)*(Planung!$B$79:$B$114))+SUMPRODUCT((Planung!$BI$79:$BI$114=$B52)*(Planung!$BL$79:$BL$114)*(Planung!$B$79:$B$114))+SUMPRODUCT((Planung!$BQ$79:$BQ$114=$B52)*(Planung!$BT$79:$BT$114)*(Planung!$B$79:$B$114)))/IF(F52=0,1,F52) -> 0 | AM52: =(SUMPRODUCT((Planung!$AS$151:$AS$185=$B52)*(Planung!$AV$151:$AV$185)*(Planung!$B$151:$B$185))+SUMPRODUCT((Planung!$BA$151:$BA$185=$B52)*(Planung!$BD$151:$BD$185)*(Planung!$B$151:$B$185))+SUMPRODUCT((Planung!$BI$151:$BI$185=$B52)*(Planung!$BL$151:$BL$185)*(Planung!$B$151:$B$185))+SUMPRODUCT((Planung!$BQ$151:$BQ$185=$B52)*(Planung!$BT$151:$BT$185)*(Planung!$B$151:$B$185)))/IF(G52=0,1,G52) -> 0 | AN52: =(SUMPRODUCT((Planung!$AS$223:$AS$255=$B52)*(Planung!$AV$223:$AV$255)*(Planung!$B$223:$B$255))+SUMPRODUCT((Planung!$BA$223:$BA$255=$B52)*(Planung!$BD$223:$BD$255)*(Planung!$B$223:$B$255))+SUMPRODUCT((Planung!$BI$223:$BI$255=$B52)*(Planung!$BL$223:$BL$255)*(Planung!$B$223:$B$255))+SUMPRODUCT((Planung!$BQ$223:$BQ$255=$B52)*(Planung!$BT$223:$BT$255)*(Planung!$B$223:$B$255)))/IF(G52=0,1,G52) -> 0 | AO52: =(SUMPRODUCT((Planung!$AS$293:$AS$326=$B52)*(Planung!$AV$293:$AV$326)*(Planung!$B$293:$B$326))+SUMPRODUCT((Planung!$BA$293:$BA$326=$B52)*(Planung!$BD$293:$BD$326)*(Planung!$B$293:$B$326))+SUMPRODUCT((Planung!$BI$293:$BI$326=$B52)*(Planung!$BL$293:$BL$326)*(Planung!$B$293:$B$326))+SUMPRODUCT((Planung!$BQ$293:$BQ$326=$B52)*(Planung!$BT$293:$BT$326)*(Planung!$B$293:$B$326)))/IF(G52=0,1,G52) -> 0 | AP52: =(SUMPRODUCT((Planung!$AS$364:$AS$384=$B52)*(Planung!$AV$364:$AV$384)*(Planung!$B$364:$B$384))+SUMPRODUCT((Planung!$BA$364:$BA$384=$B52)*(Planung!$BD$364:$BD$384)*(Planung!$B$364:$B$384))+SUMPRODUCT((Planung!$BI$364:$BI$384=$B52)*(Planung!$BL$364:$BL$384)*(Planung!$B$364:$B$384))+SUMPRODUCT((Planung!$BQ$364:$BQ$384=$B52)*(Planung!$BT$364:$BT$384)*(Planung!$B$364:$B$384)))/IF(G52=0,1,G52) -> 0
B53: 11512 | C53: *Schwergrubber 4,5m | D53: ha | E53: 1 | F53: 1 | G53: 1 | H53: 1 | I53: 1 | J53: 1 | K53: 6 | O53: 0 | P53: 0 | Q53: 6 | R53: 16000 | S53: 3200 | U53: 14 | V53: 5400 | W53: 914.2857143 | X53: 385.7142857 | Y53: 0 | Z53: 0 | AA53: 0 | AB53: 0 | AC53: 0 | AD53: 0 | AE53: 6 | AG53: 308.5714286 | AH53: 0.8 | AI53: 200 | AJ53: 0.5185185185 | AK53: =(SUMPRODUCT((Planung!$AS$8:$AS$42=$B53)*(Planung!$AV$8:$AV$42)*(Planung!$B$8:$B$42))+SUMPRODUCT((Planung!$BA$8:$BA$42=$B53)*(Planung!$BD$8:$BD$42)*(Planung!$B$8:$B$42))+SUMPRODUCT((Planung!$BI$8:$BI$42=$B53)*(Planung!$BL$8:$BL$42)*(Planung!$B$8:$B$42))+SUMPRODUCT((Planung!$BQ$8:$BQ$42=$B53)*(Planung!$BT$8:$BT$42)*(Planung!$B$8:$B$42)))/IF(E53=0,1,E53) -> 0 | AL53: =(SUMPRODUCT((Planung!$AS$79:$AS$114=$B53)*(Planung!$AV$79:$AV$114)*(Planung!$B$79:$B$114))+SUMPRODUCT((Planung!$BA$79:$BA$114=$B53)*(Planung!$BD$79:$BD$114)*(Planung!$B$79:$B$114))+SUMPRODUCT((Planung!$BI$79:$BI$114=$B53)*(Planung!$BL$79:$BL$114)*(Planung!$B$79:$B$114))+SUMPRODUCT((Planung!$BQ$79:$BQ$114=$B53)*(Planung!$BT$79:$BT$114)*(Planung!$B$79:$B$114)))/IF(F53=0,1,F53) -> 0 | AM53: =(SUMPRODUCT((Planung!$AS$151:$AS$185=$B53)*(Planung!$AV$151:$AV$185)*(Planung!$B$151:$B$185))+SUMPRODUCT((Planung!$BA$151:$BA$185=$B53)*(Planung!$BD$151:$BD$185)*(Planung!$B$151:$B$185))+SUMPRODUCT((Planung!$BI$151:$BI$185=$B53)*(Planung!$BL$151:$BL$185)*(Planung!$B$151:$B$185))+SUMPRODUCT((Planung!$BQ$151:$BQ$185=$B53)*(Planung!$BT$151:$BT$185)*(Planung!$B$151:$B$185)))/IF(G53=0,1,G53) -> 0 | AN53: =(SUMPRODUCT((Planung!$AS$223:$AS$255=$B53)*(Planung!$AV$223:$AV$255)*(Planung!$B$223:$B$255))+SUMPRODUCT((Planung!$BA$223:$BA$255=$B53)*(Planung!$BD$223:$BD$255)*(Planung!$B$223:$B$255))+SUMPRODUCT((Planung!$BI$223:$BI$255=$B53)*(Planung!$BL$223:$BL$255)*(Planung!$B$223:$B$255))+SUMPRODUCT((Planung!$BQ$223:$BQ$255=$B53)*(Planung!$BT$223:$BT$255)*(Planung!$B$223:$B$255)))/IF(G53=0,1,G53) -> 0 | AO53: =(SUMPRODUCT((Planung!$AS$293:$AS$326=$B53)*(Planung!$AV$293:$AV$326)*(Planung!$B$293:$B$326))+SUMPRODUCT((Planung!$BA$293:$BA$326=$B53)*(Planung!$BD$293:$BD$326)*(Planung!$B$293:$B$326))+SUMPRODUCT((Planung!$BI$293:$BI$326=$B53)*(Planung!$BL$293:$BL$326)*(Planung!$B$293:$B$326))+SUMPRODUCT((Planung!$BQ$293:$BQ$326=$B53)*(Planung!$BT$293:$BT$326)*(Planung!$B$293:$B$326)))/IF(G53=0,1,G53) -> 0 | AP53: =(SUMPRODUCT((Planung!$AS$364:$AS$384=$B53)*(Planung!$AV$364:$AV$384)*(Planung!$B$364:$B$384))+SUMPRODUCT((Planung!$BA$364:$BA$384=$B53)*(Planung!$BD$364:$BD$384)*(Planung!$B$364:$B$384))+SUMPRODUCT((Planung!$BI$364:$BI$384=$B53)*(Planung!$BL$364:$BL$384)*(Planung!$B$364:$B$384))+SUMPRODUCT((Planung!$BQ$364:$BQ$384=$B53)*(Planung!$BT$364:$BT$384)*(Planung!$B$364:$B$384)))/IF(G53=0,1,G53) -> 0
B54: 11514 | C54: *Saatbeetkombination 6m | D54: ha | E54: 1 | F54: 1 | G54: 1 | H54: 1 | I54: 1 | J54: 1 | K54: 4 | O54: 0 | P54: 0 | Q54: 4 | R54: 13000 | S54: 2600 | U54: 14 | V54: 3000 | W54: 742.8571429 | X54: 214.2857143 | Y54: 0 | Z54: 0 | AA54: 0 | AB54: 0 | AC54: 0 | AD54: 0 | AE54: 4 | AG54: 171.4285714 | AH54: 0.8 | AJ54: 0 | AK54: =(SUMPRODUCT((Planung!$AS$8:$AS$42=$B54)*(Planung!$AV$8:$AV$42)*(Planung!$B$8:$B$42))+SUMPRODUCT((Planung!$BA$8:$BA$42=$B54)*(Planung!$BD$8:$BD$42)*(Planung!$B$8:$B$42))+SUMPRODUCT((Planung!$BI$8:$BI$42=$B54)*(Planung!$BL$8:$BL$42)*(Planung!$B$8:$B$42))+SUMPRODUCT((Planung!$BQ$8:$BQ$42=$B54)*(Planung!$BT$8:$BT$42)*(Planung!$B$8:$B$42)))/IF(E54=0,1,E54) -> 0 | AL54: =(SUMPRODUCT((Planung!$AS$79:$AS$114=$B54)*(Planung!$AV$79:$AV$114)*(Planung!$B$79:$B$114))+SUMPRODUCT((Planung!$BA$79:$BA$114=$B54)*(Planung!$BD$79:$BD$114)*(Planung!$B$79:$B$114))+SUMPRODUCT((Planung!$BI$79:$BI$114=$B54)*(Planung!$BL$79:$BL$114)*(Planung!$B$79:$B$114))+SUMPRODUCT((Planung!$BQ$79:$BQ$114=$B54)*(Planung!$BT$79:$BT$114)*(Planung!$B$79:$B$114)))/IF(F54=0,1,F54) -> 0 | AM54: =(SUMPRODUCT((Planung!$AS$151:$AS$185=$B54)*(Planung!$AV$151:$AV$185)*(Planung!$B$151:$B$185))+SUMPRODUCT((Planung!$BA$151:$BA$185=$B54)*(Planung!$BD$151:$BD$185)*(Planung!$B$151:$B$185))+SUMPRODUCT((Planung!$BI$151:$BI$185=$B54)*(Planung!$BL$151:$BL$185)*(Planung!$B$151:$B$185))+SUMPRODUCT((Planung!$BQ$151:$BQ$185=$B54)*(Planung!$BT$151:$BT$185)*(Planung!$B$151:$B$185)))/IF(G54=0,1,G54) -> 0 | AN54: =(SUMPRODUCT((Planung!$AS$223:$AS$255=$B54)*(Planung!$AV$223:$AV$255)*(Planung!$B$223:$B$255))+SUMPRODUCT((Planung!$BA$223:$BA$255=$B54)*(Planung!$BD$223:$BD$255)*(Planung!$B$223:$B$255))+SUMPRODUCT((Planung!$BI$223:$BI$255=$B54)*(Planung!$BL$223:$BL$255)*(Planung!$B$223:$B$255))+SUMPRODUCT((Planung!$BQ$223:$BQ$255=$B54)*(Planung!$BT$223:$BT$255)*(Planung!$B$223:$B$255)))/IF(G54=0,1,G54) -> 0 | AO54: =(SUMPRODUCT((Planung!$AS$293:$AS$326=$B54)*(Planung!$AV$293:$AV$326)*(Planung!$B$293:$B$326))+SUMPRODUCT((Planung!$BA$293:$BA$326=$B54)*(Planung!$BD$293:$BD$326)*(Planung!$B$293:$B$326))+SUMPRODUCT((Planung!$BI$293:$BI$326=$B54)*(Planung!$BL$293:$BL$326)*(Planung!$B$293:$B$326))+SUMPRODUCT((Planung!$BQ$293:$BQ$326=$B54)*(Planung!$BT$293:$BT$326)*(Planung!$B$293:$B$326)))/IF(G54=0,1,G54) -> 0 | AP54: =(SUMPRODUCT((Planung!$AS$364:$AS$384=$B54)*(Planung!$AV$364:$AV$384)*(Planung!$B$364:$B$384))+SUMPRODUCT((Planung!$BA$364:$BA$384=$B54)*(Planung!$BD$364:$BD$384)*(Planung!$B$364:$B$384))+SUMPRODUCT((Planung!$BI$364:$BI$384=$B54)*(Planung!$BL$364:$BL$384)*(Planung!$B$364:$B$384))+SUMPRODUCT((Planung!$BQ$364:$BQ$384=$B54)*(Planung!$BT$364:$BT$384)*(Planung!$B$364:$B$384)))/IF(G54=0,1,G54) -> 0
B55: 11515 | O55: 0 | P55: 0 | Q55: 0 | W55: 0 | X55: 0 | Y55: 0 | Z55: 0 | AA55: 0 | AB55: 0 | AC55: 0 | AD55: 0 | AE55: 0 | AG55: 0 | AH55: 0 | AJ55: 0 | AK55: =(SUMPRODUCT((Planung!$AS$8:$AS$42=$B55)*(Planung!$AV$8:$AV$42)*(Planung!$B$8:$B$42))+SUMPRODUCT((Planung!$BA$8:$BA$42=$B55)*(Planung!$BD$8:$BD$42)*(Planung!$B$8:$B$42))+SUMPRODUCT((Planung!$BI$8:$BI$42=$B55)*(Planung!$BL$8:$BL$42)*(Planung!$B$8:$B$42))+SUMPRODUCT((Planung!$BQ$8:$BQ$42=$B55)*(Planung!$BT$8:$BT$42)*(Planung!$B$8:$B$42)))/IF(E55=0,1,E55) -> 0 | AL55: =(SUMPRODUCT((Planung!$AS$79:$AS$114=$B55)*(Planung!$AV$79:$AV$114)*(Planung!$B$79:$B$114))+SUMPRODUCT((Planung!$BA$79:$BA$114=$B55)*(Planung!$BD$79:$BD$114)*(Planung!$B$79:$B$114))+SUMPRODUCT((Planung!$BI$79:$BI$114=$B55)*(Planung!$BL$79:$BL$114)*(Planung!$B$79:$B$114))+SUMPRODUCT((Planung!$BQ$79:$BQ$114=$B55)*(Planung!$BT$79:$BT$114)*(Planung!$B$79:$B$114)))/IF(F55=0,1,F55) -> 0 | AM55: =(SUMPRODUCT((Planung!$AS$151:$AS$185=$B55)*(Planung!$AV$151:$AV$185)*(Planung!$B$151:$B$185))+SUMPRODUCT((Planung!$BA$151:$BA$185=$B55)*(Planung!$BD$151:$BD$185)*(Planung!$B$151:$B$185))+SUMPRODUCT((Planung!$BI$151:$BI$185=$B55)*(Planung!$BL$151:$BL$185)*(Planung!$B$151:$B$185))+SUMPRODUCT((Planung!$BQ$151:$BQ$185=$B55)*(Planung!$BT$151:$BT$185)*(Planung!$B$151:$B$185)))/IF(G55=0,1,G55) -> 0 | AN55: =(SUMPRODUCT((Planung!$AS$223:$AS$255=$B55)*(Planung!$AV$223:$AV$255)*(Planung!$B$223:$B$255))+SUMPRODUCT((Planung!$BA$223:$BA$255=$B55)*(Planung!$BD$223:$BD$255)*(Planung!$B$223:$B$255))+SUMPRODUCT((Planung!$BI$223:$BI$255=$B55)*(Planung!$BL$223:$BL$255)*(Planung!$B$223:$B$255))+SUMPRODUCT((Planung!$BQ$223:$BQ$255=$B55)*(Planung!$BT$223:$BT$255)*(Planung!$B$223:$B$255)))/IF(G55=0,1,G55) -> 0 | AO55: =(SUMPRODUCT((Planung!$AS$293:$AS$326=$B55)*(Planung!$AV$293:$AV$326)*(Planung!$B$293:$B$326))+SUMPRODUCT((Planung!$BA$293:$BA$326=$B55)*(Planung!$BD$293:$BD$326)*(Planung!$B$293:$B$326))+SUMPRODUCT((Planung!$BI$293:$BI$326=$B55)*(Planung!$BL$293:$BL$326)*(Planung!$B$293:$B$326))+SUMPRODUCT((Planung!$BQ$293:$BQ$326=$B55)*(Planung!$BT$293:$BT$326)*(Planung!$B$293:$B$326)))/IF(G55=0,1,G55) -> 0 | AP55: =(SUMPRODUCT((Planung!$AS$364:$AS$384=$B55)*(Planung!$AV$364:$AV$384)*(Planung!$B$364:$B$384))+SUMPRODUCT((Planung!$BA$364:$BA$384=$B55)*(Planung!$BD$364:$BD$384)*(Planung!$B$364:$B$384))+SUMPRODUCT((Planung!$BI$364:$BI$384=$B55)*(Planung!$BL$364:$BL$384)*(Planung!$B$364:$B$384))+SUMPRODUCT((Planung!$BQ$364:$BQ$384=$B55)*(Planung!$BT$364:$BT$384)*(Planung!$B$364:$B$384)))/IF(G55=0,1,G55) -> 0
C56: BESTELLUNG | O56: 0 | P56: 0 | Q56: 0 | W56: 0 | X56: 0 | Y56: 0 | Z56: 0 | AA56: 0 | AB56: 0 | AC56: 0 | AD56: 0 | AE56: 0 | AG56: 0 | AH56: 0 | AJ56: 0 | AK56: =(SUMPRODUCT((Planung!$AS$8:$AS$42=$B56)*(Planung!$AV$8:$AV$42)*(Planung!$B$8:$B$42))+SUMPRODUCT((Planung!$BA$8:$BA$42=$B56)*(Planung!$BD$8:$BD$42)*(Planung!$B$8:$B$42))+SUMPRODUCT((Planung!$BI$8:$BI$42=$B56)*(Planung!$BL$8:$BL$42)*(Planung!$B$8:$B$42))+SUMPRODUCT((Planung!$BQ$8:$BQ$42=$B56)*(Planung!$BT$8:$BT$42)*(Planung!$B$8:$B$42)))/IF(E56=0,1,E56) -> 0 | AL56: =(SUMPRODUCT((Planung!$AS$79:$AS$114=$B56)*(Planung!$AV$79:$AV$114)*(Planung!$B$79:$B$114))+SUMPRODUCT((Planung!$BA$79:$BA$114=$B56)*(Planung!$BD$79:$BD$114)*(Planung!$B$79:$B$114))+SUMPRODUCT((Planung!$BI$79:$BI$114=$B56)*(Planung!$BL$79:$BL$114)*(Planung!$B$79:$B$114))+SUMPRODUCT((Planung!$BQ$79:$BQ$114=$B56)*(Planung!$BT$79:$BT$114)*(Planung!$B$79:$B$114)))/IF(F56=0,1,F56) -> 0 | AM56: =(SUMPRODUCT((Planung!$AS$151:$AS$185=$B56)*(Planung!$AV$151:$AV$185)*(Planung!$B$151:$B$185))+SUMPRODUCT((Planung!$BA$151:$BA$185=$B56)*(Planung!$BD$151:$BD$185)*(Planung!$B$151:$B$185))+SUMPRODUCT((Planung!$BI$151:$BI$185=$B56)*(Planung!$BL$151:$BL$185)*(Planung!$B$151:$B$185))+SUMPRODUCT((Planung!$BQ$151:$BQ$185=$B56)*(Planung!$BT$151:$BT$185)*(Planung!$B$151:$B$185)))/IF(G56=0,1,G56) -> 0 | AN56: =(SUMPRODUCT((Planung!$AS$223:$AS$255=$B56)*(Planung!$AV$223:$AV$255)*(Planung!$B$223:$B$255))+SUMPRODUCT((Planung!$BA$223:$BA$255=$B56)*(Planung!$BD$223:$BD$255)*(Planung!$B$223:$B$255))+SUMPRODUCT((Planung!$BI$223:$BI$255=$B56)*(Planung!$BL$223:$BL$255)*(Planung!$B$223:$B$255))+SUMPRODUCT((Planung!$BQ$223:$BQ$255=$B56)*(Planung!$BT$223:$BT$255)*(Planung!$B$223:$B$255)))/IF(G56=0,1,G56) -> 0 | AO56: =(SUMPRODUCT((Planung!$AS$293:$AS$326=$B56)*(Planung!$AV$293:$AV$326)*(Planung!$B$293:$B$326))+SUMPRODUCT((Planung!$BA$293:$BA$326=$B56)*(Planung!$BD$293:$BD$326)*(Planung!$B$293:$B$326))+SUMPRODUCT((Planung!$BI$293:$BI$326=$B56)*(Planung!$BL$293:$BL$326)*(Planung!$B$293:$B$326))+SUMPRODUCT((Planung!$BQ$293:$BQ$326=$B56)*(Planung!$BT$293:$BT$326)*(Planung!$B$293:$B$326)))/IF(G56=0,1,G56) -> 0 | AP56: =(SUMPRODUCT((Planung!$AS$364:$AS$384=$B56)*(Planung!$AV$364:$AV$384)*(Planung!$B$364:$B$384))+SUMPRODUCT((Planung!$BA$364:$BA$384=$B56)*(Planung!$BD$364:$BD$384)*(Planung!$B$364:$B$384))+SUMPRODUCT((Planung!$BI$364:$BI$384=$B56)*(Planung!$BL$364:$BL$384)*(Planung!$B$364:$B$384))+SUMPRODUCT((Planung!$BQ$364:$BQ$384=$B56)*(Planung!$BT$364:$BT$384)*(Planung!$B$364:$B$384)))/IF(G56=0,1,G56) -> 0
B57: 11612 | O57: 0 | P57: 0 | Q57: 0 | W57: 0 | X57: =IF(U57=0,0,V57/U57) -> 0 | Y57: 0 | Z57: 0 | AA57: 0 | AB57: 0 | AC57: =IF(Y57=0,0,T57/Y57) -> 0 | AD57: 0 | AE57: =AD57+Q57 -> 0 | AG57: 0 | AH57: 0 | AJ57: 0 | AK57: =(SUMPRODUCT((Planung!$AS$8:$AS$42=$B57)*(Planung!$AV$8:$AV$42)*(Planung!$B$8:$B$42))+SUMPRODUCT((Planung!$BA$8:$BA$42=$B57)*(Planung!$BD$8:$BD$42)*(Planung!$B$8:$B$42))+SUMPRODUCT((Planung!$BI$8:$BI$42=$B57)*(Planung!$BL$8:$BL$42)*(Planung!$B$8:$B$42))+SUMPRODUCT((Planung!$BQ$8:$BQ$42=$B57)*(Planung!$BT$8:$BT$42)*(Planung!$B$8:$B$42)))/IF(E57=0,1,E57) -> 0 | AL57: =(SUMPRODUCT((Planung!$AS$79:$AS$114=$B57)*(Planung!$AV$79:$AV$114)*(Planung!$B$79:$B$114))+SUMPRODUCT((Planung!$BA$79:$BA$114=$B57)*(Planung!$BD$79:$BD$114)*(Planung!$B$79:$B$114))+SUMPRODUCT((Planung!$BI$79:$BI$114=$B57)*(Planung!$BL$79:$BL$114)*(Planung!$B$79:$B$114))+SUMPRODUCT((Planung!$BQ$79:$BQ$114=$B57)*(Planung!$BT$79:$BT$114)*(Planung!$B$79:$B$114)))/IF(F57=0,1,F57) -> 0 | AM57: =(SUMPRODUCT((Planung!$AS$151:$AS$185=$B57)*(Planung!$AV$151:$AV$185)*(Planung!$B$151:$B$185))+SUMPRODUCT((Planung!$BA$151:$BA$185=$B57)*(Planung!$BD$151:$BD$185)*(Planung!$B$151:$B$185))+SUMPRODUCT((Planung!$BI$151:$BI$185=$B57)*(Planung!$BL$151:$BL$185)*(Planung!$B$151:$B$185))+SUMPRODUCT((Planung!$BQ$151:$BQ$185=$B57)*(Planung!$BT$151:$BT$185)*(Planung!$B$151:$B$185)))/IF(G57=0,1,G57) -> 0 | AN57: =(SUMPRODUCT((Planung!$AS$223:$AS$255=$B57)*(Planung!$AV$223:$AV$255)*(Planung!$B$223:$B$255))+SUMPRODUCT((Planung!$BA$223:$BA$255=$B57)*(Planung!$BD$223:$BD$255)*(Planung!$B$223:$B$255))+SUMPRODUCT((Planung!$BI$223:$BI$255=$B57)*(Planung!$BL$223:$BL$255)*(Planung!$B$223:$B$255))+SUMPRODUCT((Planung!$BQ$223:$BQ$255=$B57)*(Planung!$BT$223:$BT$255)*(Planung!$B$223:$B$255)))/IF(G57=0,1,G57) -> 0 | AO57: =(SUMPRODUCT((Planung!$AS$293:$AS$326=$B57)*(Planung!$AV$293:$AV$326)*(Planung!$B$293:$B$326))+SUMPRODUCT((Planung!$BA$293:$BA$326=$B57)*(Planung!$BD$293:$BD$326)*(Planung!$B$293:$B$326))+SUMPRODUCT((Planung!$BI$293:$BI$326=$B57)*(Planung!$BL$293:$BL$326)*(Planung!$B$293:$B$326))+SUMPRODUCT((Planung!$BQ$293:$BQ$326=$B57)*(Planung!$BT$293:$BT$326)*(Planung!$B$293:$B$326)))/IF(G57=0,1,G57) -> 0 | AP57: =(SUMPRODUCT((Planung!$AS$364:$AS$384=$B57)*(Planung!$AV$364:$AV$384)*(Planung!$B$364:$B$384))+SUMPRODUCT((Planung!$BA$364:$BA$384=$B57)*(Planung!$BD$364:$BD$384)*(Planung!$B$364:$B$384))+SUMPRODUCT((Planung!$BI$364:$BI$384=$B57)*(Planung!$BL$364:$BL$384)*(Planung!$B$364:$B$384))+SUMPRODUCT((Planung!$BQ$364:$BQ$384=$B57)*(Planung!$BT$364:$BT$384)*(Planung!$B$364:$B$384)))/IF(G57=0,1,G57) -> 0
B58: 11613 | O58: =N58*PreisDiesel -> 0 | P58: =N58*AnteilOel*PreisOel -> 0 | Q58: 0 | W58: =IF(U58=0,0,(R58-S58)/U58) -> 0 | X58: =IF(U58=0,0,V58/U58) -> 0 | Y58: =INDEX(AG58:AP58,AuslastSel) -> 0 | Z58: =IF(X58=0,0,Y58/X58) -> 0 | AA58: =IF(OR(U58=0,X58=0,Z58=0),0,IF(Z58>1,(R58-S58)/V58,((R58-S58)/U58)/Y58)) -> 0 | AB58: =IF(OR(X58=0,Z58=0),0,((R58+S58)/2*Interest)/Y58) -> 0 | AC58: =IF(Y58=0,0,T58/Y58) -> 0 | AD58: =SUM(AA58:AC58) -> 0 | AE58: =AD58+Q58 -> 0 | AG58: =$X58*AH58 -> 0 | AH58: 0 | AJ58: =IF($X58=0,0,AI58/$X58) -> 0 | AK58: =(SUMPRODUCT((Planung!$AS$8:$AS$42=$B58)*(Planung!$AV$8:$AV$42)*(Planung!$B$8:$B$42))+SUMPRODUCT((Planung!$BA$8:$BA$42=$B58)*(Planung!$BD$8:$BD$42)*(Planung!$B$8:$B$42))+SUMPRODUCT((Planung!$BI$8:$BI$42=$B58)*(Planung!$BL$8:$BL$42)*(Planung!$B$8:$B$42))+SUMPRODUCT((Planung!$BQ$8:$BQ$42=$B58)*(Planung!$BT$8:$BT$42)*(Planung!$B$8:$B$42)))/IF(E58=0,1,E58) -> 0 | AL58: =(SUMPRODUCT((Planung!$AS$79:$AS$114=$B58)*(Planung!$AV$79:$AV$114)*(Planung!$B$79:$B$114))+SUMPRODUCT((Planung!$BA$79:$BA$114=$B58)*(Planung!$BD$79:$BD$114)*(Planung!$B$79:$B$114))+SUMPRODUCT((Planung!$BI$79:$BI$114=$B58)*(Planung!$BL$79:$BL$114)*(Planung!$B$79:$B$114))+SUMPRODUCT((Planung!$BQ$79:$BQ$114=$B58)*(Planung!$BT$79:$BT$114)*(Planung!$B$79:$B$114)))/IF(F58=0,1,F58) -> 0 | AM58: =(SUMPRODUCT((Planung!$AS$151:$AS$185=$B58)*(Planung!$AV$151:$AV$185)*(Planung!$B$151:$B$185))+SUMPRODUCT((Planung!$BA$151:$BA$185=$B58)*(Planung!$BD$151:$BD$185)*(Planung!$B$151:$B$185))+SUMPRODUCT((Planung!$BI$151:$BI$185=$B58)*(Planung!$BL$151:$BL$185)*(Planung!$B$151:$B$185))+SUMPRODUCT((Planung!$BQ$151:$BQ$185=$B58)*(Planung!$BT$151:$BT$185)*(Planung!$B$151:$B$185)))/IF(G58=0,1,G58) -> 0 | AN58: =(SUMPRODUCT((Planung!$AS$223:$AS$255=$B58)*(Planung!$AV$223:$AV$255)*(Planung!$B$223:$B$255))+SUMPRODUCT((Planung!$BA$223:$BA$255=$B58)*(Planung!$BD$223:$BD$255)*(Planung!$B$223:$B$255))+SUMPRODUCT((Planung!$BI$223:$BI$255=$B58)*(Planung!$BL$223:$BL$255)*(Planung!$B$223:$B$255))+SUMPRODUCT((Planung!$BQ$223:$BQ$255=$B58)*(Planung!$BT$223:$BT$255)*(Planung!$B$223:$B$255)))/IF(G58=0,1,G58) -> 0 | AO58: =(SUMPRODUCT((Planung!$AS$293:$AS$326=$B58)*(Planung!$AV$293:$AV$326)*(Planung!$B$293:$B$326))+SUMPRODUCT((Planung!$BA$293:$BA$326=$B58)*(Planung!$BD$293:$BD$326)*(Planung!$B$293:$B$326))+SUMPRODUCT((Planung!$BI$293:$BI$326=$B58)*(Planung!$BL$293:$BL$326)*(Planung!$B$293:$B$326))+SUMPRODUCT((Planung!$BQ$293:$BQ$326=$B58)*(Planung!$BT$293:$BT$326)*(Planung!$B$293:$B$326)))/IF(G58=0,1,G58) -> 0 | AP58: =(SUMPRODUCT((Planung!$AS$364:$AS$384=$B58)*(Planung!$AV$364:$AV$384)*(Planung!$B$364:$B$384))+SUMPRODUCT((Planung!$BA$364:$BA$384=$B58)*(Planung!$BD$364:$BD$384)*(Planung!$B$364:$B$384))+SUMPRODUCT((Planung!$BI$364:$BI$384=$B58)*(Planung!$BL$364:$BL$384)*(Planung!$B$364:$B$384))+SUMPRODUCT((Planung!$BQ$364:$BQ$384=$B58)*(Planung!$BT$364:$BT$384)*(Planung!$B$364:$B$384)))/IF(G58=0,1,G58) -> 0
B59: 11614 | C59: *Drillsaat mit 4m Bestellkombination passiv | D59: ha | E59: 1 | F59: 1 | G59: 1 | H59: 1 | I59: 1 | J59: 1 | K59: 8 | O59: =N59*PreisDiesel -> 0 | P59: =N59*AnteilOel*PreisOel -> 0 | Q59: =K59+L59+M59+O59+P59 -> 8 | R59: 70000 | S59: 14000 | U59: 10 | V59: 3500 | W59: =IF(U59=0,0,(R59-S59)/U59) -> 5600 | X59: =IF(U59=0,0,V59/U59) -> 350 | Y59: =INDEX(AG59:AP59,AuslastSel) -> 0 | Z59: =IF(X59=0,0,Y59/X59) -> 0 | AA59: =IF(OR(U59=0,X59=0,Z59=0),0,IF(Z59>1,(R59-S59)/V59,((R59-S59)/U59)/Y59)) -> 0 | AB59: =IF(OR(X59=0,Z59=0),0,((R59+S59)/2*Interest)/Y59) -> 0 | AC59: =IF(Y59=0,0,T59/Y59) -> 0 | AD59: =SUM(AA59:AC59) -> 0 | AE59: =AD59+Q59 -> 8 | AG59: =$X59*AH59 -> 280 | AH59: 0.8 | AI59: 250 | AJ59: =IF($X59=0,0,AI59/$X59) -> 0.7142857143 | AK59: =(SUMPRODUCT((Planung!$AS$8:$AS$42=$B59)*(Planung!$AV$8:$AV$42)*(Planung!$B$8:$B$42))+SUMPRODUCT((Planung!$BA$8:$BA$42=$B59)*(Planung!$BD$8:$BD$42)*(Planung!$B$8:$B$42))+SUMPRODUCT((Planung!$BI$8:$BI$42=$B59)*(Planung!$BL$8:$BL$42)*(Planung!$B$8:$B$42))+SUMPRODUCT((Planung!$BQ$8:$BQ$42=$B59)*(Planung!$BT$8:$BT$42)*(Planung!$B$8:$B$42)))/IF(E59=0,1,E59) -> 0 | AL59: =(SUMPRODUCT((Planung!$AS$79:$AS$114=$B59)*(Planung!$AV$79:$AV$114)*(Planung!$B$79:$B$114))+SUMPRODUCT((Planung!$BA$79:$BA$114=$B59)*(Planung!$BD$79:$BD$114)*(Planung!$B$79:$B$114))+SUMPRODUCT((Planung!$BI$79:$BI$114=$B59)*(Planung!$BL$79:$BL$114)*(Planung!$B$79:$B$114))+SUMPRODUCT((Planung!$BQ$79:$BQ$114=$B59)*(Planung!$BT$79:$BT$114)*(Planung!$B$79:$B$114)))/IF(F59=0,1,F59) -> 0 | AM59: =(SUMPRODUCT((Planung!$AS$151:$AS$185=$B59)*(Planung!$AV$151:$AV$185)*(Planung!$B$151:$B$185))+SUMPRODUCT((Planung!$BA$151:$BA$185=$B59)*(Planung!$BD$151:$BD$185)*(Planung!$B$151:$B$185))+SUMPRODUCT((Planung!$BI$151:$BI$185=$B59)*(Planung!$BL$151:$BL$185)*(Planung!$B$151:$B$185))+SUMPRODUCT((Planung!$BQ$151:$BQ$185=$B59)*(Planung!$BT$151:$BT$185)*(Planung!$B$151:$B$185)))/IF(G59=0,1,G59) -> 0 | AN59: =(SUMPRODUCT((Planung!$AS$223:$AS$255=$B59)*(Planung!$AV$223:$AV$255)*(Planung!$B$223:$B$255))+SUMPRODUCT((Planung!$BA$223:$BA$255=$B59)*(Planung!$BD$223:$BD$255)*(Planung!$B$223:$B$255))+SUMPRODUCT((Planung!$BI$223:$BI$255=$B59)*(Planung!$BL$223:$BL$255)*(Planung!$B$223:$B$255))+SUMPRODUCT((Planung!$BQ$223:$BQ$255=$B59)*(Planung!$BT$223:$BT$255)*(Planung!$B$223:$B$255)))/IF(G59=0,1,G59) -> 0 | AO59: =(SUMPRODUCT((Planung!$AS$293:$AS$326=$B59)*(Planung!$AV$293:$AV$326)*(Planung!$B$293:$B$326))+SUMPRODUCT((Planung!$BA$293:$BA$326=$B59)*(Planung!$BD$293:$BD$326)*(Planung!$B$293:$B$326))+SUMPRODUCT((Planung!$BI$293:$BI$326=$B59)*(Planung!$BL$293:$BL$326)*(Planung!$B$293:$B$326))+SUMPRODUCT((Planung!$BQ$293:$BQ$326=$B59)*(Planung!$BT$293:$BT$326)*(Planung!$B$293:$B$326)))/IF(G59=0,1,G59) -> 0 | AP59: =(SUMPRODUCT((Planung!$AS$364:$AS$384=$B59)*(Planung!$AV$364:$AV$384)*(Planung!$B$364:$B$384))+SUMPRODUCT((Planung!$BA$364:$BA$384=$B59)*(Planung!$BD$364:$BD$384)*(Planung!$B$364:$B$384))+SUMPRODUCT((Planung!$BI$364:$BI$384=$B59)*(Planung!$BL$364:$BL$384)*(Planung!$B$364:$B$384))+SUMPRODUCT((Planung!$BQ$364:$BQ$384=$B59)*(Planung!$BT$364:$BT$384)*(Planung!$B$364:$B$384)))/IF(G59=0,1,G59) -> 0
B60: 11617 | C60: *EK 8reihig Mais | D60: ha | E60: 1 | F60: 1 | G60: 1 | H60: 1 | I60: 1 | J60: 1 | K60: 8 | O60: =N60*PreisDiesel -> 0 | P60: =N60*AnteilOel*PreisOel -> 0 | Q60: =K60+L60+M60+O60+P60 -> 8 | R60: 37500 | S60: 7500 | U60: 8 | V60: 1500 | W60: =IF(U60=0,0,(R60-S60)/U60) -> 3750 | X60: =IF(U60=0,0,V60/U60) -> 187.5 | Y60: =INDEX(AG60:AP60,AuslastSel) -> 0 | Z60: =IF(X60=0,0,Y60/X60) -> 0 | AA60: =IF(OR(U60=0,X60=0,Z60=0),0,IF(Z60>1,(R60-S60)/V60,((R60-S60)/U60)/Y60)) -> 0 | AB60: =IF(OR(X60=0,Z60=0),0,((R60+S60)/2*Interest)/Y60) -> 0 | AC60: =IF(Y60=0,0,T60/Y60) -> 0 | AD60: =SUM(AA60:AC60) -> 0 | AE60: =AD60+Q60 -> 8 | AG60: =$X60*AH60 -> 150 | AH60: 0.8 | AI60: 130 | AJ60: =IF($X60=0,0,AI60/$X60) -> 0.6933333333 | AK60: =(SUMPRODUCT((Planung!$AS$8:$AS$42=$B60)*(Planung!$AV$8:$AV$42)*(Planung!$B$8:$B$42))+SUMPRODUCT((Planung!$BA$8:$BA$42=$B60)*(Planung!$BD$8:$BD$42)*(Planung!$B$8:$B$42))+SUMPRODUCT((Planung!$BI$8:$BI$42=$B60)*(Planung!$BL$8:$BL$42)*(Planung!$B$8:$B$42))+SUMPRODUCT((Planung!$BQ$8:$BQ$42=$B60)*(Planung!$BT$8:$BT$42)*(Planung!$B$8:$B$42)))/IF(E60=0,1,E60) -> 0 | AL60: =(SUMPRODUCT((Planung!$AS$79:$AS$114=$B60)*(Planung!$AV$79:$AV$114)*(Planung!$B$79:$B$114))+SUMPRODUCT((Planung!$BA$79:$BA$114=$B60)*(Planung!$BD$79:$BD$114)*(Planung!$B$79:$B$114))+SUMPRODUCT((Planung!$BI$79:$BI$114=$B60)*(Planung!$BL$79:$BL$114)*(Planung!$B$79:$B$114))+SUMPRODUCT((Planung!$BQ$79:$BQ$114=$B60)*(Planung!$BT$79:$BT$114)*(Planung!$B$79:$B$114)))/IF(F60=0,1,F60) -> 0 | AM60: =(SUMPRODUCT((Planung!$AS$151:$AS$185=$B60)*(Planung!$AV$151:$AV$185)*(Planung!$B$151:$B$185))+SUMPRODUCT((Planung!$BA$151:$BA$185=$B60)*(Planung!$BD$151:$BD$185)*(Planung!$B$151:$B$185))+SUMPRODUCT((Planung!$BI$151:$BI$185=$B60)*(Planung!$BL$151:$BL$185)*(Planung!$B$151:$B$185))+SUMPRODUCT((Planung!$BQ$151:$BQ$185=$B60)*(Planung!$BT$151:$BT$185)*(Planung!$B$151:$B$185)))/IF(G60=0,1,G60) -> 0 | AN60: =(SUMPRODUCT((Planung!$AS$223:$AS$255=$B60)*(Planung!$AV$223:$AV$255)*(Planung!$B$223:$B$255))+SUMPRODUCT((Planung!$BA$223:$BA$255=$B60)*(Planung!$BD$223:$BD$255)*(Planung!$B$223:$B$255))+SUMPRODUCT((Planung!$BI$223:$BI$255=$B60)*(Planung!$BL$223:$BL$255)*(Planung!$B$223:$B$255))+SUMPRODUCT((Planung!$BQ$223:$BQ$255=$B60)*(Planung!$BT$223:$BT$255)*(Planung!$B$223:$B$255)))/IF(G60=0,1,G60) -> 0 | AO60: =(SUMPRODUCT((Planung!$AS$293:$AS$326=$B60)*(Planung!$AV$293:$AV$326)*(Planung!$B$293:$B$326))+SUMPRODUCT((Planung!$BA$293:$BA$326=$B60)*(Planung!$BD$293:$BD$326)*(Planung!$B$293:$B$326))+SUMPRODUCT((Planung!$BI$293:$BI$326=$B60)*(Planung!$BL$293:$BL$326)*(Planung!$B$293:$B$326))+SUMPRODUCT((Planung!$BQ$293:$BQ$326=$B60)*(Planung!$BT$293:$BT$326)*(Planung!$B$293:$B$326)))/IF(G60=0,1,G60) -> 0 | AP60: =(SUMPRODUCT((Planung!$AS$364:$AS$384=$B60)*(Planung!$AV$364:$AV$384)*(Planung!$B$364:$B$384))+SUMPRODUCT((Planung!$BA$364:$BA$384=$B60)*(Planung!$BD$364:$BD$384)*(Planung!$B$364:$B$384))+SUMPRODUCT((Planung!$BI$364:$BI$384=$B60)*(Planung!$BL$364:$BL$384)*(Planung!$B$364:$B$384))+SUMPRODUCT((Planung!$BQ$364:$BQ$384=$B60)*(Planung!$BT$364:$BT$384)*(Planung!$B$364:$B$384)))/IF(G60=0,1,G60) -> 0
B61: 11616 | O61: =N61*PreisDiesel -> 0 | P61: =N61*AnteilOel*PreisOel -> 0 | Q61: =K61+L61+M61+O61+P61 -> 0 | W61: =IF(U61=0,0,(R61-S61)/U61) -> 0 | X61: =IF(U61=0,0,V61/U61) -> 0 | Y61: =INDEX(AG61:AP61,AuslastSel) -> 0 | Z61: =IF(X61=0,0,Y61/X61) -> 0 | AA61: =IF(OR(U61=0,X61=0,Z61=0),0,IF(Z61>1,(R61-S61)/V61,((R61-S61)/U61)/Y61)) -> 0 | AB61: =IF(OR(X61=0,Z61=0),0,((R61+S61)/2*Interest)/Y61) -> 0 | AC61: =IF(Y61=0,0,T61/Y61) -> 0 | AD61: =SUM(AA61:AC61) -> 0 | AE61: =AD61+Q61 -> 0 | AG61: =$X61*AH61 -> 0 | AH61: 0 | AJ61: =IF($X61=0,0,AI61/$X61) -> 0 | AK61: =(SUMPRODUCT((Planung!$AS$8:$AS$42=$B61)*(Planung!$AV$8:$AV$42)*(Planung!$B$8:$B$42))+SUMPRODUCT((Planung!$BA$8:$BA$42=$B61)*(Planung!$BD$8:$BD$42)*(Planung!$B$8:$B$42))+SUMPRODUCT((Planung!$BI$8:$BI$42=$B61)*(Planung!$BL$8:$BL$42)*(Planung!$B$8:$B$42))+SUMPRODUCT((Planung!$BQ$8:$BQ$42=$B61)*(Planung!$BT$8:$BT$42)*(Planung!$B$8:$B$42)))/IF(E61=0,1,E61) -> 0 | AL61: =(SUMPRODUCT((Planung!$AS$79:$AS$114=$B61)*(Planung!$AV$79:$AV$114)*(Planung!$B$79:$B$114))+SUMPRODUCT((Planung!$BA$79:$BA$114=$B61)*(Planung!$BD$79:$BD$114)*(Planung!$B$79:$B$114))+SUMPRODUCT((Planung!$BI$79:$BI$114=$B61)*(Planung!$BL$79:$BL$114)*(Planung!$B$79:$B$114))+SUMPRODUCT((Planung!$BQ$79:$BQ$114=$B61)*(Planung!$BT$79:$BT$114)*(Planung!$B$79:$B$114)))/IF(F61=0,1,F61) -> 0 | AM61: =(SUMPRODUCT((Planung!$AS$151:$AS$185=$B61)*(Planung!$AV$151:$AV$185)*(Planung!$B$151:$B$185))+SUMPRODUCT((Planung!$BA$151:$BA$185=$B61)*(Planung!$BD$151:$BD$185)*(Planung!$B$151:$B$185))+SUMPRODUCT((Planung!$BI$151:$BI$185=$B61)*(Planung!$BL$151:$BL$185)*(Planung!$B$151:$B$185))+SUMPRODUCT((Planung!$BQ$151:$BQ$185=$B61)*(Planung!$BT$151:$BT$185)*(Planung!$B$151:$B$185)))/IF(G61=0,1,G61) -> 0 | AN61: =(SUMPRODUCT((Planung!$AS$223:$AS$255=$B61)*(Planung!$AV$223:$AV$255)*(Planung!$B$223:$B$255))+SUMPRODUCT((Planung!$BA$223:$BA$255=$B61)*(Planung!$BD$223:$BD$255)*(Planung!$B$223:$B$255))+SUMPRODUCT((Planung!$BI$223:$BI$255=$B61)*(Planung!$BL$223:$BL$255)*(Planung!$B$223:$B$255))+SUMPRODUCT((Planung!$BQ$223:$BQ$255=$B61)*(Planung!$BT$223:$BT$255)*(Planung!$B$223:$B$255)))/IF(G61=0,1,G61) -> 0 | AO61: =(SUMPRODUCT((Planung!$AS$293:$AS$326=$B61)*(Planung!$AV$293:$AV$326)*(Planung!$B$293:$B$326))+SUMPRODUCT((Planung!$BA$293:$BA$326=$B61)*(Planung!$BD$293:$BD$326)*(Planung!$B$293:$B$326))+SUMPRODUCT((Planung!$BI$293:$BI$326=$B61)*(Planung!$BL$293:$BL$326)*(Planung!$B$293:$B$326))+SUMPRODUCT((Planung!$BQ$293:$BQ$326=$B61)*(Planung!$BT$293:$BT$326)*(Planung!$B$293:$B$326)))/IF(G61=0,1,G61) -> 0 | AP61: =(SUMPRODUCT((Planung!$AS$364:$AS$384=$B61)*(Planung!$AV$364:$AV$384)*(Planung!$B$364:$B$384))+SUMPRODUCT((Planung!$BA$364:$BA$384=$B61)*(Planung!$BD$364:$BD$384)*(Planung!$B$364:$B$384))+SUMPRODUCT((Planung!$BI$364:$BI$384=$B61)*(Planung!$BL$364:$BL$384)*(Planung!$B$364:$B$384))+SUMPRODUCT((Planung!$BQ$364:$BQ$384=$B61)*(Planung!$BT$364:$BT$384)*(Planung!$B$364:$B$384)))/IF(G61=0,1,G61) -> 0
B62: 11615 | O62: 0 | P62: 0 | Q62: 0 | W62: 0 | X62: 0 | Y62: 0 | Z62: 0 | AA62: 0 | AB62: 0 | AC62: 0 | AD62: 0 | AE62: 0 | AG62: 0 | AH62: 0 | AJ62: 0 | AK62: =(SUMPRODUCT((Planung!$AS$8:$AS$42=$B62)*(Planung!$AV$8:$AV$42)*(Planung!$B$8:$B$42))+SUMPRODUCT((Planung!$BA$8:$BA$42=$B62)*(Planung!$BD$8:$BD$42)*(Planung!$B$8:$B$42))+SUMPRODUCT((Planung!$BI$8:$BI$42=$B62)*(Planung!$BL$8:$BL$42)*(Planung!$B$8:$B$42))+SUMPRODUCT((Planung!$BQ$8:$BQ$42=$B62)*(Planung!$BT$8:$BT$42)*(Planung!$B$8:$B$42)))/IF(E62=0,1,E62) -> 0 | AL62: =(SUMPRODUCT((Planung!$AS$79:$AS$114=$B62)*(Planung!$AV$79:$AV$114)*(Planung!$B$79:$B$114))+SUMPRODUCT((Planung!$BA$79:$BA$114=$B62)*(Planung!$BD$79:$BD$114)*(Planung!$B$79:$B$114))+SUMPRODUCT((Planung!$BI$79:$BI$114=$B62)*(Planung!$BL$79:$BL$114)*(Planung!$B$79:$B$114))+SUMPRODUCT((Planung!$BQ$79:$BQ$114=$B62)*(Planung!$BT$79:$BT$114)*(Planung!$B$79:$B$114)))/IF(F62=0,1,F62) -> 0 | AM62: =(SUMPRODUCT((Planung!$AS$151:$AS$185=$B62)*(Planung!$AV$151:$AV$185)*(Planung!$B$151:$B$185))+SUMPRODUCT((Planung!$BA$151:$BA$185=$B62)*(Planung!$BD$151:$BD$185)*(Planung!$B$151:$B$185))+SUMPRODUCT((Planung!$BI$151:$BI$185=$B62)*(Planung!$BL$151:$BL$185)*(Planung!$B$151:$B$185))+SUMPRODUCT((Planung!$BQ$151:$BQ$185=$B62)*(Planung!$BT$151:$BT$185)*(Planung!$B$151:$B$185)))/IF(G62=0,1,G62) -> 0 | AN62: =(SUMPRODUCT((Planung!$AS$223:$AS$255=$B62)*(Planung!$AV$223:$AV$255)*(Planung!$B$223:$B$255))+SUMPRODUCT((Planung!$BA$223:$BA$255=$B62)*(Planung!$BD$223:$BD$255)*(Planung!$B$223:$B$255))+SUMPRODUCT((Planung!$BI$223:$BI$255=$B62)*(Planung!$BL$223:$BL$255)*(Planung!$B$223:$B$255))+SUMPRODUCT((Planung!$BQ$223:$BQ$255=$B62)*(Planung!$BT$223:$BT$255)*(Planung!$B$223:$B$255)))/IF(G62=0,1,G62) -> 0 | AO62: =(SUMPRODUCT((Planung!$AS$293:$AS$326=$B62)*(Planung!$AV$293:$AV$326)*(Planung!$B$293:$B$326))+SUMPRODUCT((Planung!$BA$293:$BA$326=$B62)*(Planung!$BD$293:$BD$326)*(Planung!$B$293:$B$326))+SUMPRODUCT((Planung!$BI$293:$BI$326=$B62)*(Planung!$BL$293:$BL$326)*(Planung!$B$293:$B$326))+SUMPRODUCT((Planung!$BQ$293:$BQ$326=$B62)*(Planung!$BT$293:$BT$326)*(Planung!$B$293:$B$326)))/IF(G62=0,1,G62) -> 0 | AP62: =(SUMPRODUCT((Planung!$AS$364:$AS$384=$B62)*(Planung!$AV$364:$AV$384)*(Planung!$B$364:$B$384))+SUMPRODUCT((Planung!$BA$364:$BA$384=$B62)*(Planung!$BD$364:$BD$384)*(Planung!$B$364:$B$384))+SUMPRODUCT((Planung!$BI$364:$BI$384=$B62)*(Planung!$BL$364:$BL$384)*(Planung!$B$364:$B$384))+SUMPRODUCT((Planung!$BQ$364:$BQ$384=$B62)*(Planung!$BT$364:$BT$384)*(Planung!$B$364:$B$384)))/IF(G62=0,1,G62) -> 0
C63: DÜNGUNG | O63: 0 | P63: 0 | Q63: 0 | S63: =R63*0.2 -> 0 | W63: 0 | X63: 0 | Y63: 0 | Z63: 0 | AA63: 0 | AB63: 0 | AC63: 0 | AD63: 0 | AE63: 0 | AG63: 0 | AH63: 0 | AJ63: 0 | AK63: =(SUMPRODUCT((Planung!$AS$8:$AS$42=$B63)*(Planung!$AV$8:$AV$42)*(Planung!$B$8:$B$42))+SUMPRODUCT((Planung!$BA$8:$BA$42=$B63)*(Planung!$BD$8:$BD$42)*(Planung!$B$8:$B$42))+SUMPRODUCT((Planung!$BI$8:$BI$42=$B63)*(Planung!$BL$8:$BL$42)*(Planung!$B$8:$B$42))+SUMPRODUCT((Planung!$BQ$8:$BQ$42=$B63)*(Planung!$BT$8:$BT$42)*(Planung!$B$8:$B$42)))/IF(E63=0,1,E63) -> 0 | AL63: =(SUMPRODUCT((Planung!$AS$79:$AS$114=$B63)*(Planung!$AV$79:$AV$114)*(Planung!$B$79:$B$114))+SUMPRODUCT((Planung!$BA$79:$BA$114=$B63)*(Planung!$BD$79:$BD$114)*(Planung!$B$79:$B$114))+SUMPRODUCT((Planung!$BI$79:$BI$114=$B63)*(Planung!$BL$79:$BL$114)*(Planung!$B$79:$B$114))+SUMPRODUCT((Planung!$BQ$79:$BQ$114=$B63)*(Planung!$BT$79:$BT$114)*(Planung!$B$79:$B$114)))/IF(F63=0,1,F63) -> 0 | AM63: =(SUMPRODUCT((Planung!$AS$151:$AS$185=$B63)*(Planung!$AV$151:$AV$185)*(Planung!$B$151:$B$185))+SUMPRODUCT((Planung!$BA$151:$BA$185=$B63)*(Planung!$BD$151:$BD$185)*(Planung!$B$151:$B$185))+SUMPRODUCT((Planung!$BI$151:$BI$185=$B63)*(Planung!$BL$151:$BL$185)*(Planung!$B$151:$B$185))+SUMPRODUCT((Planung!$BQ$151:$BQ$185=$B63)*(Planung!$BT$151:$BT$185)*(Planung!$B$151:$B$185)))/IF(G63=0,1,G63) -> 0 | AN63: =(SUMPRODUCT((Planung!$AS$223:$AS$255=$B63)*(Planung!$AV$223:$AV$255)*(Planung!$B$223:$B$255))+SUMPRODUCT((Planung!$BA$223:$BA$255=$B63)*(Planung!$BD$223:$BD$255)*(Planung!$B$223:$B$255))+SUMPRODUCT((Planung!$BI$223:$BI$255=$B63)*(Planung!$BL$223:$BL$255)*(Planung!$B$223:$B$255))+SUMPRODUCT((Planung!$BQ$223:$BQ$255=$B63)*(Planung!$BT$223:$BT$255)*(Planung!$B$223:$B$255)))/IF(G63=0,1,G63) -> 0 | AO63: =(SUMPRODUCT((Planung!$AS$293:$AS$326=$B63)*(Planung!$AV$293:$AV$326)*(Planung!$B$293:$B$326))+SUMPRODUCT((Planung!$BA$293:$BA$326=$B63)*(Planung!$BD$293:$BD$326)*(Planung!$B$293:$B$326))+SUMPRODUCT((Planung!$BI$293:$BI$326=$B63)*(Planung!$BL$293:$BL$326)*(Planung!$B$293:$B$326))+SUMPRODUCT((Planung!$BQ$293:$BQ$326=$B63)*(Planung!$BT$293:$BT$326)*(Planung!$B$293:$B$326)))/IF(G63=0,1,G63) -> 0 | AP63: =(SUMPRODUCT((Planung!$AS$364:$AS$384=$B63)*(Planung!$AV$364:$AV$384)*(Planung!$B$364:$B$384))+SUMPRODUCT((Planung!$BA$364:$BA$384=$B63)*(Planung!$BD$364:$BD$384)*(Planung!$B$364:$B$384))+SUMPRODUCT((Planung!$BI$364:$BI$384=$B63)*(Planung!$BL$364:$BL$384)*(Planung!$B$364:$B$384))+SUMPRODUCT((Planung!$BQ$364:$BQ$384=$B63)*(Planung!$BT$364:$BT$384)*(Planung!$B$364:$B$384)))/IF(G63=0,1,G63) -> 0
B64: 11713 | O64: 0 | P64: 0 | Q64: 0 | W64: 0 | X64: 0 | Y64: 0 | Z64: 0 | AA64: 0 | AB64: 0 | AC64: 0 | AD64: 0 | AE64: 0 | AG64: 0 | AH64: 0 | AJ64: 0 | AK64: =(SUMPRODUCT((Planung!$AS$8:$AS$42=$B64)*(Planung!$AV$8:$AV$42)*(Planung!$B$8:$B$42))+SUMPRODUCT((Planung!$BA$8:$BA$42=$B64)*(Planung!$BD$8:$BD$42)*(Planung!$B$8:$B$42))+SUMPRODUCT((Planung!$BI$8:$BI$42=$B64)*(Planung!$BL$8:$BL$42)*(Planung!$B$8:$B$42))+SUMPRODUCT((Planung!$BQ$8:$BQ$42=$B64)*(Planung!$BT$8:$BT$42)*(Planung!$B$8:$B$42)))/IF(E64=0,1,E64) -> 0 | AL64: =(SUMPRODUCT((Planung!$AS$79:$AS$114=$B64)*(Planung!$AV$79:$AV$114)*(Planung!$B$79:$B$114))+SUMPRODUCT((Planung!$BA$79:$BA$114=$B64)*(Planung!$BD$79:$BD$114)*(Planung!$B$79:$B$114))+SUMPRODUCT((Planung!$BI$79:$BI$114=$B64)*(Planung!$BL$79:$BL$114)*(Planung!$B$79:$B$114))+SUMPRODUCT((Planung!$BQ$79:$BQ$114=$B64)*(Planung!$BT$79:$BT$114)*(Planung!$B$79:$B$114)))/IF(F64=0,1,F64) -> 0 | AM64: =(SUMPRODUCT((Planung!$AS$151:$AS$185=$B64)*(Planung!$AV$151:$AV$185)*(Planung!$B$151:$B$185))+SUMPRODUCT((Planung!$BA$151:$BA$185=$B64)*(Planung!$BD$151:$BD$185)*(Planung!$B$151:$B$185))+SUMPRODUCT((Planung!$BI$151:$BI$185=$B64)*(Planung!$BL$151:$BL$185)*(Planung!$B$151:$B$185))+SUMPRODUCT((Planung!$BQ$151:$BQ$185=$B64)*(Planung!$BT$151:$BT$185)*(Planung!$B$151:$B$185)))/IF(G64=0,1,G64) -> 0 | AN64: =(SUMPRODUCT((Planung!$AS$223:$AS$255=$B64)*(Planung!$AV$223:$AV$255)*(Planung!$B$223:$B$255))+SUMPRODUCT((Planung!$BA$223:$BA$255=$B64)*(Planung!$BD$223:$BD$255)*(Planung!$B$223:$B$255))+SUMPRODUCT((Planung!$BI$223:$BI$255=$B64)*(Planung!$BL$223:$BL$255)*(Planung!$B$223:$B$255))+SUMPRODUCT((Planung!$BQ$223:$BQ$255=$B64)*(Planung!$BT$223:$BT$255)*(Planung!$B$223:$B$255)))/IF(G64=0,1,G64) -> 0 | AO64: =(SUMPRODUCT((Planung!$AS$293:$AS$326=$B64)*(Planung!$AV$293:$AV$326)*(Planung!$B$293:$B$326))+SUMPRODUCT((Planung!$BA$293:$BA$326=$B64)*(Planung!$BD$293:$BD$326)*(Planung!$B$293:$B$326))+SUMPRODUCT((Planung!$BI$293:$BI$326=$B64)*(Planung!$BL$293:$BL$326)*(Planung!$B$293:$B$326))+SUMPRODUCT((Planung!$BQ$293:$BQ$326=$B64)*(Planung!$BT$293:$BT$326)*(Planung!$B$293:$B$326)))/IF(G64=0,1,G64) -> 0 | AP64: =(SUMPRODUCT((Planung!$AS$364:$AS$384=$B64)*(Planung!$AV$364:$AV$384)*(Planung!$B$364:$B$384))+SUMPRODUCT((Planung!$BA$364:$BA$384=$B64)*(Planung!$BD$364:$BD$384)*(Planung!$B$364:$B$384))+SUMPRODUCT((Planung!$BI$364:$BI$384=$B64)*(Planung!$BL$364:$BL$384)*(Planung!$B$364:$B$384))+SUMPRODUCT((Planung!$BQ$364:$BQ$384=$B64)*(Planung!$BT$364:$BT$384)*(Planung!$B$364:$B$384)))/IF(G64=0,1,G64) -> 0
B65: 11716 | C65: *Düngerstreuer angeh. 8m³ | D65: t | E65: 1 | F65: 1 | G65: 1 | H65: 1 | I65: 1 | J65: 1 | K65: 0.25 | O65: =N65*PreisDiesel -> 0 | P65: =N65*AnteilOel*PreisOel -> 0 | Q65: =K65+L65+M65+O65+P65 -> 0.25 | R65: 48000 | S65: 9600 | U65: 10 | V65: 22500 | W65: =IF(U65=0,0,(R65-S65)/U65) -> 3840 | X65: =IF(U65=0,0,V65/U65) -> 2250 | Y65: =INDEX(AG65:AP65,AuslastSel) -> 0 | Z65: =IF(X65=0,0,Y65/X65) -> 0 | AA65: =IF(OR(U65=0,X65=0,Z65=0),0,IF(Z65>1,(R65-S65)/V65,((R65-S65)/U65)/Y65)) -> 0 | AB65: =IF(OR(X65=0,Z65=0),0,((R65+S65)/2*Interest)/Y65) -> 0 | AC65: =IF(Y65=0,0,T65/Y65) -> 0 | AD65: =SUM(AA65:AC65) -> 0 | AE65: =AD65+Q65 -> 0.25 | AG65: =$X65*AH65 -> 1800 | AH65: 0.8 | AI65: 200 | AJ65: =IF($X65=0,0,AI65/$X65) -> 0.08888888889 | AK65: =(SUMPRODUCT((Planung!$AS$8:$AS$42=$B65)*(Planung!$AV$8:$AV$42)*(Planung!$B$8:$B$42))+SUMPRODUCT((Planung!$BA$8:$BA$42=$B65)*(Planung!$BD$8:$BD$42)*(Planung!$B$8:$B$42))+SUMPRODUCT((Planung!$BI$8:$BI$42=$B65)*(Planung!$BL$8:$BL$42)*(Planung!$B$8:$B$42))+SUMPRODUCT((Planung!$BQ$8:$BQ$42=$B65)*(Planung!$BT$8:$BT$42)*(Planung!$B$8:$B$42)))/IF(E65=0,1,E65) -> 0 | AL65: =(SUMPRODUCT((Planung!$AS$79:$AS$114=$B65)*(Planung!$AV$79:$AV$114)*(Planung!$B$79:$B$114))+SUMPRODUCT((Planung!$BA$79:$BA$114=$B65)*(Planung!$BD$79:$BD$114)*(Planung!$B$79:$B$114))+SUMPRODUCT((Planung!$BI$79:$BI$114=$B65)*(Planung!$BL$79:$BL$114)*(Planung!$B$79:$B$114))+SUMPRODUCT((Planung!$BQ$79:$BQ$114=$B65)*(Planung!$BT$79:$BT$114)*(Planung!$B$79:$B$114)))/IF(F65=0,1,F65) -> 0 | AM65: =(SUMPRODUCT((Planung!$AS$151:$AS$185=$B65)*(Planung!$AV$151:$AV$185)*(Planung!$B$151:$B$185))+SUMPRODUCT((Planung!$BA$151:$BA$185=$B65)*(Planung!$BD$151:$BD$185)*(Planung!$B$151:$B$185))+SUMPRODUCT((Planung!$BI$151:$BI$185=$B65)*(Planung!$BL$151:$BL$185)*(Planung!$B$151:$B$185))+SUMPRODUCT((Planung!$BQ$151:$BQ$185=$B65)*(Planung!$BT$151:$BT$185)*(Planung!$B$151:$B$185)))/IF(G65=0,1,G65) -> 0 | AN65: =(SUMPRODUCT((Planung!$AS$223:$AS$255=$B65)*(Planung!$AV$223:$AV$255)*(Planung!$B$223:$B$255))+SUMPRODUCT((Planung!$BA$223:$BA$255=$B65)*(Planung!$BD$223:$BD$255)*(Planung!$B$223:$B$255))+SUMPRODUCT((Planung!$BI$223:$BI$255=$B65)*(Planung!$BL$223:$BL$255)*(Planung!$B$223:$B$255))+SUMPRODUCT((Planung!$BQ$223:$BQ$255=$B65)*(Planung!$BT$223:$BT$255)*(Planung!$B$223:$B$255)))/IF(G65=0,1,G65) -> 0 | AO65: =(SUMPRODUCT((Planung!$AS$293:$AS$326=$B65)*(Planung!$AV$293:$AV$326)*(Planung!$B$293:$B$326))+SUMPRODUCT((Planung!$BA$293:$BA$326=$B65)*(Planung!$BD$293:$BD$326)*(Planung!$B$293:$B$326))+SUMPRODUCT((Planung!$BI$293:$BI$326=$B65)*(Planung!$BL$293:$BL$326)*(Planung!$B$293:$B$326))+SUMPRODUCT((Planung!$BQ$293:$BQ$326=$B65)*(Planung!$BT$293:$BT$326)*(Planung!$B$293:$B$326)))/IF(G65=0,1,G65) -> 0 | AP65: =(SUMPRODUCT((Planung!$AS$364:$AS$384=$B65)*(Planung!$AV$364:$AV$384)*(Planung!$B$364:$B$384))+SUMPRODUCT((Planung!$BA$364:$BA$384=$B65)*(Planung!$BD$364:$BD$384)*(Planung!$B$364:$B$384))+SUMPRODUCT((Planung!$BI$364:$BI$384=$B65)*(Planung!$BL$364:$BL$384)*(Planung!$B$364:$B$384))+SUMPRODUCT((Planung!$BQ$364:$BQ$384=$B65)*(Planung!$BT$364:$BT$384)*(Planung!$B$364:$B$384)))/IF(G65=0,1,G65) -> 0
B66: 11714 | C66: *Gülleausbringfass 15m³ | D66: m³ | E66: 1 | F66: 1 | G66: 1 | H66: 1 | I66: 1 | J66: 1 | K66: 0.4 | O66: =N66*PreisDiesel -> 0 | P66: =N66*AnteilOel*PreisOel -> 0 | Q66: =K66+L66+M66+O66+P66 -> 0.4 | R66: 45000 | S66: 9000 | U66: 10 | V66: 150000 | W66: =IF(U66=0,0,(R66-S66)/U66) -> 3600 | X66: =IF(U66=0,0,V66/U66) -> 15000 | Y66: =INDEX(AG66:AP66,AuslastSel) -> 0 | Z66: =IF(X66=0,0,Y66/X66) -> 0 | AA66: =IF(OR(U66=0,X66=0,Z66=0),0,IF(Z66>1,(R66-S66)/V66,((R66-S66)/U66)/Y66)) -> 0 | AB66: =IF(OR(X66=0,Z66=0),0,((R66+S66)/2*Interest)/Y66) -> 0 | AC66: =IF(Y66=0,0,T66/Y66) -> 0 | AD66: =SUM(AA66:AC66) -> 0 | AE66: =AD66+Q66 -> 0.4 | AG66: =$X66*AH66 -> 12000 | AH66: 0.8 | AJ66: =IF($X66=0,0,AI66/$X66) -> 0 | AK66: =(SUMPRODUCT((Planung!$AS$8:$AS$42=$B66)*(Planung!$AV$8:$AV$42)*(Planung!$B$8:$B$42))+SUMPRODUCT((Planung!$BA$8:$BA$42=$B66)*(Planung!$BD$8:$BD$42)*(Planung!$B$8:$B$42))+SUMPRODUCT((Planung!$BI$8:$BI$42=$B66)*(Planung!$BL$8:$BL$42)*(Planung!$B$8:$B$42))+SUMPRODUCT((Planung!$BQ$8:$BQ$42=$B66)*(Planung!$BT$8:$BT$42)*(Planung!$B$8:$B$42)))/IF(E66=0,1,E66) -> 0 | AL66: =(SUMPRODUCT((Planung!$AS$79:$AS$114=$B66)*(Planung!$AV$79:$AV$114)*(Planung!$B$79:$B$114))+SUMPRODUCT((Planung!$BA$79:$BA$114=$B66)*(Planung!$BD$79:$BD$114)*(Planung!$B$79:$B$114))+SUMPRODUCT((Planung!$BI$79:$BI$114=$B66)*(Planung!$BL$79:$BL$114)*(Planung!$B$79:$B$114))+SUMPRODUCT((Planung!$BQ$79:$BQ$114=$B66)*(Planung!$BT$79:$BT$114)*(Planung!$B$79:$B$114)))/IF(F66=0,1,F66) -> 0 | AM66: =(SUMPRODUCT((Planung!$AS$151:$AS$185=$B66)*(Planung!$AV$151:$AV$185)*(Planung!$B$151:$B$185))+SUMPRODUCT((Planung!$BA$151:$BA$185=$B66)*(Planung!$BD$151:$BD$185)*(Planung!$B$151:$B$185))+SUMPRODUCT((Planung!$BI$151:$BI$185=$B66)*(Planung!$BL$151:$BL$185)*(Planung!$B$151:$B$185))+SUMPRODUCT((Planung!$BQ$151:$BQ$185=$B66)*(Planung!$BT$151:$BT$185)*(Planung!$B$151:$B$185)))/IF(G66=0,1,G66) -> 0 | AN66: =(SUMPRODUCT((Planung!$AS$223:$AS$255=$B66)*(Planung!$AV$223:$AV$255)*(Planung!$B$223:$B$255))+SUMPRODUCT((Planung!$BA$223:$BA$255=$B66)*(Planung!$BD$223:$BD$255)*(Planung!$B$223:$B$255))+SUMPRODUCT((Planung!$BI$223:$BI$255=$B66)*(Planung!$BL$223:$BL$255)*(Planung!$B$223:$B$255))+SUMPRODUCT((Planung!$BQ$223:$BQ$255=$B66)*(Planung!$BT$223:$BT$255)*(Planung!$B$223:$B$255)))/IF(G66=0,1,G66) -> 0 | AO66: =(SUMPRODUCT((Planung!$AS$293:$AS$326=$B66)*(Planung!$AV$293:$AV$326)*(Planung!$B$293:$B$326))+SUMPRODUCT((Planung!$BA$293:$BA$326=$B66)*(Planung!$BD$293:$BD$326)*(Planung!$B$293:$B$326))+SUMPRODUCT((Planung!$BI$293:$BI$326=$B66)*(Planung!$BL$293:$BL$326)*(Planung!$B$293:$B$326))+SUMPRODUCT((Planung!$BQ$293:$BQ$326=$B66)*(Planung!$BT$293:$BT$326)*(Planung!$B$293:$B$326)))/IF(G66=0,1,G66) -> 0 | AP66: =(SUMPRODUCT((Planung!$AS$364:$AS$384=$B66)*(Planung!$AV$364:$AV$384)*(Planung!$B$364:$B$384))+SUMPRODUCT((Planung!$BA$364:$BA$384=$B66)*(Planung!$BD$364:$BD$384)*(Planung!$B$364:$B$384))+SUMPRODUCT((Planung!$BI$364:$BI$384=$B66)*(Planung!$BL$364:$BL$384)*(Planung!$B$364:$B$384))+SUMPRODUCT((Planung!$BQ$364:$BQ$384=$B66)*(Planung!$BT$364:$BT$384)*(Planung!$B$364:$B$384)))/IF(G66=0,1,G66) -> 0
B67: 11715 | C67: *Schleppschuhverteiler 18m | D67: ha | E67: 1 | F67: 1 | G67: 1 | H67: 1 | I67: 1 | J67: 1 | K67: 3 | O67: =N67*PreisDiesel -> 0 | P67: =N67*AnteilOel*PreisOel -> 0 | Q67: =K67+L67+M67+O67+P67 -> 3 | R67: 42000 | S67: 8400 | U67: 10 | V67: 12000 | W67: =IF(U67=0,0,(R67-S67)/U67) -> 3360 | X67: =IF(U67=0,0,V67/U67) -> 1200 | Y67: =INDEX(AG67:AP67,AuslastSel) -> 0 | Z67: =IF(X67=0,0,Y67/X67) -> 0 | AA67: =IF(OR(U67=0,X67=0,Z67=0),0,IF(Z67>1,(R67-S67)/V67,((R67-S67)/U67)/Y67)) -> 0 | AB67: =IF(OR(X67=0,Z67=0),0,((R67+S67)/2*Interest)/Y67) -> 0 | AC67: =IF(Y67=0,0,T67/Y67) -> 0 | AD67: =SUM(AA67:AC67) -> 0 | AE67: =AD67+Q67 -> 3 | AG67: =$X67*AH67 -> 960 | AH67: 0.8 | AJ67: =IF($X67=0,0,AI67/$X67) -> 0 | AK67: =(SUMPRODUCT((Planung!$AS$8:$AS$42=$B67)*(Planung!$AV$8:$AV$42)*(Planung!$B$8:$B$42))+SUMPRODUCT((Planung!$BA$8:$BA$42=$B67)*(Planung!$BD$8:$BD$42)*(Planung!$B$8:$B$42))+SUMPRODUCT((Planung!$BI$8:$BI$42=$B67)*(Planung!$BL$8:$BL$42)*(Planung!$B$8:$B$42))+SUMPRODUCT((Planung!$BQ$8:$BQ$42=$B67)*(Planung!$BT$8:$BT$42)*(Planung!$B$8:$B$42)))/IF(E67=0,1,E67) -> 0 | AL67: =(SUMPRODUCT((Planung!$AS$79:$AS$114=$B67)*(Planung!$AV$79:$AV$114)*(Planung!$B$79:$B$114))+SUMPRODUCT((Planung!$BA$79:$BA$114=$B67)*(Planung!$BD$79:$BD$114)*(Planung!$B$79:$B$114))+SUMPRODUCT((Planung!$BI$79:$BI$114=$B67)*(Planung!$BL$79:$BL$114)*(Planung!$B$79:$B$114))+SUMPRODUCT((Planung!$BQ$79:$BQ$114=$B67)*(Planung!$BT$79:$BT$114)*(Planung!$B$79:$B$114)))/IF(F67=0,1,F67) -> 0 | AM67: =(SUMPRODUCT((Planung!$AS$151:$AS$185=$B67)*(Planung!$AV$151:$AV$185)*(Planung!$B$151:$B$185))+SUMPRODUCT((Planung!$BA$151:$BA$185=$B67)*(Planung!$BD$151:$BD$185)*(Planung!$B$151:$B$185))+SUMPRODUCT((Planung!$BI$151:$BI$185=$B67)*(Planung!$BL$151:$BL$185)*(Planung!$B$151:$B$185))+SUMPRODUCT((Planung!$BQ$151:$BQ$185=$B67)*(Planung!$BT$151:$BT$185)*(Planung!$B$151:$B$185)))/IF(G67=0,1,G67) -> 0 | AN67: =(SUMPRODUCT((Planung!$AS$223:$AS$255=$B67)*(Planung!$AV$223:$AV$255)*(Planung!$B$223:$B$255))+SUMPRODUCT((Planung!$BA$223:$BA$255=$B67)*(Planung!$BD$223:$BD$255)*(Planung!$B$223:$B$255))+SUMPRODUCT((Planung!$BI$223:$BI$255=$B67)*(Planung!$BL$223:$BL$255)*(Planung!$B$223:$B$255))+SUMPRODUCT((Planung!$BQ$223:$BQ$255=$B67)*(Planung!$BT$223:$BT$255)*(Planung!$B$223:$B$255)))/IF(G67=0,1,G67) -> 0 | AO67: =(SUMPRODUCT((Planung!$AS$293:$AS$326=$B67)*(Planung!$AV$293:$AV$326)*(Planung!$B$293:$B$326))+SUMPRODUCT((Planung!$BA$293:$BA$326=$B67)*(Planung!$BD$293:$BD$326)*(Planung!$B$293:$B$326))+SUMPRODUCT((Planung!$BI$293:$BI$326=$B67)*(Planung!$BL$293:$BL$326)*(Planung!$B$293:$B$326))+SUMPRODUCT((Planung!$BQ$293:$BQ$326=$B67)*(Planung!$BT$293:$BT$326)*(Planung!$B$293:$B$326)))/IF(G67=0,1,G67) -> 0 | AP67: =(SUMPRODUCT((Planung!$AS$364:$AS$384=$B67)*(Planung!$AV$364:$AV$384)*(Planung!$B$364:$B$384))+SUMPRODUCT((Planung!$BA$364:$BA$384=$B67)*(Planung!$BD$364:$BD$384)*(Planung!$B$364:$B$384))+SUMPRODUCT((Planung!$BI$364:$BI$384=$B67)*(Planung!$BL$364:$BL$384)*(Planung!$B$364:$B$384))+SUMPRODUCT((Planung!$BQ$364:$BQ$384=$B67)*(Planung!$BT$364:$BT$384)*(Planung!$B$364:$B$384)))/IF(G67=0,1,G67) -> 0
B68: 11718 | O68: 0 | P68: 0 | Q68: 0 | W68: 0 | X68: 0 | Y68: 0 | Z68: 0 | AA68: 0 | AB68: 0 | AC68: 0 | AD68: 0 | AE68: 0 | AG68: 0 | AH68: 0 | AJ68: 0 | AK68: =(SUMPRODUCT((Planung!$AS$8:$AS$42=$B68)*(Planung!$AV$8:$AV$42)*(Planung!$B$8:$B$42))+SUMPRODUCT((Planung!$BA$8:$BA$42=$B68)*(Planung!$BD$8:$BD$42)*(Planung!$B$8:$B$42))+SUMPRODUCT((Planung!$BI$8:$BI$42=$B68)*(Planung!$BL$8:$BL$42)*(Planung!$B$8:$B$42))+SUMPRODUCT((Planung!$BQ$8:$BQ$42=$B68)*(Planung!$BT$8:$BT$42)*(Planung!$B$8:$B$42)))/IF(E68=0,1,E68) -> 0 | AL68: =(SUMPRODUCT((Planung!$AS$79:$AS$114=$B68)*(Planung!$AV$79:$AV$114)*(Planung!$B$79:$B$114))+SUMPRODUCT((Planung!$BA$79:$BA$114=$B68)*(Planung!$BD$79:$BD$114)*(Planung!$B$79:$B$114))+SUMPRODUCT((Planung!$BI$79:$BI$114=$B68)*(Planung!$BL$79:$BL$114)*(Planung!$B$79:$B$114))+SUMPRODUCT((Planung!$BQ$79:$BQ$114=$B68)*(Planung!$BT$79:$BT$114)*(Planung!$B$79:$B$114)))/IF(F68=0,1,F68) -> 0 | AM68: =(SUMPRODUCT((Planung!$AS$151:$AS$185=$B68)*(Planung!$AV$151:$AV$185)*(Planung!$B$151:$B$185))+SUMPRODUCT((Planung!$BA$151:$BA$185=$B68)*(Planung!$BD$151:$BD$185)*(Planung!$B$151:$B$185))+SUMPRODUCT((Planung!$BI$151:$BI$185=$B68)*(Planung!$BL$151:$BL$185)*(Planung!$B$151:$B$185))+SUMPRODUCT((Planung!$BQ$151:$BQ$185=$B68)*(Planung!$BT$151:$BT$185)*(Planung!$B$151:$B$185)))/IF(G68=0,1,G68) -> 0 | AN68: =(SUMPRODUCT((Planung!$AS$223:$AS$255=$B68)*(Planung!$AV$223:$AV$255)*(Planung!$B$223:$B$255))+SUMPRODUCT((Planung!$BA$223:$BA$255=$B68)*(Planung!$BD$223:$BD$255)*(Planung!$B$223:$B$255))+SUMPRODUCT((Planung!$BI$223:$BI$255=$B68)*(Planung!$BL$223:$BL$255)*(Planung!$B$223:$B$255))+SUMPRODUCT((Planung!$BQ$223:$BQ$255=$B68)*(Planung!$BT$223:$BT$255)*(Planung!$B$223:$B$255)))/IF(G68=0,1,G68) -> 0 | AO68: =(SUMPRODUCT((Planung!$AS$293:$AS$326=$B68)*(Planung!$AV$293:$AV$326)*(Planung!$B$293:$B$326))+SUMPRODUCT((Planung!$BA$293:$BA$326=$B68)*(Planung!$BD$293:$BD$326)*(Planung!$B$293:$B$326))+SUMPRODUCT((Planung!$BI$293:$BI$326=$B68)*(Planung!$BL$293:$BL$326)*(Planung!$B$293:$B$326))+SUMPRODUCT((Planung!$BQ$293:$BQ$326=$B68)*(Planung!$BT$293:$BT$326)*(Planung!$B$293:$B$326)))/IF(G68=0,1,G68) -> 0 | AP68: =(SUMPRODUCT((Planung!$AS$364:$AS$384=$B68)*(Planung!$AV$364:$AV$384)*(Planung!$B$364:$B$384))+SUMPRODUCT((Planung!$BA$364:$BA$384=$B68)*(Planung!$BD$364:$BD$384)*(Planung!$B$364:$B$384))+SUMPRODUCT((Planung!$BI$364:$BI$384=$B68)*(Planung!$BL$364:$BL$384)*(Planung!$B$364:$B$384))+SUMPRODUCT((Planung!$BQ$364:$BQ$384=$B68)*(Planung!$BT$364:$BT$384)*(Planung!$B$364:$B$384)))/IF(G68=0,1,G68) -> 0
C69: PS & PFLEGE | O69: 0 | P69: 0 | Q69: 0 | W69: 0 | X69: 0 | Y69: 0 | Z69: 0 | AA69: 0 | AB69: 0 | AC69: 0 | AD69: 0 | AE69: 0 | AG69: 0 | AH69: 0 | AJ69: 0 | AK69: =(SUMPRODUCT((Planung!$AS$8:$AS$42=$B69)*(Planung!$AV$8:$AV$42)*(Planung!$B$8:$B$42))+SUMPRODUCT((Planung!$BA$8:$BA$42=$B69)*(Planung!$BD$8:$BD$42)*(Planung!$B$8:$B$42))+SUMPRODUCT((Planung!$BI$8:$BI$42=$B69)*(Planung!$BL$8:$BL$42)*(Planung!$B$8:$B$42))+SUMPRODUCT((Planung!$BQ$8:$BQ$42=$B69)*(Planung!$BT$8:$BT$42)*(Planung!$B$8:$B$42)))/IF(E69=0,1,E69) -> 0 | AL69: =(SUMPRODUCT((Planung!$AS$79:$AS$114=$B69)*(Planung!$AV$79:$AV$114)*(Planung!$B$79:$B$114))+SUMPRODUCT((Planung!$BA$79:$BA$114=$B69)*(Planung!$BD$79:$BD$114)*(Planung!$B$79:$B$114))+SUMPRODUCT((Planung!$BI$79:$BI$114=$B69)*(Planung!$BL$79:$BL$114)*(Planung!$B$79:$B$114))+SUMPRODUCT((Planung!$BQ$79:$BQ$114=$B69)*(Planung!$BT$79:$BT$114)*(Planung!$B$79:$B$114)))/IF(F69=0,1,F69) -> 0 | AM69: =(SUMPRODUCT((Planung!$AS$151:$AS$185=$B69)*(Planung!$AV$151:$AV$185)*(Planung!$B$151:$B$185))+SUMPRODUCT((Planung!$BA$151:$BA$185=$B69)*(Planung!$BD$151:$BD$185)*(Planung!$B$151:$B$185))+SUMPRODUCT((Planung!$BI$151:$BI$185=$B69)*(Planung!$BL$151:$BL$185)*(Planung!$B$151:$B$185))+SUMPRODUCT((Planung!$BQ$151:$BQ$185=$B69)*(Planung!$BT$151:$BT$185)*(Planung!$B$151:$B$185)))/IF(G69=0,1,G69) -> 0 | AN69: =(SUMPRODUCT((Planung!$AS$223:$AS$255=$B69)*(Planung!$AV$223:$AV$255)*(Planung!$B$223:$B$255))+SUMPRODUCT((Planung!$BA$223:$BA$255=$B69)*(Planung!$BD$223:$BD$255)*(Planung!$B$223:$B$255))+SUMPRODUCT((Planung!$BI$223:$BI$255=$B69)*(Planung!$BL$223:$BL$255)*(Planung!$B$223:$B$255))+SUMPRODUCT((Planung!$BQ$223:$BQ$255=$B69)*(Planung!$BT$223:$BT$255)*(Planung!$B$223:$B$255)))/IF(G69=0,1,G69) -> 0 | AO69: =(SUMPRODUCT((Planung!$AS$293:$AS$326=$B69)*(Planung!$AV$293:$AV$326)*(Planung!$B$293:$B$326))+SUMPRODUCT((Planung!$BA$293:$BA$326=$B69)*(Planung!$BD$293:$BD$326)*(Planung!$B$293:$B$326))+SUMPRODUCT((Planung!$BI$293:$BI$326=$B69)*(Planung!$BL$293:$BL$326)*(Planung!$B$293:$B$326))+SUMPRODUCT((Planung!$BQ$293:$BQ$326=$B69)*(Planung!$BT$293:$BT$326)*(Planung!$B$293:$B$326)))/IF(G69=0,1,G69) -> 0 | AP69: =(SUMPRODUCT((Planung!$AS$364:$AS$384=$B69)*(Planung!$AV$364:$AV$384)*(Planung!$B$364:$B$384))+SUMPRODUCT((Planung!$BA$364:$BA$384=$B69)*(Planung!$BD$364:$BD$384)*(Planung!$B$364:$B$384))+SUMPRODUCT((Planung!$BI$364:$BI$384=$B69)*(Planung!$BL$364:$BL$384)*(Planung!$B$364:$B$384))+SUMPRODUCT((Planung!$BQ$364:$BQ$384=$B69)*(Planung!$BT$364:$BT$384)*(Planung!$B$364:$B$384)))/IF(G69=0,1,G69) -> 0
B70: 11821 | O70: =N70*PreisDiesel -> 0 | P70: =N70*AnteilOel*PreisOel -> 0 | Q70: 0 | W70: =IF(U70=0,0,(R70-S70)/U70) -> 0 | X70: =IF(U70=0,0,V70/U70) -> 0 | Y70: =INDEX(AG70:AP70,AuslastSel) -> 0 | Z70: =IF(X70=0,0,Y70/X70) -> 0 | AA70: =IF(OR(U70=0,X70=0,Z70=0),0,IF(Z70>1,(R70-S70)/V70,((R70-S70)/U70)/Y70)) -> 0 | AB70: =IF(OR(X70=0,Z70=0),0,((R70+S70)/2*Interest)/Y70) -> 0 | AC70: =IF(Y70=0,0,T70/Y70) -> 0 | AD70: =SUM(AA70:AC70) -> 0 | AE70: =AD70+Q70 -> 0 | AG70: =$X70*AH70 -> 0 | AH70: 0 | AJ70: =IF($X70=0,0,AI70/$X70) -> 0 | AK70: =(SUMPRODUCT((Planung!$AS$8:$AS$42=$B70)*(Planung!$AV$8:$AV$42)*(Planung!$B$8:$B$42))+SUMPRODUCT((Planung!$BA$8:$BA$42=$B70)*(Planung!$BD$8:$BD$42)*(Planung!$B$8:$B$42))+SUMPRODUCT((Planung!$BI$8:$BI$42=$B70)*(Planung!$BL$8:$BL$42)*(Planung!$B$8:$B$42))+SUMPRODUCT((Planung!$BQ$8:$BQ$42=$B70)*(Planung!$BT$8:$BT$42)*(Planung!$B$8:$B$42)))/IF(E70=0,1,E70) -> 0 | AL70: =(SUMPRODUCT((Planung!$AS$79:$AS$114=$B70)*(Planung!$AV$79:$AV$114)*(Planung!$B$79:$B$114))+SUMPRODUCT((Planung!$BA$79:$BA$114=$B70)*(Planung!$BD$79:$BD$114)*(Planung!$B$79:$B$114))+SUMPRODUCT((Planung!$BI$79:$BI$114=$B70)*(Planung!$BL$79:$BL$114)*(Planung!$B$79:$B$114))+SUMPRODUCT((Planung!$BQ$79:$BQ$114=$B70)*(Planung!$BT$79:$BT$114)*(Planung!$B$79:$B$114)))/IF(F70=0,1,F70) -> 0 | AM70: =(SUMPRODUCT((Planung!$AS$151:$AS$185=$B70)*(Planung!$AV$151:$AV$185)*(Planung!$B$151:$B$185))+SUMPRODUCT((Planung!$BA$151:$BA$185=$B70)*(Planung!$BD$151:$BD$185)*(Planung!$B$151:$B$185))+SUMPRODUCT((Planung!$BI$151:$BI$185=$B70)*(Planung!$BL$151:$BL$185)*(Planung!$B$151:$B$185))+SUMPRODUCT((Planung!$BQ$151:$BQ$185=$B70)*(Planung!$BT$151:$BT$185)*(Planung!$B$151:$B$185)))/IF(G70=0,1,G70) -> 0 | AN70: =(SUMPRODUCT((Planung!$AS$223:$AS$255=$B70)*(Planung!$AV$223:$AV$255)*(Planung!$B$223:$B$255))+SUMPRODUCT((Planung!$BA$223:$BA$255=$B70)*(Planung!$BD$223:$BD$255)*(Planung!$B$223:$B$255))+SUMPRODUCT((Planung!$BI$223:$BI$255=$B70)*(Planung!$BL$223:$BL$255)*(Planung!$B$223:$B$255))+SUMPRODUCT((Planung!$BQ$223:$BQ$255=$B70)*(Planung!$BT$223:$BT$255)*(Planung!$B$223:$B$255)))/IF(G70=0,1,G70) -> 0 | AO70: =(SUMPRODUCT((Planung!$AS$293:$AS$326=$B70)*(Planung!$AV$293:$AV$326)*(Planung!$B$293:$B$326))+SUMPRODUCT((Planung!$BA$293:$BA$326=$B70)*(Planung!$BD$293:$BD$326)*(Planung!$B$293:$B$326))+SUMPRODUCT((Planung!$BI$293:$BI$326=$B70)*(Planung!$BL$293:$BL$326)*(Planung!$B$293:$B$326))+SUMPRODUCT((Planung!$BQ$293:$BQ$326=$B70)*(Planung!$BT$293:$BT$326)*(Planung!$B$293:$B$326)))/IF(G70=0,1,G70) -> 0 | AP70: =(SUMPRODUCT((Planung!$AS$364:$AS$384=$B70)*(Planung!$AV$364:$AV$384)*(Planung!$B$364:$B$384))+SUMPRODUCT((Planung!$BA$364:$BA$384=$B70)*(Planung!$BD$364:$BD$384)*(Planung!$B$364:$B$384))+SUMPRODUCT((Planung!$BI$364:$BI$384=$B70)*(Planung!$BL$364:$BL$384)*(Planung!$B$364:$B$384))+SUMPRODUCT((Planung!$BQ$364:$BQ$384=$B70)*(Planung!$BT$364:$BT$384)*(Planung!$B$364:$B$384)))/IF(G70=0,1,G70) -> 0
C71: PS & PFLEGE | O71: 0 | P71: 0 | Q71: 0 | W71: 0 | X71: 0 | Y71: 0 | Z71: 0 | AA71: 0 | AB71: 0 | AC71: 0 | AD71: 0 | AE71: 0 | AG71: 0 | AH71: 0 | AJ71: 0 | AK71: =(SUMPRODUCT((Planung!$AS$8:$AS$42=$B71)*(Planung!$AV$8:$AV$42)*(Planung!$B$8:$B$42))+SUMPRODUCT((Planung!$BA$8:$BA$42=$B71)*(Planung!$BD$8:$BD$42)*(Planung!$B$8:$B$42))+SUMPRODUCT((Planung!$BI$8:$BI$42=$B71)*(Planung!$BL$8:$BL$42)*(Planung!$B$8:$B$42))+SUMPRODUCT((Planung!$BQ$8:$BQ$42=$B71)*(Planung!$BT$8:$BT$42)*(Planung!$B$8:$B$42)))/IF(E71=0,1,E71) -> 0 | AL71: =(SUMPRODUCT((Planung!$AS$79:$AS$114=$B71)*(Planung!$AV$79:$AV$114)*(Planung!$B$79:$B$114))+SUMPRODUCT((Planung!$BA$79:$BA$114=$B71)*(Planung!$BD$79:$BD$114)*(Planung!$B$79:$B$114))+SUMPRODUCT((Planung!$BI$79:$BI$114=$B71)*(Planung!$BL$79:$BL$114)*(Planung!$B$79:$B$114))+SUMPRODUCT((Planung!$BQ$79:$BQ$114=$B71)*(Planung!$BT$79:$BT$114)*(Planung!$B$79:$B$114)))/IF(F71=0,1,F71) -> 0 | AM71: =(SUMPRODUCT((Planung!$AS$151:$AS$185=$B71)*(Planung!$AV$151:$AV$185)*(Planung!$B$151:$B$185))+SUMPRODUCT((Planung!$BA$151:$BA$185=$B71)*(Planung!$BD$151:$BD$185)*(Planung!$B$151:$B$185))+SUMPRODUCT((Planung!$BI$151:$BI$185=$B71)*(Planung!$BL$151:$BL$185)*(Planung!$B$151:$B$185))+SUMPRODUCT((Planung!$BQ$151:$BQ$185=$B71)*(Planung!$BT$151:$BT$185)*(Planung!$B$151:$B$185)))/IF(G71=0,1,G71) -> 0 | AN71: =(SUMPRODUCT((Planung!$AS$223:$AS$255=$B71)*(Planung!$AV$223:$AV$255)*(Planung!$B$223:$B$255))+SUMPRODUCT((Planung!$BA$223:$BA$255=$B71)*(Planung!$BD$223:$BD$255)*(Planung!$B$223:$B$255))+SUMPRODUCT((Planung!$BI$223:$BI$255=$B71)*(Planung!$BL$223:$BL$255)*(Planung!$B$223:$B$255))+SUMPRODUCT((Planung!$BQ$223:$BQ$255=$B71)*(Planung!$BT$223:$BT$255)*(Planung!$B$223:$B$255)))/IF(G71=0,1,G71) -> 0 | AO71: =(SUMPRODUCT((Planung!$AS$293:$AS$326=$B71)*(Planung!$AV$293:$AV$326)*(Planung!$B$293:$B$326))+SUMPRODUCT((Planung!$BA$293:$BA$326=$B71)*(Planung!$BD$293:$BD$326)*(Planung!$B$293:$B$326))+SUMPRODUCT((Planung!$BI$293:$BI$326=$B71)*(Planung!$BL$293:$BL$326)*(Planung!$B$293:$B$326))+SUMPRODUCT((Planung!$BQ$293:$BQ$326=$B71)*(Planung!$BT$293:$BT$326)*(Planung!$B$293:$B$326)))/IF(G71=0,1,G71) -> 0 | AP71: =(SUMPRODUCT((Planung!$AS$364:$AS$384=$B71)*(Planung!$AV$364:$AV$384)*(Planung!$B$364:$B$384))+SUMPRODUCT((Planung!$BA$364:$BA$384=$B71)*(Planung!$BD$364:$BD$384)*(Planung!$B$364:$B$384))+SUMPRODUCT((Planung!$BI$364:$BI$384=$B71)*(Planung!$BL$364:$BL$384)*(Planung!$B$364:$B$384))+SUMPRODUCT((Planung!$BQ$364:$BQ$384=$B71)*(Planung!$BT$364:$BT$384)*(Planung!$B$364:$B$384)))/IF(G71=0,1,G71) -> 0
B72: 11911 | O72: 0 | P72: 0 | Q72: 0 | W72: =IF(U72=0,0,(R72-S72)/U72) -> 0 | X72: 0 | Y72: 0 | Z72: 0 | AA72: 0 | AB72: 0 | AC72: 0 | AD72: 0 | AE72: =AD72+Q72 -> 0 | AG72: 0 | AH72: 0 | AJ72: 0 | AK72: =(SUMPRODUCT((Planung!$AS$8:$AS$42=$B72)*(Planung!$AV$8:$AV$42)*(Planung!$B$8:$B$42))+SUMPRODUCT((Planung!$BA$8:$BA$42=$B72)*(Planung!$BD$8:$BD$42)*(Planung!$B$8:$B$42))+SUMPRODUCT((Planung!$BI$8:$BI$42=$B72)*(Planung!$BL$8:$BL$42)*(Planung!$B$8:$B$42))+SUMPRODUCT((Planung!$BQ$8:$BQ$42=$B72)*(Planung!$BT$8:$BT$42)*(Planung!$B$8:$B$42)))/IF(E72=0,1,E72) -> 0 | AL72: =(SUMPRODUCT((Planung!$AS$79:$AS$114=$B72)*(Planung!$AV$79:$AV$114)*(Planung!$B$79:$B$114))+SUMPRODUCT((Planung!$BA$79:$BA$114=$B72)*(Planung!$BD$79:$BD$114)*(Planung!$B$79:$B$114))+SUMPRODUCT((Planung!$BI$79:$BI$114=$B72)*(Planung!$BL$79:$BL$114)*(Planung!$B$79:$B$114))+SUMPRODUCT((Planung!$BQ$79:$BQ$114=$B72)*(Planung!$BT$79:$BT$114)*(Planung!$B$79:$B$114)))/IF(F72=0,1,F72) -> 0 | AM72: =(SUMPRODUCT((Planung!$AS$151:$AS$185=$B72)*(Planung!$AV$151:$AV$185)*(Planung!$B$151:$B$185))+SUMPRODUCT((Planung!$BA$151:$BA$185=$B72)*(Planung!$BD$151:$BD$185)*(Planung!$B$151:$B$185))+SUMPRODUCT((Planung!$BI$151:$BI$185=$B72)*(Planung!$BL$151:$BL$185)*(Planung!$B$151:$B$185))+SUMPRODUCT((Planung!$BQ$151:$BQ$185=$B72)*(Planung!$BT$151:$BT$185)*(Planung!$B$151:$B$185)))/IF(G72=0,1,G72) -> 0 | AN72: =(SUMPRODUCT((Planung!$AS$223:$AS$255=$B72)*(Planung!$AV$223:$AV$255)*(Planung!$B$223:$B$255))+SUMPRODUCT((Planung!$BA$223:$BA$255=$B72)*(Planung!$BD$223:$BD$255)*(Planung!$B$223:$B$255))+SUMPRODUCT((Planung!$BI$223:$BI$255=$B72)*(Planung!$BL$223:$BL$255)*(Planung!$B$223:$B$255))+SUMPRODUCT((Planung!$BQ$223:$BQ$255=$B72)*(Planung!$BT$223:$BT$255)*(Planung!$B$223:$B$255)))/IF(G72=0,1,G72) -> 0 | AO72: =(SUMPRODUCT((Planung!$AS$293:$AS$326=$B72)*(Planung!$AV$293:$AV$326)*(Planung!$B$293:$B$326))+SUMPRODUCT((Planung!$BA$293:$BA$326=$B72)*(Planung!$BD$293:$BD$326)*(Planung!$B$293:$B$326))+SUMPRODUCT((Planung!$BI$293:$BI$326=$B72)*(Planung!$BL$293:$BL$326)*(Planung!$B$293:$B$326))+SUMPRODUCT((Planung!$BQ$293:$BQ$326=$B72)*(Planung!$BT$293:$BT$326)*(Planung!$B$293:$B$326)))/IF(G72=0,1,G72) -> 0 | AP72: =(SUMPRODUCT((Planung!$AS$364:$AS$384=$B72)*(Planung!$AV$364:$AV$384)*(Planung!$B$364:$B$384))+SUMPRODUCT((Planung!$BA$364:$BA$384=$B72)*(Planung!$BD$364:$BD$384)*(Planung!$B$364:$B$384))+SUMPRODUCT((Planung!$BI$364:$BI$384=$B72)*(Planung!$BL$364:$BL$384)*(Planung!$B$364:$B$384))+SUMPRODUCT((Planung!$BQ$364:$BQ$384=$B72)*(Planung!$BT$364:$BT$384)*(Planung!$B$364:$B$384)))/IF(G72=0,1,G72) -> 0
B73: 11917 | C73: *Anhängespritze 3000l | D73: m³ | E73: 1 | F73: 1 | G73: 1 | H73: 1 | I73: 1 | J73: 1 | K73: 0.15 | O73: 0 | P73: 0 | Q73: 0.15 | R73: 35000 | S73: 7000 | U73: 10 | V73: 6000 | W73: 2800 | X73: 600 | Y73: 0 | Z73: 0 | AA73: 0 | AB73: 0 | AC73: 0 | AD73: 0 | AE73: 0.15 | AG73: 480 | AH73: 0.8 | AI73: 210 | AJ73: 0.35 | AK73: =(SUMPRODUCT((Planung!$AS$8:$AS$42=$B73)*(Planung!$AV$8:$AV$42)*(Planung!$B$8:$B$42))+SUMPRODUCT((Planung!$BA$8:$BA$42=$B73)*(Planung!$BD$8:$BD$42)*(Planung!$B$8:$B$42))+SUMPRODUCT((Planung!$BI$8:$BI$42=$B73)*(Planung!$BL$8:$BL$42)*(Planung!$B$8:$B$42))+SUMPRODUCT((Planung!$BQ$8:$BQ$42=$B73)*(Planung!$BT$8:$BT$42)*(Planung!$B$8:$B$42)))/IF(E73=0,1,E73) -> 0 | AL73: =(SUMPRODUCT((Planung!$AS$79:$AS$114=$B73)*(Planung!$AV$79:$AV$114)*(Planung!$B$79:$B$114))+SUMPRODUCT((Planung!$BA$79:$BA$114=$B73)*(Planung!$BD$79:$BD$114)*(Planung!$B$79:$B$114))+SUMPRODUCT((Planung!$BI$79:$BI$114=$B73)*(Planung!$BL$79:$BL$114)*(Planung!$B$79:$B$114))+SUMPRODUCT((Planung!$BQ$79:$BQ$114=$B73)*(Planung!$BT$79:$BT$114)*(Planung!$B$79:$B$114)))/IF(F73=0,1,F73) -> 0 | AM73: =(SUMPRODUCT((Planung!$AS$151:$AS$185=$B73)*(Planung!$AV$151:$AV$185)*(Planung!$B$151:$B$185))+SUMPRODUCT((Planung!$BA$151:$BA$185=$B73)*(Planung!$BD$151:$BD$185)*(Planung!$B$151:$B$185))+SUMPRODUCT((Planung!$BI$151:$BI$185=$B73)*(Planung!$BL$151:$BL$185)*(Planung!$B$151:$B$185))+SUMPRODUCT((Planung!$BQ$151:$BQ$185=$B73)*(Planung!$BT$151:$BT$185)*(Planung!$B$151:$B$185)))/IF(G73=0,1,G73) -> 0 | AN73: =(SUMPRODUCT((Planung!$AS$223:$AS$255=$B73)*(Planung!$AV$223:$AV$255)*(Planung!$B$223:$B$255))+SUMPRODUCT((Planung!$BA$223:$BA$255=$B73)*(Planung!$BD$223:$BD$255)*(Planung!$B$223:$B$255))+SUMPRODUCT((Planung!$BI$223:$BI$255=$B73)*(Planung!$BL$223:$BL$255)*(Planung!$B$223:$B$255))+SUMPRODUCT((Planung!$BQ$223:$BQ$255=$B73)*(Planung!$BT$223:$BT$255)*(Planung!$B$223:$B$255)))/IF(G73=0,1,G73) -> 0 | AO73: =(SUMPRODUCT((Planung!$AS$293:$AS$326=$B73)*(Planung!$AV$293:$AV$326)*(Planung!$B$293:$B$326))+SUMPRODUCT((Planung!$BA$293:$BA$326=$B73)*(Planung!$BD$293:$BD$326)*(Planung!$B$293:$B$326))+SUMPRODUCT((Planung!$BI$293:$BI$326=$B73)*(Planung!$BL$293:$BL$326)*(Planung!$B$293:$B$326))+SUMPRODUCT((Planung!$BQ$293:$BQ$326=$B73)*(Planung!$BT$293:$BT$326)*(Planung!$B$293:$B$326)))/IF(G73=0,1,G73) -> 0 | AP73: =(SUMPRODUCT((Planung!$AS$364:$AS$384=$B73)*(Planung!$AV$364:$AV$384)*(Planung!$B$364:$B$384))+SUMPRODUCT((Planung!$BA$364:$BA$384=$B73)*(Planung!$BD$364:$BD$384)*(Planung!$B$364:$B$384))+SUMPRODUCT((Planung!$BI$364:$BI$384=$B73)*(Planung!$BL$364:$BL$384)*(Planung!$B$364:$B$384))+SUMPRODUCT((Planung!$BQ$364:$BQ$384=$B73)*(Planung!$BT$364:$BT$384)*(Planung!$B$364:$B$384)))/IF(G73=0,1,G73) -> 0
B74: 11920 | C74: *Gestänge 21m | D74: ha | E74: 1 | F74: 1 | G74: 1 | H74: 1 | I74: 1 | J74: 1 | K74: 0.5 | O74: 0 | P74: 0 | Q74: 0.5 | R74: 17000 | S74: 3400 | U74: 10 | V74: 8400 | W74: 1360 | X74: 840 | Y74: 0 | Z74: 0 | AA74: 0 | AB74: 0 | AC74: 0 | AD74: 0 | AE74: 0.5 | AG74: 672 | AH74: 0.8 | AI74: 130 | AJ74: 0.1547619048 | AK74: =(SUMPRODUCT((Planung!$AS$8:$AS$42=$B74)*(Planung!$AV$8:$AV$42)*(Planung!$B$8:$B$42))+SUMPRODUCT((Planung!$BA$8:$BA$42=$B74)*(Planung!$BD$8:$BD$42)*(Planung!$B$8:$B$42))+SUMPRODUCT((Planung!$BI$8:$BI$42=$B74)*(Planung!$BL$8:$BL$42)*(Planung!$B$8:$B$42))+SUMPRODUCT((Planung!$BQ$8:$BQ$42=$B74)*(Planung!$BT$8:$BT$42)*(Planung!$B$8:$B$42)))/IF(E74=0,1,E74) -> 0 | AL74: =(SUMPRODUCT((Planung!$AS$79:$AS$114=$B74)*(Planung!$AV$79:$AV$114)*(Planung!$B$79:$B$114))+SUMPRODUCT((Planung!$BA$79:$BA$114=$B74)*(Planung!$BD$79:$BD$114)*(Planung!$B$79:$B$114))+SUMPRODUCT((Planung!$BI$79:$BI$114=$B74)*(Planung!$BL$79:$BL$114)*(Planung!$B$79:$B$114))+SUMPRODUCT((Planung!$BQ$79:$BQ$114=$B74)*(Planung!$BT$79:$BT$114)*(Planung!$B$79:$B$114)))/IF(F74=0,1,F74) -> 0 | AM74: =(SUMPRODUCT((Planung!$AS$151:$AS$185=$B74)*(Planung!$AV$151:$AV$185)*(Planung!$B$151:$B$185))+SUMPRODUCT((Planung!$BA$151:$BA$185=$B74)*(Planung!$BD$151:$BD$185)*(Planung!$B$151:$B$185))+SUMPRODUCT((Planung!$BI$151:$BI$185=$B74)*(Planung!$BL$151:$BL$185)*(Planung!$B$151:$B$185))+SUMPRODUCT((Planung!$BQ$151:$BQ$185=$B74)*(Planung!$BT$151:$BT$185)*(Planung!$B$151:$B$185)))/IF(G74=0,1,G74) -> 0 | AN74: =(SUMPRODUCT((Planung!$AS$223:$AS$255=$B74)*(Planung!$AV$223:$AV$255)*(Planung!$B$223:$B$255))+SUMPRODUCT((Planung!$BA$223:$BA$255=$B74)*(Planung!$BD$223:$BD$255)*(Planung!$B$223:$B$255))+SUMPRODUCT((Planung!$BI$223:$BI$255=$B74)*(Planung!$BL$223:$BL$255)*(Planung!$B$223:$B$255))+SUMPRODUCT((Planung!$BQ$223:$BQ$255=$B74)*(Planung!$BT$223:$BT$255)*(Planung!$B$223:$B$255)))/IF(G74=0,1,G74) -> 0 | AO74: =(SUMPRODUCT((Planung!$AS$293:$AS$326=$B74)*(Planung!$AV$293:$AV$326)*(Planung!$B$293:$B$326))+SUMPRODUCT((Planung!$BA$293:$BA$326=$B74)*(Planung!$BD$293:$BD$326)*(Planung!$B$293:$B$326))+SUMPRODUCT((Planung!$BI$293:$BI$326=$B74)*(Planung!$BL$293:$BL$326)*(Planung!$B$293:$B$326))+SUMPRODUCT((Planung!$BQ$293:$BQ$326=$B74)*(Planung!$BT$293:$BT$326)*(Planung!$B$293:$B$326)))/IF(G74=0,1,G74) -> 0 | AP74: =(SUMPRODUCT((Planung!$AS$364:$AS$384=$B74)*(Planung!$AV$364:$AV$384)*(Planung!$B$364:$B$384))+SUMPRODUCT((Planung!$BA$364:$BA$384=$B74)*(Planung!$BD$364:$BD$384)*(Planung!$B$364:$B$384))+SUMPRODUCT((Planung!$BI$364:$BI$384=$B74)*(Planung!$BL$364:$BL$384)*(Planung!$B$364:$B$384))+SUMPRODUCT((Planung!$BQ$364:$BQ$384=$B74)*(Planung!$BT$364:$BT$384)*(Planung!$B$364:$B$384)))/IF(G74=0,1,G74) -> 0
B75: 11919 | O75: 0 | P75: 0 | Q75: 0 | W75: 0 | X75: 0 | Y75: 0 | Z75: 0 | AA75: 0 | AB75: 0 | AC75: 0 | AD75: 0 | AE75: 0 | AG75: 0 | AH75: 0 | AJ75: 0 | AK75: =(SUMPRODUCT((Planung!$AS$8:$AS$42=$B75)*(Planung!$AV$8:$AV$42)*(Planung!$B$8:$B$42))+SUMPRODUCT((Planung!$BA$8:$BA$42=$B75)*(Planung!$BD$8:$BD$42)*(Planung!$B$8:$B$42))+SUMPRODUCT((Planung!$BI$8:$BI$42=$B75)*(Planung!$BL$8:$BL$42)*(Planung!$B$8:$B$42))+SUMPRODUCT((Planung!$BQ$8:$BQ$42=$B75)*(Planung!$BT$8:$BT$42)*(Planung!$B$8:$B$42)))/IF(E75=0,1,E75) -> 0 | AL75: =(SUMPRODUCT((Planung!$AS$79:$AS$114=$B75)*(Planung!$AV$79:$AV$114)*(Planung!$B$79:$B$114))+SUMPRODUCT((Planung!$BA$79:$BA$114=$B75)*(Planung!$BD$79:$BD$114)*(Planung!$B$79:$B$114))+SUMPRODUCT((Planung!$BI$79:$BI$114=$B75)*(Planung!$BL$79:$BL$114)*(Planung!$B$79:$B$114))+SUMPRODUCT((Planung!$BQ$79:$BQ$114=$B75)*(Planung!$BT$79:$BT$114)*(Planung!$B$79:$B$114)))/IF(F75=0,1,F75) -> 0 | AM75: =(SUMPRODUCT((Planung!$AS$151:$AS$185=$B75)*(Planung!$AV$151:$AV$185)*(Planung!$B$151:$B$185))+SUMPRODUCT((Planung!$BA$151:$BA$185=$B75)*(Planung!$BD$151:$BD$185)*(Planung!$B$151:$B$185))+SUMPRODUCT((Planung!$BI$151:$BI$185=$B75)*(Planung!$BL$151:$BL$185)*(Planung!$B$151:$B$185))+SUMPRODUCT((Planung!$BQ$151:$BQ$185=$B75)*(Planung!$BT$151:$BT$185)*(Planung!$B$151:$B$185)))/IF(G75=0,1,G75) -> 0 | AN75: =(SUMPRODUCT((Planung!$AS$223:$AS$255=$B75)*(Planung!$AV$223:$AV$255)*(Planung!$B$223:$B$255))+SUMPRODUCT((Planung!$BA$223:$BA$255=$B75)*(Planung!$BD$223:$BD$255)*(Planung!$B$223:$B$255))+SUMPRODUCT((Planung!$BI$223:$BI$255=$B75)*(Planung!$BL$223:$BL$255)*(Planung!$B$223:$B$255))+SUMPRODUCT((Planung!$BQ$223:$BQ$255=$B75)*(Planung!$BT$223:$BT$255)*(Planung!$B$223:$B$255)))/IF(G75=0,1,G75) -> 0 | AO75: =(SUMPRODUCT((Planung!$AS$293:$AS$326=$B75)*(Planung!$AV$293:$AV$326)*(Planung!$B$293:$B$326))+SUMPRODUCT((Planung!$BA$293:$BA$326=$B75)*(Planung!$BD$293:$BD$326)*(Planung!$B$293:$B$326))+SUMPRODUCT((Planung!$BI$293:$BI$326=$B75)*(Planung!$BL$293:$BL$326)*(Planung!$B$293:$B$326))+SUMPRODUCT((Planung!$BQ$293:$BQ$326=$B75)*(Planung!$BT$293:$BT$326)*(Planung!$B$293:$B$326)))/IF(G75=0,1,G75) -> 0 | AP75: =(SUMPRODUCT((Planung!$AS$364:$AS$384=$B75)*(Planung!$AV$364:$AV$384)*(Planung!$B$364:$B$384))+SUMPRODUCT((Planung!$BA$364:$BA$384=$B75)*(Planung!$BD$364:$BD$384)*(Planung!$B$364:$B$384))+SUMPRODUCT((Planung!$BI$364:$BI$384=$B75)*(Planung!$BL$364:$BL$384)*(Planung!$B$364:$B$384))+SUMPRODUCT((Planung!$BQ$364:$BQ$384=$B75)*(Planung!$BT$364:$BT$384)*(Planung!$B$364:$B$384)))/IF(G75=0,1,G75) -> 0
B76: 11916 | O76: 0 | P76: 0 | Q76: 0 | W76: 0 | X76: 0 | Y76: 0 | Z76: 0 | AA76: 0 | AB76: 0 | AC76: 0 | AD76: 0 | AE76: 0 | AG76: 0 | AH76: 0 | AJ76: 0 | AK76: =(SUMPRODUCT((Planung!$AS$8:$AS$42=$B76)*(Planung!$AV$8:$AV$42)*(Planung!$B$8:$B$42))+SUMPRODUCT((Planung!$BA$8:$BA$42=$B76)*(Planung!$BD$8:$BD$42)*(Planung!$B$8:$B$42))+SUMPRODUCT((Planung!$BI$8:$BI$42=$B76)*(Planung!$BL$8:$BL$42)*(Planung!$B$8:$B$42))+SUMPRODUCT((Planung!$BQ$8:$BQ$42=$B76)*(Planung!$BT$8:$BT$42)*(Planung!$B$8:$B$42)))/IF(E76=0,1,E76) -> 0 | AL76: =(SUMPRODUCT((Planung!$AS$79:$AS$114=$B76)*(Planung!$AV$79:$AV$114)*(Planung!$B$79:$B$114))+SUMPRODUCT((Planung!$BA$79:$BA$114=$B76)*(Planung!$BD$79:$BD$114)*(Planung!$B$79:$B$114))+SUMPRODUCT((Planung!$BI$79:$BI$114=$B76)*(Planung!$BL$79:$BL$114)*(Planung!$B$79:$B$114))+SUMPRODUCT((Planung!$BQ$79:$BQ$114=$B76)*(Planung!$BT$79:$BT$114)*(Planung!$B$79:$B$114)))/IF(F76=0,1,F76) -> 0 | AM76: =(SUMPRODUCT((Planung!$AS$151:$AS$185=$B76)*(Planung!$AV$151:$AV$185)*(Planung!$B$151:$B$185))+SUMPRODUCT((Planung!$BA$151:$BA$185=$B76)*(Planung!$BD$151:$BD$185)*(Planung!$B$151:$B$185))+SUMPRODUCT((Planung!$BI$151:$BI$185=$B76)*(Planung!$BL$151:$BL$185)*(Planung!$B$151:$B$185))+SUMPRODUCT((Planung!$BQ$151:$BQ$185=$B76)*(Planung!$BT$151:$BT$185)*(Planung!$B$151:$B$185)))/IF(G76=0,1,G76) -> 0 | AN76: =(SUMPRODUCT((Planung!$AS$223:$AS$255=$B76)*(Planung!$AV$223:$AV$255)*(Planung!$B$223:$B$255))+SUMPRODUCT((Planung!$BA$223:$BA$255=$B76)*(Planung!$BD$223:$BD$255)*(Planung!$B$223:$B$255))+SUMPRODUCT((Planung!$BI$223:$BI$255=$B76)*(Planung!$BL$223:$BL$255)*(Planung!$B$223:$B$255))+SUMPRODUCT((Planung!$BQ$223:$BQ$255=$B76)*(Planung!$BT$223:$BT$255)*(Planung!$B$223:$B$255)))/IF(G76=0,1,G76) -> 0 | AO76: =(SUMPRODUCT((Planung!$AS$293:$AS$326=$B76)*(Planung!$AV$293:$AV$326)*(Planung!$B$293:$B$326))+SUMPRODUCT((Planung!$BA$293:$BA$326=$B76)*(Planung!$BD$293:$BD$326)*(Planung!$B$293:$B$326))+SUMPRODUCT((Planung!$BI$293:$BI$326=$B76)*(Planung!$BL$293:$BL$326)*(Planung!$B$293:$B$326))+SUMPRODUCT((Planung!$BQ$293:$BQ$326=$B76)*(Planung!$BT$293:$BT$326)*(Planung!$B$293:$B$326)))/IF(G76=0,1,G76) -> 0 | AP76: =(SUMPRODUCT((Planung!$AS$364:$AS$384=$B76)*(Planung!$AV$364:$AV$384)*(Planung!$B$364:$B$384))+SUMPRODUCT((Planung!$BA$364:$BA$384=$B76)*(Planung!$BD$364:$BD$384)*(Planung!$B$364:$B$384))+SUMPRODUCT((Planung!$BI$364:$BI$384=$B76)*(Planung!$BL$364:$BL$384)*(Planung!$B$364:$B$384))+SUMPRODUCT((Planung!$BQ$364:$BQ$384=$B76)*(Planung!$BT$364:$BT$384)*(Planung!$B$364:$B$384)))/IF(G76=0,1,G76) -> 0
B77: 11913 | O77: 0 | P77: 0 | Q77: 0 | W77: 0 | X77: 0 | Y77: 0 | Z77: 0 | AA77: 0 | AB77: 0 | AC77: 0 | AD77: 0 | AE77: 0 | AG77: 0 | AH77: 0 | AJ77: 0 | AK77: =(SUMPRODUCT((Planung!$AS$8:$AS$42=$B77)*(Planung!$AV$8:$AV$42)*(Planung!$B$8:$B$42))+SUMPRODUCT((Planung!$BA$8:$BA$42=$B77)*(Planung!$BD$8:$BD$42)*(Planung!$B$8:$B$42))+SUMPRODUCT((Planung!$BI$8:$BI$42=$B77)*(Planung!$BL$8:$BL$42)*(Planung!$B$8:$B$42))+SUMPRODUCT((Planung!$BQ$8:$BQ$42=$B77)*(Planung!$BT$8:$BT$42)*(Planung!$B$8:$B$42)))/IF(E77=0,1,E77) -> 0 | AL77: =(SUMPRODUCT((Planung!$AS$79:$AS$114=$B77)*(Planung!$AV$79:$AV$114)*(Planung!$B$79:$B$114))+SUMPRODUCT((Planung!$BA$79:$BA$114=$B77)*(Planung!$BD$79:$BD$114)*(Planung!$B$79:$B$114))+SUMPRODUCT((Planung!$BI$79:$BI$114=$B77)*(Planung!$BL$79:$BL$114)*(Planung!$B$79:$B$114))+SUMPRODUCT((Planung!$BQ$79:$BQ$114=$B77)*(Planung!$BT$79:$BT$114)*(Planung!$B$79:$B$114)))/IF(F77=0,1,F77) -> 0 | AM77: =(SUMPRODUCT((Planung!$AS$151:$AS$185=$B77)*(Planung!$AV$151:$AV$185)*(Planung!$B$151:$B$185))+SUMPRODUCT((Planung!$BA$151:$BA$185=$B77)*(Planung!$BD$151:$BD$185)*(Planung!$B$151:$B$185))+SUMPRODUCT((Planung!$BI$151:$BI$185=$B77)*(Planung!$BL$151:$BL$185)*(Planung!$B$151:$B$185))+SUMPRODUCT((Planung!$BQ$151:$BQ$185=$B77)*(Planung!$BT$151:$BT$185)*(Planung!$B$151:$B$185)))/IF(G77=0,1,G77) -> 0 | AN77: =(SUMPRODUCT((Planung!$AS$223:$AS$255=$B77)*(Planung!$AV$223:$AV$255)*(Planung!$B$223:$B$255))+SUMPRODUCT((Planung!$BA$223:$BA$255=$B77)*(Planung!$BD$223:$BD$255)*(Planung!$B$223:$B$255))+SUMPRODUCT((Planung!$BI$223:$BI$255=$B77)*(Planung!$BL$223:$BL$255)*(Planung!$B$223:$B$255))+SUMPRODUCT((Planung!$BQ$223:$BQ$255=$B77)*(Planung!$BT$223:$BT$255)*(Planung!$B$223:$B$255)))/IF(G77=0,1,G77) -> 0 | AO77: =(SUMPRODUCT((Planung!$AS$293:$AS$326=$B77)*(Planung!$AV$293:$AV$326)*(Planung!$B$293:$B$326))+SUMPRODUCT((Planung!$BA$293:$BA$326=$B77)*(Planung!$BD$293:$BD$326)*(Planung!$B$293:$B$326))+SUMPRODUCT((Planung!$BI$293:$BI$326=$B77)*(Planung!$BL$293:$BL$326)*(Planung!$B$293:$B$326))+SUMPRODUCT((Planung!$BQ$293:$BQ$326=$B77)*(Planung!$BT$293:$BT$326)*(Planung!$B$293:$B$326)))/IF(G77=0,1,G77) -> 0 | AP77: =(SUMPRODUCT((Planung!$AS$364:$AS$384=$B77)*(Planung!$AV$364:$AV$384)*(Planung!$B$364:$B$384))+SUMPRODUCT((Planung!$BA$364:$BA$384=$B77)*(Planung!$BD$364:$BD$384)*(Planung!$B$364:$B$384))+SUMPRODUCT((Planung!$BI$364:$BI$384=$B77)*(Planung!$BL$364:$BL$384)*(Planung!$B$364:$B$384))+SUMPRODUCT((Planung!$BQ$364:$BQ$384=$B77)*(Planung!$BT$364:$BT$384)*(Planung!$B$364:$B$384)))/IF(G77=0,1,G77) -> 0
B78: 11915 | O78: 0 | P78: 0 | Q78: 0 | W78: 0 | X78: 0 | Y78: 0 | Z78: 0 | AA78: 0 | AB78: 0 | AC78: 0 | AD78: 0 | AE78: 0 | AG78: 0 | AH78: 0 | AJ78: 0 | AK78: =(SUMPRODUCT((Planung!$AS$8:$AS$42=$B78)*(Planung!$AV$8:$AV$42)*(Planung!$B$8:$B$42))+SUMPRODUCT((Planung!$BA$8:$BA$42=$B78)*(Planung!$BD$8:$BD$42)*(Planung!$B$8:$B$42))+SUMPRODUCT((Planung!$BI$8:$BI$42=$B78)*(Planung!$BL$8:$BL$42)*(Planung!$B$8:$B$42))+SUMPRODUCT((Planung!$BQ$8:$BQ$42=$B78)*(Planung!$BT$8:$BT$42)*(Planung!$B$8:$B$42)))/IF(E78=0,1,E78) -> 0 | AL78: =(SUMPRODUCT((Planung!$AS$79:$AS$114=$B78)*(Planung!$AV$79:$AV$114)*(Planung!$B$79:$B$114))+SUMPRODUCT((Planung!$BA$79:$BA$114=$B78)*(Planung!$BD$79:$BD$114)*(Planung!$B$79:$B$114))+SUMPRODUCT((Planung!$BI$79:$BI$114=$B78)*(Planung!$BL$79:$BL$114)*(Planung!$B$79:$B$114))+SUMPRODUCT((Planung!$BQ$79:$BQ$114=$B78)*(Planung!$BT$79:$BT$114)*(Planung!$B$79:$B$114)))/IF(F78=0,1,F78) -> 0 | AM78: =(SUMPRODUCT((Planung!$AS$151:$AS$185=$B78)*(Planung!$AV$151:$AV$185)*(Planung!$B$151:$B$185))+SUMPRODUCT((Planung!$BA$151:$BA$185=$B78)*(Planung!$BD$151:$BD$185)*(Planung!$B$151:$B$185))+SUMPRODUCT((Planung!$BI$151:$BI$185=$B78)*(Planung!$BL$151:$BL$185)*(Planung!$B$151:$B$185))+SUMPRODUCT((Planung!$BQ$151:$BQ$185=$B78)*(Planung!$BT$151:$BT$185)*(Planung!$B$151:$B$185)))/IF(G78=0,1,G78) -> 0 | AN78: =(SUMPRODUCT((Planung!$AS$223:$AS$255=$B78)*(Planung!$AV$223:$AV$255)*(Planung!$B$223:$B$255))+SUMPRODUCT((Planung!$BA$223:$BA$255=$B78)*(Planung!$BD$223:$BD$255)*(Planung!$B$223:$B$255))+SUMPRODUCT((Planung!$BI$223:$BI$255=$B78)*(Planung!$BL$223:$BL$255)*(Planung!$B$223:$B$255))+SUMPRODUCT((Planung!$BQ$223:$BQ$255=$B78)*(Planung!$BT$223:$BT$255)*(Planung!$B$223:$B$255)))/IF(G78=0,1,G78) -> 0 | AO78: =(SUMPRODUCT((Planung!$AS$293:$AS$326=$B78)*(Planung!$AV$293:$AV$326)*(Planung!$B$293:$B$326))+SUMPRODUCT((Planung!$BA$293:$BA$326=$B78)*(Planung!$BD$293:$BD$326)*(Planung!$B$293:$B$326))+SUMPRODUCT((Planung!$BI$293:$BI$326=$B78)*(Planung!$BL$293:$BL$326)*(Planung!$B$293:$B$326))+SUMPRODUCT((Planung!$BQ$293:$BQ$326=$B78)*(Planung!$BT$293:$BT$326)*(Planung!$B$293:$B$326)))/IF(G78=0,1,G78) -> 0 | AP78: =(SUMPRODUCT((Planung!$AS$364:$AS$384=$B78)*(Planung!$AV$364:$AV$384)*(Planung!$B$364:$B$384))+SUMPRODUCT((Planung!$BA$364:$BA$384=$B78)*(Planung!$BD$364:$BD$384)*(Planung!$B$364:$B$384))+SUMPRODUCT((Planung!$BI$364:$BI$384=$B78)*(Planung!$BL$364:$BL$384)*(Planung!$B$364:$B$384))+SUMPRODUCT((Planung!$BQ$364:$BQ$384=$B78)*(Planung!$BT$364:$BT$384)*(Planung!$B$364:$B$384)))/IF(G78=0,1,G78) -> 0
B79: 11921 | O79: 0 | P79: 0 | Q79: 0 | W79: 0 | X79: 0 | Y79: 0 | Z79: 0 | AA79: 0 | AB79: 0 | AC79: 0 | AD79: 0 | AE79: 0 | AG79: 0 | AH79: 0 | AJ79: 0 | AK79: =(SUMPRODUCT((Planung!$AS$8:$AS$42=$B79)*(Planung!$AV$8:$AV$42)*(Planung!$B$8:$B$42))+SUMPRODUCT((Planung!$BA$8:$BA$42=$B79)*(Planung!$BD$8:$BD$42)*(Planung!$B$8:$B$42))+SUMPRODUCT((Planung!$BI$8:$BI$42=$B79)*(Planung!$BL$8:$BL$42)*(Planung!$B$8:$B$42))+SUMPRODUCT((Planung!$BQ$8:$BQ$42=$B79)*(Planung!$BT$8:$BT$42)*(Planung!$B$8:$B$42)))/IF(E79=0,1,E79) -> 0 | AL79: =(SUMPRODUCT((Planung!$AS$79:$AS$114=$B79)*(Planung!$AV$79:$AV$114)*(Planung!$B$79:$B$114))+SUMPRODUCT((Planung!$BA$79:$BA$114=$B79)*(Planung!$BD$79:$BD$114)*(Planung!$B$79:$B$114))+SUMPRODUCT((Planung!$BI$79:$BI$114=$B79)*(Planung!$BL$79:$BL$114)*(Planung!$B$79:$B$114))+SUMPRODUCT((Planung!$BQ$79:$BQ$114=$B79)*(Planung!$BT$79:$BT$114)*(Planung!$B$79:$B$114)))/IF(F79=0,1,F79) -> 0 | AM79: =(SUMPRODUCT((Planung!$AS$151:$AS$185=$B79)*(Planung!$AV$151:$AV$185)*(Planung!$B$151:$B$185))+SUMPRODUCT((Planung!$BA$151:$BA$185=$B79)*(Planung!$BD$151:$BD$185)*(Planung!$B$151:$B$185))+SUMPRODUCT((Planung!$BI$151:$BI$185=$B79)*(Planung!$BL$151:$BL$185)*(Planung!$B$151:$B$185))+SUMPRODUCT((Planung!$BQ$151:$BQ$185=$B79)*(Planung!$BT$151:$BT$185)*(Planung!$B$151:$B$185)))/IF(G79=0,1,G79) -> 0 | AN79: =(SUMPRODUCT((Planung!$AS$223:$AS$255=$B79)*(Planung!$AV$223:$AV$255)*(Planung!$B$223:$B$255))+SUMPRODUCT((Planung!$BA$223:$BA$255=$B79)*(Planung!$BD$223:$BD$255)*(Planung!$B$223:$B$255))+SUMPRODUCT((Planung!$BI$223:$BI$255=$B79)*(Planung!$BL$223:$BL$255)*(Planung!$B$223:$B$255))+SUMPRODUCT((Planung!$BQ$223:$BQ$255=$B79)*(Planung!$BT$223:$BT$255)*(Planung!$B$223:$B$255)))/IF(G79=0,1,G79) -> 0 | AO79: =(SUMPRODUCT((Planung!$AS$293:$AS$326=$B79)*(Planung!$AV$293:$AV$326)*(Planung!$B$293:$B$326))+SUMPRODUCT((Planung!$BA$293:$BA$326=$B79)*(Planung!$BD$293:$BD$326)*(Planung!$B$293:$B$326))+SUMPRODUCT((Planung!$BI$293:$BI$326=$B79)*(Planung!$BL$293:$BL$326)*(Planung!$B$293:$B$326))+SUMPRODUCT((Planung!$BQ$293:$BQ$326=$B79)*(Planung!$BT$293:$BT$326)*(Planung!$B$293:$B$326)))/IF(G79=0,1,G79) -> 0 | AP79: =(SUMPRODUCT((Planung!$AS$364:$AS$384=$B79)*(Planung!$AV$364:$AV$384)*(Planung!$B$364:$B$384))+SUMPRODUCT((Planung!$BA$364:$BA$384=$B79)*(Planung!$BD$364:$BD$384)*(Planung!$B$364:$B$384))+SUMPRODUCT((Planung!$BI$364:$BI$384=$B79)*(Planung!$BL$364:$BL$384)*(Planung!$B$364:$B$384))+SUMPRODUCT((Planung!$BQ$364:$BQ$384=$B79)*(Planung!$BT$364:$BT$384)*(Planung!$B$364:$B$384)))/IF(G79=0,1,G79) -> 0
B80: 11918 | O80: 0 | P80: 0 | Q80: 0 | W80: 0 | X80: 0 | Y80: 0 | Z80: 0 | AA80: 0 | AB80: 0 | AC80: 0 | AD80: 0 | AE80: 0 | AG80: 0 | AH80: 0 | AJ80: 0 | AK80: =(SUMPRODUCT((Planung!$AS$8:$AS$42=$B80)*(Planung!$AV$8:$AV$42)*(Planung!$B$8:$B$42))+SUMPRODUCT((Planung!$BA$8:$BA$42=$B80)*(Planung!$BD$8:$BD$42)*(Planung!$B$8:$B$42))+SUMPRODUCT((Planung!$BI$8:$BI$42=$B80)*(Planung!$BL$8:$BL$42)*(Planung!$B$8:$B$42))+SUMPRODUCT((Planung!$BQ$8:$BQ$42=$B80)*(Planung!$BT$8:$BT$42)*(Planung!$B$8:$B$42)))/IF(E80=0,1,E80) -> 0 | AL80: =(SUMPRODUCT((Planung!$AS$79:$AS$114=$B80)*(Planung!$AV$79:$AV$114)*(Planung!$B$79:$B$114))+SUMPRODUCT((Planung!$BA$79:$BA$114=$B80)*(Planung!$BD$79:$BD$114)*(Planung!$B$79:$B$114))+SUMPRODUCT((Planung!$BI$79:$BI$114=$B80)*(Planung!$BL$79:$BL$114)*(Planung!$B$79:$B$114))+SUMPRODUCT((Planung!$BQ$79:$BQ$114=$B80)*(Planung!$BT$79:$BT$114)*(Planung!$B$79:$B$114)))/IF(F80=0,1,F80) -> 0 | AM80: =(SUMPRODUCT((Planung!$AS$151:$AS$185=$B80)*(Planung!$AV$151:$AV$185)*(Planung!$B$151:$B$185))+SUMPRODUCT((Planung!$BA$151:$BA$185=$B80)*(Planung!$BD$151:$BD$185)*(Planung!$B$151:$B$185))+SUMPRODUCT((Planung!$BI$151:$BI$185=$B80)*(Planung!$BL$151:$BL$185)*(Planung!$B$151:$B$185))+SUMPRODUCT((Planung!$BQ$151:$BQ$185=$B80)*(Planung!$BT$151:$BT$185)*(Planung!$B$151:$B$185)))/IF(G80=0,1,G80) -> 0 | AN80: =(SUMPRODUCT((Planung!$AS$223:$AS$255=$B80)*(Planung!$AV$223:$AV$255)*(Planung!$B$223:$B$255))+SUMPRODUCT((Planung!$BA$223:$BA$255=$B80)*(Planung!$BD$223:$BD$255)*(Planung!$B$223:$B$255))+SUMPRODUCT((Planung!$BI$223:$BI$255=$B80)*(Planung!$BL$223:$BL$255)*(Planung!$B$223:$B$255))+SUMPRODUCT((Planung!$BQ$223:$BQ$255=$B80)*(Planung!$BT$223:$BT$255)*(Planung!$B$223:$B$255)))/IF(G80=0,1,G80) -> 0 | AO80: =(SUMPRODUCT((Planung!$AS$293:$AS$326=$B80)*(Planung!$AV$293:$AV$326)*(Planung!$B$293:$B$326))+SUMPRODUCT((Planung!$BA$293:$BA$326=$B80)*(Planung!$BD$293:$BD$326)*(Planung!$B$293:$B$326))+SUMPRODUCT((Planung!$BI$293:$BI$326=$B80)*(Planung!$BL$293:$BL$326)*(Planung!$B$293:$B$326))+SUMPRODUCT((Planung!$BQ$293:$BQ$326=$B80)*(Planung!$BT$293:$BT$326)*(Planung!$B$293:$B$326)))/IF(G80=0,1,G80) -> 0 | AP80: =(SUMPRODUCT((Planung!$AS$364:$AS$384=$B80)*(Planung!$AV$364:$AV$384)*(Planung!$B$364:$B$384))+SUMPRODUCT((Planung!$BA$364:$BA$384=$B80)*(Planung!$BD$364:$BD$384)*(Planung!$B$364:$B$384))+SUMPRODUCT((Planung!$BI$364:$BI$384=$B80)*(Planung!$BL$364:$BL$384)*(Planung!$B$364:$B$384))+SUMPRODUCT((Planung!$BQ$364:$BQ$384=$B80)*(Planung!$BT$364:$BT$384)*(Planung!$B$364:$B$384)))/IF(G80=0,1,G80) -> 0
C81: FUTTERWERBUNG | O81: 0 | P81: 0 | Q81: 0 | W81: 0 | X81: 0 | Y81: 0 | Z81: 0 | AA81: 0 | AB81: 0 | AC81: 0 | AD81: 0 | AE81: 0 | AG81: 0 | AH81: 0 | AJ81: 0 | AK81: =(SUMPRODUCT((Planung!$AS$8:$AS$42=$B81)*(Planung!$AV$8:$AV$42)*(Planung!$B$8:$B$42))+SUMPRODUCT((Planung!$BA$8:$BA$42=$B81)*(Planung!$BD$8:$BD$42)*(Planung!$B$8:$B$42))+SUMPRODUCT((Planung!$BI$8:$BI$42=$B81)*(Planung!$BL$8:$BL$42)*(Planung!$B$8:$B$42))+SUMPRODUCT((Planung!$BQ$8:$BQ$42=$B81)*(Planung!$BT$8:$BT$42)*(Planung!$B$8:$B$42)))/IF(E81=0,1,E81) -> 0 | AL81: =(SUMPRODUCT((Planung!$AS$79:$AS$114=$B81)*(Planung!$AV$79:$AV$114)*(Planung!$B$79:$B$114))+SUMPRODUCT((Planung!$BA$79:$BA$114=$B81)*(Planung!$BD$79:$BD$114)*(Planung!$B$79:$B$114))+SUMPRODUCT((Planung!$BI$79:$BI$114=$B81)*(Planung!$BL$79:$BL$114)*(Planung!$B$79:$B$114))+SUMPRODUCT((Planung!$BQ$79:$BQ$114=$B81)*(Planung!$BT$79:$BT$114)*(Planung!$B$79:$B$114)))/IF(F81=0,1,F81) -> 0 | AM81: =(SUMPRODUCT((Planung!$AS$151:$AS$185=$B81)*(Planung!$AV$151:$AV$185)*(Planung!$B$151:$B$185))+SUMPRODUCT((Planung!$BA$151:$BA$185=$B81)*(Planung!$BD$151:$BD$185)*(Planung!$B$151:$B$185))+SUMPRODUCT((Planung!$BI$151:$BI$185=$B81)*(Planung!$BL$151:$BL$185)*(Planung!$B$151:$B$185))+SUMPRODUCT((Planung!$BQ$151:$BQ$185=$B81)*(Planung!$BT$151:$BT$185)*(Planung!$B$151:$B$185)))/IF(G81=0,1,G81) -> 0 | AN81: =(SUMPRODUCT((Planung!$AS$223:$AS$255=$B81)*(Planung!$AV$223:$AV$255)*(Planung!$B$223:$B$255))+SUMPRODUCT((Planung!$BA$223:$BA$255=$B81)*(Planung!$BD$223:$BD$255)*(Planung!$B$223:$B$255))+SUMPRODUCT((Planung!$BI$223:$BI$255=$B81)*(Planung!$BL$223:$BL$255)*(Planung!$B$223:$B$255))+SUMPRODUCT((Planung!$BQ$223:$BQ$255=$B81)*(Planung!$BT$223:$BT$255)*(Planung!$B$223:$B$255)))/IF(G81=0,1,G81) -> 0 | AO81: =(SUMPRODUCT((Planung!$AS$293:$AS$326=$B81)*(Planung!$AV$293:$AV$326)*(Planung!$B$293:$B$326))+SUMPRODUCT((Planung!$BA$293:$BA$326=$B81)*(Planung!$BD$293:$BD$326)*(Planung!$B$293:$B$326))+SUMPRODUCT((Planung!$BI$293:$BI$326=$B81)*(Planung!$BL$293:$BL$326)*(Planung!$B$293:$B$326))+SUMPRODUCT((Planung!$BQ$293:$BQ$326=$B81)*(Planung!$BT$293:$BT$326)*(Planung!$B$293:$B$326)))/IF(G81=0,1,G81) -> 0 | AP81: =(SUMPRODUCT((Planung!$AS$364:$AS$384=$B81)*(Planung!$AV$364:$AV$384)*(Planung!$B$364:$B$384))+SUMPRODUCT((Planung!$BA$364:$BA$384=$B81)*(Planung!$BD$364:$BD$384)*(Planung!$B$364:$B$384))+SUMPRODUCT((Planung!$BI$364:$BI$384=$B81)*(Planung!$BL$364:$BL$384)*(Planung!$B$364:$B$384))+SUMPRODUCT((Planung!$BQ$364:$BQ$384=$B81)*(Planung!$BT$364:$BT$384)*(Planung!$B$364:$B$384)))/IF(G81=0,1,G81) -> 0
B82: 12111 | O82: 0 | P82: 0 | Q82: 0 | W82: 0 | X82: 0 | Y82: 0 | Z82: 0 | AA82: 0 | AB82: 0 | AC82: 0 | AD82: 0 | AE82: 0 | AG82: 0 | AH82: 0 | AJ82: 0 | AK82: =(SUMPRODUCT((Planung!$AS$8:$AS$42=$B82)*(Planung!$AV$8:$AV$42)*(Planung!$B$8:$B$42))+SUMPRODUCT((Planung!$BA$8:$BA$42=$B82)*(Planung!$BD$8:$BD$42)*(Planung!$B$8:$B$42))+SUMPRODUCT((Planung!$BI$8:$BI$42=$B82)*(Planung!$BL$8:$BL$42)*(Planung!$B$8:$B$42))+SUMPRODUCT((Planung!$BQ$8:$BQ$42=$B82)*(Planung!$BT$8:$BT$42)*(Planung!$B$8:$B$42)))/IF(E82=0,1,E82) -> 0 | AL82: =(SUMPRODUCT((Planung!$AS$79:$AS$114=$B82)*(Planung!$AV$79:$AV$114)*(Planung!$B$79:$B$114))+SUMPRODUCT((Planung!$BA$79:$BA$114=$B82)*(Planung!$BD$79:$BD$114)*(Planung!$B$79:$B$114))+SUMPRODUCT((Planung!$BI$79:$BI$114=$B82)*(Planung!$BL$79:$BL$114)*(Planung!$B$79:$B$114))+SUMPRODUCT((Planung!$BQ$79:$BQ$114=$B82)*(Planung!$BT$79:$BT$114)*(Planung!$B$79:$B$114)))/IF(F82=0,1,F82) -> 0 | AM82: =(SUMPRODUCT((Planung!$AS$151:$AS$185=$B82)*(Planung!$AV$151:$AV$185)*(Planung!$B$151:$B$185))+SUMPRODUCT((Planung!$BA$151:$BA$185=$B82)*(Planung!$BD$151:$BD$185)*(Planung!$B$151:$B$185))+SUMPRODUCT((Planung!$BI$151:$BI$185=$B82)*(Planung!$BL$151:$BL$185)*(Planung!$B$151:$B$185))+SUMPRODUCT((Planung!$BQ$151:$BQ$185=$B82)*(Planung!$BT$151:$BT$185)*(Planung!$B$151:$B$185)))/IF(G82=0,1,G82) -> 0 | AN82: =(SUMPRODUCT((Planung!$AS$223:$AS$255=$B82)*(Planung!$AV$223:$AV$255)*(Planung!$B$223:$B$255))+SUMPRODUCT((Planung!$BA$223:$BA$255=$B82)*(Planung!$BD$223:$BD$255)*(Planung!$B$223:$B$255))+SUMPRODUCT((Planung!$BI$223:$BI$255=$B82)*(Planung!$BL$223:$BL$255)*(Planung!$B$223:$B$255))+SUMPRODUCT((Planung!$BQ$223:$BQ$255=$B82)*(Planung!$BT$223:$BT$255)*(Planung!$B$223:$B$255)))/IF(G82=0,1,G82) -> 0 | AO82: =(SUMPRODUCT((Planung!$AS$293:$AS$326=$B82)*(Planung!$AV$293:$AV$326)*(Planung!$B$293:$B$326))+SUMPRODUCT((Planung!$BA$293:$BA$326=$B82)*(Planung!$BD$293:$BD$326)*(Planung!$B$293:$B$326))+SUMPRODUCT((Planung!$BI$293:$BI$326=$B82)*(Planung!$BL$293:$BL$326)*(Planung!$B$293:$B$326))+SUMPRODUCT((Planung!$BQ$293:$BQ$326=$B82)*(Planung!$BT$293:$BT$326)*(Planung!$B$293:$B$326)))/IF(G82=0,1,G82) -> 0 | AP82: =(SUMPRODUCT((Planung!$AS$364:$AS$384=$B82)*(Planung!$AV$364:$AV$384)*(Planung!$B$364:$B$384))+SUMPRODUCT((Planung!$BA$364:$BA$384=$B82)*(Planung!$BD$364:$BD$384)*(Planung!$B$364:$B$384))+SUMPRODUCT((Planung!$BI$364:$BI$384=$B82)*(Planung!$BL$364:$BL$384)*(Planung!$B$364:$B$384))+SUMPRODUCT((Planung!$BQ$364:$BQ$384=$B82)*(Planung!$BT$364:$BT$384)*(Planung!$B$364:$B$384)))/IF(G82=0,1,G82) -> 0
B83: 12112 | C83: *Mähkombination 8,5m | D83: ha | E83: 1 | F83: 1 | G83: 1 | H83: 1 | I83: 1 | J83: 1 | K83: 2.25 | O83: 0 | P83: 0 | Q83: 2.25 | R83: 50000 | S83: 10000 | U83: 10 | V83: 13000 | W83: 4000 | X83: 1300 | Y83: 0 | Z83: 0 | AA83: 0 | AB83: 0 | AC83: 0 | AD83: 0 | AE83: 2.25 | AG83: 1040 | AH83: 0.8 | AI83: 600 | AJ83: 0.4615384615 | AK83: =(SUMPRODUCT((Planung!$AS$8:$AS$42=$B83)*(Planung!$AV$8:$AV$42)*(Planung!$B$8:$B$42))+SUMPRODUCT((Planung!$BA$8:$BA$42=$B83)*(Planung!$BD$8:$BD$42)*(Planung!$B$8:$B$42))+SUMPRODUCT((Planung!$BI$8:$BI$42=$B83)*(Planung!$BL$8:$BL$42)*(Planung!$B$8:$B$42))+SUMPRODUCT((Planung!$BQ$8:$BQ$42=$B83)*(Planung!$BT$8:$BT$42)*(Planung!$B$8:$B$42)))/IF(E83=0,1,E83) -> 0 | AL83: =(SUMPRODUCT((Planung!$AS$79:$AS$114=$B83)*(Planung!$AV$79:$AV$114)*(Planung!$B$79:$B$114))+SUMPRODUCT((Planung!$BA$79:$BA$114=$B83)*(Planung!$BD$79:$BD$114)*(Planung!$B$79:$B$114))+SUMPRODUCT((Planung!$BI$79:$BI$114=$B83)*(Planung!$BL$79:$BL$114)*(Planung!$B$79:$B$114))+SUMPRODUCT((Planung!$BQ$79:$BQ$114=$B83)*(Planung!$BT$79:$BT$114)*(Planung!$B$79:$B$114)))/IF(F83=0,1,F83) -> 0 | AM83: =(SUMPRODUCT((Planung!$AS$151:$AS$185=$B83)*(Planung!$AV$151:$AV$185)*(Planung!$B$151:$B$185))+SUMPRODUCT((Planung!$BA$151:$BA$185=$B83)*(Planung!$BD$151:$BD$185)*(Planung!$B$151:$B$185))+SUMPRODUCT((Planung!$BI$151:$BI$185=$B83)*(Planung!$BL$151:$BL$185)*(Planung!$B$151:$B$185))+SUMPRODUCT((Planung!$BQ$151:$BQ$185=$B83)*(Planung!$BT$151:$BT$185)*(Planung!$B$151:$B$185)))/IF(G83=0,1,G83) -> 0 | AN83: =(SUMPRODUCT((Planung!$AS$223:$AS$255=$B83)*(Planung!$AV$223:$AV$255)*(Planung!$B$223:$B$255))+SUMPRODUCT((Planung!$BA$223:$BA$255=$B83)*(Planung!$BD$223:$BD$255)*(Planung!$B$223:$B$255))+SUMPRODUCT((Planung!$BI$223:$BI$255=$B83)*(Planung!$BL$223:$BL$255)*(Planung!$B$223:$B$255))+SUMPRODUCT((Planung!$BQ$223:$BQ$255=$B83)*(Planung!$BT$223:$BT$255)*(Planung!$B$223:$B$255)))/IF(G83=0,1,G83) -> 0 | AO83: =(SUMPRODUCT((Planung!$AS$293:$AS$326=$B83)*(Planung!$AV$293:$AV$326)*(Planung!$B$293:$B$326))+SUMPRODUCT((Planung!$BA$293:$BA$326=$B83)*(Planung!$BD$293:$BD$326)*(Planung!$B$293:$B$326))+SUMPRODUCT((Planung!$BI$293:$BI$326=$B83)*(Planung!$BL$293:$BL$326)*(Planung!$B$293:$B$326))+SUMPRODUCT((Planung!$BQ$293:$BQ$326=$B83)*(Planung!$BT$293:$BT$326)*(Planung!$B$293:$B$326)))/IF(G83=0,1,G83) -> 0 | AP83: =(SUMPRODUCT((Planung!$AS$364:$AS$384=$B83)*(Planung!$AV$364:$AV$384)*(Planung!$B$364:$B$384))+SUMPRODUCT((Planung!$BA$364:$BA$384=$B83)*(Planung!$BD$364:$BD$384)*(Planung!$B$364:$B$384))+SUMPRODUCT((Planung!$BI$364:$BI$384=$B83)*(Planung!$BL$364:$BL$384)*(Planung!$B$364:$B$384))+SUMPRODUCT((Planung!$BQ$364:$BQ$384=$B83)*(Planung!$BT$364:$BT$384)*(Planung!$B$364:$B$384)))/IF(G83=0,1,G83) -> 0
B84: 12115 | O84: 0 | P84: 0 | Q84: 0 | W84: 0 | X84: 0 | Y84: 0 | Z84: 0 | AA84: 0 | AB84: 0 | AC84: 0 | AD84: 0 | AE84: 0 | AG84: 0 | AH84: 0 | AJ84: 0 | AK84: =(SUMPRODUCT((Planung!$AS$8:$AS$42=$B84)*(Planung!$AV$8:$AV$42)*(Planung!$B$8:$B$42))+SUMPRODUCT((Planung!$BA$8:$BA$42=$B84)*(Planung!$BD$8:$BD$42)*(Planung!$B$8:$B$42))+SUMPRODUCT((Planung!$BI$8:$BI$42=$B84)*(Planung!$BL$8:$BL$42)*(Planung!$B$8:$B$42))+SUMPRODUCT((Planung!$BQ$8:$BQ$42=$B84)*(Planung!$BT$8:$BT$42)*(Planung!$B$8:$B$42)))/IF(E84=0,1,E84) -> 0 | AL84: =(SUMPRODUCT((Planung!$AS$79:$AS$114=$B84)*(Planung!$AV$79:$AV$114)*(Planung!$B$79:$B$114))+SUMPRODUCT((Planung!$BA$79:$BA$114=$B84)*(Planung!$BD$79:$BD$114)*(Planung!$B$79:$B$114))+SUMPRODUCT((Planung!$BI$79:$BI$114=$B84)*(Planung!$BL$79:$BL$114)*(Planung!$B$79:$B$114))+SUMPRODUCT((Planung!$BQ$79:$BQ$114=$B84)*(Planung!$BT$79:$BT$114)*(Planung!$B$79:$B$114)))/IF(F84=0,1,F84) -> 0 | AM84: =(SUMPRODUCT((Planung!$AS$151:$AS$185=$B84)*(Planung!$AV$151:$AV$185)*(Planung!$B$151:$B$185))+SUMPRODUCT((Planung!$BA$151:$BA$185=$B84)*(Planung!$BD$151:$BD$185)*(Planung!$B$151:$B$185))+SUMPRODUCT((Planung!$BI$151:$BI$185=$B84)*(Planung!$BL$151:$BL$185)*(Planung!$B$151:$B$185))+SUMPRODUCT((Planung!$BQ$151:$BQ$185=$B84)*(Planung!$BT$151:$BT$185)*(Planung!$B$151:$B$185)))/IF(G84=0,1,G84) -> 0 | AN84: =(SUMPRODUCT((Planung!$AS$223:$AS$255=$B84)*(Planung!$AV$223:$AV$255)*(Planung!$B$223:$B$255))+SUMPRODUCT((Planung!$BA$223:$BA$255=$B84)*(Planung!$BD$223:$BD$255)*(Planung!$B$223:$B$255))+SUMPRODUCT((Planung!$BI$223:$BI$255=$B84)*(Planung!$BL$223:$BL$255)*(Planung!$B$223:$B$255))+SUMPRODUCT((Planung!$BQ$223:$BQ$255=$B84)*(Planung!$BT$223:$BT$255)*(Planung!$B$223:$B$255)))/IF(G84=0,1,G84) -> 0 | AO84: =(SUMPRODUCT((Planung!$AS$293:$AS$326=$B84)*(Planung!$AV$293:$AV$326)*(Planung!$B$293:$B$326))+SUMPRODUCT((Planung!$BA$293:$BA$326=$B84)*(Planung!$BD$293:$BD$326)*(Planung!$B$293:$B$326))+SUMPRODUCT((Planung!$BI$293:$BI$326=$B84)*(Planung!$BL$293:$BL$326)*(Planung!$B$293:$B$326))+SUMPRODUCT((Planung!$BQ$293:$BQ$326=$B84)*(Planung!$BT$293:$BT$326)*(Planung!$B$293:$B$326)))/IF(G84=0,1,G84) -> 0 | AP84: =(SUMPRODUCT((Planung!$AS$364:$AS$384=$B84)*(Planung!$AV$364:$AV$384)*(Planung!$B$364:$B$384))+SUMPRODUCT((Planung!$BA$364:$BA$384=$B84)*(Planung!$BD$364:$BD$384)*(Planung!$B$364:$B$384))+SUMPRODUCT((Planung!$BI$364:$BI$384=$B84)*(Planung!$BL$364:$BL$384)*(Planung!$B$364:$B$384))+SUMPRODUCT((Planung!$BQ$364:$BQ$384=$B84)*(Planung!$BT$364:$BT$384)*(Planung!$B$364:$B$384)))/IF(G84=0,1,G84) -> 0
B85: 12116 | C85: *Quaderballenpresse | D85: Ballen | E85: 1 | F85: 1 | G85: 1 | H85: 1 | I85: 1 | J85: 1 | K85: 0.7 | L85: 0.55 | O85: 0 | P85: 0 | Q85: =K85+L85+M85+O85+P85 -> 1.25 | R85: 140000 | S85: 28000 | T85: 35 | U85: 8 | V85: 100000 | W85: 14000 | X85: 12500 | Y85: 0 | Z85: 0 | AA85: 0 | AB85: 0 | AC85: 0 | AD85: 0 | AE85: 1.25 | AG85: 10000 | AH85: 0.8 | AJ85: 0 | AK85: =(SUMPRODUCT((Planung!$AS$8:$AS$42=$B85)*(Planung!$AV$8:$AV$42)*(Planung!$B$8:$B$42))+SUMPRODUCT((Planung!$BA$8:$BA$42=$B85)*(Planung!$BD$8:$BD$42)*(Planung!$B$8:$B$42))+SUMPRODUCT((Planung!$BI$8:$BI$42=$B85)*(Planung!$BL$8:$BL$42)*(Planung!$B$8:$B$42))+SUMPRODUCT((Planung!$BQ$8:$BQ$42=$B85)*(Planung!$BT$8:$BT$42)*(Planung!$B$8:$B$42)))/IF(E85=0,1,E85) -> 0 | AL85: =(SUMPRODUCT((Planung!$AS$79:$AS$114=$B85)*(Planung!$AV$79:$AV$114)*(Planung!$B$79:$B$114))+SUMPRODUCT((Planung!$BA$79:$BA$114=$B85)*(Planung!$BD$79:$BD$114)*(Planung!$B$79:$B$114))+SUMPRODUCT((Planung!$BI$79:$BI$114=$B85)*(Planung!$BL$79:$BL$114)*(Planung!$B$79:$B$114))+SUMPRODUCT((Planung!$BQ$79:$BQ$114=$B85)*(Planung!$BT$79:$BT$114)*(Planung!$B$79:$B$114)))/IF(F85=0,1,F85) -> 0 | AM85: =(SUMPRODUCT((Planung!$AS$151:$AS$185=$B85)*(Planung!$AV$151:$AV$185)*(Planung!$B$151:$B$185))+SUMPRODUCT((Planung!$BA$151:$BA$185=$B85)*(Planung!$BD$151:$BD$185)*(Planung!$B$151:$B$185))+SUMPRODUCT((Planung!$BI$151:$BI$185=$B85)*(Planung!$BL$151:$BL$185)*(Planung!$B$151:$B$185))+SUMPRODUCT((Planung!$BQ$151:$BQ$185=$B85)*(Planung!$BT$151:$BT$185)*(Planung!$B$151:$B$185)))/IF(G85=0,1,G85) -> 0 | AN85: =(SUMPRODUCT((Planung!$AS$223:$AS$255=$B85)*(Planung!$AV$223:$AV$255)*(Planung!$B$223:$B$255))+SUMPRODUCT((Planung!$BA$223:$BA$255=$B85)*(Planung!$BD$223:$BD$255)*(Planung!$B$223:$B$255))+SUMPRODUCT((Planung!$BI$223:$BI$255=$B85)*(Planung!$BL$223:$BL$255)*(Planung!$B$223:$B$255))+SUMPRODUCT((Planung!$BQ$223:$BQ$255=$B85)*(Planung!$BT$223:$BT$255)*(Planung!$B$223:$B$255)))/IF(G85=0,1,G85) -> 0 | AO85: =(SUMPRODUCT((Planung!$AS$293:$AS$326=$B85)*(Planung!$AV$293:$AV$326)*(Planung!$B$293:$B$326))+SUMPRODUCT((Planung!$BA$293:$BA$326=$B85)*(Planung!$BD$293:$BD$326)*(Planung!$B$293:$B$326))+SUMPRODUCT((Planung!$BI$293:$BI$326=$B85)*(Planung!$BL$293:$BL$326)*(Planung!$B$293:$B$326))+SUMPRODUCT((Planung!$BQ$293:$BQ$326=$B85)*(Planung!$BT$293:$BT$326)*(Planung!$B$293:$B$326)))/IF(G85=0,1,G85) -> 0 | AP85: =(SUMPRODUCT((Planung!$AS$364:$AS$384=$B85)*(Planung!$AV$364:$AV$384)*(Planung!$B$364:$B$384))+SUMPRODUCT((Planung!$BA$364:$BA$384=$B85)*(Planung!$BD$364:$BD$384)*(Planung!$B$364:$B$384))+SUMPRODUCT((Planung!$BI$364:$BI$384=$B85)*(Planung!$BL$364:$BL$384)*(Planung!$B$364:$B$384))+SUMPRODUCT((Planung!$BQ$364:$BQ$384=$B85)*(Planung!$BT$364:$BT$384)*(Planung!$B$364:$B$384)))/IF(G85=0,1,G85) -> 0
B86: 12114 | O86: 0 | P86: 0 | Q86: 0 | W86: 0 | X86: 0 | Y86: 0 | Z86: 0 | AA86: 0 | AB86: 0 | AC86: 0 | AD86: 0 | AE86: 0 | AG86: 0 | AH86: 0 | AJ86: 0 | AK86: =(SUMPRODUCT((Planung!$AS$8:$AS$42=$B86)*(Planung!$AV$8:$AV$42)*(Planung!$B$8:$B$42))+SUMPRODUCT((Planung!$BA$8:$BA$42=$B86)*(Planung!$BD$8:$BD$42)*(Planung!$B$8:$B$42))+SUMPRODUCT((Planung!$BI$8:$BI$42=$B86)*(Planung!$BL$8:$BL$42)*(Planung!$B$8:$B$42))+SUMPRODUCT((Planung!$BQ$8:$BQ$42=$B86)*(Planung!$BT$8:$BT$42)*(Planung!$B$8:$B$42)))/IF(E86=0,1,E86) -> 0 | AL86: =(SUMPRODUCT((Planung!$AS$79:$AS$114=$B86)*(Planung!$AV$79:$AV$114)*(Planung!$B$79:$B$114))+SUMPRODUCT((Planung!$BA$79:$BA$114=$B86)*(Planung!$BD$79:$BD$114)*(Planung!$B$79:$B$114))+SUMPRODUCT((Planung!$BI$79:$BI$114=$B86)*(Planung!$BL$79:$BL$114)*(Planung!$B$79:$B$114))+SUMPRODUCT((Planung!$BQ$79:$BQ$114=$B86)*(Planung!$BT$79:$BT$114)*(Planung!$B$79:$B$114)))/IF(F86=0,1,F86) -> 0 | AM86: =(SUMPRODUCT((Planung!$AS$151:$AS$185=$B86)*(Planung!$AV$151:$AV$185)*(Planung!$B$151:$B$185))+SUMPRODUCT((Planung!$BA$151:$BA$185=$B86)*(Planung!$BD$151:$BD$185)*(Planung!$B$151:$B$185))+SUMPRODUCT((Planung!$BI$151:$BI$185=$B86)*(Planung!$BL$151:$BL$185)*(Planung!$B$151:$B$185))+SUMPRODUCT((Planung!$BQ$151:$BQ$185=$B86)*(Planung!$BT$151:$BT$185)*(Planung!$B$151:$B$185)))/IF(G86=0,1,G86) -> 0 | AN86: =(SUMPRODUCT((Planung!$AS$223:$AS$255=$B86)*(Planung!$AV$223:$AV$255)*(Planung!$B$223:$B$255))+SUMPRODUCT((Planung!$BA$223:$BA$255=$B86)*(Planung!$BD$223:$BD$255)*(Planung!$B$223:$B$255))+SUMPRODUCT((Planung!$BI$223:$BI$255=$B86)*(Planung!$BL$223:$BL$255)*(Planung!$B$223:$B$255))+SUMPRODUCT((Planung!$BQ$223:$BQ$255=$B86)*(Planung!$BT$223:$BT$255)*(Planung!$B$223:$B$255)))/IF(G86=0,1,G86) -> 0 | AO86: =(SUMPRODUCT((Planung!$AS$293:$AS$326=$B86)*(Planung!$AV$293:$AV$326)*(Planung!$B$293:$B$326))+SUMPRODUCT((Planung!$BA$293:$BA$326=$B86)*(Planung!$BD$293:$BD$326)*(Planung!$B$293:$B$326))+SUMPRODUCT((Planung!$BI$293:$BI$326=$B86)*(Planung!$BL$293:$BL$326)*(Planung!$B$293:$B$326))+SUMPRODUCT((Planung!$BQ$293:$BQ$326=$B86)*(Planung!$BT$293:$BT$326)*(Planung!$B$293:$B$326)))/IF(G86=0,1,G86) -> 0 | AP86: =(SUMPRODUCT((Planung!$AS$364:$AS$384=$B86)*(Planung!$AV$364:$AV$384)*(Planung!$B$364:$B$384))+SUMPRODUCT((Planung!$BA$364:$BA$384=$B86)*(Planung!$BD$364:$BD$384)*(Planung!$B$364:$B$384))+SUMPRODUCT((Planung!$BI$364:$BI$384=$B86)*(Planung!$BL$364:$BL$384)*(Planung!$B$364:$B$384))+SUMPRODUCT((Planung!$BQ$364:$BQ$384=$B86)*(Planung!$BT$364:$BT$384)*(Planung!$B$364:$B$384)))/IF(G86=0,1,G86) -> 0
B87: 12118 | O87: 0 | P87: 0 | Q87: 0 | W87: 0 | X87: 0 | Y87: 0 | Z87: 0 | AA87: 0 | AB87: 0 | AC87: 0 | AD87: 0 | AE87: 0 | AG87: 0 | AH87: 0 | AJ87: 0 | AK87: =(SUMPRODUCT((Planung!$AS$8:$AS$42=$B87)*(Planung!$AV$8:$AV$42)*(Planung!$B$8:$B$42))+SUMPRODUCT((Planung!$BA$8:$BA$42=$B87)*(Planung!$BD$8:$BD$42)*(Planung!$B$8:$B$42))+SUMPRODUCT((Planung!$BI$8:$BI$42=$B87)*(Planung!$BL$8:$BL$42)*(Planung!$B$8:$B$42))+SUMPRODUCT((Planung!$BQ$8:$BQ$42=$B87)*(Planung!$BT$8:$BT$42)*(Planung!$B$8:$B$42)))/IF(E87=0,1,E87) -> 0 | AL87: =(SUMPRODUCT((Planung!$AS$79:$AS$114=$B87)*(Planung!$AV$79:$AV$114)*(Planung!$B$79:$B$114))+SUMPRODUCT((Planung!$BA$79:$BA$114=$B87)*(Planung!$BD$79:$BD$114)*(Planung!$B$79:$B$114))+SUMPRODUCT((Planung!$BI$79:$BI$114=$B87)*(Planung!$BL$79:$BL$114)*(Planung!$B$79:$B$114))+SUMPRODUCT((Planung!$BQ$79:$BQ$114=$B87)*(Planung!$BT$79:$BT$114)*(Planung!$B$79:$B$114)))/IF(F87=0,1,F87) -> 0 | AM87: =(SUMPRODUCT((Planung!$AS$151:$AS$185=$B87)*(Planung!$AV$151:$AV$185)*(Planung!$B$151:$B$185))+SUMPRODUCT((Planung!$BA$151:$BA$185=$B87)*(Planung!$BD$151:$BD$185)*(Planung!$B$151:$B$185))+SUMPRODUCT((Planung!$BI$151:$BI$185=$B87)*(Planung!$BL$151:$BL$185)*(Planung!$B$151:$B$185))+SUMPRODUCT((Planung!$BQ$151:$BQ$185=$B87)*(Planung!$BT$151:$BT$185)*(Planung!$B$151:$B$185)))/IF(G87=0,1,G87) -> 0 | AN87: =(SUMPRODUCT((Planung!$AS$223:$AS$255=$B87)*(Planung!$AV$223:$AV$255)*(Planung!$B$223:$B$255))+SUMPRODUCT((Planung!$BA$223:$BA$255=$B87)*(Planung!$BD$223:$BD$255)*(Planung!$B$223:$B$255))+SUMPRODUCT((Planung!$BI$223:$BI$255=$B87)*(Planung!$BL$223:$BL$255)*(Planung!$B$223:$B$255))+SUMPRODUCT((Planung!$BQ$223:$BQ$255=$B87)*(Planung!$BT$223:$BT$255)*(Planung!$B$223:$B$255)))/IF(G87=0,1,G87) -> 0 | AO87: =(SUMPRODUCT((Planung!$AS$293:$AS$326=$B87)*(Planung!$AV$293:$AV$326)*(Planung!$B$293:$B$326))+SUMPRODUCT((Planung!$BA$293:$BA$326=$B87)*(Planung!$BD$293:$BD$326)*(Planung!$B$293:$B$326))+SUMPRODUCT((Planung!$BI$293:$BI$326=$B87)*(Planung!$BL$293:$BL$326)*(Planung!$B$293:$B$326))+SUMPRODUCT((Planung!$BQ$293:$BQ$326=$B87)*(Planung!$BT$293:$BT$326)*(Planung!$B$293:$B$326)))/IF(G87=0,1,G87) -> 0 | AP87: =(SUMPRODUCT((Planung!$AS$364:$AS$384=$B87)*(Planung!$AV$364:$AV$384)*(Planung!$B$364:$B$384))+SUMPRODUCT((Planung!$BA$364:$BA$384=$B87)*(Planung!$BD$364:$BD$384)*(Planung!$B$364:$B$384))+SUMPRODUCT((Planung!$BI$364:$BI$384=$B87)*(Planung!$BL$364:$BL$384)*(Planung!$B$364:$B$384))+SUMPRODUCT((Planung!$BQ$364:$BQ$384=$B87)*(Planung!$BT$364:$BT$384)*(Planung!$B$364:$B$384)))/IF(G87=0,1,G87) -> 0
B88: 12119 | O88: 0 | P88: 0 | Q88: 0 | W88: 0 | X88: 0 | Y88: 0 | Z88: 0 | AA88: 0 | AB88: 0 | AC88: 0 | AD88: 0 | AE88: 0 | AG88: 0 | AH88: 0 | AJ88: 0 | AK88: =(SUMPRODUCT((Planung!$AS$8:$AS$42=$B88)*(Planung!$AV$8:$AV$42)*(Planung!$B$8:$B$42))+SUMPRODUCT((Planung!$BA$8:$BA$42=$B88)*(Planung!$BD$8:$BD$42)*(Planung!$B$8:$B$42))+SUMPRODUCT((Planung!$BI$8:$BI$42=$B88)*(Planung!$BL$8:$BL$42)*(Planung!$B$8:$B$42))+SUMPRODUCT((Planung!$BQ$8:$BQ$42=$B88)*(Planung!$BT$8:$BT$42)*(Planung!$B$8:$B$42)))/IF(E88=0,1,E88) -> 0 | AL88: =(SUMPRODUCT((Planung!$AS$79:$AS$114=$B88)*(Planung!$AV$79:$AV$114)*(Planung!$B$79:$B$114))+SUMPRODUCT((Planung!$BA$79:$BA$114=$B88)*(Planung!$BD$79:$BD$114)*(Planung!$B$79:$B$114))+SUMPRODUCT((Planung!$BI$79:$BI$114=$B88)*(Planung!$BL$79:$BL$114)*(Planung!$B$79:$B$114))+SUMPRODUCT((Planung!$BQ$79:$BQ$114=$B88)*(Planung!$BT$79:$BT$114)*(Planung!$B$79:$B$114)))/IF(F88=0,1,F88) -> 0 | AM88: =(SUMPRODUCT((Planung!$AS$151:$AS$185=$B88)*(Planung!$AV$151:$AV$185)*(Planung!$B$151:$B$185))+SUMPRODUCT((Planung!$BA$151:$BA$185=$B88)*(Planung!$BD$151:$BD$185)*(Planung!$B$151:$B$185))+SUMPRODUCT((Planung!$BI$151:$BI$185=$B88)*(Planung!$BL$151:$BL$185)*(Planung!$B$151:$B$185))+SUMPRODUCT((Planung!$BQ$151:$BQ$185=$B88)*(Planung!$BT$151:$BT$185)*(Planung!$B$151:$B$185)))/IF(G88=0,1,G88) -> 0 | AN88: =(SUMPRODUCT((Planung!$AS$223:$AS$255=$B88)*(Planung!$AV$223:$AV$255)*(Planung!$B$223:$B$255))+SUMPRODUCT((Planung!$BA$223:$BA$255=$B88)*(Planung!$BD$223:$BD$255)*(Planung!$B$223:$B$255))+SUMPRODUCT((Planung!$BI$223:$BI$255=$B88)*(Planung!$BL$223:$BL$255)*(Planung!$B$223:$B$255))+SUMPRODUCT((Planung!$BQ$223:$BQ$255=$B88)*(Planung!$BT$223:$BT$255)*(Planung!$B$223:$B$255)))/IF(G88=0,1,G88) -> 0 | AO88: =(SUMPRODUCT((Planung!$AS$293:$AS$326=$B88)*(Planung!$AV$293:$AV$326)*(Planung!$B$293:$B$326))+SUMPRODUCT((Planung!$BA$293:$BA$326=$B88)*(Planung!$BD$293:$BD$326)*(Planung!$B$293:$B$326))+SUMPRODUCT((Planung!$BI$293:$BI$326=$B88)*(Planung!$BL$293:$BL$326)*(Planung!$B$293:$B$326))+SUMPRODUCT((Planung!$BQ$293:$BQ$326=$B88)*(Planung!$BT$293:$BT$326)*(Planung!$B$293:$B$326)))/IF(G88=0,1,G88) -> 0 | AP88: =(SUMPRODUCT((Planung!$AS$364:$AS$384=$B88)*(Planung!$AV$364:$AV$384)*(Planung!$B$364:$B$384))+SUMPRODUCT((Planung!$BA$364:$BA$384=$B88)*(Planung!$BD$364:$BD$384)*(Planung!$B$364:$B$384))+SUMPRODUCT((Planung!$BI$364:$BI$384=$B88)*(Planung!$BL$364:$BL$384)*(Planung!$B$364:$B$384))+SUMPRODUCT((Planung!$BQ$364:$BQ$384=$B88)*(Planung!$BT$364:$BT$384)*(Planung!$B$364:$B$384)))/IF(G88=0,1,G88) -> 0
C89: SONSTIGES | O89: 0 | P89: 0 | Q89: 0 | W89: 0 | X89: 0 | Y89: 0 | Z89: 0 | AA89: 0 | AB89: 0 | AC89: 0 | AD89: 0 | AE89: 0 | AG89: 0 | AH89: 0 | AJ89: 0 | AK89: =(SUMPRODUCT((Planung!$AS$8:$AS$42=$B89)*(Planung!$AV$8:$AV$42)*(Planung!$B$8:$B$42))+SUMPRODUCT((Planung!$BA$8:$BA$42=$B89)*(Planung!$BD$8:$BD$42)*(Planung!$B$8:$B$42))+SUMPRODUCT((Planung!$BI$8:$BI$42=$B89)*(Planung!$BL$8:$BL$42)*(Planung!$B$8:$B$42))+SUMPRODUCT((Planung!$BQ$8:$BQ$42=$B89)*(Planung!$BT$8:$BT$42)*(Planung!$B$8:$B$42)))/IF(E89=0,1,E89) -> 0 | AL89: =(SUMPRODUCT((Planung!$AS$79:$AS$114=$B89)*(Planung!$AV$79:$AV$114)*(Planung!$B$79:$B$114))+SUMPRODUCT((Planung!$BA$79:$BA$114=$B89)*(Planung!$BD$79:$BD$114)*(Planung!$B$79:$B$114))+SUMPRODUCT((Planung!$BI$79:$BI$114=$B89)*(Planung!$BL$79:$BL$114)*(Planung!$B$79:$B$114))+SUMPRODUCT((Planung!$BQ$79:$BQ$114=$B89)*(Planung!$BT$79:$BT$114)*(Planung!$B$79:$B$114)))/IF(F89=0,1,F89) -> 0 | AM89: =(SUMPRODUCT((Planung!$AS$151:$AS$185=$B89)*(Planung!$AV$151:$AV$185)*(Planung!$B$151:$B$185))+SUMPRODUCT((Planung!$BA$151:$BA$185=$B89)*(Planung!$BD$151:$BD$185)*(Planung!$B$151:$B$185))+SUMPRODUCT((Planung!$BI$151:$BI$185=$B89)*(Planung!$BL$151:$BL$185)*(Planung!$B$151:$B$185))+SUMPRODUCT((Planung!$BQ$151:$BQ$185=$B89)*(Planung!$BT$151:$BT$185)*(Planung!$B$151:$B$185)))/IF(G89=0,1,G89) -> 0 | AN89: =(SUMPRODUCT((Planung!$AS$223:$AS$255=$B89)*(Planung!$AV$223:$AV$255)*(Planung!$B$223:$B$255))+SUMPRODUCT((Planung!$BA$223:$BA$255=$B89)*(Planung!$BD$223:$BD$255)*(Planung!$B$223:$B$255))+SUMPRODUCT((Planung!$BI$223:$BI$255=$B89)*(Planung!$BL$223:$BL$255)*(Planung!$B$223:$B$255))+SUMPRODUCT((Planung!$BQ$223:$BQ$255=$B89)*(Planung!$BT$223:$BT$255)*(Planung!$B$223:$B$255)))/IF(G89=0,1,G89) -> 0 | AO89: =(SUMPRODUCT((Planung!$AS$293:$AS$326=$B89)*(Planung!$AV$293:$AV$326)*(Planung!$B$293:$B$326))+SUMPRODUCT((Planung!$BA$293:$BA$326=$B89)*(Planung!$BD$293:$BD$326)*(Planung!$B$293:$B$326))+SUMPRODUCT((Planung!$BI$293:$BI$326=$B89)*(Planung!$BL$293:$BL$326)*(Planung!$B$293:$B$326))+SUMPRODUCT((Planung!$BQ$293:$BQ$326=$B89)*(Planung!$BT$293:$BT$326)*(Planung!$B$293:$B$326)))/IF(G89=0,1,G89) -> 0 | AP89: =(SUMPRODUCT((Planung!$AS$364:$AS$384=$B89)*(Planung!$AV$364:$AV$384)*(Planung!$B$364:$B$384))+SUMPRODUCT((Planung!$BA$364:$BA$384=$B89)*(Planung!$BD$364:$BD$384)*(Planung!$B$364:$B$384))+SUMPRODUCT((Planung!$BI$364:$BI$384=$B89)*(Planung!$BL$364:$BL$384)*(Planung!$B$364:$B$384))+SUMPRODUCT((Planung!$BQ$364:$BQ$384=$B89)*(Planung!$BT$364:$BT$384)*(Planung!$B$364:$B$384)))/IF(G89=0,1,G89) -> 0
B90: 12215 | O90: 0 | P90: 0 | Q90: 0 | W90: 0 | X90: 0 | Y90: 0 | Z90: 0 | AA90: 0 | AB90: 0 | AC90: 0 | AD90: 0 | AE90: 0 | AG90: 0 | AH90: 0 | AJ90: 0 | AK90: =(SUMPRODUCT((Planung!$AS$8:$AS$42=$B90)*(Planung!$AV$8:$AV$42)*(Planung!$B$8:$B$42))+SUMPRODUCT((Planung!$BA$8:$BA$42=$B90)*(Planung!$BD$8:$BD$42)*(Planung!$B$8:$B$42))+SUMPRODUCT((Planung!$BI$8:$BI$42=$B90)*(Planung!$BL$8:$BL$42)*(Planung!$B$8:$B$42))+SUMPRODUCT((Planung!$BQ$8:$BQ$42=$B90)*(Planung!$BT$8:$BT$42)*(Planung!$B$8:$B$42)))/IF(E90=0,1,E90) -> 0 | AL90: =(SUMPRODUCT((Planung!$AS$79:$AS$114=$B90)*(Planung!$AV$79:$AV$114)*(Planung!$B$79:$B$114))+SUMPRODUCT((Planung!$BA$79:$BA$114=$B90)*(Planung!$BD$79:$BD$114)*(Planung!$B$79:$B$114))+SUMPRODUCT((Planung!$BI$79:$BI$114=$B90)*(Planung!$BL$79:$BL$114)*(Planung!$B$79:$B$114))+SUMPRODUCT((Planung!$BQ$79:$BQ$114=$B90)*(Planung!$BT$79:$BT$114)*(Planung!$B$79:$B$114)))/IF(F90=0,1,F90) -> 0 | AM90: =(SUMPRODUCT((Planung!$AS$151:$AS$185=$B90)*(Planung!$AV$151:$AV$185)*(Planung!$B$151:$B$185))+SUMPRODUCT((Planung!$BA$151:$BA$185=$B90)*(Planung!$BD$151:$BD$185)*(Planung!$B$151:$B$185))+SUMPRODUCT((Planung!$BI$151:$BI$185=$B90)*(Planung!$BL$151:$BL$185)*(Planung!$B$151:$B$185))+SUMPRODUCT((Planung!$BQ$151:$BQ$185=$B90)*(Planung!$BT$151:$BT$185)*(Planung!$B$151:$B$185)))/IF(G90=0,1,G90) -> 0 | AN90: =(SUMPRODUCT((Planung!$AS$223:$AS$255=$B90)*(Planung!$AV$223:$AV$255)*(Planung!$B$223:$B$255))+SUMPRODUCT((Planung!$BA$223:$BA$255=$B90)*(Planung!$BD$223:$BD$255)*(Planung!$B$223:$B$255))+SUMPRODUCT((Planung!$BI$223:$BI$255=$B90)*(Planung!$BL$223:$BL$255)*(Planung!$B$223:$B$255))+SUMPRODUCT((Planung!$BQ$223:$BQ$255=$B90)*(Planung!$BT$223:$BT$255)*(Planung!$B$223:$B$255)))/IF(G90=0,1,G90) -> 0 | AO90: =(SUMPRODUCT((Planung!$AS$293:$AS$326=$B90)*(Planung!$AV$293:$AV$326)*(Planung!$B$293:$B$326))+SUMPRODUCT((Planung!$BA$293:$BA$326=$B90)*(Planung!$BD$293:$BD$326)*(Planung!$B$293:$B$326))+SUMPRODUCT((Planung!$BI$293:$BI$326=$B90)*(Planung!$BL$293:$BL$326)*(Planung!$B$293:$B$326))+SUMPRODUCT((Planung!$BQ$293:$BQ$326=$B90)*(Planung!$BT$293:$BT$326)*(Planung!$B$293:$B$326)))/IF(G90=0,1,G90) -> 0 | AP90: =(SUMPRODUCT((Planung!$AS$364:$AS$384=$B90)*(Planung!$AV$364:$AV$384)*(Planung!$B$364:$B$384))+SUMPRODUCT((Planung!$BA$364:$BA$384=$B90)*(Planung!$BD$364:$BD$384)*(Planung!$B$364:$B$384))+SUMPRODUCT((Planung!$BI$364:$BI$384=$B90)*(Planung!$BL$364:$BL$384)*(Planung!$B$364:$B$384))+SUMPRODUCT((Planung!$BQ$364:$BQ$384=$B90)*(Planung!$BT$364:$BT$384)*(Planung!$B$364:$B$384)))/IF(G90=0,1,G90) -> 0
B91: 12218 | C91: *Holzhäcksler | D91: h | E91: 1 | F91: 1 | G91: 1 | H91: 1 | I91: 1 | J91: 1 | K91: 25 | O91: 0 | P91: 0 | Q91: =K91+L91+M91+O91+P91 -> 25 | R91: 160000 | S91: 32000 | U91: 10 | V91: 5000 | W91: =IF(U91=0,0,(R91-S91)/U91) -> 12800 | X91: 500 | Y91: 0 | Z91: 0 | AA91: 0 | AB91: 0 | AC91: 0 | AD91: 0 | AE91: =AD91+Q91 -> 25 | AG91: 400 | AH91: 0.8 | AI91: 600 | AJ91: 1.2 | AK91: =(SUMPRODUCT((Planung!$AS$8:$AS$42=$B91)*(Planung!$AV$8:$AV$42)*(Planung!$B$8:$B$42))+SUMPRODUCT((Planung!$BA$8:$BA$42=$B91)*(Planung!$BD$8:$BD$42)*(Planung!$B$8:$B$42))+SUMPRODUCT((Planung!$BI$8:$BI$42=$B91)*(Planung!$BL$8:$BL$42)*(Planung!$B$8:$B$42))+SUMPRODUCT((Planung!$BQ$8:$BQ$42=$B91)*(Planung!$BT$8:$BT$42)*(Planung!$B$8:$B$42)))/IF(E91=0,1,E91) -> 0 | AL91: =(SUMPRODUCT((Planung!$AS$79:$AS$114=$B91)*(Planung!$AV$79:$AV$114)*(Planung!$B$79:$B$114))+SUMPRODUCT((Planung!$BA$79:$BA$114=$B91)*(Planung!$BD$79:$BD$114)*(Planung!$B$79:$B$114))+SUMPRODUCT((Planung!$BI$79:$BI$114=$B91)*(Planung!$BL$79:$BL$114)*(Planung!$B$79:$B$114))+SUMPRODUCT((Planung!$BQ$79:$BQ$114=$B91)*(Planung!$BT$79:$BT$114)*(Planung!$B$79:$B$114)))/IF(F91=0,1,F91) -> 0 | AM91: =(SUMPRODUCT((Planung!$AS$151:$AS$185=$B91)*(Planung!$AV$151:$AV$185)*(Planung!$B$151:$B$185))+SUMPRODUCT((Planung!$BA$151:$BA$185=$B91)*(Planung!$BD$151:$BD$185)*(Planung!$B$151:$B$185))+SUMPRODUCT((Planung!$BI$151:$BI$185=$B91)*(Planung!$BL$151:$BL$185)*(Planung!$B$151:$B$185))+SUMPRODUCT((Planung!$BQ$151:$BQ$185=$B91)*(Planung!$BT$151:$BT$185)*(Planung!$B$151:$B$185)))/IF(G91=0,1,G91) -> 0 | AN91: =(SUMPRODUCT((Planung!$AS$223:$AS$255=$B91)*(Planung!$AV$223:$AV$255)*(Planung!$B$223:$B$255))+SUMPRODUCT((Planung!$BA$223:$BA$255=$B91)*(Planung!$BD$223:$BD$255)*(Planung!$B$223:$B$255))+SUMPRODUCT((Planung!$BI$223:$BI$255=$B91)*(Planung!$BL$223:$BL$255)*(Planung!$B$223:$B$255))+SUMPRODUCT((Planung!$BQ$223:$BQ$255=$B91)*(Planung!$BT$223:$BT$255)*(Planung!$B$223:$B$255)))/IF(G91=0,1,G91) -> 0 | AO91: =(SUMPRODUCT((Planung!$AS$293:$AS$326=$B91)*(Planung!$AV$293:$AV$326)*(Planung!$B$293:$B$326))+SUMPRODUCT((Planung!$BA$293:$BA$326=$B91)*(Planung!$BD$293:$BD$326)*(Planung!$B$293:$B$326))+SUMPRODUCT((Planung!$BI$293:$BI$326=$B91)*(Planung!$BL$293:$BL$326)*(Planung!$B$293:$B$326))+SUMPRODUCT((Planung!$BQ$293:$BQ$326=$B91)*(Planung!$BT$293:$BT$326)*(Planung!$B$293:$B$326)))/IF(G91=0,1,G91) -> 0 | AP91: =(SUMPRODUCT((Planung!$AS$364:$AS$384=$B91)*(Planung!$AV$364:$AV$384)*(Planung!$B$364:$B$384))+SUMPRODUCT((Planung!$BA$364:$BA$384=$B91)*(Planung!$BD$364:$BD$384)*(Planung!$B$364:$B$384))+SUMPRODUCT((Planung!$BI$364:$BI$384=$B91)*(Planung!$BL$364:$BL$384)*(Planung!$B$364:$B$384))+SUMPRODUCT((Planung!$BQ$364:$BQ$384=$B91)*(Planung!$BT$364:$BT$384)*(Planung!$B$364:$B$384)))/IF(G91=0,1,G91) -> 0
B92: 12217 | C92: *Sattelzugauflieger Heckkipper | D92: t | E92: 1 | F92: 1 | G92: 1 | H92: 1 | I92: 1 | J92: 1 | K92: 0.25 | O92: 0 | P92: 0 | Q92: =K92+L92+M92+O92+P92 -> 0.25 | R92: 55000 | S92: 11000 | U92: 10 | V92: 200000 | W92: =IF(U92=0,0,(R92-S92)/U92) -> 4400 | X92: 20000 | Y92: 0 | Z92: 0 | AA92: 0 | AB92: 0 | AC92: 0 | AD92: 0 | AE92: =AD92+Q92 -> 0.25 | AG92: 16000 | AH92: 0.8 | AI92: 600 | AJ92: 0.03 | AK92: =(SUMPRODUCT((Planung!$AS$8:$AS$42=$B92)*(Planung!$AV$8:$AV$42)*(Planung!$B$8:$B$42))+SUMPRODUCT((Planung!$BA$8:$BA$42=$B92)*(Planung!$BD$8:$BD$42)*(Planung!$B$8:$B$42))+SUMPRODUCT((Planung!$BI$8:$BI$42=$B92)*(Planung!$BL$8:$BL$42)*(Planung!$B$8:$B$42))+SUMPRODUCT((Planung!$BQ$8:$BQ$42=$B92)*(Planung!$BT$8:$BT$42)*(Planung!$B$8:$B$42)))/IF(E92=0,1,E92) -> 0 | AL92: =(SUMPRODUCT((Planung!$AS$79:$AS$114=$B92)*(Planung!$AV$79:$AV$114)*(Planung!$B$79:$B$114))+SUMPRODUCT((Planung!$BA$79:$BA$114=$B92)*(Planung!$BD$79:$BD$114)*(Planung!$B$79:$B$114))+SUMPRODUCT((Planung!$BI$79:$BI$114=$B92)*(Planung!$BL$79:$BL$114)*(Planung!$B$79:$B$114))+SUMPRODUCT((Planung!$BQ$79:$BQ$114=$B92)*(Planung!$BT$79:$BT$114)*(Planung!$B$79:$B$114)))/IF(F92=0,1,F92) -> 0 | AM92: =(SUMPRODUCT((Planung!$AS$151:$AS$185=$B92)*(Planung!$AV$151:$AV$185)*(Planung!$B$151:$B$185))+SUMPRODUCT((Planung!$BA$151:$BA$185=$B92)*(Planung!$BD$151:$BD$185)*(Planung!$B$151:$B$185))+SUMPRODUCT((Planung!$BI$151:$BI$185=$B92)*(Planung!$BL$151:$BL$185)*(Planung!$B$151:$B$185))+SUMPRODUCT((Planung!$BQ$151:$BQ$185=$B92)*(Planung!$BT$151:$BT$185)*(Planung!$B$151:$B$185)))/IF(G92=0,1,G92) -> 0 | AN92: =(SUMPRODUCT((Planung!$AS$223:$AS$255=$B92)*(Planung!$AV$223:$AV$255)*(Planung!$B$223:$B$255))+SUMPRODUCT((Planung!$BA$223:$BA$255=$B92)*(Planung!$BD$223:$BD$255)*(Planung!$B$223:$B$255))+SUMPRODUCT((Planung!$BI$223:$BI$255=$B92)*(Planung!$BL$223:$BL$255)*(Planung!$B$223:$B$255))+SUMPRODUCT((Planung!$BQ$223:$BQ$255=$B92)*(Planung!$BT$223:$BT$255)*(Planung!$B$223:$B$255)))/IF(G92=0,1,G92) -> 0 | AO92: =(SUMPRODUCT((Planung!$AS$293:$AS$326=$B92)*(Planung!$AV$293:$AV$326)*(Planung!$B$293:$B$326))+SUMPRODUCT((Planung!$BA$293:$BA$326=$B92)*(Planung!$BD$293:$BD$326)*(Planung!$B$293:$B$326))+SUMPRODUCT((Planung!$BI$293:$BI$326=$B92)*(Planung!$BL$293:$BL$326)*(Planung!$B$293:$B$326))+SUMPRODUCT((Planung!$BQ$293:$BQ$326=$B92)*(Planung!$BT$293:$BT$326)*(Planung!$B$293:$B$326)))/IF(G92=0,1,G92) -> 0 | AP92: =(SUMPRODUCT((Planung!$AS$364:$AS$384=$B92)*(Planung!$AV$364:$AV$384)*(Planung!$B$364:$B$384))+SUMPRODUCT((Planung!$BA$364:$BA$384=$B92)*(Planung!$BD$364:$BD$384)*(Planung!$B$364:$B$384))+SUMPRODUCT((Planung!$BI$364:$BI$384=$B92)*(Planung!$BL$364:$BL$384)*(Planung!$B$364:$B$384))+SUMPRODUCT((Planung!$BQ$364:$BQ$384=$B92)*(Planung!$BT$364:$BT$384)*(Planung!$B$364:$B$384)))/IF(G92=0,1,G92) -> 0
B93: 12216 | O93: 0 | P93: 0 | Q93: =K93+L93+M93+O93+P93 -> 0 | W93: =IF(U93=0,0,(R93-S93)/U93) -> 0 | X93: 0 | Y93: 0 | Z93: 0 | AA93: 0 | AB93: 0 | AC93: 0 | AD93: 0 | AE93: =AD93+Q93 -> 0 | AG93: 0 | AH93: 0 | AJ93: 0 | AK93: =(SUMPRODUCT((Planung!$AS$8:$AS$42=$B93)*(Planung!$AV$8:$AV$42)*(Planung!$B$8:$B$42))+SUMPRODUCT((Planung!$BA$8:$BA$42=$B93)*(Planung!$BD$8:$BD$42)*(Planung!$B$8:$B$42))+SUMPRODUCT((Planung!$BI$8:$BI$42=$B93)*(Planung!$BL$8:$BL$42)*(Planung!$B$8:$B$42))+SUMPRODUCT((Planung!$BQ$8:$BQ$42=$B93)*(Planung!$BT$8:$BT$42)*(Planung!$B$8:$B$42)))/IF(E93=0,1,E93) -> 0 | AL93: =(SUMPRODUCT((Planung!$AS$79:$AS$114=$B93)*(Planung!$AV$79:$AV$114)*(Planung!$B$79:$B$114))+SUMPRODUCT((Planung!$BA$79:$BA$114=$B93)*(Planung!$BD$79:$BD$114)*(Planung!$B$79:$B$114))+SUMPRODUCT((Planung!$BI$79:$BI$114=$B93)*(Planung!$BL$79:$BL$114)*(Planung!$B$79:$B$114))+SUMPRODUCT((Planung!$BQ$79:$BQ$114=$B93)*(Planung!$BT$79:$BT$114)*(Planung!$B$79:$B$114)))/IF(F93=0,1,F93) -> 0 | AM93: =(SUMPRODUCT((Planung!$AS$151:$AS$185=$B93)*(Planung!$AV$151:$AV$185)*(Planung!$B$151:$B$185))+SUMPRODUCT((Planung!$BA$151:$BA$185=$B93)*(Planung!$BD$151:$BD$185)*(Planung!$B$151:$B$185))+SUMPRODUCT((Planung!$BI$151:$BI$185=$B93)*(Planung!$BL$151:$BL$185)*(Planung!$B$151:$B$185))+SUMPRODUCT((Planung!$BQ$151:$BQ$185=$B93)*(Planung!$BT$151:$BT$185)*(Planung!$B$151:$B$185)))/IF(G93=0,1,G93) -> 0 | AN93: =(SUMPRODUCT((Planung!$AS$223:$AS$255=$B93)*(Planung!$AV$223:$AV$255)*(Planung!$B$223:$B$255))+SUMPRODUCT((Planung!$BA$223:$BA$255=$B93)*(Planung!$BD$223:$BD$255)*(Planung!$B$223:$B$255))+SUMPRODUCT((Planung!$BI$223:$BI$255=$B93)*(Planung!$BL$223:$BL$255)*(Planung!$B$223:$B$255))+SUMPRODUCT((Planung!$BQ$223:$BQ$255=$B93)*(Planung!$BT$223:$BT$255)*(Planung!$B$223:$B$255)))/IF(G93=0,1,G93) -> 0 | AO93: =(SUMPRODUCT((Planung!$AS$293:$AS$326=$B93)*(Planung!$AV$293:$AV$326)*(Planung!$B$293:$B$326))+SUMPRODUCT((Planung!$BA$293:$BA$326=$B93)*(Planung!$BD$293:$BD$326)*(Planung!$B$293:$B$326))+SUMPRODUCT((Planung!$BI$293:$BI$326=$B93)*(Planung!$BL$293:$BL$326)*(Planung!$B$293:$B$326))+SUMPRODUCT((Planung!$BQ$293:$BQ$326=$B93)*(Planung!$BT$293:$BT$326)*(Planung!$B$293:$B$326)))/IF(G93=0,1,G93) -> 0 | AP93: =(SUMPRODUCT((Planung!$AS$364:$AS$384=$B93)*(Planung!$AV$364:$AV$384)*(Planung!$B$364:$B$384))+SUMPRODUCT((Planung!$BA$364:$BA$384=$B93)*(Planung!$BD$364:$BD$384)*(Planung!$B$364:$B$384))+SUMPRODUCT((Planung!$BI$364:$BI$384=$B93)*(Planung!$BL$364:$BL$384)*(Planung!$B$364:$B$384))+SUMPRODUCT((Planung!$BQ$364:$BQ$384=$B93)*(Planung!$BT$364:$BT$384)*(Planung!$B$364:$B$384)))/IF(G93=0,1,G93) -> 0
C94: PAUSCHALEN | O94: 0 | P94: 0 | Q94: 0 | W94: 0 | X94: 0 | Y94: 0 | Z94: 0 | AA94: 0 | AB94: 0 | AC94: 0 | AD94: 0 | AE94: 0 | AG94: 0 | AH94: 0 | AJ94: 0 | AK94: =(SUMPRODUCT((Planung!$AS$8:$AS$42=$B94)*(Planung!$AV$8:$AV$42)*(Planung!$B$8:$B$42))+SUMPRODUCT((Planung!$BA$8:$BA$42=$B94)*(Planung!$BD$8:$BD$42)*(Planung!$B$8:$B$42))+SUMPRODUCT((Planung!$BI$8:$BI$42=$B94)*(Planung!$BL$8:$BL$42)*(Planung!$B$8:$B$42))+SUMPRODUCT((Planung!$BQ$8:$BQ$42=$B94)*(Planung!$BT$8:$BT$42)*(Planung!$B$8:$B$42)))/IF(E94=0,1,E94) -> 0 | AL94: =(SUMPRODUCT((Planung!$AS$79:$AS$114=$B94)*(Planung!$AV$79:$AV$114)*(Planung!$B$79:$B$114))+SUMPRODUCT((Planung!$BA$79:$BA$114=$B94)*(Planung!$BD$79:$BD$114)*(Planung!$B$79:$B$114))+SUMPRODUCT((Planung!$BI$79:$BI$114=$B94)*(Planung!$BL$79:$BL$114)*(Planung!$B$79:$B$114))+SUMPRODUCT((Planung!$BQ$79:$BQ$114=$B94)*(Planung!$BT$79:$BT$114)*(Planung!$B$79:$B$114)))/IF(F94=0,1,F94) -> 0 | AM94: =(SUMPRODUCT((Planung!$AS$151:$AS$185=$B94)*(Planung!$AV$151:$AV$185)*(Planung!$B$151:$B$185))+SUMPRODUCT((Planung!$BA$151:$BA$185=$B94)*(Planung!$BD$151:$BD$185)*(Planung!$B$151:$B$185))+SUMPRODUCT((Planung!$BI$151:$BI$185=$B94)*(Planung!$BL$151:$BL$185)*(Planung!$B$151:$B$185))+SUMPRODUCT((Planung!$BQ$151:$BQ$185=$B94)*(Planung!$BT$151:$BT$185)*(Planung!$B$151:$B$185)))/IF(G94=0,1,G94) -> 0 | AN94: =(SUMPRODUCT((Planung!$AS$223:$AS$255=$B94)*(Planung!$AV$223:$AV$255)*(Planung!$B$223:$B$255))+SUMPRODUCT((Planung!$BA$223:$BA$255=$B94)*(Planung!$BD$223:$BD$255)*(Planung!$B$223:$B$255))+SUMPRODUCT((Planung!$BI$223:$BI$255=$B94)*(Planung!$BL$223:$BL$255)*(Planung!$B$223:$B$255))+SUMPRODUCT((Planung!$BQ$223:$BQ$255=$B94)*(Planung!$BT$223:$BT$255)*(Planung!$B$223:$B$255)))/IF(G94=0,1,G94) -> 0 | AO94: =(SUMPRODUCT((Planung!$AS$293:$AS$326=$B94)*(Planung!$AV$293:$AV$326)*(Planung!$B$293:$B$326))+SUMPRODUCT((Planung!$BA$293:$BA$326=$B94)*(Planung!$BD$293:$BD$326)*(Planung!$B$293:$B$326))+SUMPRODUCT((Planung!$BI$293:$BI$326=$B94)*(Planung!$BL$293:$BL$326)*(Planung!$B$293:$B$326))+SUMPRODUCT((Planung!$BQ$293:$BQ$326=$B94)*(Planung!$BT$293:$BT$326)*(Planung!$B$293:$B$326)))/IF(G94=0,1,G94) -> 0 | AP94: =(SUMPRODUCT((Planung!$AS$364:$AS$384=$B94)*(Planung!$AV$364:$AV$384)*(Planung!$B$364:$B$384))+SUMPRODUCT((Planung!$BA$364:$BA$384=$B94)*(Planung!$BD$364:$BD$384)*(Planung!$B$364:$B$384))+SUMPRODUCT((Planung!$BI$364:$BI$384=$B94)*(Planung!$BL$364:$BL$384)*(Planung!$B$364:$B$384))+SUMPRODUCT((Planung!$BQ$364:$BQ$384=$B94)*(Planung!$BT$364:$BT$384)*(Planung!$B$364:$B$384)))/IF(G94=0,1,G94) -> 0
B95: 12311 | O95: 0 | P95: 0 | Q95: 0 | W95: 0 | X95: 0 | Y95: 0 | Z95: 0 | AA95: 0 | AB95: 0 | AC95: 0 | AD95: 0 | AE95: 0 | AG95: 0 | AH95: 0 | AJ95: 0 | AK95: =(SUMPRODUCT((Planung!$AS$8:$AS$42=$B95)*(Planung!$AV$8:$AV$42)*(Planung!$B$8:$B$42))+SUMPRODUCT((Planung!$BA$8:$BA$42=$B95)*(Planung!$BD$8:$BD$42)*(Planung!$B$8:$B$42))+SUMPRODUCT((Planung!$BI$8:$BI$42=$B95)*(Planung!$BL$8:$BL$42)*(Planung!$B$8:$B$42))+SUMPRODUCT((Planung!$BQ$8:$BQ$42=$B95)*(Planung!$BT$8:$BT$42)*(Planung!$B$8:$B$42)))/IF(E95=0,1,E95) -> 0 | AL95: =(SUMPRODUCT((Planung!$AS$79:$AS$114=$B95)*(Planung!$AV$79:$AV$114)*(Planung!$B$79:$B$114))+SUMPRODUCT((Planung!$BA$79:$BA$114=$B95)*(Planung!$BD$79:$BD$114)*(Planung!$B$79:$B$114))+SUMPRODUCT((Planung!$BI$79:$BI$114=$B95)*(Planung!$BL$79:$BL$114)*(Planung!$B$79:$B$114))+SUMPRODUCT((Planung!$BQ$79:$BQ$114=$B95)*(Planung!$BT$79:$BT$114)*(Planung!$B$79:$B$114)))/IF(F95=0,1,F95) -> 0 | AM95: =(SUMPRODUCT((Planung!$AS$151:$AS$185=$B95)*(Planung!$AV$151:$AV$185)*(Planung!$B$151:$B$185))+SUMPRODUCT((Planung!$BA$151:$BA$185=$B95)*(Planung!$BD$151:$BD$185)*(Planung!$B$151:$B$185))+SUMPRODUCT((Planung!$BI$151:$BI$185=$B95)*(Planung!$BL$151:$BL$185)*(Planung!$B$151:$B$185))+SUMPRODUCT((Planung!$BQ$151:$BQ$185=$B95)*(Planung!$BT$151:$BT$185)*(Planung!$B$151:$B$185)))/IF(G95=0,1,G95) -> 0 | AN95: =(SUMPRODUCT((Planung!$AS$223:$AS$255=$B95)*(Planung!$AV$223:$AV$255)*(Planung!$B$223:$B$255))+SUMPRODUCT((Planung!$BA$223:$BA$255=$B95)*(Planung!$BD$223:$BD$255)*(Planung!$B$223:$B$255))+SUMPRODUCT((Planung!$BI$223:$BI$255=$B95)*(Planung!$BL$223:$BL$255)*(Planung!$B$223:$B$255))+SUMPRODUCT((Planung!$BQ$223:$BQ$255=$B95)*(Planung!$BT$223:$BT$255)*(Planung!$B$223:$B$255)))/IF(G95=0,1,G95) -> 0 | AO95: =(SUMPRODUCT((Planung!$AS$293:$AS$326=$B95)*(Planung!$AV$293:$AV$326)*(Planung!$B$293:$B$326))+SUMPRODUCT((Planung!$BA$293:$BA$326=$B95)*(Planung!$BD$293:$BD$326)*(Planung!$B$293:$B$326))+SUMPRODUCT((Planung!$BI$293:$BI$326=$B95)*(Planung!$BL$293:$BL$326)*(Planung!$B$293:$B$326))+SUMPRODUCT((Planung!$BQ$293:$BQ$326=$B95)*(Planung!$BT$293:$BT$326)*(Planung!$B$293:$B$326)))/IF(G95=0,1,G95) -> 0 | AP95: =(SUMPRODUCT((Planung!$AS$364:$AS$384=$B95)*(Planung!$AV$364:$AV$384)*(Planung!$B$364:$B$384))+SUMPRODUCT((Planung!$BA$364:$BA$384=$B95)*(Planung!$BD$364:$BD$384)*(Planung!$B$364:$B$384))+SUMPRODUCT((Planung!$BI$364:$BI$384=$B95)*(Planung!$BL$364:$BL$384)*(Planung!$B$364:$B$384))+SUMPRODUCT((Planung!$BQ$364:$BQ$384=$B95)*(Planung!$BT$364:$BT$384)*(Planung!$B$364:$B$384)))/IF(G95=0,1,G95) -> 0
B96: 12317 | C96: Pauschale: Variable Kosten | D96: € | L96: 1 | O96: 0 | P96: =N96*AnteilOel*PreisOel -> 0 | Q96: 1 | W96: =IF(U96=0,0,(R96-S96)/U96) -> 0 | X96: =IF(U96=0,0,V96/U96) -> 0 | Y96: =INDEX(AG96:AP96,AuslastSel) -> 0 | Z96: =IF(X96=0,0,Y96/X96) -> 0 | AA96: =IF(OR(U96=0,X96=0,Z96=0),0,IF(Z96>1,(R96-S96)/V96,((R96-S96)/U96)/Y96)) -> 0 | AB96: =IF(OR(X96=0,Z96=0),0,((R96+S96)/2*Interest)/Y96) -> 0 | AC96: =IF(Y96=0,0,T96/Y96) -> 0 | AD96: =SUM(AA96:AC96) -> 0 | AE96: =AD96+Q96 -> 1 | AG96: =$X96*AH96 -> 0 | AH96: 0 | AJ96: 0 | AK96: =(SUMPRODUCT((Planung!$AS$8:$AS$42=$B96)*(Planung!$AV$8:$AV$42)*(Planung!$B$8:$B$42))+SUMPRODUCT((Planung!$BA$8:$BA$42=$B96)*(Planung!$BD$8:$BD$42)*(Planung!$B$8:$B$42))+SUMPRODUCT((Planung!$BI$8:$BI$42=$B96)*(Planung!$BL$8:$BL$42)*(Planung!$B$8:$B$42))+SUMPRODUCT((Planung!$BQ$8:$BQ$42=$B96)*(Planung!$BT$8:$BT$42)*(Planung!$B$8:$B$42)))/IF(E96=0,1,E96) -> 0 | AL96: =(SUMPRODUCT((Planung!$AS$79:$AS$114=$B96)*(Planung!$AV$79:$AV$114)*(Planung!$B$79:$B$114))+SUMPRODUCT((Planung!$BA$79:$BA$114=$B96)*(Planung!$BD$79:$BD$114)*(Planung!$B$79:$B$114))+SUMPRODUCT((Planung!$BI$79:$BI$114=$B96)*(Planung!$BL$79:$BL$114)*(Planung!$B$79:$B$114))+SUMPRODUCT((Planung!$BQ$79:$BQ$114=$B96)*(Planung!$BT$79:$BT$114)*(Planung!$B$79:$B$114)))/IF(F96=0,1,F96) -> 0 | AM96: =(SUMPRODUCT((Planung!$AS$151:$AS$185=$B96)*(Planung!$AV$151:$AV$185)*(Planung!$B$151:$B$185))+SUMPRODUCT((Planung!$BA$151:$BA$185=$B96)*(Planung!$BD$151:$BD$185)*(Planung!$B$151:$B$185))+SUMPRODUCT((Planung!$BI$151:$BI$185=$B96)*(Planung!$BL$151:$BL$185)*(Planung!$B$151:$B$185))+SUMPRODUCT((Planung!$BQ$151:$BQ$185=$B96)*(Planung!$BT$151:$BT$185)*(Planung!$B$151:$B$185)))/IF(G96=0,1,G96) -> 0 | AN96: =(SUMPRODUCT((Planung!$AS$223:$AS$255=$B96)*(Planung!$AV$223:$AV$255)*(Planung!$B$223:$B$255))+SUMPRODUCT((Planung!$BA$223:$BA$255=$B96)*(Planung!$BD$223:$BD$255)*(Planung!$B$223:$B$255))+SUMPRODUCT((Planung!$BI$223:$BI$255=$B96)*(Planung!$BL$223:$BL$255)*(Planung!$B$223:$B$255))+SUMPRODUCT((Planung!$BQ$223:$BQ$255=$B96)*(Planung!$BT$223:$BT$255)*(Planung!$B$223:$B$255)))/IF(G96=0,1,G96) -> 0 | AO96: =(SUMPRODUCT((Planung!$AS$293:$AS$326=$B96)*(Planung!$AV$293:$AV$326)*(Planung!$B$293:$B$326))+SUMPRODUCT((Planung!$BA$293:$BA$326=$B96)*(Planung!$BD$293:$BD$326)*(Planung!$B$293:$B$326))+SUMPRODUCT((Planung!$BI$293:$BI$326=$B96)*(Planung!$BL$293:$BL$326)*(Planung!$B$293:$B$326))+SUMPRODUCT((Planung!$BQ$293:$BQ$326=$B96)*(Planung!$BT$293:$BT$326)*(Planung!$B$293:$B$326)))/IF(G96=0,1,G96) -> 0 | AP96: =(SUMPRODUCT((Planung!$AS$364:$AS$384=$B96)*(Planung!$AV$364:$AV$384)*(Planung!$B$364:$B$384))+SUMPRODUCT((Planung!$BA$364:$BA$384=$B96)*(Planung!$BD$364:$BD$384)*(Planung!$B$364:$B$384))+SUMPRODUCT((Planung!$BI$364:$BI$384=$B96)*(Planung!$BL$364:$BL$384)*(Planung!$B$364:$B$384))+SUMPRODUCT((Planung!$BQ$364:$BQ$384=$B96)*(Planung!$BT$364:$BT$384)*(Planung!$B$364:$B$384)))/IF(G96=0,1,G96) -> 0
B97: 12319 | C97: Pauschale: Diesel | D97: l | N97: 1 | O97: 0.95 | P97: 0.029 | Q97: 0.979 | W97: 0 | X97: 0 | Y97: 0 | Z97: 0 | AA97: 0 | AB97: 0 | AC97: 0 | AD97: 0 | AE97: 0.979 | AG97: 0 | AH97: 0 | AJ97: 0 | AK97: =(SUMPRODUCT((Planung!$AS$8:$AS$42=$B97)*(Planung!$AV$8:$AV$42)*(Planung!$B$8:$B$42))+SUMPRODUCT((Planung!$BA$8:$BA$42=$B97)*(Planung!$BD$8:$BD$42)*(Planung!$B$8:$B$42))+SUMPRODUCT((Planung!$BI$8:$BI$42=$B97)*(Planung!$BL$8:$BL$42)*(Planung!$B$8:$B$42))+SUMPRODUCT((Planung!$BQ$8:$BQ$42=$B97)*(Planung!$BT$8:$BT$42)*(Planung!$B$8:$B$42)))/IF(E97=0,1,E97) -> 0 | AL97: =(SUMPRODUCT((Planung!$AS$79:$AS$114=$B97)*(Planung!$AV$79:$AV$114)*(Planung!$B$79:$B$114))+SUMPRODUCT((Planung!$BA$79:$BA$114=$B97)*(Planung!$BD$79:$BD$114)*(Planung!$B$79:$B$114))+SUMPRODUCT((Planung!$BI$79:$BI$114=$B97)*(Planung!$BL$79:$BL$114)*(Planung!$B$79:$B$114))+SUMPRODUCT((Planung!$BQ$79:$BQ$114=$B97)*(Planung!$BT$79:$BT$114)*(Planung!$B$79:$B$114)))/IF(F97=0,1,F97) -> 0 | AM97: =(SUMPRODUCT((Planung!$AS$151:$AS$185=$B97)*(Planung!$AV$151:$AV$185)*(Planung!$B$151:$B$185))+SUMPRODUCT((Planung!$BA$151:$BA$185=$B97)*(Planung!$BD$151:$BD$185)*(Planung!$B$151:$B$185))+SUMPRODUCT((Planung!$BI$151:$BI$185=$B97)*(Planung!$BL$151:$BL$185)*(Planung!$B$151:$B$185))+SUMPRODUCT((Planung!$BQ$151:$BQ$185=$B97)*(Planung!$BT$151:$BT$185)*(Planung!$B$151:$B$185)))/IF(G97=0,1,G97) -> 0 | AN97: =(SUMPRODUCT((Planung!$AS$223:$AS$255=$B97)*(Planung!$AV$223:$AV$255)*(Planung!$B$223:$B$255))+SUMPRODUCT((Planung!$BA$223:$BA$255=$B97)*(Planung!$BD$223:$BD$255)*(Planung!$B$223:$B$255))+SUMPRODUCT((Planung!$BI$223:$BI$255=$B97)*(Planung!$BL$223:$BL$255)*(Planung!$B$223:$B$255))+SUMPRODUCT((Planung!$BQ$223:$BQ$255=$B97)*(Planung!$BT$223:$BT$255)*(Planung!$B$223:$B$255)))/IF(G97=0,1,G97) -> 0 | AO97: =(SUMPRODUCT((Planung!$AS$293:$AS$326=$B97)*(Planung!$AV$293:$AV$326)*(Planung!$B$293:$B$326))+SUMPRODUCT((Planung!$BA$293:$BA$326=$B97)*(Planung!$BD$293:$BD$326)*(Planung!$B$293:$B$326))+SUMPRODUCT((Planung!$BI$293:$BI$326=$B97)*(Planung!$BL$293:$BL$326)*(Planung!$B$293:$B$326))+SUMPRODUCT((Planung!$BQ$293:$BQ$326=$B97)*(Planung!$BT$293:$BT$326)*(Planung!$B$293:$B$326)))/IF(G97=0,1,G97) -> 0 | AP97: =(SUMPRODUCT((Planung!$AS$364:$AS$384=$B97)*(Planung!$AV$364:$AV$384)*(Planung!$B$364:$B$384))+SUMPRODUCT((Planung!$BA$364:$BA$384=$B97)*(Planung!$BD$364:$BD$384)*(Planung!$B$364:$B$384))+SUMPRODUCT((Planung!$BI$364:$BI$384=$B97)*(Planung!$BL$364:$BL$384)*(Planung!$B$364:$B$384))+SUMPRODUCT((Planung!$BQ$364:$BQ$384=$B97)*(Planung!$BT$364:$BT$384)*(Planung!$B$364:$B$384)))/IF(G97=0,1,G97) -> 0
B98: 12318 | C98: Pauschale: Reparatur | D98: € | K98: 1 | O98: 0 | P98: 0 | Q98: 1 | W98: =IF(U98=0,0,(R98-S98)/U98) -> 0 | X98: 0 | Y98: 0 | Z98: 0 | AA98: 0 | AB98: 0 | AC98: 0 | AD98: 0 | AE98: 1 | AG98: 0 | AH98: 0 | AJ98: 0 | AK98: =(SUMPRODUCT((Planung!$AS$8:$AS$42=$B98)*(Planung!$AV$8:$AV$42)*(Planung!$B$8:$B$42))+SUMPRODUCT((Planung!$BA$8:$BA$42=$B98)*(Planung!$BD$8:$BD$42)*(Planung!$B$8:$B$42))+SUMPRODUCT((Planung!$BI$8:$BI$42=$B98)*(Planung!$BL$8:$BL$42)*(Planung!$B$8:$B$42))+SUMPRODUCT((Planung!$BQ$8:$BQ$42=$B98)*(Planung!$BT$8:$BT$42)*(Planung!$B$8:$B$42)))/IF(E98=0,1,E98) -> 0 | AL98: =(SUMPRODUCT((Planung!$AS$79:$AS$114=$B98)*(Planung!$AV$79:$AV$114)*(Planung!$B$79:$B$114))+SUMPRODUCT((Planung!$BA$79:$BA$114=$B98)*(Planung!$BD$79:$BD$114)*(Planung!$B$79:$B$114))+SUMPRODUCT((Planung!$BI$79:$BI$114=$B98)*(Planung!$BL$79:$BL$114)*(Planung!$B$79:$B$114))+SUMPRODUCT((Planung!$BQ$79:$BQ$114=$B98)*(Planung!$BT$79:$BT$114)*(Planung!$B$79:$B$114)))/IF(F98=0,1,F98) -> 0 | AM98: =(SUMPRODUCT((Planung!$AS$151:$AS$185=$B98)*(Planung!$AV$151:$AV$185)*(Planung!$B$151:$B$185))+SUMPRODUCT((Planung!$BA$151:$BA$185=$B98)*(Planung!$BD$151:$BD$185)*(Planung!$B$151:$B$185))+SUMPRODUCT((Planung!$BI$151:$BI$185=$B98)*(Planung!$BL$151:$BL$185)*(Planung!$B$151:$B$185))+SUMPRODUCT((Planung!$BQ$151:$BQ$185=$B98)*(Planung!$BT$151:$BT$185)*(Planung!$B$151:$B$185)))/IF(G98=0,1,G98) -> 0 | AN98: =(SUMPRODUCT((Planung!$AS$223:$AS$255=$B98)*(Planung!$AV$223:$AV$255)*(Planung!$B$223:$B$255))+SUMPRODUCT((Planung!$BA$223:$BA$255=$B98)*(Planung!$BD$223:$BD$255)*(Planung!$B$223:$B$255))+SUMPRODUCT((Planung!$BI$223:$BI$255=$B98)*(Planung!$BL$223:$BL$255)*(Planung!$B$223:$B$255))+SUMPRODUCT((Planung!$BQ$223:$BQ$255=$B98)*(Planung!$BT$223:$BT$255)*(Planung!$B$223:$B$255)))/IF(G98=0,1,G98) -> 0 | AO98: =(SUMPRODUCT((Planung!$AS$293:$AS$326=$B98)*(Planung!$AV$293:$AV$326)*(Planung!$B$293:$B$326))+SUMPRODUCT((Planung!$BA$293:$BA$326=$B98)*(Planung!$BD$293:$BD$326)*(Planung!$B$293:$B$326))+SUMPRODUCT((Planung!$BI$293:$BI$326=$B98)*(Planung!$BL$293:$BL$326)*(Planung!$B$293:$B$326))+SUMPRODUCT((Planung!$BQ$293:$BQ$326=$B98)*(Planung!$BT$293:$BT$326)*(Planung!$B$293:$B$326)))/IF(G98=0,1,G98) -> 0 | AP98: =(SUMPRODUCT((Planung!$AS$364:$AS$384=$B98)*(Planung!$AV$364:$AV$384)*(Planung!$B$364:$B$384))+SUMPRODUCT((Planung!$BA$364:$BA$384=$B98)*(Planung!$BD$364:$BD$384)*(Planung!$B$364:$B$384))+SUMPRODUCT((Planung!$BI$364:$BI$384=$B98)*(Planung!$BL$364:$BL$384)*(Planung!$B$364:$B$384))+SUMPRODUCT((Planung!$BQ$364:$BQ$384=$B98)*(Planung!$BT$364:$BT$384)*(Planung!$B$364:$B$384)))/IF(G98=0,1,G98) -> 0
B99: 12322 | C99: Pauschale: SonstVK | D99: € | L99: 1 | O99: 0 | P99: 0 | Q99: 1 | W99: 0 | X99: 0 | Y99: 0 | Z99: 0 | AA99: 0 | AB99: 0 | AC99: 0 | AD99: 0 | AE99: 1 | AG99: 0 | AH99: 0 | AJ99: 0 | AK99: =(SUMPRODUCT((Planung!$AS$8:$AS$42=$B99)*(Planung!$AV$8:$AV$42)*(Planung!$B$8:$B$42))+SUMPRODUCT((Planung!$BA$8:$BA$42=$B99)*(Planung!$BD$8:$BD$42)*(Planung!$B$8:$B$42))+SUMPRODUCT((Planung!$BI$8:$BI$42=$B99)*(Planung!$BL$8:$BL$42)*(Planung!$B$8:$B$42))+SUMPRODUCT((Planung!$BQ$8:$BQ$42=$B99)*(Planung!$BT$8:$BT$42)*(Planung!$B$8:$B$42)))/IF(E99=0,1,E99) -> 0 | AL99: =(SUMPRODUCT((Planung!$AS$79:$AS$114=$B99)*(Planung!$AV$79:$AV$114)*(Planung!$B$79:$B$114))+SUMPRODUCT((Planung!$BA$79:$BA$114=$B99)*(Planung!$BD$79:$BD$114)*(Planung!$B$79:$B$114))+SUMPRODUCT((Planung!$BI$79:$BI$114=$B99)*(Planung!$BL$79:$BL$114)*(Planung!$B$79:$B$114))+SUMPRODUCT((Planung!$BQ$79:$BQ$114=$B99)*(Planung!$BT$79:$BT$114)*(Planung!$B$79:$B$114)))/IF(F99=0,1,F99) -> 0 | AM99: =(SUMPRODUCT((Planung!$AS$151:$AS$185=$B99)*(Planung!$AV$151:$AV$185)*(Planung!$B$151:$B$185))+SUMPRODUCT((Planung!$BA$151:$BA$185=$B99)*(Planung!$BD$151:$BD$185)*(Planung!$B$151:$B$185))+SUMPRODUCT((Planung!$BI$151:$BI$185=$B99)*(Planung!$BL$151:$BL$185)*(Planung!$B$151:$B$185))+SUMPRODUCT((Planung!$BQ$151:$BQ$185=$B99)*(Planung!$BT$151:$BT$185)*(Planung!$B$151:$B$185)))/IF(G99=0,1,G99) -> 0 | AN99: =(SUMPRODUCT((Planung!$AS$223:$AS$255=$B99)*(Planung!$AV$223:$AV$255)*(Planung!$B$223:$B$255))+SUMPRODUCT((Planung!$BA$223:$BA$255=$B99)*(Planung!$BD$223:$BD$255)*(Planung!$B$223:$B$255))+SUMPRODUCT((Planung!$BI$223:$BI$255=$B99)*(Planung!$BL$223:$BL$255)*(Planung!$B$223:$B$255))+SUMPRODUCT((Planung!$BQ$223:$BQ$255=$B99)*(Planung!$BT$223:$BT$255)*(Planung!$B$223:$B$255)))/IF(G99=0,1,G99) -> 0 | AO99: =(SUMPRODUCT((Planung!$AS$293:$AS$326=$B99)*(Planung!$AV$293:$AV$326)*(Planung!$B$293:$B$326))+SUMPRODUCT((Planung!$BA$293:$BA$326=$B99)*(Planung!$BD$293:$BD$326)*(Planung!$B$293:$B$326))+SUMPRODUCT((Planung!$BI$293:$BI$326=$B99)*(Planung!$BL$293:$BL$326)*(Planung!$B$293:$B$326))+SUMPRODUCT((Planung!$BQ$293:$BQ$326=$B99)*(Planung!$BT$293:$BT$326)*(Planung!$B$293:$B$326)))/IF(G99=0,1,G99) -> 0 | AP99: =(SUMPRODUCT((Planung!$AS$364:$AS$384=$B99)*(Planung!$AV$364:$AV$384)*(Planung!$B$364:$B$384))+SUMPRODUCT((Planung!$BA$364:$BA$384=$B99)*(Planung!$BD$364:$BD$384)*(Planung!$B$364:$B$384))+SUMPRODUCT((Planung!$BI$364:$BI$384=$B99)*(Planung!$BL$364:$BL$384)*(Planung!$B$364:$B$384))+SUMPRODUCT((Planung!$BQ$364:$BQ$384=$B99)*(Planung!$BT$364:$BT$384)*(Planung!$B$364:$B$384)))/IF(G99=0,1,G99) -> 0
B100: 12321 | C100: Pauschale: VerrechnPreis | D100: € | O100: 0 | P100: 0 | Q100: 0 | W100: 0 | X100: 0 | Y100: 0 | Z100: 0 | AA100: 0 | AB100: 0 | AC100: 0 | AD100: 0 | AE100: 0 | AG100: 0 | AH100: 0 | AJ100: 0 | AK100: =(SUMPRODUCT((Planung!$AS$8:$AS$42=$B100)*(Planung!$AV$8:$AV$42)*(Planung!$B$8:$B$42))+SUMPRODUCT((Planung!$BA$8:$BA$42=$B100)*(Planung!$BD$8:$BD$42)*(Planung!$B$8:$B$42))+SUMPRODUCT((Planung!$BI$8:$BI$42=$B100)*(Planung!$BL$8:$BL$42)*(Planung!$B$8:$B$42))+SUMPRODUCT((Planung!$BQ$8:$BQ$42=$B100)*(Planung!$BT$8:$BT$42)*(Planung!$B$8:$B$42)))/IF(E100=0,1,E100) -> 0 | AL100: =(SUMPRODUCT((Planung!$AS$79:$AS$114=$B100)*(Planung!$AV$79:$AV$114)*(Planung!$B$79:$B$114))+SUMPRODUCT((Planung!$BA$79:$BA$114=$B100)*(Planung!$BD$79:$BD$114)*(Planung!$B$79:$B$114))+SUMPRODUCT((Planung!$BI$79:$BI$114=$B100)*(Planung!$BL$79:$BL$114)*(Planung!$B$79:$B$114))+SUMPRODUCT((Planung!$BQ$79:$BQ$114=$B100)*(Planung!$BT$79:$BT$114)*(Planung!$B$79:$B$114)))/IF(F100=0,1,F100) -> 0 | AM100: =(SUMPRODUCT((Planung!$AS$151:$AS$185=$B100)*(Planung!$AV$151:$AV$185)*(Planung!$B$151:$B$185))+SUMPRODUCT((Planung!$BA$151:$BA$185=$B100)*(Planung!$BD$151:$BD$185)*(Planung!$B$151:$B$185))+SUMPRODUCT((Planung!$BI$151:$BI$185=$B100)*(Planung!$BL$151:$BL$185)*(Planung!$B$151:$B$185))+SUMPRODUCT((Planung!$BQ$151:$BQ$185=$B100)*(Planung!$BT$151:$BT$185)*(Planung!$B$151:$B$185)))/IF(G100=0,1,G100) -> 0 | AN100: =(SUMPRODUCT((Planung!$AS$223:$AS$255=$B100)*(Planung!$AV$223:$AV$255)*(Planung!$B$223:$B$255))+SUMPRODUCT((Planung!$BA$223:$BA$255=$B100)*(Planung!$BD$223:$BD$255)*(Planung!$B$223:$B$255))+SUMPRODUCT((Planung!$BI$223:$BI$255=$B100)*(Planung!$BL$223:$BL$255)*(Planung!$B$223:$B$255))+SUMPRODUCT((Planung!$BQ$223:$BQ$255=$B100)*(Planung!$BT$223:$BT$255)*(Planung!$B$223:$B$255)))/IF(G100=0,1,G100) -> 0 | AO100: =(SUMPRODUCT((Planung!$AS$293:$AS$326=$B100)*(Planung!$AV$293:$AV$326)*(Planung!$B$293:$B$326))+SUMPRODUCT((Planung!$BA$293:$BA$326=$B100)*(Planung!$BD$293:$BD$326)*(Planung!$B$293:$B$326))+SUMPRODUCT((Planung!$BI$293:$BI$326=$B100)*(Planung!$BL$293:$BL$326)*(Planung!$B$293:$B$326))+SUMPRODUCT((Planung!$BQ$293:$BQ$326=$B100)*(Planung!$BT$293:$BT$326)*(Planung!$B$293:$B$326)))/IF(G100=0,1,G100) -> 0 | AP100: =(SUMPRODUCT((Planung!$AS$364:$AS$384=$B100)*(Planung!$AV$364:$AV$384)*(Planung!$B$364:$B$384))+SUMPRODUCT((Planung!$BA$364:$BA$384=$B100)*(Planung!$BD$364:$BD$384)*(Planung!$B$364:$B$384))+SUMPRODUCT((Planung!$BI$364:$BI$384=$B100)*(Planung!$BL$364:$BL$384)*(Planung!$B$364:$B$384))+SUMPRODUCT((Planung!$BQ$364:$BQ$384=$B100)*(Planung!$BT$364:$BT$384)*(Planung!$B$364:$B$384)))/IF(G100=0,1,G100) -> 0
B101: 12320 | O101: 0 | P101: 0 | Q101: 0 | W101: 0 | X101: 0 | Y101: 0 | Z101: 0 | AA101: 0 | AB101: 0 | AC101: 0 | AD101: 0 | AE101: 0 | AG101: 0 | AH101: 0 | AJ101: 0 | AK101: =(SUMPRODUCT((Planung!$AS$8:$AS$42=$B101)*(Planung!$AV$8:$AV$42)*(Planung!$B$8:$B$42))+SUMPRODUCT((Planung!$BA$8:$BA$42=$B101)*(Planung!$BD$8:$BD$42)*(Planung!$B$8:$B$42))+SUMPRODUCT((Planung!$BI$8:$BI$42=$B101)*(Planung!$BL$8:$BL$42)*(Planung!$B$8:$B$42))+SUMPRODUCT((Planung!$BQ$8:$BQ$42=$B101)*(Planung!$BT$8:$BT$42)*(Planung!$B$8:$B$42)))/IF(E101=0,1,E101) -> 0 | AL101: =(SUMPRODUCT((Planung!$AS$79:$AS$114=$B101)*(Planung!$AV$79:$AV$114)*(Planung!$B$79:$B$114))+SUMPRODUCT((Planung!$BA$79:$BA$114=$B101)*(Planung!$BD$79:$BD$114)*(Planung!$B$79:$B$114))+SUMPRODUCT((Planung!$BI$79:$BI$114=$B101)*(Planung!$BL$79:$BL$114)*(Planung!$B$79:$B$114))+SUMPRODUCT((Planung!$BQ$79:$BQ$114=$B101)*(Planung!$BT$79:$BT$114)*(Planung!$B$79:$B$114)))/IF(F101=0,1,F101) -> 0 | AM101: =(SUMPRODUCT((Planung!$AS$151:$AS$185=$B101)*(Planung!$AV$151:$AV$185)*(Planung!$B$151:$B$185))+SUMPRODUCT((Planung!$BA$151:$BA$185=$B101)*(Planung!$BD$151:$BD$185)*(Planung!$B$151:$B$185))+SUMPRODUCT((Planung!$BI$151:$BI$185=$B101)*(Planung!$BL$151:$BL$185)*(Planung!$B$151:$B$185))+SUMPRODUCT((Planung!$BQ$151:$BQ$185=$B101)*(Planung!$BT$151:$BT$185)*(Planung!$B$151:$B$185)))/IF(G101=0,1,G101) -> 0 | AN101: =(SUMPRODUCT((Planung!$AS$223:$AS$255=$B101)*(Planung!$AV$223:$AV$255)*(Planung!$B$223:$B$255))+SUMPRODUCT((Planung!$BA$223:$BA$255=$B101)*(Planung!$BD$223:$BD$255)*(Planung!$B$223:$B$255))+SUMPRODUCT((Planung!$BI$223:$BI$255=$B101)*(Planung!$BL$223:$BL$255)*(Planung!$B$223:$B$255))+SUMPRODUCT((Planung!$BQ$223:$BQ$255=$B101)*(Planung!$BT$223:$BT$255)*(Planung!$B$223:$B$255)))/IF(G101=0,1,G101) -> 0 | AO101: =(SUMPRODUCT((Planung!$AS$293:$AS$326=$B101)*(Planung!$AV$293:$AV$326)*(Planung!$B$293:$B$326))+SUMPRODUCT((Planung!$BA$293:$BA$326=$B101)*(Planung!$BD$293:$BD$326)*(Planung!$B$293:$B$326))+SUMPRODUCT((Planung!$BI$293:$BI$326=$B101)*(Planung!$BL$293:$BL$326)*(Planung!$B$293:$B$326))+SUMPRODUCT((Planung!$BQ$293:$BQ$326=$B101)*(Planung!$BT$293:$BT$326)*(Planung!$B$293:$B$326)))/IF(G101=0,1,G101) -> 0 | AP101: =(SUMPRODUCT((Planung!$AS$364:$AS$384=$B101)*(Planung!$AV$364:$AV$384)*(Planung!$B$364:$B$384))+SUMPRODUCT((Planung!$BA$364:$BA$384=$B101)*(Planung!$BD$364:$BD$384)*(Planung!$B$364:$B$384))+SUMPRODUCT((Planung!$BI$364:$BI$384=$B101)*(Planung!$BL$364:$BL$384)*(Planung!$B$364:$B$384))+SUMPRODUCT((Planung!$BQ$364:$BQ$384=$B101)*(Planung!$BT$364:$BT$384)*(Planung!$B$364:$B$384)))/IF(G101=0,1,G101) -> 0
B102: 12323 | C102: Pauscheale: Invest. Ko. 8J | D102: € | O102: 0 | P102: =N102*AnteilOel*PreisOel -> 0 | Q102: =K102+L102+M102+O102+P102 -> 0 | R102: 1 | U102: 8 | V102: 8 | W102: =IF(U102=0,0,(R102-S102)/U102) -> 0.125 | X102: =IF(U102=0,0,V102/U102) -> 1 | Y102: =INDEX(AG102:AP102,AuslastSel) -> 0 | Z102: =IF(X102=0,0,Y102/X102) -> 0 | AA102: =IF(OR(U102=0,X102=0,Z102=0),0,IF(Z102>1,(R102-S102)/V102,((R102-S102)/U102)/Y102)) -> 0 | AB102: =IF(OR(X102=0,Z102=0),0,((R102+S102)/2*Interest)/Y102) -> 0 | AC102: =IF(Y102=0,0,T102/Y102) -> 0 | AD102: =SUM(AA102:AC102) -> 0 | AE102: =AD102+Q102 -> 0 | AG102: =$X102*AH102 -> 0.8 | AH102: 0.8 | AI102: 1 | AJ102: 1 | AK102: =(SUMPRODUCT((Planung!$AS$8:$AS$42=$B102)*(Planung!$AV$8:$AV$42)*(Planung!$B$8:$B$42))+SUMPRODUCT((Planung!$BA$8:$BA$42=$B102)*(Planung!$BD$8:$BD$42)*(Planung!$B$8:$B$42))+SUMPRODUCT((Planung!$BI$8:$BI$42=$B102)*(Planung!$BL$8:$BL$42)*(Planung!$B$8:$B$42))+SUMPRODUCT((Planung!$BQ$8:$BQ$42=$B102)*(Planung!$BT$8:$BT$42)*(Planung!$B$8:$B$42)))/IF(E102=0,1,E102) -> 0 | AL102: =(SUMPRODUCT((Planung!$AS$79:$AS$114=$B102)*(Planung!$AV$79:$AV$114)*(Planung!$B$79:$B$114))+SUMPRODUCT((Planung!$BA$79:$BA$114=$B102)*(Planung!$BD$79:$BD$114)*(Planung!$B$79:$B$114))+SUMPRODUCT((Planung!$BI$79:$BI$114=$B102)*(Planung!$BL$79:$BL$114)*(Planung!$B$79:$B$114))+SUMPRODUCT((Planung!$BQ$79:$BQ$114=$B102)*(Planung!$BT$79:$BT$114)*(Planung!$B$79:$B$114)))/IF(F102=0,1,F102) -> 0 | AM102: =(SUMPRODUCT((Planung!$AS$151:$AS$185=$B102)*(Planung!$AV$151:$AV$185)*(Planung!$B$151:$B$185))+SUMPRODUCT((Planung!$BA$151:$BA$185=$B102)*(Planung!$BD$151:$BD$185)*(Planung!$B$151:$B$185))+SUMPRODUCT((Planung!$BI$151:$BI$185=$B102)*(Planung!$BL$151:$BL$185)*(Planung!$B$151:$B$185))+SUMPRODUCT((Planung!$BQ$151:$BQ$185=$B102)*(Planung!$BT$151:$BT$185)*(Planung!$B$151:$B$185)))/IF(G102=0,1,G102) -> 0 | AN102: =(SUMPRODUCT((Planung!$AS$223:$AS$255=$B102)*(Planung!$AV$223:$AV$255)*(Planung!$B$223:$B$255))+SUMPRODUCT((Planung!$BA$223:$BA$255=$B102)*(Planung!$BD$223:$BD$255)*(Planung!$B$223:$B$255))+SUMPRODUCT((Planung!$BI$223:$BI$255=$B102)*(Planung!$BL$223:$BL$255)*(Planung!$B$223:$B$255))+SUMPRODUCT((Planung!$BQ$223:$BQ$255=$B102)*(Planung!$BT$223:$BT$255)*(Planung!$B$223:$B$255)))/IF(G102=0,1,G102) -> 0 | AO102: =(SUMPRODUCT((Planung!$AS$293:$AS$326=$B102)*(Planung!$AV$293:$AV$326)*(Planung!$B$293:$B$326))+SUMPRODUCT((Planung!$BA$293:$BA$326=$B102)*(Planung!$BD$293:$BD$326)*(Planung!$B$293:$B$326))+SUMPRODUCT((Planung!$BI$293:$BI$326=$B102)*(Planung!$BL$293:$BL$326)*(Planung!$B$293:$B$326))+SUMPRODUCT((Planung!$BQ$293:$BQ$326=$B102)*(Planung!$BT$293:$BT$326)*(Planung!$B$293:$B$326)))/IF(G102=0,1,G102) -> 0 | AP102: =(SUMPRODUCT((Planung!$AS$364:$AS$384=$B102)*(Planung!$AV$364:$AV$384)*(Planung!$B$364:$B$384))+SUMPRODUCT((Planung!$BA$364:$BA$384=$B102)*(Planung!$BD$364:$BD$384)*(Planung!$B$364:$B$384))+SUMPRODUCT((Planung!$BI$364:$BI$384=$B102)*(Planung!$BL$364:$BL$384)*(Planung!$B$364:$B$384))+SUMPRODUCT((Planung!$BQ$364:$BQ$384=$B102)*(Planung!$BT$364:$BT$384)*(Planung!$B$364:$B$384)))/IF(G102=0,1,G102) -> 0
B103: 12324 | C103: Pauscheale: Invest. Ko. 10J | D103: € | O103: 0 | P103: =N103*AnteilOel*PreisOel -> 0 | Q103: =K103+L103+M103+O103+P103 -> 0 | R103: 1 | U103: 10 | V103: 10 | W103: =IF(U103=0,0,(R103-S103)/U103) -> 0.1 | X103: =IF(U103=0,0,V103/U103) -> 1 | Y103: =INDEX(AG103:AP103,AuslastSel) -> 0 | Z103: =IF(X103=0,0,Y103/X103) -> 0 | AA103: =IF(OR(U103=0,X103=0,Z103=0),0,IF(Z103>1,(R103-S103)/V103,((R103-S103)/U103)/Y103)) -> 0 | AB103: =IF(OR(X103=0,Z103=0),0,((R103+S103)/2*Interest)/Y103) -> 0 | AC103: =IF(Y103=0,0,T103/Y103) -> 0 | AD103: =SUM(AA103:AC103) -> 0 | AE103: =AD103+Q103 -> 0 | AG103: =$X103*AH103 -> 0.8 | AH103: 0.8 | AI103: 1 | AJ103: 1 | AK103: =(SUMPRODUCT((Planung!$AS$8:$AS$42=$B103)*(Planung!$AV$8:$AV$42)*(Planung!$B$8:$B$42))+SUMPRODUCT((Planung!$BA$8:$BA$42=$B103)*(Planung!$BD$8:$BD$42)*(Planung!$B$8:$B$42))+SUMPRODUCT((Planung!$BI$8:$BI$42=$B103)*(Planung!$BL$8:$BL$42)*(Planung!$B$8:$B$42))+SUMPRODUCT((Planung!$BQ$8:$BQ$42=$B103)*(Planung!$BT$8:$BT$42)*(Planung!$B$8:$B$42)))/IF(E103=0,1,E103) -> 0 | AL103: =(SUMPRODUCT((Planung!$AS$79:$AS$114=$B103)*(Planung!$AV$79:$AV$114)*(Planung!$B$79:$B$114))+SUMPRODUCT((Planung!$BA$79:$BA$114=$B103)*(Planung!$BD$79:$BD$114)*(Planung!$B$79:$B$114))+SUMPRODUCT((Planung!$BI$79:$BI$114=$B103)*(Planung!$BL$79:$BL$114)*(Planung!$B$79:$B$114))+SUMPRODUCT((Planung!$BQ$79:$BQ$114=$B103)*(Planung!$BT$79:$BT$114)*(Planung!$B$79:$B$114)))/IF(F103=0,1,F103) -> 0 | AM103: =(SUMPRODUCT((Planung!$AS$151:$AS$185=$B103)*(Planung!$AV$151:$AV$185)*(Planung!$B$151:$B$185))+SUMPRODUCT((Planung!$BA$151:$BA$185=$B103)*(Planung!$BD$151:$BD$185)*(Planung!$B$151:$B$185))+SUMPRODUCT((Planung!$BI$151:$BI$185=$B103)*(Planung!$BL$151:$BL$185)*(Planung!$B$151:$B$185))+SUMPRODUCT((Planung!$BQ$151:$BQ$185=$B103)*(Planung!$BT$151:$BT$185)*(Planung!$B$151:$B$185)))/IF(G103=0,1,G103) -> 0 | AN103: =(SUMPRODUCT((Planung!$AS$223:$AS$255=$B103)*(Planung!$AV$223:$AV$255)*(Planung!$B$223:$B$255))+SUMPRODUCT((Planung!$BA$223:$BA$255=$B103)*(Planung!$BD$223:$BD$255)*(Planung!$B$223:$B$255))+SUMPRODUCT((Planung!$BI$223:$BI$255=$B103)*(Planung!$BL$223:$BL$255)*(Planung!$B$223:$B$255))+SUMPRODUCT((Planung!$BQ$223:$BQ$255=$B103)*(Planung!$BT$223:$BT$255)*(Planung!$B$223:$B$255)))/IF(G103=0,1,G103) -> 0 | AO103: =(SUMPRODUCT((Planung!$AS$293:$AS$326=$B103)*(Planung!$AV$293:$AV$326)*(Planung!$B$293:$B$326))+SUMPRODUCT((Planung!$BA$293:$BA$326=$B103)*(Planung!$BD$293:$BD$326)*(Planung!$B$293:$B$326))+SUMPRODUCT((Planung!$BI$293:$BI$326=$B103)*(Planung!$BL$293:$BL$326)*(Planung!$B$293:$B$326))+SUMPRODUCT((Planung!$BQ$293:$BQ$326=$B103)*(Planung!$BT$293:$BT$326)*(Planung!$B$293:$B$326)))/IF(G103=0,1,G103) -> 0 | AP103: =(SUMPRODUCT((Planung!$AS$364:$AS$384=$B103)*(Planung!$AV$364:$AV$384)*(Planung!$B$364:$B$384))+SUMPRODUCT((Planung!$BA$364:$BA$384=$B103)*(Planung!$BD$364:$BD$384)*(Planung!$B$364:$B$384))+SUMPRODUCT((Planung!$BI$364:$BI$384=$B103)*(Planung!$BL$364:$BL$384)*(Planung!$B$364:$B$384))+SUMPRODUCT((Planung!$BQ$364:$BQ$384=$B103)*(Planung!$BT$364:$BT$384)*(Planung!$B$364:$B$384)))/IF(G103=0,1,G103) -> 0
B104: 12325 | C104: Pauscheale: Invest. Ko. 12,5J | D104: € | O104: 0 | P104: =N104*AnteilOel*PreisOel -> 0 | Q104: =K104+L104+M104+O104+P104 -> 0 | R104: 1 | U104: 12.5 | V104: 12.5 | W104: =IF(U104=0,0,(R104-S104)/U104) -> 0.08 | X104: =IF(U104=0,0,V104/U104) -> 1 | Y104: =INDEX(AG104:AP104,AuslastSel) -> 0 | Z104: =IF(X104=0,0,Y104/X104) -> 0 | AA104: =IF(OR(U104=0,X104=0,Z104=0),0,IF(Z104>1,(R104-S104)/V104,((R104-S104)/U104)/Y104)) -> 0 | AB104: =IF(OR(X104=0,Z104=0),0,((R104+S104)/2*Interest)/Y104) -> 0 | AC104: =IF(Y104=0,0,T104/Y104) -> 0 | AD104: =SUM(AA104:AC104) -> 0 | AE104: =AD104+Q104 -> 0 | AG104: =$X104*AH104 -> 0.8 | AH104: 0.8 | AI104: 1 | AJ104: 1 | AK104: =(SUMPRODUCT((Planung!$AS$8:$AS$42=$B104)*(Planung!$AV$8:$AV$42)*(Planung!$B$8:$B$42))+SUMPRODUCT((Planung!$BA$8:$BA$42=$B104)*(Planung!$BD$8:$BD$42)*(Planung!$B$8:$B$42))+SUMPRODUCT((Planung!$BI$8:$BI$42=$B104)*(Planung!$BL$8:$BL$42)*(Planung!$B$8:$B$42))+SUMPRODUCT((Planung!$BQ$8:$BQ$42=$B104)*(Planung!$BT$8:$BT$42)*(Planung!$B$8:$B$42)))/IF(E104=0,1,E104) -> 0 | AL104: =(SUMPRODUCT((Planung!$AS$79:$AS$114=$B104)*(Planung!$AV$79:$AV$114)*(Planung!$B$79:$B$114))+SUMPRODUCT((Planung!$BA$79:$BA$114=$B104)*(Planung!$BD$79:$BD$114)*(Planung!$B$79:$B$114))+SUMPRODUCT((Planung!$BI$79:$BI$114=$B104)*(Planung!$BL$79:$BL$114)*(Planung!$B$79:$B$114))+SUMPRODUCT((Planung!$BQ$79:$BQ$114=$B104)*(Planung!$BT$79:$BT$114)*(Planung!$B$79:$B$114)))/IF(F104=0,1,F104) -> 0 | AM104: =(SUMPRODUCT((Planung!$AS$151:$AS$185=$B104)*(Planung!$AV$151:$AV$185)*(Planung!$B$151:$B$185))+SUMPRODUCT((Planung!$BA$151:$BA$185=$B104)*(Planung!$BD$151:$BD$185)*(Planung!$B$151:$B$185))+SUMPRODUCT((Planung!$BI$151:$BI$185=$B104)*(Planung!$BL$151:$BL$185)*(Planung!$B$151:$B$185))+SUMPRODUCT((Planung!$BQ$151:$BQ$185=$B104)*(Planung!$BT$151:$BT$185)*(Planung!$B$151:$B$185)))/IF(G104=0,1,G104) -> 0 | AN104: =(SUMPRODUCT((Planung!$AS$223:$AS$255=$B104)*(Planung!$AV$223:$AV$255)*(Planung!$B$223:$B$255))+SUMPRODUCT((Planung!$BA$223:$BA$255=$B104)*(Planung!$BD$223:$BD$255)*(Planung!$B$223:$B$255))+SUMPRODUCT((Planung!$BI$223:$BI$255=$B104)*(Planung!$BL$223:$BL$255)*(Planung!$B$223:$B$255))+SUMPRODUCT((Planung!$BQ$223:$BQ$255=$B104)*(Planung!$BT$223:$BT$255)*(Planung!$B$223:$B$255)))/IF(G104=0,1,G104) -> 0 | AO104: =(SUMPRODUCT((Planung!$AS$293:$AS$326=$B104)*(Planung!$AV$293:$AV$326)*(Planung!$B$293:$B$326))+SUMPRODUCT((Planung!$BA$293:$BA$326=$B104)*(Planung!$BD$293:$BD$326)*(Planung!$B$293:$B$326))+SUMPRODUCT((Planung!$BI$293:$BI$326=$B104)*(Planung!$BL$293:$BL$326)*(Planung!$B$293:$B$326))+SUMPRODUCT((Planung!$BQ$293:$BQ$326=$B104)*(Planung!$BT$293:$BT$326)*(Planung!$B$293:$B$326)))/IF(G104=0,1,G104) -> 0 | AP104: =(SUMPRODUCT((Planung!$AS$364:$AS$384=$B104)*(Planung!$AV$364:$AV$384)*(Planung!$B$364:$B$384))+SUMPRODUCT((Planung!$BA$364:$BA$384=$B104)*(Planung!$BD$364:$BD$384)*(Planung!$B$364:$B$384))+SUMPRODUCT((Planung!$BI$364:$BI$384=$B104)*(Planung!$BL$364:$BL$384)*(Planung!$B$364:$B$384))+SUMPRODUCT((Planung!$BQ$364:$BQ$384=$B104)*(Planung!$BT$364:$BT$384)*(Planung!$B$364:$B$384)))/IF(G104=0,1,G104) -> 0
B105: 12315 | C105: Pauscheale: Invest. Ko. 15J | D105: € | O105: 0 | P105: =N105*AnteilOel*PreisOel -> 0 | Q105: 0 | R105: 1 | U105: 15 | V105: 15 | W105: =IF(U105=0,0,(R105-S105)/U105) -> 0.06666666667 | X105: =IF(U105=0,0,V105/U105) -> 1 | Y105: =INDEX(AG105:AP105,AuslastSel) -> 0 | Z105: =IF(X105=0,0,Y105/X105) -> 0 | AA105: =IF(OR(U105=0,X105=0,Z105=0),0,IF(Z105>1,(R105-S105)/V105,((R105-S105)/U105)/Y105)) -> 0 | AB105: =IF(OR(X105=0,Z105=0),0,((R105+S105)/2*Interest)/Y105) -> 0 | AC105: =IF(Y105=0,0,T105/Y105) -> 0 | AD105: =SUM(AA105:AC105) -> 0 | AE105: =AD105+Q105 -> 0 | AG105: =$X105*AH105 -> 0.8 | AH105: 0.8 | AI105: 1 | AJ105: 1 | AK105: =(SUMPRODUCT((Planung!$AS$8:$AS$42=$B105)*(Planung!$AV$8:$AV$42)*(Planung!$B$8:$B$42))+SUMPRODUCT((Planung!$BA$8:$BA$42=$B105)*(Planung!$BD$8:$BD$42)*(Planung!$B$8:$B$42))+SUMPRODUCT((Planung!$BI$8:$BI$42=$B105)*(Planung!$BL$8:$BL$42)*(Planung!$B$8:$B$42))+SUMPRODUCT((Planung!$BQ$8:$BQ$42=$B105)*(Planung!$BT$8:$BT$42)*(Planung!$B$8:$B$42)))/IF(E105=0,1,E105) -> 0 | AL105: =(SUMPRODUCT((Planung!$AS$79:$AS$114=$B105)*(Planung!$AV$79:$AV$114)*(Planung!$B$79:$B$114))+SUMPRODUCT((Planung!$BA$79:$BA$114=$B105)*(Planung!$BD$79:$BD$114)*(Planung!$B$79:$B$114))+SUMPRODUCT((Planung!$BI$79:$BI$114=$B105)*(Planung!$BL$79:$BL$114)*(Planung!$B$79:$B$114))+SUMPRODUCT((Planung!$BQ$79:$BQ$114=$B105)*(Planung!$BT$79:$BT$114)*(Planung!$B$79:$B$114)))/IF(F105=0,1,F105) -> 0 | AM105: =(SUMPRODUCT((Planung!$AS$151:$AS$185=$B105)*(Planung!$AV$151:$AV$185)*(Planung!$B$151:$B$185))+SUMPRODUCT((Planung!$BA$151:$BA$185=$B105)*(Planung!$BD$151:$BD$185)*(Planung!$B$151:$B$185))+SUMPRODUCT((Planung!$BI$151:$BI$185=$B105)*(Planung!$BL$151:$BL$185)*(Planung!$B$151:$B$185))+SUMPRODUCT((Planung!$BQ$151:$BQ$185=$B105)*(Planung!$BT$151:$BT$185)*(Planung!$B$151:$B$185)))/IF(G105=0,1,G105) -> 0 | AN105: =(SUMPRODUCT((Planung!$AS$223:$AS$255=$B105)*(Planung!$AV$223:$AV$255)*(Planung!$B$223:$B$255))+SUMPRODUCT((Planung!$BA$223:$BA$255=$B105)*(Planung!$BD$223:$BD$255)*(Planung!$B$223:$B$255))+SUMPRODUCT((Planung!$BI$223:$BI$255=$B105)*(Planung!$BL$223:$BL$255)*(Planung!$B$223:$B$255))+SUMPRODUCT((Planung!$BQ$223:$BQ$255=$B105)*(Planung!$BT$223:$BT$255)*(Planung!$B$223:$B$255)))/IF(G105=0,1,G105) -> 0 | AO105: =(SUMPRODUCT((Planung!$AS$293:$AS$326=$B105)*(Planung!$AV$293:$AV$326)*(Planung!$B$293:$B$326))+SUMPRODUCT((Planung!$BA$293:$BA$326=$B105)*(Planung!$BD$293:$BD$326)*(Planung!$B$293:$B$326))+SUMPRODUCT((Planung!$BI$293:$BI$326=$B105)*(Planung!$BL$293:$BL$326)*(Planung!$B$293:$B$326))+SUMPRODUCT((Planung!$BQ$293:$BQ$326=$B105)*(Planung!$BT$293:$BT$326)*(Planung!$B$293:$B$326)))/IF(G105=0,1,G105) -> 0 | AP105: =(SUMPRODUCT((Planung!$AS$364:$AS$384=$B105)*(Planung!$AV$364:$AV$384)*(Planung!$B$364:$B$384))+SUMPRODUCT((Planung!$BA$364:$BA$384=$B105)*(Planung!$BD$364:$BD$384)*(Planung!$B$364:$B$384))+SUMPRODUCT((Planung!$BI$364:$BI$384=$B105)*(Planung!$BL$364:$BL$384)*(Planung!$B$364:$B$384))+SUMPRODUCT((Planung!$BQ$364:$BQ$384=$B105)*(Planung!$BT$364:$BT$384)*(Planung!$B$364:$B$384)))/IF(G105=0,1,G105) -> 0
B106: 12316 | O106: 0 | P106: =N106*AnteilOel*PreisOel -> 0 | Q106: =K106+L106+M106+O106+P106 -> 0 | W106: =IF(U106=0,0,(R106-S106)/U106) -> 0 | X106: =IF(U106=0,0,V106/U106) -> 0 | Y106: =INDEX(AG106:AP106,AuslastSel) -> 0 | Z106: =IF(X106=0,0,Y106/X106) -> 0 | AA106: =IF(OR(U106=0,X106=0,Z106=0),0,IF(Z106>1,(R106-S106)/V106,((R106-S106)/U106)/Y106)) -> 0 | AB106: =IF(OR(X106=0,Z106=0),0,((R106+S106)/2*Interest)/Y106) -> 0 | AC106: =IF(Y106=0,0,T106/Y106) -> 0 | AD106: =SUM(AA106:AC106) -> 0 | AE106: =AD106+Q106 -> 0 | AG106: =$X106*AH106 -> 0 | AH106: 0 | AJ106: 0 | AK106: =(SUMPRODUCT((Planung!$AS$8:$AS$42=$B106)*(Planung!$AV$8:$AV$42)*(Planung!$B$8:$B$42))+SUMPRODUCT((Planung!$BA$8:$BA$42=$B106)*(Planung!$BD$8:$BD$42)*(Planung!$B$8:$B$42))+SUMPRODUCT((Planung!$BI$8:$BI$42=$B106)*(Planung!$BL$8:$BL$42)*(Planung!$B$8:$B$42))+SUMPRODUCT((Planung!$BQ$8:$BQ$42=$B106)*(Planung!$BT$8:$BT$42)*(Planung!$B$8:$B$42)))/IF(E106=0,1,E106) -> 0 | AL106: =(SUMPRODUCT((Planung!$AS$79:$AS$114=$B106)*(Planung!$AV$79:$AV$114)*(Planung!$B$79:$B$114))+SUMPRODUCT((Planung!$BA$79:$BA$114=$B106)*(Planung!$BD$79:$BD$114)*(Planung!$B$79:$B$114))+SUMPRODUCT((Planung!$BI$79:$BI$114=$B106)*(Planung!$BL$79:$BL$114)*(Planung!$B$79:$B$114))+SUMPRODUCT((Planung!$BQ$79:$BQ$114=$B106)*(Planung!$BT$79:$BT$114)*(Planung!$B$79:$B$114)))/IF(F106=0,1,F106) -> 0 | AM106: =(SUMPRODUCT((Planung!$AS$151:$AS$185=$B106)*(Planung!$AV$151:$AV$185)*(Planung!$B$151:$B$185))+SUMPRODUCT((Planung!$BA$151:$BA$185=$B106)*(Planung!$BD$151:$BD$185)*(Planung!$B$151:$B$185))+SUMPRODUCT((Planung!$BI$151:$BI$185=$B106)*(Planung!$BL$151:$BL$185)*(Planung!$B$151:$B$185))+SUMPRODUCT((Planung!$BQ$151:$BQ$185=$B106)*(Planung!$BT$151:$BT$185)*(Planung!$B$151:$B$185)))/IF(G106=0,1,G106) -> 0 | AN106: =(SUMPRODUCT((Planung!$AS$223:$AS$255=$B106)*(Planung!$AV$223:$AV$255)*(Planung!$B$223:$B$255))+SUMPRODUCT((Planung!$BA$223:$BA$255=$B106)*(Planung!$BD$223:$BD$255)*(Planung!$B$223:$B$255))+SUMPRODUCT((Planung!$BI$223:$BI$255=$B106)*(Planung!$BL$223:$BL$255)*(Planung!$B$223:$B$255))+SUMPRODUCT((Planung!$BQ$223:$BQ$255=$B106)*(Planung!$BT$223:$BT$255)*(Planung!$B$223:$B$255)))/IF(G106=0,1,G106) -> 0 | AO106: =(SUMPRODUCT((Planung!$AS$293:$AS$326=$B106)*(Planung!$AV$293:$AV$326)*(Planung!$B$293:$B$326))+SUMPRODUCT((Planung!$BA$293:$BA$326=$B106)*(Planung!$BD$293:$BD$326)*(Planung!$B$293:$B$326))+SUMPRODUCT((Planung!$BI$293:$BI$326=$B106)*(Planung!$BL$293:$BL$326)*(Planung!$B$293:$B$326))+SUMPRODUCT((Planung!$BQ$293:$BQ$326=$B106)*(Planung!$BT$293:$BT$326)*(Planung!$B$293:$B$326)))/IF(G106=0,1,G106) -> 0 | AP106: =(SUMPRODUCT((Planung!$AS$364:$AS$384=$B106)*(Planung!$AV$364:$AV$384)*(Planung!$B$364:$B$384))+SUMPRODUCT((Planung!$BA$364:$BA$384=$B106)*(Planung!$BD$364:$BD$384)*(Planung!$B$364:$B$384))+SUMPRODUCT((Planung!$BI$364:$BI$384=$B106)*(Planung!$BL$364:$BL$384)*(Planung!$B$364:$B$384))+SUMPRODUCT((Planung!$BQ$364:$BQ$384=$B106)*(Planung!$BT$364:$BT$384)*(Planung!$B$364:$B$384)))/IF(G106=0,1,G106) -> 0
E107: *) Die Angabe der Anzahl verfügbarer Maschinen ist nur nötig wenn mehr als eine Maschine vorhanden ist (keine Angabe wird gleich 1 gewertet) und ist nur wichtig, wenn
E108: - die festen Kosten der Maschinen berechnet werden sollen (zur korrekten Berechnung der Auslastung),
E109: - die Kapazitäten aller verfügbaren Maschinen berechnet werden sollen.
V110: AfA Maschinen laut DL-Planer | W110: =SUMPRODUCT(Y9:Y106,E9:E106,AA9:AA106) -> 0

Sheet Arbeitsverfahren
M1: Kalkulationszinsfuß für UV & AV: | N1: 0.03 | P1: Lohnanspruch: | Q1: 25 | R1: =Curr&"/AKh" -> €/AKh | Y1: Maschine 1 | AE1: Maschine 2 | AK1: Maschine 3 | AQ1: Maschine 4 | AW1: Diesel | AX1: Variable Kosten insgesamt (alle Maschinen) | BD1: Feste Kosten insg. (alle Maschinen) | BH1: Gesamt- | BI1: Maschine 1: Variable Kosten | BP1: Maschine 2: Variable Kosten | BW1: Maschine 3: Variable Kosten | CD1: Maschine 4: Variable Kosten | CK1: Maschine 1: Feste Kosten | CO1: Maschine 2: Feste Kosten | CS1: Maschine 3: Feste Kosten | CW1: Maschine 4: Feste Kosten | DP1: ZoomFakt | DQ1: 100
B2: Arbeitsverfahren | E2: Bemerkungen | F2: Leistung | H2: Variable Kosten | K2: Deck.- | L2: Umlaufvermögen | O2: AKh-Bedarf & -kosten | S2: VarKo | T2: Deck.- | U2: Festkost. | V2: Gesamt- | W2: Untern. | Y2: Code | Z2: Bezeichnung | AA2: Umfang | AC2: Dieselverbrauch | AE2: Code | AF2: Bezeichnung | AG2: Umfang | AI2: Dieselverbrauch | AK2: Code | AL2: Bezeichnung | AM2: Umfang | AO2: Dieselverbrauch | AQ2: Code | AR2: Bezeichnung | AS2: Umfang | AU2: Dieselverbrauch | AW2: Verbr. | AX2: Rep.- | AY2: Sonst. | AZ2: Verrechn- | BA2: Diesel- | BB2: Schmier- | BC2: Var.Ko | BD2: AfA | BE2: ZA für | BF2: Sonstige | BG2: Festko. | BH2: kosten | BI2: Rep.- | BJ2: Sonst. | BK2: Verrechn- | BL2: Diesel | BN2: Schmier- | BO2: Var.Ko | BP2: Rep.- | BQ2: Sonst. | BR2: Verrechn- | BS2: Diesel | BU2: Schmier- | BV2: Var.Ko | BW2: Rep.- | BX2: Sonst. | BY2: Verrechn- | BZ2: Diesel | CB2: Schmier- | CC2: Var.Ko | CD2: Rep.- | CE2: Sonst. | CF2: Verrechn- | CG2: Diesel | CI2: Schmier- | CJ2: Var.Ko | CK2: AfA | CL2: ZA für | CM2: Sonstige | CN2: Festko. | CO2: AfA | CP2: ZA für | CQ2: Sonstige | CR2: Festko. | CS2: AfA | CT2: ZA für | CU2: Sonstige | CV2: Festko. | CW2: AfA | CX2: ZA für | CY2: Sonstige | CZ2: Festko.
B3: Code | C3: Bezeichnung | D3: Einheit | F3: Haupt | G3: Neben | H3: Material | I3: Maschinen | J3: insges. | K3: beitrag | L3: Einsatz | M3: Betrag | N3: Zinsanspr | O3: Arbeit | P3: Rüstzeit | Q3: Gesamt | R3: Lohnanspr | S3: II | T3: beitrag II | U3: (Afa,ZA,Sonst) | V3: kosten | W3: gewinn | AA3: je Einheit | AC3: je Einh. des Verf. | AG3: je Einheint | AI3: je Einh. des Verf. | AM3: je Einheint | AO3: je Einh. des Verf. | AS3: je Einheint | AU3: je Einh. des Verf. | AW3: insges. | AX3: kost. | AY3: (Hilfsm.) | AZ3: preis | BA3: Kosten | BB3: öl-Kost. | BC3: insges. | BE3: AV | BF3: (Vers,etc.) | BG3: insges. | BI3: kost. | BJ3: (Hilfsm.) | BK3: preis | BL3: Verbrauch | BM3: Kosten | BN3: öl-Kost. | BO3: insges. | BP3: kost. | BQ3: (Hilfsm.) | BR3: preis | BS3: Verbrauch | BT3: Kosten | BU3: öl-Kost. | BV3: insges. | BW3: kost. | BX3: (Hilfsm.) | BY3: preis | BZ3: Verbrauch | CA3: Kosten | CB3: öl-Kost. | CC3: insges. | CD3: kost. | CE3: (Hilfsm.) | CF3: preis | CG3: Verbrauch | CH3: Kosten | CI3: öl-Kost. | CJ3: insges. | CL3: AV | CM3: (Vers,etc.) | CN3: insges. | CP3: AV | CQ3: (Vers,etc.) | CR3: insges. | CT3: AV | CU3: (Vers,etc.) | CV3: insges. | CX3: AV | CY3: (Vers,etc.) | CZ3: insges.
F4: =Curr&"/Einh." -> €/Einh. | G4: €/Einh. | H4: €/Einh. | I4: €/Einh. | J4: €/Einh. | K4: €/Einh. | L4: %v.VarKo | M4: €/Einh. | N4: €/Einh. | O4: AKh/Einh. | P4: AKh/Einh. | Q4: AKh/Einh. | R4: =Curr&"/Einh." -> €/Einh. | S4: €/Einh. | T4: €/Einh. | U4: €/Einh. | V4: €/Einh. | W4: €/Einh. | AA4: des Arbeitsverf. | AC4: Faktor | AD4: l/Einh. | AG4: des Arbeitsverf. | AI4: Faktor | AJ4: l/Einh. | AM4: des Arbeitsverf. | AO4: Faktor | AP4: l/Einh. | AS4: des Arbeitsverf. | AU4: Faktor | AV4: l/Einh. | AW4: l/Einh. | AX4: =Curr&"/Einh." -> €/Einh. | AY4: =Curr&"/Einh." -> €/Einh. | AZ4: =Curr&"/Einh." -> €/Einh. | BA4: =Curr&"/Einh" -> €/Einh | BB4: =Curr&"/Einh" -> €/Einh | BC4: =Curr&"/Einh." -> €/Einh. | BD4: €/Einh. | BE4: €/Einh. | BF4: €/Einh. | BG4: €/Einh. | BH4: €/Einh. | BI4: €/Einh. | BJ4: €/Einh. | BK4: €/Einh. | BL4: l/Einh. | BM4: =Curr&"/Einh" -> €/Einh | BN4: =Curr&"/Einh" -> €/Einh | BO4: =Curr&"/Einh." -> €/Einh. | BP4: =Curr&"/Einh." -> €/Einh. | BQ4: =Curr&"/Einh." -> €/Einh. | BR4: =Curr&"/Einh." -> €/Einh. | BS4: l/Einh. | BT4: =Curr&"/Einh" -> €/Einh | BU4: =Curr&"/Einh" -> €/Einh | BV4: =Curr&"/Einh." -> €/Einh. | BW4: =Curr&"/Einh." -> €/Einh. | BX4: =Curr&"/Einh." -> €/Einh. | BY4: =Curr&"/Einh." -> €/Einh. | BZ4: l/Einh. | CA4: =Curr&"/Einh" -> €/Einh | CB4: =Curr&"/Einh" -> €/Einh | CC4: =Curr&"/Einh." -> €/Einh. | CD4: =Curr&"/Einh." -> €/Einh. | CE4: =Curr&"/Einh." -> €/Einh. | CF4: =Curr&"/Einh." -> €/Einh. | CG4: l/Einh. | CH4: =Curr&"/Einh" -> €/Einh | CI4: =Curr&"/Einh" -> €/Einh | CJ4: =Curr&"/Einh." -> €/Einh. | CK4: €/Einh. | CL4: €/Einh. | CM4: €/Einh. | CN4: €/Einh. | CO4: €/Einh. | CP4: €/Einh. | CQ4: €/Einh. | CR4: €/Einh. | CS4: €/Einh. | CT4: €/Einh. | CU4: €/Einh. | CV4: €/Einh. | CW4: €/Einh. | CX4: €/Einh. | CY4: €/Einh. | CZ4: €/Einh.
B5: Sp. | C5: 2 | D5: =CELL("Col",D5)-CELL("Col",$B5)+1 -> 3 | E5: 4 | F5: 5 | G5: 6 | H5: 7 | I5: 8 | J5: 9 | K5: 10 | L5: 11 | M5: 12 | N5: 13 | O5: 14 | P5: 15 | Q5: 16 | R5: 17 | S5: 18 | T5: 19 | U5: 20 | V5: 21 | W5: 22 | Y5: =CELL("Col",Y5)-CELL("Col",$B5)+1 -> 24 | Z5: 25 | AA5: 26 | AB5: 27 | AC5: 28 | AD5: 29 | AE5: 30 | AF5: 31 | AG5: 32 | AH5: 33 | AI5: 34 | AJ5: 35 | AK5: 36 | AL5: 37 | AM5: 38 | AN5: 39 | AO5: 40 | AP5: 41 | AQ5: 42 | AR5: 43 | AS5: 44 | AT5: 45 | AU5: 46 | AV5: 47 | AW5: 48 | AX5: 49 | AY5: 50 | AZ5: 51 | BA5: 52 | BB5: 53 | BC5: 54 | BD5: 55 | BE5: =CELL("Col",BE5)-CELL("Col",$B5)+1 -> 56 | BF5: 57 | BG5: 58 | BH5: 59 | BI5: 60 | BJ5: 61 | BK5: 62 | BL5: 63 | BM5: 64 | BN5: 65 | BO5: 66 | BP5: 67 | BQ5: 68 | BR5: 69 | BS5: 70 | BT5: 71 | BU5: 72 | BV5: 73 | BW5: 74 | BX5: 75 | BY5: 76 | BZ5: 77 | CA5: 78 | CB5: 79 | CC5: 80 | CD5: 81 | CE5: 82 | CF5: 83 | CG5: 84 | CH5: 85 | CI5: 86 | CJ5: 87 | CK5: =CELL("Col",CK5)-CELL("Col",$B5)+1 -> 88 | CL5: 89 | CM5: 90 | CN5: 91 | CO5: 92 | CP5: 93 | CQ5: 94 | CR5: 95 | CS5: 96 | CT5: 97 | CU5: 98 | CV5: 99 | CW5: 100 | CX5: 101 | CY5: 102 | CZ5: 103
B6: Code | C6: Arbeitsverfahren | D6: Einheit | E6: Bemerkungen | F6: HauptLeist | G6: NebLeist | H6: Material | I6: varMaKo | J6: VKges | K6: DB | L6: UV-Satz | M6: UV | N6: ZAfUV | O6: AKhArb | P6: AKhRüst | Q6: AKh | R6: Lohnanspr | S6: VarKo2 | T6: DB2 | U6: Festkost. | V6: GesKost | W6: UG | Y6: Code | Z6: Schlepper | AA6: Umfang | AB6: Einh | AC6: Faktor | AD6: Diesel | AE6: Code | AF6: Schlepper | AG6: Umfang | AH6: Einh | AI6: Faktor | AJ6: Diesel | AK6: Code | AL6: Schlepper | AM6: Umfang | AN6: Einh | AO6: Faktor | AP6: Diesel | AQ6: Code | AR6: Schlepper | AS6: Umfang | AT6: Einh | AU6: Faktor | AV6: Diesel | AW6: Diesel-Verbrauch | AX6: ReparKosten | AY6: Sonst VK | AZ6: Verrechungspreis | BA6: Kraftst-Kosten | BB6: Ölkosten | BC6: VarKo gesamt | BD6: AfA | BE6: ZA für AV | BF6: Sonst FK | BG6: Kestko Gesamt | BH6: Ges Kosten | BI6: ReparKosten | BJ6: Sonst VK | BK6: Verrechungspreis | BL6: Kraftst-Verbrauch | BM6: Kraftst-Kosten | BN6: Ölkosten | BO6: VarKo gesamt | BP6: ReparKosten | BQ6: Sonst VK | BR6: Verrechungspreis | BS6: Kraftst-Verbrauch | BT6: Kraftst-Kosten | BU6: Ölkosten | BV6: VarKo gesamt | BW6: ReparKosten | BX6: Sonst VK | BY6: Verrechungspreis | BZ6: Kraftst-Verbrauch | CA6: Kraftst-Kosten | CB6: Ölkosten | CC6: VarKo gesamt | CD6: ReparKosten | CE6: Sonst VK | CF6: Verrechungspreis | CG6: Kraftst-Verbrauch | CH6: Kraftst-Kosten | CI6: Ölkosten | CJ6: VarKo gesamt | CK6: AfA | CL6: ZA für AV | CM6: Sonst FK | CN6: Kestko Gesamt | CO6: AfA | CP6: ZA für AV | CQ6: Sonst FK | CR6: Kestko Gesamt | CS6: AfA | CT6: ZA für AV | CU6: Sonst FK | CV6: Kestko Gesamt | CW6: AfA | CX6: ZA für AV | CY6: Sonst FK | CZ6: Kestko Gesamt
C7: TRANSPORT, UMSCHLAG | I7: =BC7 -> 0 | J7: =H7+I7 -> 0 | K7: =F7+G7-J7 -> 0 | M7: =(H7+I7)*L7 -> 0 | N7: =M7*Interest -> 0 | Q7: =O7+P7 -> 0 | R7: =Q7*Lohnanspruch -> 0 | S7: =J7+N7+R7 -> 0 | T7: =K7-N7-R7 -> 0 | U7: =BG7 -> 0 | V7: =H7+I7+N7+R7+U7 -> 0 | W7: =T7-U7 -> 0 | AW7: =BL7+BS7+BZ7+CG7 -> 0 | AX7: =BI7+BP7+BW7+CD7 -> 0 | AY7: =BJ7+BQ7+BX7+CE7 -> 0 | AZ7: =BK7+BR7+BY7+CF7 -> 0 | BA7: =BM7+BT7+CA7+CH7 -> 0 | BB7: =BN7+BU7+CB7+CI7 -> 0 | BC7: =SUM(AX7:AZ7,BA7:BB7) -> 0 | BD7: =CK7+CO7+CS7+CW7 -> 0 | BE7: =CL7+CP7+CT7+CX7 -> 0 | BF7: =CM7+CQ7+CU7+CY7 -> 0 | BG7: =CN7+CR7+CV7+CZ7 -> 0 | BH7: =BG7+BC7 -> 0 | BI7: =(IF(ISNA(VLOOKUP(Y7,ltSchlepper,Maschinen!$K$6,FALSE))=TRUE,0,VLOOKUP(Y7,ltSchlepper,Maschinen!$K$6,FALSE)*AA7)) -> 0 | BJ7: =(IF(ISNA(VLOOKUP(Y7,ltSchlepper,Maschinen!$L$6,FALSE))=TRUE,0,VLOOKUP(Y7,ltSchlepper,Maschinen!$L$6,FALSE)*AA7)) -> 0 | BK7: =(IF(ISNA(VLOOKUP(Y7,ltSchlepper,Maschinen!$M$6,FALSE))=TRUE,0,VLOOKUP(Y7,ltSchlepper,Maschinen!$M$6,FALSE)*AA7)) -> 0 | BL7: =(IF(ISNA(VLOOKUP(Y7,ltSchlepper,Maschinen!$N$6,FALSE))=TRUE,0,VLOOKUP(Y7,ltSchlepper,Maschinen!$N$6,FALSE)*AA7*IF(ISBLANK(AC7),1,AC7))) -> 0 | BM7: =(IF(ISNA(VLOOKUP(Y7,ltSchlepper,Maschinen!$O$6,FALSE))=TRUE,0,VLOOKUP(Y7,ltSchlepper,Maschinen!$O$6,FALSE)*AA7*IF(ISBLANK(AC7),1,AC7))) -> 0 | BN7: =(IF(ISNA(VLOOKUP(Y7,ltSchlepper,Maschinen!$P$6,FALSE))=TRUE,0,VLOOKUP(Y7,ltSchlepper,Maschinen!$P$6,FALSE)*AA7*IF(ISBLANK(AC7),1,AC7))) -> 0 | BO7: =SUM(BI7:BK7,BM7:BN7) -> 0 | BP7: =(IF(ISNA(VLOOKUP(AE7,ltSchlepper,Maschinen!$K$6,FALSE))=TRUE,0,VLOOKUP(AE7,ltSchlepper,Maschinen!$K$6,FALSE)*AG7)) -> 0 | BQ7: =(IF(ISNA(VLOOKUP(AE7,ltSchlepper,Maschinen!$L$6,FALSE))=TRUE,0,VLOOKUP(AE7,ltSchlepper,Maschinen!$L$6,FALSE)*AG7)) -> 0 | BR7: =(IF(ISNA(VLOOKUP(AE7,ltSchlepper,Maschinen!$M$6,FALSE))=TRUE,0,VLOOKUP(AE7,ltSchlepper,Maschinen!$M$6,FALSE)*AG7)) -> 0 | BS7: =(IF(ISNA(VLOOKUP(AE7,ltSchlepper,Maschinen!$N$6,FALSE))=TRUE,0,VLOOKUP(AE7,ltSchlepper,Maschinen!$N$6,FALSE)*AG7*IF(ISBLANK(AI7),1,AI7))) -> 0 | BT7: =(IF(ISNA(VLOOKUP(AE7,ltSchlepper,Maschinen!$O$6,FALSE))=TRUE,0,VLOOKUP(AE7,ltSchlepper,Maschinen!$O$6,FALSE)*AG7*IF(ISBLANK(AI7),1,AI7))) -> 0 | BU7: =(IF(ISNA(VLOOKUP(AE7,ltSchlepper,Maschinen!$P$6,FALSE))=TRUE,0,VLOOKUP(AE7,ltSchlepper,Maschinen!$P$6,FALSE)*AG7*IF(ISBLANK(AI7),1,AI7))) -> 0 | BV7: =SUM(BP7:BR7,BT7:BU7) -> 0 | BW7: =(IF(ISNA(VLOOKUP(AK7,ltSchlepper,Maschinen!$K$6,FALSE))=TRUE,0,VLOOKUP(AK7,ltSchlepper,Maschinen!$K$6,FALSE)*AM7)) -> 0 | BX7: =(IF(ISNA(VLOOKUP(AK7,ltSchlepper,Maschinen!$L$6,FALSE))=TRUE,0,VLOOKUP(AK7,ltSchlepper,Maschinen!$L$6,FALSE)*AM7)) -> 0 | BY7: =(IF(ISNA(VLOOKUP(AK7,ltSchlepper,Maschinen!$M$6,FALSE))=TRUE,0,VLOOKUP(AK7,ltSchlepper,Maschinen!$M$6,FALSE)*AM7)) -> 0 | BZ7: =(IF(ISNA(VLOOKUP(AK7,ltSchlepper,Maschinen!$N$6,FALSE))=TRUE,0,VLOOKUP(AK7,ltSchlepper,Maschinen!$N$6,FALSE)*AM7*IF(ISBLANK(AO7),1,AO7))) -> 0 | CA7: =(IF(ISNA(VLOOKUP(AK7,ltSchlepper,Maschinen!$O$6,FALSE))=TRUE,0,VLOOKUP(AK7,ltSchlepper,Maschinen!$O$6,FALSE)*AM7*IF(ISBLANK(AO7),1,AO7))) -> 0 | CB7: =(IF(ISNA(VLOOKUP(AK7,ltSchlepper,Maschinen!$P$6,FALSE))=TRUE,0,VLOOKUP(AK7,ltSchlepper,Maschinen!$P$6,FALSE)*AM7*IF(ISBLANK(AO7),1,AO7))) -> 0 | CC7: =SUM(BW7:BY7,CA7:CB7) -> 0 | CD7: =(IF(ISNA(VLOOKUP(AQ7,ltSchlepper,Maschinen!$K$6,FALSE))=TRUE,0,VLOOKUP(AQ7,ltSchlepper,Maschinen!$K$6,FALSE)*AS7)) -> 0 | CE7: =(IF(ISNA(VLOOKUP(AQ7,ltSchlepper,Maschinen!$L$6,FALSE))=TRUE,0,VLOOKUP(AQ7,ltSchlepper,Maschinen!$L$6,FALSE)*AS7)) -> 0 | CF7: =(IF(ISNA(VLOOKUP(AQ7,ltSchlepper,Maschinen!$M$6,FALSE))=TRUE,0,VLOOKUP(AQ7,ltSchlepper,Maschinen!$M$6,FALSE)*AS7)) -> 0 | CG7: =(IF(ISNA(VLOOKUP(AQ7,ltSchlepper,Maschinen!$N$6,FALSE))=TRUE,0,VLOOKUP(AQ7,ltSchlepper,Maschinen!$N$6,FALSE)*AS7*IF(ISBLANK(AU7),1,AU7))) -> 0 | CH7: =(IF(ISNA(VLOOKUP(AQ7,ltSchlepper,Maschinen!$O$6,FALSE))=TRUE,0,VLOOKUP(AQ7,ltSchlepper,Maschinen!$O$6,FALSE)*AS7*IF(ISBLANK(AU7),1,AU7))) -> 0 | CI7: =(IF(ISNA(VLOOKUP(AQ7,ltSchlepper,Maschinen!$P$6,FALSE))=TRUE,0,VLOOKUP(AQ7,ltSchlepper,Maschinen!$P$6,FALSE)*AS7*IF(ISBLANK(AU7),1,AU7))) -> 0 | CJ7: =SUM(CD7:CF7,CH7:CI7) -> 0 | CK7: =(IF(ISNA(VLOOKUP(Y7,ltSchlepper,Maschinen!$AA$6,FALSE))=TRUE,0,VLOOKUP(Y7,ltSchlepper,Maschinen!$AA$6,FALSE)*AA7)) -> 0 | CL7: =(IF(ISNA(VLOOKUP(Y7,ltSchlepper,Maschinen!$AB$6,FALSE))=TRUE,0,VLOOKUP(Y7,ltSchlepper,Maschinen!$AB$6,FALSE)*AA7)) -> 0 | CM7: =(IF(ISNA(VLOOKUP(Y7,ltSchlepper,Maschinen!$AC$6,FALSE))=TRUE,0,VLOOKUP(Y7,ltSchlepper,Maschinen!$AC$6,FALSE)*AA7)) -> 0 | CN7: =SUM(CK7:CM7) -> 0 | CO7: =(IF(ISNA(VLOOKUP(AE7,ltSchlepper,Maschinen!$AA$6,FALSE))=TRUE,0,VLOOKUP(AE7,ltSchlepper,Maschinen!$AA$6,FALSE)*AG7)) -> 0 | CP7: =(IF(ISNA(VLOOKUP(AE7,ltSchlepper,Maschinen!$AB$6,FALSE))=TRUE,0,VLOOKUP(AE7,ltSchlepper,Maschinen!$AB$6,FALSE)*AG7)) -> 0 | CQ7: =(IF(ISNA(VLOOKUP(AE7,ltSchlepper,Maschinen!$AC$6,FALSE))=TRUE,0,VLOOKUP(AE7,ltSchlepper,Maschinen!$AC$6,FALSE)*AG7)) -> 0 | CR7: =SUM(CO7:CQ7) -> 0 | CS7: =(IF(ISNA(VLOOKUP(AK7,ltSchlepper,Maschinen!$AA$6,FALSE))=TRUE,0,VLOOKUP(AK7,ltSchlepper,Maschinen!$AA$6,FALSE)*AM7)) -> 0 | CT7: =(IF(ISNA(VLOOKUP(AK7,ltSchlepper,Maschinen!$AB$6,FALSE))=TRUE,0,VLOOKUP(AK7,ltSchlepper,Maschinen!$AB$6,FALSE)*AM7)) -> 0 | CU7: =(IF(ISNA(VLOOKUP(AK7,ltSchlepper,Maschinen!$AC$6,FALSE))=TRUE,0,VLOOKUP(AK7,ltSchlepper,Maschinen!$AC$6,FALSE)*AM7)) -> 0 | CV7: =SUM(CS7:CU7) -> 0 | CW7: =(IF(ISNA(VLOOKUP(AQ7,ltSchlepper,Maschinen!$AA$6,FALSE))=TRUE,0,VLOOKUP(AQ7,ltSchlepper,Maschinen!$AA$6,FALSE)*AS7)) -> 0 | CX7: =(IF(ISNA(VLOOKUP(AQ7,ltSchlepper,Maschinen!$AB$6,FALSE))=TRUE,0,VLOOKUP(AQ7,ltSchlepper,Maschinen!$AB$6,FALSE)*AS7)) -> 0 | CY7: =(IF(ISNA(VLOOKUP(AQ7,ltSchlepper,Maschinen!$AC$6,FALSE))=TRUE,0,VLOOKUP(AQ7,ltSchlepper,Maschinen!$AC$6,FALSE)*AS7)) -> 0 | CZ7: =SUM(CW7:CY7) -> 0
